Workbook

Sheet data Kbely
A1: -10 | B1: °C venku v 280 m.n.m. - testovací řádek 1.4.2015 | K1: Ctrl+m je makro na výpočet | U1: sezona: | V1: DS | W1: Dní TZ | X1: kWh tepla | Y1: SCOP | Z1: kWh EE topení | AA1: kWh EE chlazení | AB1: poznámky: | AI1: 0 | AJ1: 27364.54933
A2: https://kondenzace.kvalitne.cz/kks/optimalizace-tc.xlsm | N2: =SUM(Y2:Y7)/6 -> 4.47712364 | O2: Průměrný SCOP za 2016/2021 | U2: 15/16 | V2: =X2/M$5*0.8 -> 1384.64 | W2: =X2/24/M$5 -> 72.11666667 | X2: =SUM(AW132:AZ497)*6 -> 24231.2 | Y2: =X2/Z2 -> 4.557634039 | Z2: =SUM(S132:V497)*6 -> 5316.618183 | AA2: =SUM(W101:Z466)*6 -> 935.798858 | AB2: 3.586574974 | AC2: =Y2/AB2 -> 1.270748296 | AE2: =Z2/AF2 -> 0.9180942205 | AF2: 5790.928713 | AG2: 132 | AH2: 497 | AI2: 0.25 | AJ2: 21877.05154 | AV2: https://www.pocasicz.cz/aktuality-o-pocasi/aktuality-471/zmena-teploty-s-vyskou-1455 | BA2: průměr: | BB2: =SUM(BB10:BB1122)/1113 -> 9.997394429 | BD2: =SUM(BD10:BD1122)/1113 -> 11.29577718 | BE2: 10.45049416 | BF2: 9.514375562 | BG2: =SUM(BG10:BG1122)/1113 -> 7.797753819
A3: https://www.degreedays.net LKKB base 30°C | H3: 7 | I3: =IF(H3*H$5+H$6>1,H3*H$5+H$6,1) -> 4.03 | J3: COP při A7/W35 | N3: =Y7 -> 4.370718944 | O3: SCOP za 2020/21 - odpovídá střední pásmo | U3: 16/17 | V3: =X3/M$5*0.8 -> 1585.856 | W3: =X3/24/M$5 -> 82.59666667 | X3: =SUM(AW498:AZ862)*6 -> 27752.48 | Y3: =X3/Z3 -> 4.234355449 | Z3: =SUM(S498:V862)*6 -> 6554.121479 | AA3: =SUM(W466:Z831)*6 -> 914.4457313 | AB3: 3.349210126 | AC3: 1.264284799 | AE3: =Z3/AF3 -> 0.9227878623 | AF3: 7102.522418 | AG3: 498 | AH3: 862 | AI3: 0.5 | AJ3: 17473.96221 | BA3: 0,65 stupně na 100 mterů výšky | BB3: 0 | BD3: 0.6175 | BE3: 0.2925 | BF3: -0.5395 | BG3: -2.1 | BT3: Description: | BU3: Celsius-based heating degree days for a base temperature of 30,0C"
B4: LG při W 50°C | C4: LG | D4: stiebel/hotjet | E4: mango | F4: DeDietrich | G4: teorie | H4: -7 | I4: =IF(H4*H$5+H$6>1,H4*H$5+H$6,1) -> 2.77 | J4: COP při A-7/W45 | O4: =AD1261/AC1261 -> 1.005415437 | P4: je nepřesnost při změně 6hodinových topných průměrů za týdenní | U4: 17/18 | V4: 1419.52 | W4: =X4/24/M$5 -> 73.93333333 | X4: =SUM(AW863:AZ1227)*6 -> 24841.6 | Y4: =X4/Z4 -> 4.304459267 | Z4: =SUM(S863:V1227)*6 -> 5771.131392 | AA4: =SUM(W832:Z1121)*6 -> 498.6923265 | AB4: 3.4143606 | AC4: 1.260692636 | AE4: 0.9254172136 | AF4: 6236.248156 | AG4: 863 | AH4: 1227 | AI4: 0.75 | AJ4: 13954.3958 | AV4: www.degreedays.net (using temperature data from www.wunderground.com) | BA4: m.n.m | BB4: 600 | BC4: =BB2 -> 9.997394429 | BD4: =BD2-BD3 -> 10.67827718 | BE4: =BE2-BE3 -> 10.15799416 | BF4: =BF2-BF3 -> 10.05387556 | BG4: =BG2-BG3 -> 9.897753819 | BT4: Source: | BU4: www.degreedays.net (using temperature data from www.wunderground.com)"
A5: m.n.m | B5: 0.1 | C5: 0.1 | D5: 0.1 | E5: 0.023 | F5: 0.125 | G5: 0.35 | H5: 0.09 | I5: křivka TČ sklon. Většinou bývá 0,1 a znamená, že COP klesá o 1 při změně venkovní tepoty o 10K. Maximum pro SCOP je 0,13 | M5: 14 | N5: kW pro dT 30K. Tedy topení na 20°C, venku -15°C při patě 15°C. | O5: 0 | P5: kW topení ostatních zdrojů | U5: 18/19 | V5: 1359.616 | W5: =X5/24/M$5 -> 70.81333333 | X5: =SUM(AW1228:AZ1592)*6 -> 23793.28 | Y5: =X5/Z5 -> 4.628170107 | Z5: =SUM(S1228:V1592)*6 -> 5140.969206 | AB5: 3.647646983 | AC5: =Y5/AB5 -> 1.268809764 | AE5: 0.9194969177 | AF5: 5591.067363 | AG5: 1228 | AH5: 1592 | AI5: 1 | AJ5: 11329.24716 | AK5: =SUM(B10:B23)/14 -> 5.75 | BA5: korekce | BB5: =0.65*(BB7-BB4)/100 -> -2.08 | BC5: K | BD5: vídeň o 0,67 stupně víc, než odpovídá výšce. | BT5: Accuracy: | BU5: Estimates were made to account for missing data: the ""% Estimated"" column shows how much each figure was affected (0% is best, 100% is worst)"
A6: 280 | B6: 2.3 | C6: 3.4 | D6: 3.8 | E6: 3.96 | F6: 3.75 | G6: 8.7 | H6: 3.4 | I6: křivka TČ konst znamená COP při 0°C. Od Stiebel 3,8 pres LG 3,4 až po NIBE 2,7 | M6: 15 | N6: °C je pata ekvitermu | O6: =SUM(Z2:Z7)/6 -> 5646.001927 | P6: kWh/rok je topení průměr 2015/2021 | U6: 19/20 | V6: 1298.88 | W6: =X6/24/M$5 -> 67.65 | X6: =SUM(AW1593:AZ1958)*6 -> 22730.4 | Y6: =X6/Z6 -> 4.767404035 | Z6: =SUM(S1593:V1958)*6 -> 4767.877829 | AB6: 3.752123216 | AC6: =Y6/AB6 -> 1.270588347 | AE6: 0.9182097957 | AF6: 5192.580009 | AG6: 1593 | AH6: 1958 | AI6: 1.25 | AJ6: 9409.061728 | AP6: =SUM(AN10:AQ16) -> 14.40069509 | BB6: data jednotlivých stanic: | BG6: mělo by být 620 m.n.m. | BT6: Station: | BU6: Kosice, Barca (21.24E,48.66N)"
A7: =0.65*(BB7-A6)/100 -> 0 | B7: =AK9/AL9 -> 5.444604971 | C7: 15 | D7: =AL9/3 -> 235.6666667 | E7: =AM8 -> 237.6666667 | F7: topných dnů | H7: 30 | I7: °C Teplota topné vody při výpočtových ztrátách dT 30K | M7: 3 | N7: kW je výkon TČ při COP =1 (příkon motoru) | U7: 20/21 | V7: 1579.776 | W7: 82.28 | X7: =SUM(AW1959:AZ2323)*6 -> 27646.08 | Y7: 4.370718944 | Z7: =SUM(S1959:V2323)*6 -> 6325.293471 | AB7: 3.447614052 | AC7: 1.267751807 | AD7: =Y7/3.2 -> 1.36584967 | AE7: 0.9202642507 | AF7: 6873.344766 | AG7: 1959 | AH7: 2323 | AI7: 1.5 | AJ7: 8145.173352 | AK7: průměrná teplota za topné období | AL7: počet topných dnů | AM7: počet DNŮ topení TČ | BA7: m.n.m: | BB7: 280 | BD7: 185 | BE7: 235 | BF7: 363 | BG7: 600 | BT7: Station ID: | BU7: LZKZ"
A8: Průměr °C | B8: =SUM(B116:B1211)/1096 -> 10.23220803 | C8: odpoledne | D8: průměr | E8: v noci | F8: 20 | G8: °C bez výkonu | M8: =M7*I3 -> 12.09 | N8: kW je výkon čerpadla při A7/W35 | U8: 21/22 | V8: 1388.224 | W8: 72.30333333 | X8: =SUM(AW2324:AZ2688)*6 -> 24293.92 | Y8: 4.679849421 | Z8: =SUM(S2324:V2688)*6 -> 5191.175573 | AB8: 3.716875515 | AC8: 1.25908156 | AE8: 2.365412472 | AF8: 2194.617486 | AG8: 2324 | AH8: 2688 | AI8: 1.75 | AJ8: 7350.798565 | AK8: =AK9/AL9 -> 5.444604971 | AL8: =AL9/3 -> 235.6666667 | AM8: =AM9/3 -> 237.6666667 | BD8: Wien / Schwechat-Flughafen, AT (16.57E,48.11N) | BE8: Brno / Turany, CZ (16.69E,49.15N)" | BF8: Praha / Ruzyne, CZ (14.26E,50.10N) 363 m.n.m | BG8: Karlovy Vary, CZ (12.91E,50.20N)"
A9: Date;HDD;% Estimated | B9: Kbely 2015-18 (°C) | C9: 0 | D9: 0 | E9: =-C9 -> 0 | F9: topná teplota | G9: dosažený COP | K9: Potřebný topný výkon (kW) | O9: Příkon(kW) | S9: topení (kW) | W9: chlaz (kW) | AA9: kW topení | AB9: kW chlazení | AC9: kWh celkem po šesti hodinách | AD9: kWh celkem z průměrů za týden | AE9: kWh chlazení po šesti hodinách | AF9: kWh chlazení jako týdenní průměry | AI9: 2 | AJ9: 6894.955466 | AK9: =SUM(AK116:AK1211) -> 3849.335714 | AL9: =SUM(AL116:AL1211) -> 707 | AM9: =SUM(AM116:AM1211) -> 713 | AN9: procent výkonu kompresoru | AR9: min | AS9: max | AT9: vytížení kompresoru | AW9: Potřebný topný výkon (kW) jen kladný | BB9: Kbely 2015-18 (°C) | BC9: IMOSTKOV2 | BD9: LOWW | BE9: LKTB | BF9: LKPR | BG9: LKKV" | BI9: LZTT Poprad | BT9: Date;HDD;% Estimated
A10: 2015-04-01 | B10: =A1 -> -10 | C10: =$B10+C$9 -> -10 | D10: =$B10+D$9 -> -10 | E10: -10 | F10: =F$8+(H$7-F$8)*(M$6-B10)/30 -> 28.33333333 | G10: =IF((B10+35-$F10)*$H$5+$H$6>1,(B10+35-$F10)*$H$5+$H$6,1) -> 3.1 | H10: =IF((C10+35-$F10)*$H$5+$H$6>1,(C10+35-$F10)*$H$5+$H$6,1) -> 3.1 | I10: =IF((D10+35-$F10)*$H$5+$H$6>1,(D10+35-$F10)*$H$5+$H$6,1) -> 3.1 | J10: =IF((E10+35-$F10)*$H$5+$H$6>1,(E10+35-$F10)*$H$5+$H$6,1) -> 3.1 | K10: =$M$5*($M$6-B10)/30-$O$5 -> 11.66666667 | L10: =$M$5*($M$6-C10)/30-$O$5 -> 11.66666667 | M10: =$M$5*($M$6-D10)/30-$O$5 -> 11.66666667 | N10: =$M$5*($M$6-E10)/30-$O$5 -> 11.66666667 | O10: =IF(K10/G10>$M$7,$M$7+K10-$M$7*G10,K10/G10) -> 5.366666667 | P10: =IF(L10/H10>$M$7,$M$7+L10-$M$7*H10,L10/H10) -> 5.366666667 | Q10: =IF(M10/I10>$M$7,$M$7+M10-$M$7*I10,M10/I10) -> 5.366666667 | R10: =IF(N10/J10>$M$7,$M$7+N10-$M$7*J10,N10/J10) -> 5.366666667 | S10: =IF(O10>0,O10,0) -> 5.366666667 | T10: =IF(P10>0,P10,) -> 5.366666667 | U10: =IF(Q10>0,Q10,) -> 5.366666667 | V10: =IF(R10>0,R10,) -> 5.366666667 | W10: =IF(O10<0,-O10,0) -> 0 | X10: =IF(P10<0,-P10,0) -> 0 | Y10: =IF(Q10<0,-Q10,0) -> 0 | Z10: =IF(R10<0,-R10,0) -> 0 | AA10: =IF(SUM(O10:R10)/4>0,SUM(O10:R10)/4,) -> 5.366666667 | AB10: =IF(SUM(O10:R10)/4<0,-SUM(O10:R10)/4,) -> 0 | AC10: =6*SUM(S10:V10) -> 128.8 | AE10: =6*SUM(W10:Z10) -> 0 | AI10: 2.25 | AJ10: 6631.88095 | AL10: =IF(B10<$C$7,1,0) -> 1 | AN10: =K10/G10/$M$7 -> 1.254480287 | AO10: =L10/H10/$M$7 -> 1.254480287 | AP10: =M10/I10/$M$7 -> 1.254480287 | AQ10: =N10/J10/$M$7 -> 1.254480287 | AW10: =IF(K10>0,K10,0) -> 11.66666667 | AX10: =IF(L10>0,L10,0) -> 11.66666667 | AY10: =IF(M10>0,M10,0) -> 11.66666667 | AZ10: =IF(N10>0,N10,0) -> 11.66666667 | BB10: 2.5 | BD10: 5.5 | BE10: 4.6 | BF10: 3.3 | BG10: 1 | BT10: 2016-01-01 | BU10: 38.5 | BV10: 0 | BW10: =30-BU10 -> -8.5
A11: 2015-04-02 | B11: =BB11+A$7 -> 2.5 | C11: =$B11+C$9 -> 2.5 | D11: 2.5 | E11: 2.5 | F11: =F$8+(H$7-F$8)*(M$6-B11)/30 -> 24.16666667 | G11: =IF((B11+35-$F11)*$H$5+$H$6>1,(B11+35-$F11)*$H$5+$H$6,1) -> 4.6 | H11: 4.6 | I11: 4.6 | J11: 4.6 | K11: 5.833333333 | L11: 5.833333333 | M11: 5.833333333 | N11: 5.833333333 | O11: 1.268115942 | P11: 1.268115942 | Q11: 1.268115942 | R11: 1.268115942 | S11: =IF(O11>0,O11,) -> 1.268115942 | T11: 1.268115942 | U11: 1.268115942 | V11: 1.268115942 | W11: 0 | X11: 0 | Y11: 0 | Z11: 0 | AA11: =IF(SUM(O11:R11)/4>0,SUM(O11:R11)/4,) -> 1.268115942 | AB11: =IF(SUM(O11:R11)/4<0,-SUM(O11:R11)/4,) -> 0 | AC11: =6*SUM(S11:V11)+AC10 -> 159.2347826 | AD11: =AD10+AA11*24 -> 30.43478261 | AE11: =6*SUM(W11:Z11)+AE10 -> 0 | AF11: =AF10+AB11*24 -> 0 | AI11: 2.5 | AJ11: 6459.802462 | AL11: =IF(B11<$C$7,1,0) -> 1 | AN11: 0.422705314 | AO11: 0.422705314 | AP11: 0.422705314 | AQ11: 0.422705314 | AT11: =SUM(AN10:AQ12)/12 -> 0.6783862122 | AW11: 5.833333333 | AX11: 5.833333333 | AY11: 5.833333333 | AZ11: 5.833333333 | BB11: 2.5 | BD11: 4.9 | BE11: 3.2 | BF11: 1.8 | BG11: -0.3 | BT11: 2016-01-02 | BU11: 39.7 | BV11: 0 | BW11: =30-BU11 -> -9.7
A12: 2015-04-03 | B12: 4 | C12: 4 | D12: 4 | E12: 4 | F12: 23.66666667 | G12: 4.78 | H12: 4.78 | I12: 4.78 | J12: 4.78 | K12: 5.133333333 | L12: 5.133333333 | M12: 5.133333333 | N12: 5.133333333 | O12: 1.073919107 | P12: 1.073919107 | Q12: 1.073919107 | R12: 1.073919107 | S12: 1.073919107 | T12: 1.073919107 | U12: 1.073919107 | V12: 1.073919107 | W12: 0 | X12: 0 | Y12: 0 | Z12: 0 | AA12: 1.073919107 | AB12: 0 | AC12: =6*SUM(S12:V12)+AC11 -> 185.0088412 | AD12: =AC12 -> 185.0088412 | AE12: 0 | AF12: =AF11+AB12*24 -> 0 | AI12: 2.75 | AJ12: 6339.796694 | AL12: 1 | AN12: 0.3579730358 | AO12: 0.3579730358 | AP12: 0.3579730358 | AQ12: 0.3579730358 | AT12: =SUM(AN11:AQ13)/12 -> 0.3981538367 | AW12: 5.133333333 | AX12: 5.133333333 | AY12: 5.133333333 | AZ12: 5.133333333 | BB12: 4 | BD12: 5.7 | BE12: 4 | BF12: 2.8 | BG12: 0.4 | BT12: 2016-01-03 | BU12: 39.8 | BV12: 0 | BW12: -9.8
A13: 2015-04-04 | B13: 2.7 | C13: 2.7 | D13: 2.7 | E13: 2.7 | F13: 24.1 | G13: 4.624 | H13: 4.624 | I13: 4.624 | J13: 4.624 | K13: 5.74 | L13: 5.74 | M13: 5.74 | N13: 5.74 | O13: 1.241349481 | P13: 1.241349481 | Q13: 1.241349481 | R13: 1.241349481 | S13: 1.241349481 | T13: 1.241349481 | U13: 1.241349481 | V13: 1.241349481 | W13: 0 | X13: 0 | Y13: 0 | Z13: 0 | AA13: 1.241349481 | AB13: 0 | AC13: 214.8012287 | AD13: =AD12+AA10*24 -> 313.8088412 | AE13: 0 | AF13: =AF12+AB10*24 -> 0 | AI13: 3 | AJ13: 6260.962496 | AL13: 1 | AM13: =IF(SUM(AN10:AQ16)>0,1,0) -> 1 | AN13: 0.4137831603 | AO13: 0.4137831603 | AP13: 0.4137831603 | AQ13: 0.4137831603 | AR13: =SUM(AO10:AO16)/7 -> 0.5143105391 | AS13: =SUM(AQ10:AQ16)/7 -> 0.5143105391 | AT13: 0.389323349 | AW13: 5.74 | AX13: 5.74 | AY13: 5.74 | AZ13: 5.74 | BB13: 2.7 | BD13: 4.6 | BE13: 3.4 | BF13: 2.3 | BG13: -0.4 | BT13: 2016-01-04 | BU13: 40.8 | BV13: 0 | BW13: -10.8
A14: 2015-04-05 | B14: 3.1 | C14: 3.1 | D14: 3.1 | E14: 3.1 | F14: 23.96666667 | G14: 4.672 | H14: 4.672 | I14: 4.672 | J14: 4.672 | K14: 5.553333333 | L14: 5.553333333 | M14: 5.553333333 | N14: 5.553333333 | O14: 1.188641553 | P14: 1.188641553 | Q14: 1.188641553 | R14: 1.188641553 | S14: 1.188641553 | T14: 1.188641553 | U14: 1.188641553 | V14: 1.188641553 | W14: 0 | X14: 0 | Y14: 0 | Z14: 0 | AA14: 1.188641553 | AB14: 0 | AC14: 243.328626 | AD14: =AD13+AA14*24 -> 342.3362384 | AE14: 0 | AF14: 0 | AI14: 4 | AJ14: 6133.680556 | AL14: 1 | AM14: =IF(SUM(AN11:AQ17)>0,1,0) -> 1 | AN14: 0.3962138508 | AO14: 0.3962138508 | AP14: 0.3962138508 | AQ14: 0.3962138508 | AR14: =SUM(AO11:AO17)/7 -> 0.3691742938 | AS14: =SUM(AQ11:AQ17)/7 -> 0.3691742938 | AT14: 0.4184734694 | AW14: 5.553333333 | AX14: 5.553333333 | AY14: 5.553333333 | AZ14: 5.553333333 | BB14: 3.1 | BD14: 4.1 | BE14: 3.2 | BF14: 1.7 | BG14: 0.2 | BT14: 2016-01-05 | BU14: 37 | BV14: 1 | BW14: -7
A15: 2015-04-06 | B15: 2 | C15: 2 | D15: 2 | E15: 2 | F15: 24.33333333 | G15: 4.54 | H15: 4.54 | I15: 4.54 | J15: 4.54 | K15: 6.066666667 | L15: 6.066666667 | M15: 6.066666667 | N15: 6.066666667 | O15: 1.336270191 | P15: 1.336270191 | Q15: 1.336270191 | R15: 1.336270191 | S15: 1.336270191 | T15: 1.336270191 | U15: 1.336270191 | V15: 1.336270191 | W15: 0 | X15: 0 | Y15: 0 | Z15: 0 | AA15: 1.336270191 | AB15: 0 | AC15: 275.3991106 | AD15: 374.406723 | AE15: 0 | AF15: 0 | AI15: 5 | AJ15: 6124.47768 | AL15: 1 | AM15: 1 | AN15: 0.445423397 | AO15: 0.445423397 | AP15: 0.445423397 | AQ15: 0.445423397 | AR15: 0.3345118267 | AS15: 0.3345118267 | AT15: 0.3837439922 | AW15: 6.066666667 | AX15: 6.066666667 | AY15: 6.066666667 | AZ15: 6.066666667 | BB15: 2 | BD15: 3.9 | BE15: 3.2 | BF15: 0.6 | BG15: -0.6 | BT15: 2016-01-06 | BU15: 32.8 | BV15: 0 | BW15: -2.8
A16: 2015-04-07 | B16: 5.2 | C16: 5.2 | D16: 5.2 | E16: 5.2 | F16: 23.26666667 | G16: 4.924 | H16: 4.924 | I16: 4.924 | J16: 4.924 | K16: 4.573333333 | L16: 4.573333333 | M16: 4.573333333 | N16: 4.573333333 | O16: 0.9287841863 | P16: 0.9287841863 | Q16: 0.9287841863 | R16: 0.9287841863 | S16: 0.9287841863 | T16: 0.9287841863 | U16: 0.9287841863 | V16: 0.9287841863 | W16: 0 | X16: 0 | Y16: 0 | Z16: 0 | AA16: 0.9287841863 | AB16: 0 | AC16: 297.689931 | AD16: 396.6975435 | AE16: 0 | AF16: 0 | AI16: 6 | AJ16: 6124.47768 | AK16: =IF(SUM(B10:B23)/14<$C$7,SUM(B10:B23)/14,0) -> 5.75 | AL16: =IF(SUM(B10:B23)/14<$C$7,1,0) -> 1 | AM16: 1 | AN16: 0.3095947288 | AO16: 0.3095947288 | AP16: 0.3095947288 | AQ16: 0.3095947288 | AR16: 0.3035748418 | AS16: 0.3035748418 | AT16: 0.3311815653 | AW16: 4.573333333 | AX16: 4.573333333 | AY16: 4.573333333 | AZ16: 4.573333333 | BB16: 5.2 | BD16: 6.1 | BE16: 5.7 | BF16: 4.2 | BG16: 2.6 | BT16: 2016-01-07 | BU16: 29 | BV16: 0 | BW16: 1
A17: 2015-04-08 | B17: 7.1 | C17: 7.1 | D17: 7.1 | E17: 7.1 | F17: 22.63333333 | G17: 5.152 | H17: 5.152 | I17: 5.152 | J17: 5.152 | K17: 3.686666667 | L17: 3.686666667 | M17: 3.686666667 | N17: 3.686666667 | O17: 0.7155797101 | P17: 0.7155797101 | Q17: 0.7155797101 | R17: 0.7155797101 | S17: 0.7155797101 | T17: 0.7155797101 | U17: 0.7155797101 | V17: 0.7155797101 | W17: 0 | X17: 0 | Y17: 0 | Z17: 0 | AA17: 0.7155797101 | AB17: 0 | AC17: 314.8638441 | AD17: 413.8714565 | AE17: 0 | AF17: 0 | AI17: 5.7 | AJ17: 6124.47768 | AK17: =IF(SUM(B11:B24)/14<$C$7,SUM(B11:B24)/14,0) -> 7.614285714 | AL17: =IF(SUM(B11:B24)/14<$C$7,1,0) -> 1 | AM17: 1 | AN17: 0.23852657 | AO17: 0.23852657 | AP17: 0.23852657 | AQ17: 0.23852657 | AR17: 0.2504811668 | AS17: 0.2504811668 | AT17: 0.242729781 | AW17: 3.686666667 | AX17: 3.686666667 | AY17: 3.686666667 | AZ17: 3.686666667 | BB17: 7.1 | BD17: 8.2 | BE17: 7.9 | BF17: 5.9 | BG17: 5 | BT17: 2016-01-08 | BU17: 32.7 | BV17: 0 | BW17: -2.7
A18: 2015-04-09 | B18: 8.8 | C18: 8.8 | D18: 8.8 | E18: 8.8 | F18: 22.06666667 | G18: 5.356 | H18: 5.356 | I18: 5.356 | J18: 5.356 | K18: 2.893333333 | L18: 2.893333333 | M18: 2.893333333 | N18: 2.893333333 | O18: 0.5402041324 | P18: 0.5402041324 | Q18: 0.5402041324 | R18: 0.5402041324 | S18: 0.5402041324 | T18: 0.5402041324 | U18: 0.5402041324 | V18: 0.5402041324 | W18: 0 | X18: 0 | Y18: 0 | Z18: 0 | AA18: 0.5402041324 | AB18: 0 | AC18: 327.8287433 | AD18: 426.8363557 | AE18: 0 | AF18: 0 | AK18: 8.471428571 | AL18: 1 | AM18: 1 | AN18: 0.1800680441 | AO18: 0.1800680441 | AP18: 0.1800680441 | AQ18: 0.1800680441 | AR18: 0.2046741607 | AS18: 0.2046741607 | AT18: 0.1866695852 | AW18: 2.893333333 | AX18: 2.893333333 | AY18: 2.893333333 | AZ18: 2.893333333 | BB18: 8.8 | BD18: 9.6 | BE18: 9.8 | BF18: 8.1 | BG18: 6.1 | BT18: 2016-01-09 | BU18: 30.6 | BV18: 0 | BW18: -0.6
A19: 2015-04-10 | B19: 10 | C19: 10 | D19: 10 | E19: 10 | F19: 21.66666667 | G19: 5.5 | H19: 5.5 | I19: 5.5 | J19: 5.5 | K19: 2.333333333 | L19: 2.333333333 | M19: 2.333333333 | N19: 2.333333333 | O19: 0.4242424242 | P19: 0.4242424242 | Q19: 0.4242424242 | R19: 0.4242424242 | S19: 0.4242424242 | T19: 0.4242424242 | U19: 0.4242424242 | V19: 0.4242424242 | W19: 0 | X19: 0 | Y19: 0 | Z19: 0 | AA19: 0.4242424242 | AB19: 0 | AC19: 338.0105614 | AD19: 437.0181739 | AE19: 0 | AF19: 0 | AK19: 8.807142857 | AL19: 1 | AM19: 1 | AN19: 0.1414141414 | AO19: 0.1414141414 | AP19: 0.1414141414 | AQ19: 0.1414141414 | AR19: 0.1616933645 | AS19: 0.1616933645 | AT19: 0.121203207 | AW19: 2.333333333 | AX19: 2.333333333 | AY19: 2.333333333 | AZ19: 2.333333333 | BB19: 10 | BD19: 11.3 | BE19: 11.2 | BF19: 10 | BG19: 9 | BJ19: Kbely 2015-18 (°C) | BK19: IMOSTKOV2 | BL19: LOWW | BM19: LKTB | BN19: LKPR | BO19: LKKV" | BP19: LZKZ Košice | BQ19: LZTT Poprad | BT19: 2016-01-10 | BU19: 28.2 | BV19: 0 | BW19: 1.8
A20: 2015-04-11 | B20: 13.4 | C20: 13.4 | D20: 13.4 | E20: 13.4 | F20: 20.53333333 | G20: 5.908 | H20: 5.908 | I20: 5.908 | J20: 5.908 | K20: 0.7466666667 | L20: 0.7466666667 | M20: 0.7466666667 | N20: 0.7466666667 | O20: 0.1263823065 | P20: 0.1263823065 | Q20: 0.1263823065 | R20: 0.1263823065 | S20: 0.1263823065 | T20: 0.1263823065 | U20: 0.1263823065 | V20: 0.1263823065 | W20: 0 | X20: 0 | Y20: 0 | Z20: 0 | AA20: 0.1263823065 | AB20: 0 | AC20: 341.0437368 | AD20: 440.0513493 | AE20: 0 | AF20: 0 | AK20: 9.035714286 | AL20: 1 | AM20: 1 | AN20: 0.04212743549 | AO20: 0.04212743549 | AP20: 0.04212743549 | AQ20: 0.04212743549 | AR20: 0.1394758175 | AS20: 0.1394758175 | AT20: 0.0863687951 | AW20: 0.7466666667 | AX20: 0.7466666667 | AY20: 0.7466666667 | AZ20: 0.7466666667 | BB20: 13.4 | BD20: 13.5 | BE20: 13 | BF20: 12.6 | BG20: 10.4 | BJ20: =SUM(BB10:BB29)/30 -> 5.23 | BK20: =SUM(BC10:BC29)/30 -> 0 | BL20: 6.33 | BM20: 5.663333333 | BN20: 4.726666667 | BO20: 3.576666667 | BP20: 0 | BT20: 2016-01-11 | BU20: 28.2 | BV20: 0 | BW20: 1.8
A21: 2015-04-12 | B21: 12.2 | C21: 12.2 | D21: 12.2 | E21: 12.2 | F21: 20.93333333 | G21: 5.764 | H21: 5.764 | I21: 5.764 | J21: 5.764 | K21: 1.306666667 | L21: 1.306666667 | M21: 1.306666667 | N21: 1.306666667 | O21: 0.2266944252 | P21: 0.2266944252 | Q21: 0.2266944252 | R21: 0.2266944252 | S21: 0.2266944252 | T21: 0.2266944252 | U21: 0.2266944252 | V21: 0.2266944252 | W21: 0 | X21: 0 | Y21: 0 | Z21: 0 | AA21: 0.2266944252 | AB21: 0 | AC21: 346.484403 | AD21: 445.4920155 | AE21: 0 | AF21: 0 | AK21: 9.371428571 | AL21: 1 | AM21: 1 | AN21: 0.07556480839 | AO21: 0.07556480839 | AP21: 0.07556480839 | AQ21: 0.07556480839 | AR21: 0.1014781856 | AS21: 0.1014781856 | AT21: 0.087416689 | AW21: 1.306666667 | AX21: 1.306666667 | AY21: 1.306666667 | AZ21: 1.306666667 | BB21: 12.2 | BD21: 15.1 | BE21: 13 | BF21: 11.1 | BG21: 9.9 | BJ21: =SUM(BB11:BB30)/30 -> 5.58 | BK21: 0 | BL21: 6.616666667 | BM21: 5.95 | BN21: 5.01 | BO21: 3.913333333 | BP21: 0 | BT21: 2016-01-12 | BU21: 26.3 | BV21: 0 | BW21: 3.7
A22: 2015-04-13 | B22: 9.9 | C22: 9.9 | D22: 9.9 | E22: 9.9 | F22: 21.7 | G22: 5.488 | H22: 5.488 | I22: 5.488 | J22: 5.488 | K22: 2.38 | L22: 2.38 | M22: 2.38 | N22: 2.38 | O22: 0.4336734694 | P22: 0.4336734694 | Q22: 0.4336734694 | R22: 0.4336734694 | S22: 0.4336734694 | T22: 0.4336734694 | U22: 0.4336734694 | V22: 0.4336734694 | W22: 0 | X22: 0 | Y22: 0 | Z22: 0 | AA22: 0.4336734694 | AB22: 0 | AC22: 356.8925663 | AD22: 455.9001787 | AE22: 0 | AF22: 0 | AK22: 10.00714286 | AL22: 1 | AM22: 1 | AN22: 0.1445578231 | AO22: 0.1445578231 | AP22: 0.1445578231 | AQ22: 0.1445578231 | AR22: 0.07759376724 | AS22: 0.07759376724 | AT22: 0.1247315106 | AW22: 2.38 | AX22: 2.38 | AY22: 2.38 | AZ22: 2.38 | BB22: 9.9 | BD22: 12.5 | BE22: 10.3 | BF22: 9.2 | BG22: 7.8 | BJ22: =SUM(BB12:BB31)/30 -> 5.82 | BK22: 0 | BL22: 6.94 | BM22: 6.263333333 | BN22: 5.233333333 | BO22: 4.113333333 | BP22: 0 | BT22: 2016-01-13 | BU22: 28 | BV22: 0 | BW22: 2
A23: 2015-04-14 | B23: 9.6 | C23: 9.6 | D23: 9.6 | E23: 9.6 | F23: 21.8 | G23: 5.452 | H23: 5.452 | I23: 5.452 | J23: 5.452 | K23: 2.52 | L23: 2.52 | M23: 2.52 | N23: 2.52 | O23: 0.4622157007 | P23: 0.4622157007 | Q23: 0.4622157007 | R23: 0.4622157007 | S23: 0.4622157007 | T23: 0.4622157007 | U23: 0.4622157007 | V23: 0.4622157007 | W23: 0 | X23: 0 | Y23: 0 | Z23: 0 | AA23: 0.4622157007 | AB23: 0 | AC23: 367.9857431 | AD23: 466.9933555 | AE23: 0 | AF23: 0 | AK23: 10.56428571 | AL23: 1 | AM23: 1 | AN23: 0.1540719002 | AO23: 0.1540719002 | AP23: 0.1540719002 | AQ23: 0.1540719002 | AR23: 0.08358935182 | AS23: 0.08358935182 | AT23: 0.09039095661 | AW23: 2.52 | AX23: 2.52 | AY23: 2.52 | AZ23: 2.52 | BB23: 9.6 | BD23: 11.4 | BE23: 9.7 | BF23: 8.8 | BG23: 6.4 | BJ23: =SUM(BB13:BB32)/30 -> 6.056666667 | BK23: 0 | BL23: 7.166666667 | BM23: 6.553333333 | BN23: 5.48 | BO23: 4.37 | BP23: 0 | BT23: 2016-01-14 | BU23: 28.9 | BV23: 0 | BW23: 1.1
A24: 2015-04-15 | B24: 16.1 | C24: 16.1 | D24: 16.1 | E24: 16.1 | F24: 19.63333333 | G24: 6.232 | H24: 6.232 | I24: 6.232 | J24: 6.232 | K24: -0.5133333333 | L24: -0.5133333333 | M24: -0.5133333333 | N24: -0.5133333333 | O24: -0.08237056055 | P24: -0.08237056055 | Q24: -0.08237056055 | R24: -0.08237056055 | S24: 0 | T24: 0 | U24: 0 | V24: 0 | W24: 0.08237056055 | X24: 0.08237056055 | Y24: 0.08237056055 | Z24: 0.08237056055 | AA24: 0 | AB24: 0.08237056055 | AC24: 367.9857431 | AD24: 466.9933555 | AE24: 1.976893453 | AF24: 1.976893453 | AK24: 10.75 | AL24: 1 | AM24: 1 | AN24: -0.02745685352 | AO24: -0.02745685352 | AP24: -0.02745685352 | AQ24: -0.02745685352 | AR24: 0.1179509835 | AS24: 0.1179509835 | AT24: 0.04649738741 | AW24: 0 | AX24: 0 | AY24: 0 | AZ24: 0 | BB24: 16.1 | BD24: 16.6 | BE24: 15.4 | BF24: 15.7 | BG24: 14.2 | BJ24: =SUM(BB14:BB33)/30 -> 6.406666667 | BK24: 0 | BL24: 7.463333333 | BM24: 6.853333333 | BN24: 5.81 | BO24: 4.703333333 | BP24: 0 | BT24: 2016-01-15 | BU24: 29.9 | BV24: 0 | BW24: 0.1
A25: 2015-04-16 | B25: 14.5 | C25: 14.5 | D25: 14.5 | E25: 14.5 | F25: 20.16666667 | G25: 6.04 | H25: 6.04 | I25: 6.04 | J25: 6.04 | K25: 0.2333333333 | L25: 0.2333333333 | M25: 0.2333333333 | N25: 0.2333333333 | O25: 0.03863134658 | P25: 0.03863134658 | Q25: 0.03863134658 | R25: 0.03863134658 | S25: 0.03863134658 | T25: 0.03863134658 | U25: 0.03863134658 | V25: 0.03863134658 | W25: 0 | X25: 0 | Y25: 0 | Z25: 0 | AA25: 0.03863134658 | AB25: 0 | AC25: 368.9128954 | AD25: 467.9205079 | AE25: 1.976893453 | AF25: 1.976893453 | AK25: 10.91428571 | AL25: 1 | AM25: 1 | AN25: 0.01287711553 | AO25: 0.01287711553 | AP25: 0.01287711553 | AQ25: 0.01287711553 | AR25: 0.1377136884 | AS25: 0.1377136884 | AT25: 0.05626783185 | AW25: 0.2333333333 | AX25: 0.2333333333 | AY25: 0.2333333333 | AZ25: 0.2333333333 | BB25: 14.5 | BD25: 17.9 | BE25: 15.9 | BF25: 14.3 | BG25: 13.1 | BJ25: =SUM(BB15:BB34)/30 -> 6.793333333 | BK25: 0 | BL25: 7.826666667 | BM25: 7.236666667 | BN25: 6.216666667 | BO25: 5.073333333 | BP25: 0 | BT25: 2016-01-16 | BU25: 31.6 | BV25: 0 | BW25: -1.6
A26: 2015-04-17 | B26: 8.7 | C26: 8.7 | D26: 8.7 | E26: 8.7 | F26: 22.1 | G26: 5.344 | H26: 5.344 | I26: 5.344 | J26: 5.344 | K26: 2.94 | L26: 2.94 | M26: 2.94 | N26: 2.94 | O26: 0.5501497006 | P26: 0.5501497006 | Q26: 0.5501497006 | R26: 0.5501497006 | S26: 0.5501497006 | T26: 0.5501497006 | U26: 0.5501497006 | V26: 0.5501497006 | W26: 0 | X26: 0 | Y26: 0 | Z26: 0 | AA26: 0.5501497006 | AB26: 0 | AC26: 382.1164882 | AD26: 481.1241007 | AE26: 1.976893453 | AF26: 1.976893453 | AK26: 11.14285714 | AL26: 1 | AM26: 1 | AN26: 0.1833832335 | AO26: 0.1833832335 | AP26: 0.1833832335 | AQ26: 0.1833832335 | AR26: 0.1333092027 | AS26: 0.1333092027 | AT26: 0.1596397353 | AW26: 2.94 | AX26: 2.94 | AY26: 2.94 | AZ26: 2.94 | BB26: 8.7 | BD26: 13.1 | BE26: 11.1 | BF26: 7.8 | BG26: 7 | BJ26: =SUM(BB16:BB35)/30 -> 7.2 | BK26: 0 | BL26: 8.23 | BM26: 7.673333333 | BN26: 6.663333333 | BO26: 5.5 | BP26: 0 | BT26: 2016-01-17 | BU26: 35.1 | BV26: 0 | BW26: -5.1
A27: 2015-04-18 | B27: 5.9 | C27: 5.9 | D27: 5.9 | E27: 5.9 | F27: 23.03333333 | G27: 5.008 | H27: 5.008 | I27: 5.008 | J27: 5.008 | K27: 4.246666667 | L27: 4.246666667 | M27: 4.246666667 | N27: 4.246666667 | O27: 0.8479765708 | P27: 0.8479765708 | Q27: 0.8479765708 | R27: 0.8479765708 | S27: 0.8479765708 | T27: 0.8479765708 | U27: 0.8479765708 | V27: 0.8479765708 | W27: 0 | X27: 0 | Y27: 0 | Z27: 0 | AA27: 0.8479765708 | AB27: 0 | AC27: 402.4679259 | AD27: 501.4755384 | AE27: 1.976893453 | AF27: 1.976893453 | AK27: 11.23571429 | AL27: 1 | AM27: 1 | AN27: 0.2826588569 | AO27: 0.2826588569 | AP27: 0.2826588569 | AQ27: 0.2826588569 | AR27: 0.1188833074 | AS27: 0.1188833074 | AT27: 0.2266486113 | AW27: 4.246666667 | AX27: 4.246666667 | AY27: 4.246666667 | AZ27: 4.246666667 | BB27: 5.9 | BD27: 7.6 | BE27: 7 | BF27: 4.7 | BG27: 3 | BJ27: =SUM(BB17:BB36)/30 -> 7.513333333 | BK27: 0 | BL27: 8.606666667 | BM27: 8.04 | BN27: 7.003333333 | BO27: 5.833333333 | BP27: 0 | BT27: 2016-01-18 | BU27: 33.7 | BV27: 0 | BW27: -3.7
A28: 2015-04-19 | B28: 7.8 | C28: 7.8 | D28: 7.8 | E28: 7.8 | F28: 22.4 | G28: 5.236 | H28: 5.236 | I28: 5.236 | J28: 5.236 | K28: 3.36 | L28: 3.36 | M28: 3.36 | N28: 3.36 | O28: 0.6417112299 | P28: 0.6417112299 | Q28: 0.6417112299 | R28: 0.6417112299 | S28: 0.6417112299 | T28: 0.6417112299 | U28: 0.6417112299 | V28: 0.6417112299 | W28: 0 | X28: 0 | Y28: 0 | Z28: 0 | AA28: 0.6417112299 | AB28: 0 | AC28: 417.8689954 | AD28: 516.8766079 | AE28: 1.976893453 | AF28: 1.976893453 | AK28: 11.37857143 | AL28: 1 | AM28: 1 | AN28: 0.2139037433 | AO28: 0.2139037433 | AP28: 0.2139037433 | AQ28: 0.2139037433 | AR28: 0.1443609452 | AS28: 0.1443609452 | AT28: 0.2034296743 | AW28: 3.36 | AX28: 3.36 | AY28: 3.36 | AZ28: 3.36 | BB28: 7.8 | BD28: 7.2 | BE28: 7.5 | BF28: 7 | BG28: 4.9 | BJ28: =SUM(BB18:BB37)/30 -> 7.503333333 | BK28: 0 | BL28: 8.756666667 | BM28: 8.2 | BN28: 7.016666667 | BO28: 5.833333333 | BP28: 0 | BT28: 2016-01-19 | BU28: 35.6 | BV28: 0 | BW28: -5.6
A29: 2015-04-20 | B29: 10.9 | C29: 10.9 | D29: 10.9 | E29: 10.9 | F29: 21.36666667 | G29: 5.608 | H29: 5.608 | I29: 5.608 | J29: 5.608 | K29: 1.913333333 | L29: 1.913333333 | M29: 1.913333333 | N29: 1.913333333 | O29: 0.3411792677 | P29: 0.3411792677 | Q29: 0.3411792677 | R29: 0.3411792677 | S29: 0.3411792677 | T29: 0.3411792677 | U29: 0.3411792677 | V29: 0.3411792677 | W29: 0 | X29: 0 | Y29: 0 | Z29: 0 | AA29: 0.3411792677 | AB29: 0 | AC29: 426.0572979 | AD29: 525.0649103 | AE29: 1.976893453 | AF29: 1.976893453 | AK29: 11.71428571 | AL29: 1 | AM29: 1 | AN29: 0.1137264226 | AO29: 0.1137264226 | AP29: 0.1137264226 | AQ29: 0.1137264226 | AR29: 0.1579096149 | AS29: 0.1579096149 | AT29: 0.1269069331 | AW29: 1.913333333 | AX29: 1.913333333 | AY29: 1.913333333 | AZ29: 1.913333333 | BB29: 10.9 | BD29: 11.1 | BE29: 10.8 | BF29: 9.9 | BG29: 7.6 | BJ29: =SUM(BB19:BB38)/30 -> 7.456666667 | BK29: 0 | BL29: 8.78 | BM29: 8.156666667 | BN29: 6.976666667 | BO29: 5.84 | BP29: 0 | BT29: 2016-01-20 | BU29: 35.2 | BV29: 0 | BW29: -5.2
A30: 2015-04-21 | B30: 13 | C30: 13 | D30: 13 | E30: 13 | F30: 20.66666667 | G30: 5.86 | H30: 5.86 | I30: 5.86 | J30: 5.86 | K30: 0.9333333333 | L30: 0.9333333333 | M30: 0.9333333333 | N30: 0.9333333333 | O30: 0.1592718999 | P30: 0.1592718999 | Q30: 0.1592718999 | R30: 0.1592718999 | S30: 0.1592718999 | T30: 0.1592718999 | U30: 0.1592718999 | V30: 0.1592718999 | W30: 0 | X30: 0 | Y30: 0 | Z30: 0 | AA30: 0.1592718999 | AB30: 0 | AC30: 429.8798235 | AD30: 528.8874359 | AE30: 1.976893453 | AF30: 1.976893453 | AK30: 11.51428571 | AL30: 1 | AM30: 1 | AN30: 0.0530906333 | AO30: 0.0530906333 | AP30: 0.0530906333 | AQ30: 0.0530906333 | AR30: 0.1385101066 | AS30: 0.1385101066 | AT30: 0.1059012224 | AW30: 0.9333333333 | AX30: 0.9333333333 | AY30: 0.9333333333 | AZ30: 0.9333333333 | BB30: 13 | BD30: 14.1 | BE30: 13.2 | BF30: 11.8 | BG30: 11.1 | BJ30: =SUM(BB20:BB39)/30 -> 7.42 | BK30: 0 | BL30: 8.76 | BM30: 8.11 | BN30: 6.94 | BO30: 5.793333333 | BP30: 0 | BT30: 2016-01-21 | BU30: 35.8 | BV30: 0 | BW30: -5.8
A31: 2015-04-22 | B31: 9.7 | C31: =$B31+C$9 -> 9.7 | D31: 9.7 | E31: 9.7 | F31: 21.76666667 | G31: 5.464 | H31: 5.464 | I31: 5.464 | J31: 5.464 | K31: 2.473333333 | L31: 2.473333333 | M31: 2.473333333 | N31: 2.473333333 | O31: 0.4526598341 | P31: 0.4526598341 | Q31: 0.4526598341 | R31: 0.4526598341 | S31: 0.4526598341 | T31: 0.4526598341 | U31: 0.4526598341 | V31: 0.4526598341 | W31: 0 | X31: 0 | Y31: 0 | Z31: 0 | AA31: 0.4526598341 | AB31: 0 | AC31: 440.7436595 | AD31: 539.7512719 | AE31: 1.976893453 | AF31: 1.976893453 | AK31: 10.89285714 | AL31: 1 | AM31: 1 | AN31: 0.1508866114 | AO31: 0.1508866114 | AP31: 0.1508866114 | AQ31: 0.1508866114 | AR31: 0.09922965424 | AS31: 0.09922965424 | AT31: 0.1038983492 | AW31: 2.473333333 | AX31: 2.473333333 | AY31: 2.473333333 | AZ31: 2.473333333 | BB31: 9.7 | BD31: 14.6 | BE31: 12.6 | BF31: 8.5 | BG31: 5.7 | BJ31: =SUM(BB21:BB40)/30 -> 7.29 | BK31: 0 | BL31: 8.693333333 | BM31: 7.99 | BN31: 6.82 | BO31: 5.696666667 | BP31: 0 | BT31: 2016-01-22 | BU31: 37.9 | BV31: 0 | BW31: -7.9
A32: 2015-04-23 | B32: 11.1 | C32: 11.1 | D32: 11.1 | E32: 11.1 | F32: 21.3 | G32: 5.632 | H32: 5.632 | I32: 5.632 | J32: 5.632 | K32: 1.82 | L32: 1.82 | M32: 1.82 | N32: 1.82 | O32: 0.3231534091 | P32: 0.3231534091 | Q32: 0.3231534091 | R32: 0.3231534091 | S32: 0.3231534091 | T32: 0.3231534091 | U32: 0.3231534091 | V32: 0.3231534091 | W32: 0 | X32: 0 | Y32: 0 | Z32: 0 | AA32: 0.3231534091 | AB32: 0 | AC32: 448.4993413 | AD32: 547.5069538 | AE32: 1.976893453 | AF32: 1.976893453 | AK32: 10.49285714 | AL32: 1 | AM32: 1 | AN32: 0.107717803 | AO32: 0.107717803 | AP32: 0.107717803 | AQ32: 0.107717803 | AR32: 0.0716329656 | AS32: 0.0716329656 | AT32: 0.1020636967 | AW32: 1.82 | AX32: 1.82 | AY32: 1.82 | AZ32: 1.82 | BB32: 11.1 | BD32: 12.5 | BE32: 12.7 | BF32: 10.2 | BG32: 8.1 | BJ32: =SUM(BB22:BB41)/30 -> 7.233333333 | BK32: 0 | BL32: 8.606666667 | BM32: 7.946666667 | BN32: 6.786666667 | BO32: 5.663333333 | BP32: 0 | BT32: 2016-01-23 | BU32: 40.2 | BV32: 0 | BW32: -10.2
A33: 2015-04-24 | B33: 13.2 | C33: 13.2 | D33: 13.2 | E33: 13.2 | F33: 20.6 | G33: 5.884 | H33: 5.884 | I33: 5.884 | J33: 5.884 | K33: 0.84 | L33: 0.84 | M33: 0.84 | N33: 0.84 | O33: 0.1427600272 | P33: 0.1427600272 | Q33: 0.1427600272 | R33: 0.1427600272 | S33: 0.1427600272 | T33: 0.1427600272 | U33: 0.1427600272 | V33: 0.1427600272 | W33: 0 | X33: 0 | Y33: 0 | Z33: 0 | AA33: 0.1427600272 | AB33: 0 | AC33: 451.9255819 | AD33: 550.9331944 | AE33: 1.976893453 | AF33: 1.976893453 | AK33: 10.55 | AL33: 1 | AM33: 1 | AN33: 0.04758667573 | AO33: 0.04758667573 | AP33: 0.04758667573 | AQ33: 0.04758667573 | AR33: 0.0568550861 | AS33: 0.0568550861 | AT33: 0.05433338972 | AW33: 0.84 | AX33: 0.84 | AY33: 0.84 | AZ33: 0.84 | BB33: 13.2 | BD33: 13.5 | BE33: 12.4 | BF33: 12.2 | BG33: 9.6 | BJ33: =SUM(BB23:BB42)/30 -> 7.28 | BK33: 0 | BL33: 8.556666667 | BM33: 7.906666667 | BN33: 6.86 | BO33: 5.693333333 | BP33: 0 | BT33: 2016-01-24 | BU33: 36.2 | BV33: 0 | BW33: -6.2
A34: 2015-04-25 | B34: 14.7 | C34: 14.7 | D34: 14.7 | E34: 14.7 | F34: 20.1 | G34: 6.064 | H34: 6.064 | I34: 6.064 | J34: 6.064 | K34: 0.14 | L34: 0.14 | M34: 0.14 | N34: 0.14 | O34: 0.02308707124 | P34: 0.02308707124 | Q34: 0.02308707124 | R34: 0.02308707124 | S34: 0.02308707124 | T34: 0.02308707124 | U34: 0.02308707124 | V34: 0.02308707124 | W34: 0 | X34: 0 | Y34: 0 | Z34: 0 | AA34: 0.02308707124 | AB34: 0 | AC34: 452.4796717 | AD34: 551.4872841 | AE34: 1.976893453 | AF34: 1.976893453 | AK34: 10.87857143 | AL34: 1 | AM34: 1 | AN34: 0.007695690413 | AO34: 0.007695690413 | AP34: 0.007695690413 | AQ34: 0.007695690413 | AR34: 0.08488881433 | AS34: 0.08488881433 | AT34: 0.02533642965 | AW34: 0.14 | AX34: 0.14 | AY34: 0.14 | AZ34: 0.14 | BB34: 14.7 | BD34: 15 | BE34: 14.7 | BF34: 13.9 | BG34: 11.3 | BJ34: =SUM(BB24:BB43)/30 -> 7.486666667 | BK34: 0 | BL34: 8.75 | BM34: 8.076666667 | BN34: 7.11 | BO34: 5.98 | BP34: 0 | BT34: 2016-01-25 | BU34: 33.8 | BV34: 0 | BW34: -3.8
A35: 2015-04-26 | B35: 14.2 | C35: 14.2 | D35: 14.2 | E35: 14.2 | F35: 20.26666667 | G35: 6.004 | H35: 6.004 | I35: 6.004 | J35: 6.004 | K35: 0.3733333333 | L35: 0.3733333333 | M35: 0.3733333333 | N35: 0.3733333333 | O35: 0.06218076838 | P35: 0.06218076838 | Q35: 0.06218076838 | R35: 0.06218076838 | S35: 0.06218076838 | T35: 0.06218076838 | U35: 0.06218076838 | V35: 0.06218076838 | W35: 0 | X35: 0 | Y35: 0 | Z35: 0 | AA35: 0.06218076838 | AB35: 0 | AC35: 453.9720101 | AD35: 552.9796226 | AE35: 1.976893453 | AF35: 1.976893453 | AK35: 11.12857143 | AL35: 1 | AM35: 1 | AN35: 0.02072692279 | AO35: 0.02072692279 | AP35: 0.02072692279 | AQ35: 0.02072692279 | AR35: 0.09588734067 | AS35: 0.09588734067 | AT35: 0.01290129309 | AW35: 0.3733333333 | AX35: 0.3733333333 | AY35: 0.3733333333 | AZ35: 0.3733333333 | BB35: 14.2 | BD35: 16 | BE35: 16.3 | BF35: 14 | BG35: 12.2 | BJ35: =SUM(BB25:BB44)/30 -> 7.566666667 | BK35: 0 | BL35: 8.873333333 | BM35: 8.186666667 | BN35: 7.206666667 | BO35: 6.066666667 | BP35: 0 | BT35: 2016-01-26 | BU35: 31.6 | BV35: 0 | BW35: -1.6
A36: 2015-04-27 | B36: 14.6 | C36: 14.6 | D36: 14.6 | E36: 14.6 | F36: 20.13333333 | G36: 6.052 | H36: 6.052 | I36: 6.052 | J36: 6.052 | K36: 0.1866666667 | L36: 0.1866666667 | M36: 0.1866666667 | N36: 0.1866666667 | O36: 0.03084379819 | P36: 0.03084379819 | Q36: 0.03084379819 | R36: 0.03084379819 | S36: 0.03084379819 | T36: 0.03084379819 | U36: 0.03084379819 | V36: 0.03084379819 | W36: 0 | X36: 0 | Y36: 0 | Z36: 0 | AA36: 0.03084379819 | AB36: 0 | AC36: 454.7122613 | AD36: 553.7198737 | AE36: 1.976893453 | AF36: 1.976893453 | AK36: 11.47857143 | AL36: 1 | AM36: 1 | AN36: 0.01028126606 | AO36: 0.01028126606 | AP36: 0.01028126606 | AQ36: 0.01028126606 | AR36: 0.1057516083 | AS36: 0.1057516083 | AT36: 0.09344497327 | AW36: 0.1866666667 | AX36: 0.1866666667 | AY36: 0.1866666667 | AZ36: 0.1866666667 | BB36: 14.6 | BD36: 17.4 | BE36: 16.7 | BF36: 14.4 | BG36: 12.6 | BJ36: =SUM(BB26:BB45)/30 -> 7.563333333 | BK36: 0 | BL36: 8.86 | BM36: 8.213333333 | BN36: 7.203333333 | BO36: 6.066666667 | BP36: 0 | BT36: 2016-01-27 | BU36: 30.4 | BV36: 0 | BW36: -0.4
A37: 2015-04-28 | B37: 6.8 | C37: 6.8 | D37: 6.8 | E37: 6.8 | F37: 22.73333333 | G37: 5.116 | H37: 5.116 | I37: 5.116 | J37: 5.116 | K37: 3.826666667 | L37: 3.826666667 | M37: 3.826666667 | N37: 3.826666667 | O37: 0.7479801929 | P37: 0.7479801929 | Q37: 0.7479801929 | R37: 0.7479801929 | S37: 0.7479801929 | T37: 0.7479801929 | U37: 0.7479801929 | V37: 0.7479801929 | W37: 0 | X37: 0 | Y37: 0 | Z37: 0 | AA37: 0.7479801929 | AB37: 0 | AC37: 472.6637859 | AD37: 571.6713983 | AE37: 1.976893453 | AF37: 1.976893453 | AK37: 11.87142857 | AL37: 1 | AM37: 1 | AN37: 0.249326731 | AO37: 0.249326731 | AP37: 0.249326731 | AQ37: 0.249326731 | AR37: 0.1214208321 | AS37: 0.1214208321 | AT37: 0.1624947642 | AW37: 3.826666667 | AX37: 3.826666667 | AY37: 3.826666667 | AZ37: 3.826666667 | BB37: 6.8 | BD37: 12.7 | BE37: 12.7 | BF37: 6.3 | BG37: 5 | BJ37: =SUM(BB27:BB46)/30 -> 7.723333333 | BK37: 0 | BL37: 8.97 | BM37: 8.346666667 | BN37: 7.363333333 | BO37: 6.16 | BP37: 0 | BT37: 2016-01-28 | BU37: 29.8 | BV37: 0 | BW37: 0.2
A38: 2015-04-29 | B38: 7.4 | C38: 7.4 | D38: 7.4 | E38: 7.4 | F38: 22.53333333 | G38: 5.188 | H38: 5.188 | I38: 5.188 | J38: 5.188 | K38: 3.546666667 | L38: 3.546666667 | M38: 3.546666667 | N38: 3.546666667 | O38: 0.6836288872 | P38: 0.6836288872 | Q38: 0.6836288872 | R38: 0.6836288872 | S38: 0.6836288872 | T38: 0.6836288872 | U38: 0.6836288872 | V38: 0.6836288872 | W38: 0 | X38: 0 | Y38: 0 | Z38: 0 | AA38: 0.6836288872 | AB38: 0 | AC38: 489.0708792 | AD38: 588.0784916 | AE38: 1.976893453 | AF38: 1.976893453 | AK38: 12.20714286 | AL38: 1 | AM38: 1 | AN38: 0.2278762957 | AO38: 0.2278762957 | AP38: 0.2278762957 | AQ38: 0.2278762957 | AR38: 0.1383070592 | AS38: 0.1383070592 | AT38: 0.2179902345 | AW38: 3.546666667 | AX38: 3.546666667 | AY38: 3.546666667 | AZ38: 3.546666667 | BB38: 7.4 | BD38: 10.3 | BE38: 8.5 | BF38: 6.9 | BG38: 6.3 | BJ38: =SUM(BB28:BB47)/30 -> 7.95 | BK38: 0 | BL38: 9.26 | BM38: 8.583333333 | BN38: 7.643333333 | BO38: 6.43 | BP38: 0 | BT38: 2016-01-29 | BU38: 29.3 | BV38: 0 | BW38: 0.7
A39: 2015-04-30 | B39: 8.9 | C39: 8.9 | D39: 8.9 | E39: 8.9 | F39: 22.03333333 | G39: 5.368 | H39: 5.368 | I39: 5.368 | J39: 5.368 | K39: 2.846666667 | L39: 2.846666667 | M39: 2.846666667 | N39: 2.846666667 | O39: 0.5303030303 | P39: 0.5303030303 | Q39: 0.5303030303 | R39: 0.5303030303 | S39: 0.5303030303 | T39: 0.5303030303 | U39: 0.5303030303 | V39: 0.5303030303 | W39: 0 | X39: 0 | Y39: 0 | Z39: 0 | AA39: 0.5303030303 | AB39: 0 | AC39: 501.7981519 | AD39: 600.8057644 | AE39: 1.976893453 | AF39: 1.976893453 | AK39: 12.37857143 | AL39: 1 | AM39: 1 | AN39: 0.1767676768 | AO39: 0.1767676768 | AP39: 0.1767676768 | AQ39: 0.1767676768 | AR39: 0.1498832383 | AS39: 0.1498832383 | AT39: 0.1873050714 | AW39: 2.846666667 | AX39: 2.846666667 | AY39: 2.846666667 | AZ39: 2.846666667 | BB39: 8.9 | BD39: 10.7 | BE39: 9.8 | BF39: 8.9 | BG39: 7.6 | BJ39: =SUM(BB29:BB48)/30 -> 8.143333333 | BK39: 0 | BL39: 9.593333333 | BM39: 8.87 | BN39: 7.863333333 | BO39: 6.7 | BP39: 0 | BT39: 2016-01-30 | BU39: 29.9 | BV39: 0 | BW39: 0.1
A40: 2015-05-01 | B40: 9.5 | C40: 9.5 | D40: 9.5 | E40: 9.5 | F40: 21.83333333 | G40: 5.44 | H40: 5.44 | I40: 5.44 | J40: 5.44 | K40: 2.566666667 | L40: 2.566666667 | M40: 2.566666667 | N40: 2.566666667 | O40: 0.4718137255 | P40: 0.4718137255 | Q40: 0.4718137255 | R40: 0.4718137255 | S40: 0.4718137255 | T40: 0.4718137255 | U40: 0.4718137255 | V40: 0.4718137255 | W40: 0 | X40: 0 | Y40: 0 | Z40: 0 | AA40: 0.4718137255 | AB40: 0 | AC40: 513.1216813 | AD40: 612.1292938 | AE40: 1.976893453 | AF40: 1.976893453 | AK40: 12.34285714 | AL40: 1 | AM40: 1 | AN40: 0.1572712418 | AO40: 0.1572712418 | AP40: 0.1572712418 | AQ40: 0.1572712418 | AR40: 0.1455452513 | AS40: 0.1455452513 | AT40: 0.1533127331 | AW40: 2.566666667 | AX40: 2.566666667 | AY40: 2.566666667 | AZ40: 2.566666667 | BB40: 9.5 | BD40: 11.5 | BE40: 9.4 | BF40: 9 | BG40: 7.5 | BJ40: =SUM(BB30:BB49)/30 -> 8.233333333 | BK40: 0 | BL40: 9.79 | BM40: 9.003333333 | BN40: 7.96 | BO40: 6.84 | BP40: 0 | BT40: 2016-01-31 | BU40: 28.4 | BV40: 0 | BW40: 1.6
A41: 2015-05-02 | B41: 10.5 | C41: 10.5 | D41: 10.5 | E41: 10.5 | F41: 21.5 | G41: 5.56 | H41: 5.56 | I41: 5.56 | J41: 5.56 | K41: 2.1 | L41: 2.1 | M41: 2.1 | N41: 2.1 | O41: 0.3776978417 | P41: 0.3776978417 | Q41: 0.3776978417 | R41: 0.3776978417 | S41: 0.3776978417 | T41: 0.3776978417 | U41: 0.3776978417 | V41: 0.3776978417 | W41: 0 | X41: 0 | Y41: 0 | Z41: 0 | AA41: 0.3776978417 | AB41: 0 | AC41: 522.1864295 | AD41: 621.194042 | AE41: 1.976893453 | AF41: 1.976893453 | AK41: 12.26428571 | AL41: 1 | AM41: 1 | AN41: 0.1258992806 | AO41: 0.1258992806 | AP41: 0.1258992806 | AQ41: 0.1258992806 | AR41: 0.09799803991 | AS41: 0.09799803991 | AT41: 0.1283102328 | AW41: 2.1 | AX41: 2.1 | AY41: 2.1 | AZ41: 2.1 | BB41: 10.5 | BD41: 12.5 | BE41: 11.7 | BF41: 10.1 | BG41: 8.9 | BJ41: =SUM(BB31:BB50)/30 -> 8.203333333 | BK41: 0 | BL41: 9.776666667 | BM41: 8.986666667 | BN41: 7.966666667 | BO41: 6.86 | BP41: 0 | BT41: 2016-02-01 | BU41: 27.2 | BV41: 0 | BW41: 2.8
A42: 2015-05-03 | B42: 11.3 | C42: 11.3 | D42: 11.3 | E42: 11.3 | F42: 21.23333333 | G42: 5.656 | H42: 5.656 | I42: 5.656 | J42: 5.656 | K42: 1.726666667 | L42: 1.726666667 | M42: 1.726666667 | N42: 1.726666667 | O42: 0.3052805281 | P42: 0.3052805281 | Q42: 0.3052805281 | R42: 0.3052805281 | S42: 0.3052805281 | T42: 0.3052805281 | U42: 0.3052805281 | V42: 0.3052805281 | W42: 0 | X42: 0 | Y42: 0 | Z42: 0 | AA42: 0.3052805281 | AB42: 0 | AC42: 529.5131622 | AD42: 628.5207746 | AE42: 1.976893453 | AF42: 1.976893453 | AK42: 12.22142857 | AL42: 1 | AM42: 1 | AN42: 0.101760176 | AO42: 0.101760176 | AP42: 0.101760176 | AQ42: 0.101760176 | AR42: 0.0676561834 | AS42: 0.0676561834 | AT42: 0.06919160472 | AW42: 1.726666667 | AX42: 1.726666667 | AY42: 1.726666667 | AZ42: 1.726666667 | BB42: 11.3 | BD42: 11 | BE42: 9.1 | BF42: 11.4 | BG42: 8.7 | BJ42: =SUM(BB32:BB51)/30 -> 8.44 | BK42: 0 | BL42: 9.826666667 | BM42: 9.073333333 | BN42: 8.24 | BO42: 7.213333333 | BP42: 0 | BT42: 2016-02-02 | BU42: 26.3 | BV42: 0 | BW42: 3.7
A43: 2015-05-04 | B43: =BB43+A$7 -> 15.8 | C43: 15.8 | D43: 15.8 | E43: 15.8 | F43: =F$8+(H$7-F$8)*(M$6-B43)/30 -> 19.73333333 | G43: =IF((B43+35-$F43)*$H$5+$H$6>1,(B43+35-$F43)*$H$5+$H$6,1) -> 6.196 | H43: =IF((C43+35-$F43)*$H$5+$H$6>1,(C43+35-$F43)*$H$5+$H$6,1) -> 6.196 | I43: =IF((D43+35-$F43)*$H$5+$H$6>1,(D43+35-$F43)*$H$5+$H$6,1) -> 6.196 | J43: =IF((E43+35-$F43)*$H$5+$H$6>1,(E43+35-$F43)*$H$5+$H$6,1) -> 6.196 | K43: =$M$5*($M$6-B43)/30-$O$5 -> -0.3733333333 | L43: =$M$5*($M$6-C43)/30-$O$5 -> -0.3733333333 | M43: =$M$5*($M$6-D43)/30-$O$5 -> -0.3733333333 | N43: =$M$5*($M$6-E43)/30-$O$5 -> -0.3733333333 | O43: =IF(K43/G43>$M$7,$M$7+K43-$M$7*G43,K43/G43) -> -0.06025392726 | P43: =IF(L43/H43>$M$7,$M$7+L43-$M$7*H43,L43/H43) -> -0.06025392726 | Q43: =IF(M43/I43>$M$7,$M$7+M43-$M$7*I43,M43/I43) -> -0.06025392726 | R43: =IF(N43/J43>$M$7,$M$7+N43-$M$7*J43,N43/J43) -> -0.06025392726 | S43: =IF(O43>0,O43,) -> 0 | T43: =IF(P43>0,P43,) -> 0 | U43: =IF(Q43>0,Q43,) -> 0 | V43: =IF(R43>0,R43,) -> 0 | W43: =IF(O43<0,-O43,0) -> 0.06025392726 | X43: =IF(P43<0,-P43,0) -> 0.06025392726 | Y43: =IF(Q43<0,-Q43,0) -> 0.06025392726 | Z43: =IF(R43<0,-R43,0) -> 0.06025392726 | AA43: =IF(SUM(O43:R43)/4>0,SUM(O43:R43)/4,) -> 0 | AB43: =IF(SUM(O43:R43)/4<0,-SUM(O43:R43)/4,) -> 0.06025392726 | AC43: =6*SUM(S43:V43)+AC42 -> 529.5131622 | AD43: =AD42+AA43*24 -> 628.5207746 | AE43: =6*SUM(W43:Z43)+AE42 -> 3.422987708 | AF43: =AF42+AB43*24 -> 3.422987708 | AK43: =IF(SUM(B37:B50)/14<$C$7,SUM(B37:B50)/14,0) -> 12.04285714 | AL43: =IF(SUM(B37:B50)/14<$C$7,1,0) -> 1 | AM43: =IF(SUM(AN40:AQ46)>0,1,0) -> 1 | AN43: =K43/G43/$M$7 -> -0.02008464242 | AO43: =L43/H43/$M$7 -> -0.02008464242 | AP43: =M43/I43/$M$7 -> -0.02008464242 | AQ43: =N43/J43/$M$7 -> -0.02008464242 | AR43: =SUM(AO40:AO46)/7 -> 0.04803428877 | AS43: =SUM(AQ40:AQ46)/7 -> 0.04803428877 | AT43: =SUM(AN42:AQ44)/12 -> -0.000609405184 | AW43: =IF(K43>0,K43,0) -> 0 | AX43: =IF(L43>0,L43,0) -> 0 | AY43: =IF(M43>0,M43,0) -> 0 | AZ43: =IF(N43>0,N43,0) -> 0 | BB43: 15.8 | BD43: 17.2 | BE43: 14.8 | BF43: 16.3 | BG43: 15 | BJ43: =SUM(BB33:BB52)/30 -> 8.556666667 | BK43: 0 | BL43: 9.986666667 | BM43: 9.21 | BN43: 8.383333333 | BO43: 7.38 | BP43: 0 | BT43: 2016-02-03 | BU43: 25.9 | BV43: 0 | BW43: 4.1
A44: 2015-05-05 | B44: 18.5 | C44: 18.5 | D44: 18.5 | E44: 18.5 | F44: 18.83333333 | G44: 6.52 | H44: 6.52 | I44: 6.52 | J44: 6.52 | K44: -1.633333333 | L44: -1.633333333 | M44: -1.633333333 | N44: -1.633333333 | O44: -0.2505112474 | P44: -0.2505112474 | Q44: -0.2505112474 | R44: -0.2505112474 | S44: 0 | T44: 0 | U44: 0 | V44: 0 | W44: 0.2505112474 | X44: 0.2505112474 | Y44: 0.2505112474 | Z44: 0.2505112474 | AA44: 0 | AB44: 0.2505112474 | AC44: 529.5131622 | AD44: 628.5207746 | AE44: 9.435257646 | AF44: 9.435257646 | AK44: 12.75714286 | AL44: 1 | AM44: 1 | AN44: -0.08350374915 | AO44: -0.08350374915 | AP44: -0.08350374915 | AQ44: -0.08350374915 | AR44: 0.03434291479 | AS44: 0.03434291479 | AT44: -0.0293683638 | AW44: 0 | AX44: 0 | AY44: 0 | AZ44: 0 | BB44: 18.5 | BD44: 20.3 | BE44: 18.7 | BF44: 18.6 | BG44: 16.8 | BJ44: =SUM(BB34:BB53)/30 -> 8.516666667 | BK44: 0 | BL44: 10.08333333 | BM44: 9.293333333 | BN44: 8.363333333 | BO44: 7.42 | BP44: 0 | BT44: 2016-02-04 | BU44: 27.6 | BV44: 0 | BW44: 2.4
A45: 2015-05-06 | B45: 14.4 | C45: 14.4 | D45: 14.4 | E45: 14.4 | F45: 20.2 | G45: 6.028 | H45: 6.028 | I45: 6.028 | J45: 6.028 | K45: 0.28 | L45: 0.28 | M45: 0.28 | N45: 0.28 | O45: 0.04644990046 | P45: 0.04644990046 | Q45: 0.04644990046 | R45: 0.04644990046 | S45: 0.04644990046 | T45: 0.04644990046 | U45: 0.04644990046 | V45: 0.04644990046 | W45: 0 | X45: 0 | Y45: 0 | Z45: 0 | AA45: 0.04644990046 | AB45: 0 | AC45: 530.6279598 | AD45: 629.6355723 | AE45: 9.435257646 | AF45: 9.435257646 | AK45: 13.27142857 | AL45: 1 | AM45: 1 | AN45: 0.01548330015 | AO45: 0.01548330015 | AP45: 0.01548330015 | AQ45: 0.01548330015 | AR45: 0.02160192754 | AS45: 0.02160192754 | AT45: -0.00953534486 | AW45: 0.28 | AX45: 0.28 | AY45: 0.28 | AZ45: 0.28 | BB45: 14.4 | BD45: 17.5 | BE45: 16.7 | BF45: 14.2 | BG45: 13.1 | BJ45: =SUM(BB35:BB54)/30 -> 8.396666667 | BK45: 0 | BL45: 10.02 | BM45: 9.213333333 | BN45: 8.256666667 | BO45: 7.363333333 | BP45: 0 | BT45: 2016-02-05 | BU45: 29.6 | BV45: 0 | BW45: 0.4
A46: 2015-05-07 | B46: 13.5 | C46: 13.5 | D46: 13.5 | E46: 13.5 | F46: 20.5 | G46: 5.92 | H46: 5.92 | I46: 5.92 | J46: 5.92 | K46: 0.7 | L46: 0.7 | M46: 0.7 | N46: 0.7 | O46: 0.1182432432 | P46: 0.1182432432 | Q46: 0.1182432432 | R46: 0.1182432432 | S46: 0.1182432432 | T46: 0.1182432432 | U46: 0.1182432432 | V46: 0.1182432432 | W46: 0 | X46: 0 | Y46: 0 | Z46: 0 | AA46: 0.1182432432 | AB46: 0 | AC46: 533.4657976 | AD46: 632.4734101 | AE46: 9.435257646 | AF46: 9.435257646 | AK46: 13.49285714 | AL46: 1 | AM46: 1 | AN46: 0.03941441441 | AO46: 0.03941441441 | AP46: 0.03941441441 | AQ46: 0.03941441441 | AR46: 0.0123093838 | AS46: 0.0123093838 | AT46: 0.03877644617 | AW46: 0.7 | AX46: 0.7 | AY46: 0.7 | AZ46: 0.7 | BB46: 13.5 | BD46: 16.4 | BE46: 15.1 | BF46: 12.6 | BG46: 9.8 | BJ46: =SUM(BB36:BB55)/30 -> 8.393333333 | BK46: 0 | BL46: 10.04333333 | BM46: 9.183333333 | BN46: 8.236666667 | BO46: 7.33 | BP46: 0 | BT46: 2016-02-06 | BU46: 28.9 | BV46: 0 | BW46: 1.1
A47: 2015-05-08 | B47: 12.7 | C47: 12.7 | D47: 12.7 | E47: 12.7 | F47: 20.76666667 | G47: 5.824 | H47: 5.824 | I47: 5.824 | J47: 5.824 | K47: 1.073333333 | L47: 1.073333333 | M47: 1.073333333 | N47: 1.073333333 | O47: 0.1842948718 | P47: 0.1842948718 | Q47: 0.1842948718 | R47: 0.1842948718 | S47: 0.1842948718 | T47: 0.1842948718 | U47: 0.1842948718 | V47: 0.1842948718 | W47: 0 | X47: 0 | Y47: 0 | Z47: 0 | AA47: 0.1842948718 | AB47: 0 | AC47: 537.8888746 | AD47: 636.896487 | AE47: 9.435257646 | AF47: 9.435257646 | AK47: 13.60714286 | AL47: 1 | AM47: 1 | AN47: 0.06143162393 | AO47: 0.06143162393 | AP47: 0.06143162393 | AQ47: 0.06143162393 | AR47: 0.02638245091 | AS47: 0.02638245091 | AT47: 0.04585280272 | AW47: 1.073333333 | AX47: 1.073333333 | AY47: 1.073333333 | AZ47: 1.073333333 | BB47: 12.7 | BD47: 16.3 | BE47: 14.1 | BF47: 13.1 | BG47: 11.1 | BJ47: =SUM(BB37:BB56)/30 -> 8.34 | BK47: 0 | BL47: 10.03333333 | BM47: 9.14 | BN47: 8.176666667 | BO47: 7.263333333 | BP47: 0 | BT47: 2016-02-07 | BU47: 27.1 | BV47: 0 | BW47: 2.9
A48: 2015-05-09 | B48: 13.6 | C48: 13.6 | D48: 13.6 | E48: 13.6 | F48: 20.46666667 | G48: 5.932 | H48: 5.932 | I48: 5.932 | J48: 5.932 | K48: 0.6533333333 | L48: 0.6533333333 | M48: 0.6533333333 | N48: 0.6533333333 | O48: 0.1101371095 | P48: 0.1101371095 | Q48: 0.1101371095 | R48: 0.1101371095 | S48: 0.1101371095 | T48: 0.1101371095 | U48: 0.1101371095 | V48: 0.1101371095 | W48: 0 | X48: 0 | Y48: 0 | Z48: 0 | AA48: 0.1101371095 | AB48: 0 | AC48: 540.5321652 | AD48: 639.5397776 | AE48: 9.435257646 | AF48: 9.435257646 | AK48: 13.86428571 | AL48: 1 | AM48: 1 | AN48: 0.03671236982 | AO48: 0.03671236982 | AP48: 0.03671236982 | AQ48: 0.03671236982 | AR48: 0.0319784357 | AS48: 0.0319784357 | AT48: 0.04495212119 | AW48: 0.6533333333 | AX48: 0.6533333333 | AY48: 0.6533333333 | AZ48: 0.6533333333 | BB48: 13.6 | BD48: 17.2 | BE48: 16.1 | BF48: 13.6 | BG48: 13 | BJ48: =SUM(BB38:BB57)/30 -> 8.593333333 | BK48: 0 | BL48: 10.15 | BM48: 9.203333333 | BN48: 8.426666667 | BO48: 7.503333333 | BP48: 0 | BT48: 2016-02-08 | BU48: 27.6 | BV48: 0 | BW48: 2.4
A49: 2015-05-10 | B49: 13.6 | C49: 13.6 | D49: 13.6 | E49: 13.6 | F49: 20.46666667 | G49: 5.932 | H49: 5.932 | I49: 5.932 | J49: 5.932 | K49: 0.6533333333 | L49: 0.6533333333 | M49: 0.6533333333 | N49: 0.6533333333 | O49: 0.1101371095 | P49: 0.1101371095 | Q49: 0.1101371095 | R49: 0.1101371095 | S49: 0.1101371095 | T49: 0.1101371095 | U49: 0.1101371095 | V49: 0.1101371095 | W49: 0 | X49: 0 | Y49: 0 | Z49: 0 | AA49: 0.1101371095 | AB49: 0 | AC49: 543.1754558 | AD49: 642.1830683 | AE49: 9.435257646 | AF49: 9.435257646 | AK49: 13.98571429 | AL49: 1 | AM49: 1 | AN49: 0.03671236982 | AO49: 0.03671236982 | AP49: 0.03671236982 | AQ49: 0.03671236982 | AR49: 0.03123528798 | AS49: 0.03123528798 | AT49: 0.05061718901 | AW49: 0.6533333333 | AX49: 0.6533333333 | AY49: 0.6533333333 | AZ49: 0.6533333333 | BB49: 13.6 | BD49: 17 | BE49: 14.8 | BF49: 12.8 | BG49: 11.8 | BJ49: =SUM(BB39:BB58)/30 -> 8.85 | BK49: 0 | BL49: 10.40333333 | BM49: 9.49 | BN49: 8.676666667 | BO49: 7.716666667 | BP49: 0 | BT49: 2016-02-09 | BU49: 23.2 | BV49: 0 | BW49: 6.8
A50: 2015-05-11 | B50: 12.1 | C50: 12.1 | D50: 12.1 | E50: 12.1 | F50: 20.96666667 | G50: 5.752 | H50: 5.752 | I50: 5.752 | J50: 5.752 | K50: 1.353333333 | L50: 1.353333333 | M50: 1.353333333 | N50: 1.353333333 | O50: 0.2352804822 | P50: 0.2352804822 | Q50: 0.2352804822 | R50: 0.2352804822 | S50: 0.2352804822 | T50: 0.2352804822 | U50: 0.2352804822 | V50: 0.2352804822 | W50: 0 | X50: 0 | Y50: 0 | Z50: 0 | AA50: 0.2352804822 | AB50: 0 | AC50: 548.8221874 | AD50: 647.8297998 | AE50: 9.435257646 | AF50: 9.435257646 | AK50: 13.88571429 | AL50: 1 | AM50: 1 | AN50: 0.07842682738 | AO50: 0.07842682738 | AP50: 0.07842682738 | AQ50: 0.07842682738 | AR50: 0.0372190592 | AS50: 0.0372190592 | AT50: 0.0236024472 | AW50: 1.353333333 | AX50: 1.353333333 | AY50: 1.353333333 | AZ50: 1.353333333 | BB50: 12.1 | BD50: 13.7 | BE50: 12.7 | BF50: 12 | BG50: 11.7 | BJ50: =SUM(BB40:BB59)/30 -> 8.926666667 | BK50: 0 | BL50: 10.54 | BM50: 9.616666667 | BN50: 8.733333333 | BO50: 7.78 | BP50: 0 | BT50: 2016-02-10 | BU50: 23.8 | BV50: 0 | BW50: 6.2
A51: 2015-05-12 | B51: 16.8 | C51: =$B51+C$9 -> 16.8 | D51: 16.8 | E51: 16.8 | F51: 19.4 | G51: 6.316 | H51: 6.316 | I51: 6.316 | J51: 6.316 | K51: -0.84 | L51: -0.84 | M51: -0.84 | N51: -0.84 | O51: -0.1329955668 | P51: -0.1329955668 | Q51: -0.1329955668 | R51: -0.1329955668 | S51: 0 | T51: 0 | U51: 0 | V51: 0 | W51: 0.1329955668 | X51: 0.1329955668 | Y51: 0.1329955668 | Z51: 0.1329955668 | AA51: 0 | AB51: 0.1329955668 | AC51: 548.8221874 | AD51: 647.8297998 | AE51: 12.62715125 | AF51: 12.62715125 | AK51: 13.64285714 | AL51: 1 | AM51: 1 | AN51: -0.0443318556 | AO51: -0.0443318556 | AP51: -0.0443318556 | AQ51: -0.0443318556 | AR51: 0.0438313705 | AS51: 0.0438313705 | AT51: 0.01479207928 | AW51: 0 | AX51: 0 | AY51: 0 | AZ51: 0 | BB51: 16.8 | BD51: 16.1 | BE51: 15.2 | BF51: 16.7 | BG51: 16.3 | BJ51: =SUM(BB41:BB60)/30 -> 8.993333333 | BK51: 0 | BL51: 10.55333333 | BM51: 9.706666667 | BN51: 8.786666667 | BO51: 7.806666667 | BP51: 0 | BT51: 2016-02-11 | BU51: 27.6 | BV51: 0 | BW51: 2.4
A52: 2015-05-13 | B52: 14.6 | C52: 14.6 | D52: 14.6 | E52: 14.6 | F52: 20.13333333 | G52: 6.052 | H52: 6.052 | I52: 6.052 | J52: 6.052 | K52: 0.1866666667 | L52: 0.1866666667 | M52: 0.1866666667 | N52: 0.1866666667 | O52: 0.03084379819 | P52: 0.03084379819 | Q52: 0.03084379819 | R52: 0.03084379819 | S52: 0.03084379819 | T52: 0.03084379819 | U52: 0.03084379819 | V52: 0.03084379819 | W52: 0 | X52: 0 | Y52: 0 | Z52: 0 | AA52: 0.03084379819 | AB52: 0 | AC52: 549.5624385 | AD52: 648.570051 | AE52: 12.62715125 | AF52: 12.62715125 | AK52: 13.41428571 | AL52: 1 | AM52: 1 | AN52: 0.01028126606 | AO52: 0.01028126606 | AP52: 0.01028126606 | AQ52: 0.01028126606 | AR52: 0.04192452995 | AS52: 0.04192452995 | AT52: 0.01575007449 | AW52: 0.1866666667 | AX52: 0.1866666667 | AY52: 0.1866666667 | AZ52: 0.1866666667 | BB52: 14.6 | BD52: 17.3 | BE52: 16.8 | BF52: 14.5 | BG52: 13.1 | BJ52: =SUM(BB42:BB61)/30 -> 9.066666667 | BK52: 0 | BL52: 10.56 | BM52: 9.76 | BN52: 8.836666667 | BO52: 7.82 | BP52: 0 | BT52: 2016-02-12 | BU52: 28.1 | BV52: 0 | BW52: 1.9
A53: 2015-05-14 | B53: 12 | C53: 12 | D53: 12 | E53: 12 | F53: 21 | G53: 5.74 | H53: 5.74 | I53: 5.74 | J53: 5.74 | K53: 1.4 | L53: 1.4 | M53: 1.4 | N53: 1.4 | O53: 0.243902439 | P53: 0.243902439 | Q53: 0.243902439 | R53: 0.243902439 | S53: 0.243902439 | T53: 0.243902439 | U53: 0.243902439 | V53: 0.243902439 | W53: 0 | X53: 0 | Y53: 0 | Z53: 0 | AA53: 0.243902439 | AB53: 0 | AC53: 555.4160971 | AD53: 654.4237095 | AE53: 12.62715125 | AF53: 12.62715125 | AK53: 13.27142857 | AL53: 1 | AM53: 1 | AN53: 0.08130081301 | AO53: 0.08130081301 | AP53: 0.08130081301 | AQ53: 0.08130081301 | AR53: 0.04426428188 | AS53: 0.04426428188 | AT53: 0.06643329403 | AW53: 1.4 | AX53: 1.4 | AY53: 1.4 | AZ53: 1.4 | BB53: 12 | BD53: 16.4 | BE53: 14.9 | BF53: 11.6 | BG53: 10.8 | BJ53: =SUM(BB43:BB62)/30 -> 9.16 | BK53: 0 | BL53: 10.57333333 | BM53: 9.886666667 | BN53: 8.913333333 | BO53: 7.893333333 | BP53: 0 | BT53: 2016-02-13 | BU53: 26.9 | BV53: 0 | BW53: 3.1
A54: 2015-05-15 | B54: 11.1 | C54: 11.1 | D54: 11.1 | E54: 11.1 | F54: 21.3 | G54: 5.632 | H54: 5.632 | I54: 5.632 | J54: 5.632 | K54: 1.82 | L54: 1.82 | M54: 1.82 | N54: 1.82 | O54: 0.3231534091 | P54: 0.3231534091 | Q54: 0.3231534091 | R54: 0.3231534091 | S54: 0.3231534091 | T54: 0.3231534091 | U54: 0.3231534091 | V54: 0.3231534091 | W54: 0 | X54: 0 | Y54: 0 | Z54: 0 | AA54: 0.3231534091 | AB54: 0 | AC54: 563.1717789 | AD54: 662.1793914 | AE54: 12.62715125 | AF54: 12.62715125 | AK54: 13.27142857 | AL54: 1 | AM54: 1 | AN54: 0.107717803 | AO54: 0.107717803 | AP54: 0.107717803 | AQ54: 0.107717803 | AR54: 0.03527234942 | AS54: 0.03527234942 | AT54: 0.07079436734 | AW54: 1.82 | AX54: 1.82 | AY54: 1.82 | AZ54: 1.82 | BB54: 11.1 | BD54: 13.1 | BE54: 12.3 | BF54: 10.7 | BG54: 9.6 | BJ54: =SUM(BB44:BB63)/30 -> 9.123333333 | BK54: 0 | BL54: 10.41333333 | BM54: 9.823333333 | BN54: 8.823333333 | BO54: 7.803333333 | BP54: 0 | BT54: 2016-02-14 | BU54: 25.7 | BV54: 0 | BW54: 4.3
A55: 2015-05-16 | B55: 14.1 | C55: 14.1 | D55: 14.1 | E55: 14.1 | F55: 20.3 | G55: 5.992 | H55: 5.992 | I55: 5.992 | J55: 5.992 | K55: 0.42 | L55: 0.42 | M55: 0.42 | N55: 0.42 | O55: 0.07009345794 | P55: 0.07009345794 | Q55: 0.07009345794 | R55: 0.07009345794 | S55: 0.07009345794 | T55: 0.07009345794 | U55: 0.07009345794 | V55: 0.07009345794 | W55: 0 | X55: 0 | Y55: 0 | Z55: 0 | AA55: 0.07009345794 | AB55: 0 | AC55: 564.8540219 | AD55: 663.8616343 | AE55: 12.62715125 | AF55: 12.62715125 | AK55: 13.30714286 | AL55: 1 | AM55: 1 | AN55: 0.02336448598 | AO55: 0.02336448598 | AP55: 0.02336448598 | AQ55: 0.02336448598 | AR55: 0.04124188817 | AS55: 0.04124188817 | AT55: 0.0613909741 | AW55: 0.42 | AX55: 0.42 | AY55: 0.42 | AZ55: 0.42 | BB55: 14.1 | BD55: 16.7 | BE55: 15.4 | BF55: 13.4 | BG55: 11.2 | BJ55: =SUM(BB45:BB64)/30 -> 9.023333333 | BK55: 0 | BL55: 10.25333333 | BM55: 9.71 | BN55: 8.673333333 | BO55: 7.64 | BP55: 0 | BT55: 2016-02-15 | BU55: 22.7 | BV55: 0 | BW55: 7.3
A56: 2015-05-17 | B56: 13 | C56: 13 | D56: 13 | E56: 13 | F56: 20.66666667 | G56: 5.86 | H56: 5.86 | I56: 5.86 | J56: 5.86 | K56: 0.9333333333 | L56: 0.9333333333 | M56: 0.9333333333 | N56: 0.9333333333 | O56: 0.1592718999 | P56: 0.1592718999 | Q56: 0.1592718999 | R56: 0.1592718999 | S56: 0.1592718999 | T56: 0.1592718999 | U56: 0.1592718999 | V56: 0.1592718999 | W56: 0 | X56: 0 | Y56: 0 | Z56: 0 | AA56: 0.1592718999 | AB56: 0 | AC56: 568.6765475 | AD56: 667.6841599 | AE56: 12.62715125 | AF56: 12.62715125 | AK56: 13.38571429 | AL56: 1 | AM56: 1 | AN56: 0.0530906333 | AO56: 0.0530906333 | AP56: 0.0530906333 | AQ56: 0.0530906333 | AR56: 0.05473494389 | AS56: 0.05473494389 | AT56: 0.03064613981 | AW56: 0.9333333333 | AX56: 0.9333333333 | AY56: 0.9333333333 | AZ56: 0.9333333333 | BB56: 13 | BD56: 17.1 | BE56: 15.4 | BF56: 12.6 | BG56: 10.6 | BJ56: =SUM(BB46:BB65)/30 -> 8.976666667 | BK56: 0 | BL56: 10.14333333 | BM56: 9.61 | BN56: 8.586666667 | BO56: 7.54 | BP56: 0 | BT56: 2016-02-16 | BU56: 24.7 | BV56: 0 | BW56: 5.3
A57: 2015-05-18 | B57: 14.4 | C57: 14.4 | D57: 14.4 | E57: 14.4 | F57: 20.2 | G57: 6.028 | H57: 6.028 | I57: 6.028 | J57: 6.028 | K57: 0.28 | L57: 0.28 | M57: 0.28 | N57: 0.28 | O57: 0.04644990046 | P57: 0.04644990046 | Q57: 0.04644990046 | R57: 0.04644990046 | S57: 0.04644990046 | T57: 0.04644990046 | U57: 0.04644990046 | V57: 0.04644990046 | W57: 0 | X57: 0 | Y57: 0 | Z57: 0 | AA57: 0.04644990046 | AB57: 0 | AC57: 569.7913451 | AD57: 668.7989576 | AE57: 12.62715125 | AF57: 12.62715125 | AK57: 13.62857143 | AL57: 1 | AM57: 1 | AN57: 0.01548330015 | AO57: 0.01548330015 | AP57: 0.01548330015 | AQ57: 0.01548330015 | AR57: 0.05681381277 | AS57: 0.05681381277 | AT57: 0.02200961637 | AW57: 0.28 | AX57: 0.28 | AY57: 0.28 | AZ57: 0.28 | BB57: 14.4 | BD57: 16.2 | BE57: 14.6 | BF57: 13.8 | BG57: 12.2 | BJ57: =SUM(BB47:BB66)/30 -> 8.88 | BK57: 0 | BL57: 10.00333333 | BM57: 9.476666667 | BN57: 8.493333333 | BO57: 7.473333333 | BP57: 0 | BT57: 2016-02-17 | BU57: 23.5 | BV57: 0 | BW57: 6.5
A58: 2015-05-19 | B58: 15.1 | C58: 15.1 | D58: 15.1 | E58: 15.1 | F58: 19.96666667 | G58: 6.112 | H58: 6.112 | I58: 6.112 | J58: 6.112 | K58: -0.04666666667 | L58: -0.04666666667 | M58: -0.04666666667 | N58: -0.04666666667 | O58: -0.007635253054 | P58: -0.007635253054 | Q58: -0.007635253054 | R58: -0.007635253054 | S58: 0 | T58: 0 | U58: 0 | V58: 0 | W58: 0.007635253054 | X58: 0.007635253054 | Y58: 0.007635253054 | Z58: 0.007635253054 | AA58: 0 | AB58: 0.007635253054 | AC58: 569.7913451 | AD58: 668.7989576 | AE58: 12.81039732 | AF58: 12.81039732 | AK58: 13.35714286 | AL58: 1 | AM58: 1 | AN58: -0.002545084351 | AO58: -0.002545084351 | AP58: -0.002545084351 | AQ58: -0.002545084351 | AR58: 0.05020150147 | AS58: 0.05020150147 | AT58: 0.03922362397 | AW58: 0 | AX58: 0 | AY58: 0 | AZ58: 0 | BB58: 15.1 | BD58: 17.9 | BE58: 17.1 | BF58: 14.4 | BG58: 12.7 | BJ58: =SUM(BB48:BB67)/30 -> 8.9 | BK58: 0 | BL58: 9.89 | BM58: 9.41 | BN58: 8.47 | BO58: 7.473333333 | BP58: 0 | BT58: 2016-02-18 | BU58: 21.9 | BV58: 0 | BW58: 8.1
A59: 2015-05-20 | B59: 11.2 | C59: 11.2 | D59: 11.2 | E59: 11.2 | F59: 21.26666667 | G59: 5.644 | H59: 5.644 | I59: 5.644 | J59: 5.644 | K59: 1.773333333 | L59: 1.773333333 | M59: 1.773333333 | N59: 1.773333333 | O59: 0.3141979683 | P59: 0.3141979683 | Q59: 0.3141979683 | R59: 0.3141979683 | S59: 0.3141979683 | T59: 0.3141979683 | U59: 0.3141979683 | V59: 0.3141979683 | W59: 0 | X59: 0 | Y59: 0 | Z59: 0 | AA59: 0.3141979683 | AB59: 0 | AC59: 577.3320963 | AD59: 676.3397088 | AE59: 12.81039732 | AF59: 12.81039732 | AK59: 13.07142857 | AL59: 1 | AM59: 1 | AN59: 0.1047326561 | AO59: 0.1047326561 | AP59: 0.1047326561 | AQ59: 0.1047326561 | AR59: 0.05020150147 | AS59: 0.05020150147 | AT59: 0.06601348897 | AW59: 1.773333333 | AX59: 1.773333333 | AY59: 1.773333333 | AZ59: 1.773333333 | BB59: 11.2 | BD59: 14.8 | BE59: 13.6 | BF59: 10.6 | BG59: 9.5 | BJ59: =SUM(BB49:BB68)/30 -> 8.973333333 | BK59: 0 | BL59: 9.83 | BM59: 9.373333333 | BN59: 8.513333333 | BO59: 7.476666667 | BP59: 0 | BT59: 2016-02-19 | BU59: 23.3 | BV59: 0 | BW59: 6.7
A60: 2015-05-21 | B60: 11.5 | C60: 11.5 | D60: 11.5 | E60: 11.5 | F60: 21.16666667 | G60: 5.68 | H60: 5.68 | I60: 5.68 | J60: 5.68 | K60: 1.633333333 | L60: 1.633333333 | M60: 1.633333333 | N60: 1.633333333 | O60: 0.2875586854 | P60: 0.2875586854 | Q60: 0.2875586854 | R60: 0.2875586854 | S60: 0.2875586854 | T60: 0.2875586854 | U60: 0.2875586854 | V60: 0.2875586854 | W60: 0 | X60: 0 | Y60: 0 | Z60: 0 | AA60: 0.2875586854 | AB60: 0 | AC60: 584.2335048 | AD60: 683.2411172 | AE60: 12.81039732 | AF60: 12.81039732 | AK60: 13.16428571 | AL60: 1 | AM60: 1 | AN60: 0.09585289515 | AO60: 0.09585289515 | AP60: 0.09585289515 | AQ60: 0.09585289515 | AR60: 0.04371650963 | AS60: 0.04371650963 | AT60: 0.0873390584 | AW60: 1.633333333 | AX60: 1.633333333 | AY60: 1.633333333 | AZ60: 1.633333333 | BB60: 11.5 | BD60: 11.9 | BE60: 12.1 | BF60: 10.6 | BG60: 8.3 | BJ60: =SUM(BB50:BB69)/30 -> 8.99 | BK60: 0 | BL60: 9.856666667 | BM60: 9.443333333 | BN60: 8.516666667 | BO60: 7.456666667 | BP60: 0 | BT60: 2016-02-20 | BU60: 28 | BV60: 0 | BW60: 2
A61: 2015-05-22 | B61: 12.7 | C61: 12.7 | D61: 12.7 | E61: 12.7 | F61: 20.76666667 | G61: 5.824 | H61: 5.824 | I61: 5.824 | J61: 5.824 | K61: 1.073333333 | L61: 1.073333333 | M61: 1.073333333 | N61: 1.073333333 | O61: 0.1842948718 | P61: 0.1842948718 | Q61: 0.1842948718 | R61: 0.1842948718 | S61: 0.1842948718 | T61: 0.1842948718 | U61: 0.1842948718 | V61: 0.1842948718 | W61: 0 | X61: 0 | Y61: 0 | Z61: 0 | AA61: 0.1842948718 | AB61: 0 | AC61: 588.6565817 | AD61: 687.6641942 | AE61: 12.81039732 | AF61: 12.81039732 | AK61: 13.5 | AL61: 1 | AM61: 1 | AN61: 0.06143162393 | AO61: 0.06143162393 | AP61: 0.06143162393 | AQ61: 0.06143162393 | AR61: 0.0397008578 | AS61: 0.0397008578 | AT61: 0.06021633502 | AW61: 1.073333333 | AX61: 1.073333333 | AY61: 1.073333333 | AZ61: 1.073333333 | BB61: 12.7 | BD61: 12.7 | BE61: 13.3 | BF61: 11.6 | BG61: 9.3 | BJ61: =SUM(BB51:BB70)/30 -> 9.066666667 | BK61: 0 | BL61: 9.986666667 | BM61: 9.55 | BN61: 8.56 | BO61: 7.44 | BP61: 0 | BT61: 2016-02-21 | BU61: 26.6 | BV61: 0 | BW61: 3.4
A62: 2015-05-23 | B62: 14.1 | C62: 14.1 | D62: 14.1 | E62: 14.1 | F62: 20.3 | G62: 5.992 | H62: 5.992 | I62: 5.992 | J62: 5.992 | K62: 0.42 | L62: 0.42 | M62: 0.42 | N62: 0.42 | O62: 0.07009345794 | P62: 0.07009345794 | Q62: 0.07009345794 | R62: 0.07009345794 | S62: 0.07009345794 | T62: 0.07009345794 | U62: 0.07009345794 | V62: 0.07009345794 | W62: 0 | X62: 0 | Y62: 0 | Z62: 0 | AA62: 0.07009345794 | AB62: 0 | AC62: 590.3388247 | AD62: 689.3464372 | AE62: 12.81039732 | AF62: 12.81039732 | AK62: 13.5 | AL62: 1 | AM62: 1 | AN62: 0.02336448598 | AO62: 0.02336448598 | AP62: 0.02336448598 | AQ62: 0.02336448598 | AR62: 0.04764881747 | AS62: 0.04764881747 | AT62: 0.03083060011 | AW62: 0.42 | AX62: 0.42 | AY62: 0.42 | AZ62: 0.42 | BB62: 14.1 | BD62: 11.4 | BE62: 12.9 | BF62: 13.7 | BG62: 10.9 | BJ62: =SUM(BB52:BB71)/30 -> 9.113333333 | BK62: 0 | BL62: 10.11 | BM62: 9.696666667 | BN62: 8.586666667 | BO62: 7.383333333 | BP62: 0 | BT62: 2016-02-22 | BU62: 20.5 | BV62: 0 | BW62: 9.5
A63: 2015-05-24 | B63: 14.7 | C63: 14.7 | D63: 14.7 | E63: 14.7 | F63: 20.1 | G63: 6.064 | H63: 6.064 | I63: 6.064 | J63: 6.064 | K63: 0.14 | L63: 0.14 | M63: 0.14 | N63: 0.14 | O63: 0.02308707124 | P63: 0.02308707124 | Q63: 0.02308707124 | R63: 0.02308707124 | S63: 0.02308707124 | T63: 0.02308707124 | U63: 0.02308707124 | V63: 0.02308707124 | W63: 0 | X63: 0 | Y63: 0 | Z63: 0 | AA63: 0.02308707124 | AB63: 0 | AC63: 590.8929144 | AD63: 689.9005269 | AE63: 12.81039732 | AF63: 12.81039732 | AK63: 13.6 | AL63: 1 | AM63: 1 | AN63: 0.007695690413 | AO63: 0.007695690413 | AP63: 0.007695690413 | AQ63: 0.007695690413 | AR63: 0.0502350672 | AS63: 0.0502350672 | AT63: 0.006144637923 | AW63: 0.14 | AX63: 0.14 | AY63: 0.14 | AZ63: 0.14 | BB63: 14.7 | BD63: 12.4 | BE63: 12.9 | BF63: 13.6 | BG63: 12.3 | BJ63: =SUM(BB53:BB72)/30 -> 9.283333333 | BK63: 0 | BL63: 10.25333333 | BM63: 9.843333333 | BN63: 8.716666667 | BO63: 7.456666667 | BP63: 0 | BT63: 2016-02-23 | BU63: 22.7 | BV63: 0 | BW63: 7.3
A64: 2015-05-25 | B64: 15.5 | C64: 15.5 | D64: 15.5 | E64: 15.5 | F64: 19.83333333 | G64: 6.16 | H64: 6.16 | I64: 6.16 | J64: 6.16 | K64: -0.2333333333 | L64: -0.2333333333 | M64: -0.2333333333 | N64: -0.2333333333 | O64: -0.03787878788 | P64: -0.03787878788 | Q64: -0.03787878788 | R64: -0.03787878788 | S64: 0 | T64: 0 | U64: 0 | V64: 0 | W64: 0.03787878788 | X64: 0.03787878788 | Y64: 0.03787878788 | Z64: 0.03787878788 | AA64: 0 | AB64: 0.03787878788 | AC64: 590.8929144 | AD64: 689.9005269 | AE64: 13.71948823 | AF64: 13.71948823 | AK64: 13.87142857 | AL64: 1 | AM64: 1 | AN64: -0.01262626263 | AO64: -0.01262626263 | AP64: -0.01262626263 | AQ64: -0.01262626263 | AR64: 0.04294915362 | AS64: 0.04294915362 | AT64: 0.01605335369 | AW64: 0 | AX64: 0 | AY64: 0 | AZ64: 0 | BB64: 15.5 | BD64: 15.5 | BE64: 15.3 | BF64: 14.1 | BG64: 11.9 | BJ64: =SUM(BB54:BB73)/30 -> 9.63 | BK64: 0 | BL64: 10.49333333 | BM64: 10.13666667 | BN64: 9.043333333 | BO64: 7.73 | BP64: 0 | BT64: 2016-02-24 | BU64: 26.8 | BV64: 0 | BW64: 3.2
A65: 2015-05-26 | B65: 13 | C65: 13 | D65: 13 | E65: 13 | F65: 20.66666667 | G65: 5.86 | H65: 5.86 | I65: 5.86 | J65: 5.86 | K65: 0.9333333333 | L65: 0.9333333333 | M65: 0.9333333333 | N65: 0.9333333333 | O65: 0.1592718999 | P65: 0.1592718999 | Q65: 0.1592718999 | R65: 0.1592718999 | S65: 0.1592718999 | T65: 0.1592718999 | U65: 0.1592718999 | V65: 0.1592718999 | W65: 0 | X65: 0 | Y65: 0 | Z65: 0 | AA65: 0.1592718999 | AB65: 0 | AC65: 594.71544 | AD65: 693.7230525 | AE65: 13.71948823 | AF65: 13.71948823 | AK65: 14.2 | AL65: 1 | AM65: 1 | AN65: 0.0530906333 | AO65: 0.0530906333 | AP65: 0.0530906333 | AQ65: 0.0530906333 | AR65: 0.03130397271 | AS65: 0.03130397271 | AT65: 0.05443359164 | AW65: 0.9333333333 | AX65: 0.9333333333 | AY65: 0.9333333333 | AZ65: 0.9333333333 | BB65: 13 | BD65: 14.2 | BE65: 13.7 | BF65: 11.6 | BG65: 10.1 | BJ65: =SUM(BB55:BB74)/30 -> 9.856666667 | BK65: 0 | BL65: 10.82 | BM65: 10.44 | BN65: 9.246666667 | BO65: 7.923333333 | BP65: 0 | BT65: 2016-02-25 | BU65: 29.1 | BV65: 0 | BW65: 0.9
A66: 2015-05-27 | B66: 10.6 | C66: 10.6 | D66: 10.6 | E66: 10.6 | F66: 21.46666667 | G66: 5.572 | H66: 5.572 | I66: 5.572 | J66: 5.572 | K66: 2.053333333 | L66: 2.053333333 | M66: 2.053333333 | N66: 2.053333333 | O66: 0.3685092127 | P66: 0.3685092127 | Q66: 0.3685092127 | R66: 0.3685092127 | S66: 0.3685092127 | T66: 0.3685092127 | U66: 0.3685092127 | V66: 0.3685092127 | W66: 0 | X66: 0 | Y66: 0 | Z66: 0 | AA66: 0.3685092127 | AB66: 0 | AC66: 603.5596611 | AD66: 702.5672736 | AE66: 13.71948823 | AF66: 13.71948823 | AK66: 0 | AL66: 0 | AM66: 1 | AN66: 0.1228364042 | AO66: 0.1228364042 | AP66: 0.1228364042 | AQ66: 0.1228364042 | AR66: 0.03130397271 | AS66: 0.03130397271 | AT66: 0.07359284587 | AW66: 2.053333333 | AX66: 2.053333333 | AY66: 2.053333333 | AZ66: 2.053333333 | BB66: 10.6 | BD66: 12.2 | BE66: 11.1 | BF66: 9.8 | BG66: 7.8 | BJ66: =SUM(BB56:BB75)/30 -> 10.03 | BK66: 0 | BL66: 10.91666667 | BM66: 10.57 | BN66: 9.433333333 | BO66: 8.146666667 | BP66: 0 | BT66: 2016-02-26 | BU66: 28.3 | BV66: 0 | BW66: 1.7
A67: 2015-05-28 | B67: 13.3 | C67: 13.3 | D67: 13.3 | E67: 13.3 | F67: 20.56666667 | G67: 5.896 | H67: 5.896 | I67: 5.896 | J67: 5.896 | K67: 0.7933333333 | L67: 0.7933333333 | M67: 0.7933333333 | N67: 0.7933333333 | O67: 0.1345545002 | P67: 0.1345545002 | Q67: 0.1345545002 | R67: 0.1345545002 | S67: 0.1345545002 | T67: 0.1345545002 | U67: 0.1345545002 | V67: 0.1345545002 | W67: 0 | X67: 0 | Y67: 0 | Z67: 0 | AA67: 0.1345545002 | AB67: 0 | AC67: 606.7889691 | AD67: 705.7965816 | AE67: 13.71948823 | AF67: 13.71948823 | AK67: 0 | AL67: 0 | AM67: 1 | AN67: 0.04485150008 | AO67: 0.04485150008 | AP67: 0.04485150008 | AQ67: 0.04485150008 | AR67: 0.03241648839 | AS67: 0.03241648839 | AT67: 0.0492010873 | AW67: 0.7933333333 | AX67: 0.7933333333 | AY67: 0.7933333333 | AZ67: 0.7933333333 | BB67: 13.3 | BD67: 12.9 | BE67: 12.1 | BF67: 12.4 | BG67: 11.1 | BJ67: =SUM(BB57:BB76)/30 -> 10.35 | BK67: 0 | BL67: 11.08333333 | BM67: 10.78 | BN67: 9.766666667 | BO67: 8.52 | BP67: 0 | BT67: 2016-02-27 | BU67: 28.5 | BV67: 0 | BW67: 1.5
A68: 2015-05-29 | B68: 15.8 | C68: 15.8 | D68: 15.8 | E68: 15.8 | F68: 19.73333333 | G68: 6.196 | H68: 6.196 | I68: 6.196 | J68: 6.196 | K68: -0.3733333333 | L68: -0.3733333333 | M68: -0.3733333333 | N68: -0.3733333333 | O68: -0.06025392726 | P68: -0.06025392726 | Q68: -0.06025392726 | R68: -0.06025392726 | S68: 0 | T68: 0 | U68: 0 | V68: 0 | W68: 0.06025392726 | X68: 0.06025392726 | Y68: 0.06025392726 | Z68: 0.06025392726 | AA68: 0 | AB68: 0.06025392726 | AC68: 606.7889691 | AD68: 705.7965816 | AE68: 15.16558249 | AF68: 15.16558249 | AK68: 0 | AL68: 0 | AM68: 1 | AN68: -0.02008464242 | AO68: -0.02008464242 | AP68: -0.02008464242 | AQ68: -0.02008464242 | AR68: 0.02325307315 | AS68: 0.02325307315 | AT68: 0.01604378121 | AW68: 0 | AX68: 0 | AY68: 0 | AZ68: 0 | BB68: 15.8 | BD68: 15.4 | BE68: 15 | BF68: 14.9 | BG68: 13.1 | BJ68: =SUM(BB58:BB77)/30 -> 10.51666667 | BK68: 0 | BL68: 11.32666667 | BM68: 11.06666667 | BN68: 9.92 | BO68: 8.736666667 | BP68: 0 | BT68: 2016-02-28 | BU68: 24.3 | BV68: 0 | BW68: 5.7
A69: 2015-05-30 | B69: 14.1 | C69: 14.1 | D69: 14.1 | E69: 14.1 | F69: 20.3 | G69: 5.992 | H69: 5.992 | I69: 5.992 | J69: 5.992 | K69: 0.42 | L69: 0.42 | M69: 0.42 | N69: 0.42 | O69: 0.07009345794 | P69: 0.07009345794 | Q69: 0.07009345794 | R69: 0.07009345794 | S69: 0.07009345794 | T69: 0.07009345794 | U69: 0.07009345794 | V69: 0.07009345794 | W69: 0 | X69: 0 | Y69: 0 | Z69: 0 | AA69: 0.07009345794 | AB69: 0 | AC69: 608.4712121 | AD69: 707.4788246 | AE69: 15.16558249 | AF69: 15.16558249 | AK69: 0 | AL69: 0 | AM69: 0 | AN69: 0.02336448598 | AO69: 0.02336448598 | AP69: 0.02336448598 | AQ69: 0.02336448598 | AR69: -4.238879905e-06 | AS69: -4.238879905e-06 | AT69: 0.006254381238 | AW69: 0.42 | AX69: 0.42 | AY69: 0.42 | AZ69: 0.42 | BB69: 14.1 | BD69: 17.8 | BE69: 16.9 | BF69: 12.9 | BG69: 11.2 | BJ69: =SUM(BB59:BB78)/30 -> 10.52 | BK69: 0 | BL69: 11.51 | BM69: 11.16666667 | BN69: 9.903333333 | BO69: 8.733333333 | BP69: 0 | BT69: 2016-02-29 | BU69: 23 | BV69: 0 | BW69: 7
A70: 2015-05-31 | B70: 14.4 | C70: 14.4 | D70: 14.4 | E70: 14.4 | F70: 20.2 | G70: 6.028 | H70: 6.028 | I70: 6.028 | J70: 6.028 | K70: 0.28 | L70: 0.28 | M70: 0.28 | N70: 0.28 | O70: 0.04644990046 | P70: 0.04644990046 | Q70: 0.04644990046 | R70: 0.04644990046 | S70: 0.04644990046 | T70: 0.04644990046 | U70: 0.04644990046 | V70: 0.04644990046 | W70: 0 | X70: 0 | Y70: 0 | Z70: 0 | AA70: 0.04644990046 | AB70: 0 | AC70: 609.5860097 | AD70: 708.5936222 | AE70: 15.16558249 | AF70: 15.16558249 | AK70: 0 | AL70: 0 | AM70: 0 | AN70: 0.01548330015 | AO70: 0.01548330015 | AP70: 0.01548330015 | AQ70: 0.01548330015 | AR70: -0.04108470139 | AS70: -0.04108470139 | AT70: -0.01264079439 | AW70: 0.28 | AX70: 0.28 | AY70: 0.28 | AZ70: 0.28 | BB70: 14.4 | BD70: 17.6 | BE70: 15.9 | BF70: 13.3 | BG70: 11.2 | BJ70: =SUM(BB60:BB79)/30 -> 10.53666667 | BK70: 0 | BL70: 11.68666667 | BM70: 11.33333333 | BN70: 9.913333333 | BO70: 8.736666667 | BP70: 0 | BT70: 2016-03-01 | BU70: 23.9 | BV70: 0 | BW70: 6.1
A71: 2015-06-01 | B71: 18.2 | C71: 18.2 | D71: 18.2 | E71: 18.2 | F71: 18.93333333 | G71: 6.484 | H71: 6.484 | I71: 6.484 | J71: 6.484 | K71: -1.493333333 | L71: -1.493333333 | M71: -1.493333333 | N71: -1.493333333 | O71: -0.2303105079 | P71: -0.2303105079 | Q71: -0.2303105079 | R71: -0.2303105079 | S71: 0 | T71: 0 | U71: 0 | V71: 0 | W71: 0.2303105079 | X71: 0.2303105079 | Y71: 0.2303105079 | Z71: 0.2303105079 | AA71: 0 | AB71: 0.2303105079 | AC71: 609.5860097 | AD71: 708.5936222 | AE71: 20.69303468 | AF71: 20.69303468 | AK71: 0 | AL71: 0 | AM71: 0 | AN71: -0.07677016931 | AO71: -0.07677016931 | AP71: -0.07677016931 | AQ71: -0.07677016931 | AR71: -0.05748654434 | AS71: -0.05748654434 | AT71: -0.05699914001 | AW71: 0 | AX71: 0 | AY71: 0 | AZ71: 0 | BB71: 18.2 | BD71: 19.8 | BE71: 19.6 | BF71: 17.5 | BG71: 14.6 | BJ71: =SUM(BB61:BB80)/30 -> 10.66 | BK71: 0 | BL71: 11.91333333 | BM71: 11.52333333 | BN71: 10.02666667 | BO71: 8.886666667 | BP71: 0 | BT71: 2016-03-02 | BU71: 27.7 | BV71: 0 | BW71: 2.3
A72: 2015-06-02 | B72: 19.7 | C72: 19.7 | D72: 19.7 | E72: 19.7 | F72: 18.43333333 | G72: 6.664 | H72: 6.664 | I72: 6.664 | J72: 6.664 | K72: -2.193333333 | L72: -2.193333333 | M72: -2.193333333 | N72: -2.193333333 | O72: -0.3291316527 | P72: -0.3291316527 | Q72: -0.3291316527 | R72: -0.3291316527 | S72: 0 | T72: 0 | U72: 0 | V72: 0 | W72: 0.3291316527 | X72: 0.3291316527 | Y72: 0.3291316527 | Z72: 0.3291316527 | AA72: 0 | AB72: 0.3291316527 | AC72: 609.5860097 | AD72: 708.5936222 | AE72: 28.59219434 | AF72: 28.59219434 | AK72: 0 | AL72: 0 | AM72: 0 | AN72: -0.1097105509 | AO72: -0.1097105509 | AP72: -0.1097105509 | AQ72: -0.1097105509 | AR72: -0.06906041061 | AS72: -0.06906041061 | AT72: -0.1170691845 | AW72: 0 | AX72: 0 | AY72: 0 | AZ72: 0 | BB72: 19.7 | BD72: 21.6 | BE72: 21.2 | BF72: 18.4 | BG72: 15.3 | BJ72: =SUM(BB62:BB81)/30 -> 10.82666667 | BK72: 0 | BL72: 12.18333333 | BM72: 11.75666667 | BN72: 10.21333333 | BO72: 9.07 | BP72: 0 | BT72: 2016-03-03 | BU72: 24.7 | BV72: 0 | BW72: 5.3
A73: 2015-06-03 | B73: 22.4 | C73: 22.4 | D73: 22.4 | E73: 22.4 | F73: 17.53333333 | G73: 6.988 | H73: 6.988 | I73: 6.988 | J73: 6.988 | K73: -3.453333333 | L73: -3.453333333 | M73: -3.453333333 | N73: -3.453333333 | O73: -0.4941804999 | P73: -0.4941804999 | Q73: -0.4941804999 | R73: -0.4941804999 | S73: 0 | T73: 0 | U73: 0 | V73: 0 | W73: 0.4941804999 | X73: 0.4941804999 | Y73: 0.4941804999 | Z73: 0.4941804999 | AA73: 0 | AB73: 0.4941804999 | AC73: 609.5860097 | AD73: 708.5936222 | AE73: 40.45252634 | AF73: 40.45252634 | AK73: 0 | AL73: 0 | AM73: 0 | AN73: -0.1647268333 | AO73: -0.1647268333 | AP73: -0.1647268333 | AQ73: -0.1647268333 | AR73: -0.09648388869 | AS73: -0.09648388869 | AT73: -0.1147995949 | AW73: 0 | AX73: 0 | AY73: 0 | AZ73: 0 | BB73: 22.4 | BD73: 23.6 | BE73: 23.7 | BF73: 21.4 | BG73: 19 | BJ73: =SUM(BB63:BB82)/30 -> 11.06333333 | BK73: 0 | BL73: 12.62666667 | BM73: 12.12 | BN73: 10.44666667 | BO73: 9.363333333 | BP73: 0 | BT73: 2016-03-04 | BU73: 24 | BV73: 0 | BW73: 6
A74: 2015-06-04 | B74: 17.9 | C74: 17.9 | D74: 17.9 | E74: 17.9 | F74: 19.03333333 | G74: 6.448 | H74: 6.448 | I74: 6.448 | J74: 6.448 | K74: -1.353333333 | L74: -1.353333333 | M74: -1.353333333 | N74: -1.353333333 | O74: -0.2098842018 | P74: -0.2098842018 | Q74: -0.2098842018 | R74: -0.2098842018 | S74: 0 | T74: 0 | U74: 0 | V74: 0 | W74: 0.2098842018 | X74: 0.2098842018 | Y74: 0.2098842018 | Z74: 0.2098842018 | AA74: 0 | AB74: 0.2098842018 | AC74: 609.5860097 | AD74: 708.5936222 | AE74: 45.48974718 | AF74: 45.48974718 | AK74: 0 | AL74: 0 | AM74: 0 | AN74: -0.06996140061 | AO74: -0.06996140061 | AP74: -0.06996140061 | AQ74: -0.06996140061 | AR74: -0.1134480183 | AS74: -0.1134480183 | AT74: -0.1119299801 | AW74: 0 | AX74: 0 | AY74: 0 | AZ74: 0 | BB74: 17.9 | BD74: 22.9 | BE74: 21.4 | BF74: 16.8 | BG74: 15.4 | BJ74: =SUM(BB64:BB83)/30 -> 11.26666667 | BK74: 0 | BL74: 12.99666667 | BM74: 12.50333333 | BN74: 10.66 | BO74: 9.59 | BP74: 0 | BT74: 2016-03-05 | BU74: 26.6 | BV74: 0 | BW74: 3.4
A75: 2015-06-05 | B75: 19.3 | C75: 19.3 | D75: 19.3 | E75: 19.3 | F75: 18.56666667 | G75: 6.616 | H75: 6.616 | I75: 6.616 | J75: 6.616 | K75: -2.006666667 | L75: -2.006666667 | M75: -2.006666667 | N75: -2.006666667 | O75: -0.3033051189 | P75: -0.3033051189 | Q75: -0.3033051189 | R75: -0.3033051189 | S75: 0 | T75: 0 | U75: 0 | V75: 0 | W75: 0.3033051189 | X75: 0.3033051189 | Y75: 0.3033051189 | Z75: 0.3033051189 | AA75: 0 | AB75: 0.3033051189 | AC75: 609.5860097 | AD75: 708.5936222 | AE75: 52.76907004 | AF75: 52.76907004 | AK75: 0 | AL75: 0 | AM75: 0 | AN75: -0.1011017063 | AO75: -0.1011017063 | AP75: -0.1011017063 | AQ75: -0.1011017063 | AR75: -0.1032065933 | AS75: -0.1032065933 | AT75: -0.1132209892 | AW75: 0 | AX75: 0 | AY75: 0 | AZ75: 0 | BB75: 19.3 | BD75: 19.6 | BE75: 19.3 | BF75: 19 | BG75: 17.9 | BJ75: =SUM(BB65:BB84)/30 -> 11.42 | BK75: 0 | BL75: 13.2 | BM75: 12.69666667 | BN75: 10.85666667 | BO75: 9.803333333 | BP75: 0 | BT75: 2016-03-06 | BU75: 24.2 | BV75: 0 | BW75: =30-BU75 -> 5.8
A76: 2015-06-06 | B76: 22.6 | C76: 22.6 | D76: 22.6 | E76: 22.6 | F76: 17.46666667 | G76: 7.012 | H76: 7.012 | I76: 7.012 | J76: 7.012 | K76: -3.546666667 | L76: -3.546666667 | M76: -3.546666667 | N76: -3.546666667 | O76: -0.5057995817 | P76: -0.5057995817 | Q76: -0.5057995817 | R76: -0.5057995817 | S76: 0 | T76: 0 | U76: 0 | V76: 0 | W76: 0.5057995817 | X76: 0.5057995817 | Y76: 0.5057995817 | Z76: 0.5057995817 | AA76: 0 | AB76: 0.5057995817 | AC76: 609.5860097 | AD76: 708.5936222 | AE76: 64.90826 | AF76: 64.90826 | AK76: 0 | AL76: 0 | AM76: 0 | AN76: -0.1685998606 | AO76: -0.1685998606 | AP76: -0.1685998606 | AQ76: -0.1685998606 | AR76: -0.0746771825 | AS76: -0.0746771825 | AT76: -0.1243223913 | AW76: 0 | AX76: 0 | AY76: 0 | AZ76: 0 | BB76: 22.6 | BD76: 22.1 | BE76: 21.7 | BF76: 22.6 | BG76: 21.8 | BJ76: =SUM(BB66:BB85)/30 -> 11.55 | BK76: 0 | BL76: 13.36333333 | BM76: 12.82666667 | BN76: 10.99666667 | BO76: 9.92 | BP76: 0 | BT76: 2016-03-07 | BU76: 24.4 | BV76: 0 | BW76: 5.6
A77: 2015-06-07 | B77: 19.4 | C77: 19.4 | D77: 19.4 | E77: 19.4 | F77: 18.53333333 | G77: 6.628 | H77: 6.628 | I77: 6.628 | J77: 6.628 | K77: -2.053333333 | L77: -2.053333333 | M77: -2.053333333 | N77: -2.053333333 | O77: -0.3097968216 | P77: -0.3097968216 | Q77: -0.3097968216 | R77: -0.3097968216 | S77: 0 | T77: 0 | U77: 0 | V77: 0 | W77: 0.3097968216 | X77: 0.3097968216 | Y77: 0.3097968216 | Z77: 0.3097968216 | AA77: 0 | AB77: 0.3097968216 | AC77: 609.5860097 | AD77: 708.5936222 | AE77: 72.34338371 | AF77: 72.34338371 | AK77: 0 | AL77: 0 | AM77: 0 | AN77: -0.1032656072 | AO77: -0.1032656072 | AP77: -0.1032656072 | AQ77: -0.1032656072 | AR77: -0.05187051982 | AS77: -0.05187051982 | AT77: -0.09231522075 | AW77: 0 | AX77: 0 | AY77: 0 | AZ77: 0 | BB77: 19.4 | BD77: 23.5 | BE77: 23.2 | BF77: 18.4 | BG77: 18.7 | BJ77: =SUM(BB67:BB86)/30 -> 11.68 | BK77: 0 | BL77: 13.56333333 | BM77: 13.01333333 | BN77: 11.11666667 | BO77: 10.03 | BP77: 0 | BT77: 2016-03-08 | BU77: 23.5 | BV77: 0 | BW77: 6.5
A78: 2015-06-08 | B78: 15.2 | C78: 15.2 | D78: 15.2 | E78: 15.2 | F78: 19.93333333 | G78: 6.124 | H78: 6.124 | I78: 6.124 | J78: 6.124 | K78: -0.09333333333 | L78: -0.09333333333 | M78: -0.09333333333 | N78: -0.09333333333 | O78: -0.0152405835 | P78: -0.0152405835 | Q78: -0.0152405835 | R78: -0.0152405835 | S78: 0 | T78: 0 | U78: 0 | V78: 0 | W78: 0.0152405835 | X78: 0.0152405835 | Y78: 0.0152405835 | Z78: 0.0152405835 | AA78: 0 | AB78: 0.0152405835 | AC78: 609.5860097 | AD78: 708.5936222 | AE78: 72.70915772 | AF78: 72.70915772 | AK78: 0 | AL78: 0 | AM78: 0 | AN78: -0.005080194499 | AO78: -0.005080194499 | AP78: -0.005080194499 | AQ78: -0.005080194499 | AR78: -0.05121600911 | AS78: -0.05121600911 | AT78: -0.00611682559 | AW78: 0 | AX78: 0 | AY78: 0 | AZ78: 0 | BB78: 15.2 | BD78: 23.4 | BE78: 20.1 | BF78: 13.9 | BG78: 12.6 | BJ78: =SUM(BB68:BB87)/30 -> 11.69666667 | BK78: 0 | BL78: 13.64666667 | BM78: 13.1 | BN78: 11.12333333 | BO78: 10.04666667 | BP78: 0 | BT78: 2016-03-09 | BU78: 22.2 | BV78: 0 | BW78: 7.8
A79: 2015-06-09 | B79: 11.7 | C79: 11.7 | D79: 11.7 | E79: 11.7 | F79: 21.1 | G79: 5.704 | H79: 5.704 | I79: 5.704 | J79: 5.704 | K79: 1.54 | L79: 1.54 | M79: 1.54 | N79: 1.54 | O79: 0.2699859748 | P79: 0.2699859748 | Q79: 0.2699859748 | R79: 0.2699859748 | S79: 0.2699859748 | T79: 0.2699859748 | U79: 0.2699859748 | V79: 0.2699859748 | W79: 0 | X79: 0 | Y79: 0 | Z79: 0 | AA79: 0.2699859748 | AB79: 0 | AC79: 616.0656731 | AD79: 715.0732856 | AE79: 72.70915772 | AF79: 72.70915772 | AK79: 0 | AL79: 0 | AM79: 0 | AN79: 0.08999532492 | AO79: 0.08999532492 | AP79: 0.08999532492 | AQ79: 0.08999532492 | AR79: -0.05690408556 | AS79: -0.05690408556 | AT79: 0.02661164531 | AW79: 1.54 | AX79: 1.54 | AY79: 1.54 | AZ79: 1.54 | BB79: 11.7 | BD79: 20.1 | BE79: 18.6 | BF79: 10.9 | BG79: 9.6 | BJ79: =SUM(BB69:BB88)/30 -> 11.67 | BK79: 0 | BL79: 13.71666667 | BM79: 13.09666667 | BN79: 11.09333333 | BO79: 10.01 | BP79: 0 | BT79: 2016-03-10 | BU79: 22.6 | BV79: 0 | BW79: 7.4
A80: 2015-06-10 | B80: 15.2 | C80: 15.2 | D80: 15.2 | E80: 15.2 | F80: 19.93333333 | G80: 6.124 | H80: 6.124 | I80: 6.124 | J80: 6.124 | K80: -0.09333333333 | L80: -0.09333333333 | M80: -0.09333333333 | N80: -0.09333333333 | O80: -0.0152405835 | P80: -0.0152405835 | Q80: -0.0152405835 | R80: -0.0152405835 | S80: 0 | T80: 0 | U80: 0 | V80: 0 | W80: 0.0152405835 | X80: 0.0152405835 | Y80: 0.0152405835 | Z80: 0.0152405835 | AA80: 0 | AB80: 0.0152405835 | AC80: 616.0656731 | AD80: 715.0732856 | AE80: 73.07493172 | AF80: 73.07493172 | AK80: 0 | AL80: 0 | AM80: 0 | AN80: -0.005080194499 | AO80: -0.005080194499 | AP80: -0.005080194499 | AQ80: -0.005080194499 | AR80: -0.05178379568 | AS80: -0.05178379568 | AT80: 0.006511768255 | AW80: 0 | AX80: 0 | AY80: 0 | AZ80: 0 | BB80: 15.2 | BD80: 18.7 | BE80: 17.8 | BF80: 14 | BG80: 12.8 | BJ80: =SUM(BB70:BB89)/30 -> 11.64333333 | BK80: 0 | BL80: 13.68666667 | BM80: 13.05666667 | BN80: 11.07333333 | BO80: 9.97 | BP80: 0 | BT80: 2016-03-11 | BU80: 20.9 | BV80: 0 | BW80: 9.1
A81: 2015-06-11 | B81: 17.7 | C81: 17.7 | D81: 17.7 | E81: 17.7 | F81: 19.1 | G81: 6.424 | H81: 6.424 | I81: 6.424 | J81: 6.424 | K81: -1.26 | L81: -1.26 | M81: -1.26 | N81: -1.26 | O81: -0.196139477 | P81: -0.196139477 | Q81: -0.196139477 | R81: -0.196139477 | S81: 0 | T81: 0 | U81: 0 | V81: 0 | W81: 0.196139477 | X81: 0.196139477 | Y81: 0.196139477 | Z81: 0.196139477 | AA81: 0 | AB81: 0.196139477 | AC81: 616.0656731 | AD81: 715.0732856 | AE81: 77.78227917 | AF81: 77.78227917 | AK81: 0 | AL81: 0 | AM81: 0 | AN81: -0.06537982565 | AO81: -0.06537982565 | AP81: -0.06537982565 | AQ81: -0.06537982565 | AR81: -0.05391674685 | AS81: -0.05391674685 | AT81: -0.07045942053 | AW81: 0 | AX81: 0 | AY81: 0 | AZ81: 0 | BB81: 17.7 | BD81: 20.8 | BE81: 20.3 | BF81: 17.2 | BG81: 14.8 | BJ81: =SUM(BB71:BB90)/30 -> 11.57333333 | BK81: 0 | BL81: 13.58 | BM81: 12.98 | BN81: 11.01333333 | BO81: 9.92 | BP81: 0 | BT81: 2016-03-12 | BU81: 23.6 | BV81: 0 | BW81: 6.4
A82: 2015-06-12 | B82: 21.2 | C82: 21.2 | D82: 21.2 | E82: 21.2 | F82: 17.93333333 | G82: 6.844 | H82: 6.844 | I82: 6.844 | J82: 6.844 | K82: -2.893333333 | L82: -2.893333333 | M82: -2.893333333 | N82: -2.893333333 | O82: -0.4227547243 | P82: -0.4227547243 | Q82: -0.4227547243 | R82: -0.4227547243 | S82: 0 | T82: 0 | U82: 0 | V82: 0 | W82: 0.4227547243 | X82: 0.4227547243 | Y82: 0.4227547243 | Z82: 0.4227547243 | AA82: 0 | AB82: 0.4227547243 | AC82: 616.0656731 | AD82: 715.0732856 | AE82: 87.92839255 | AF82: 87.92839255 | AK82: 0 | AL82: 0 | AM82: 0 | AN82: -0.1409182414 | AO82: -0.1409182414 | AP82: -0.1409182414 | AQ82: -0.1409182414 | AR82: -0.05986329022 | AS82: -0.05986329022 | AT82: -0.1130186328 | AW82: 0 | AX82: 0 | AY82: 0 | AZ82: 0 | BB82: 21.2 | BD82: 24.7 | BE82: 23.8 | BF82: 20.7 | BG82: 19.7 | BJ82: =SUM(BB72:BB91)/30 -> 11.42333333 | BK82: 0 | BL82: 13.42 | BM82: 12.80666667 | BN82: 10.84333333 | BO82: 9.776666667 | BP82: 0 | BT82: 2016-03-13 | BU82: 24 | BV82: 0 | BW82: 6
A83: 2015-06-13 | B83: 20.8 | C83: 20.8 | D83: 20.8 | E83: 20.8 | F83: 18.06666667 | G83: 6.796 | H83: 6.796 | I83: 6.796 | J83: 6.796 | K83: -2.706666667 | L83: -2.706666667 | M83: -2.706666667 | N83: -2.706666667 | O83: -0.3982734942 | P83: -0.3982734942 | Q83: -0.3982734942 | R83: -0.3982734942 | S83: 0 | T83: 0 | U83: 0 | V83: 0 | W83: 0.3982734942 | X83: 0.3982734942 | Y83: 0.3982734942 | Z83: 0.3982734942 | AA83: 0 | AB83: 0.3982734942 | AC83: 616.0656731 | AD83: 715.0732856 | AE83: 97.48695641 | AF83: 97.48695641 | AK83: 0 | AL83: 0 | AM83: 0 | AN83: -0.1327578314 | AO83: -0.1327578314 | AP83: -0.1327578314 | AQ83: -0.1327578314 | AR83: -0.07088017727 | AS83: -0.07088017727 | AT83: -0.1306241127 | AW83: 0 | AX83: 0 | AY83: 0 | AZ83: 0 | BB83: 20.8 | BD83: 23.5 | BE83: 24.4 | BF83: 20 | BG83: 19.1 | BJ83: =SUM(BB73:BB92)/30 -> 11.25333333 | BK83: 0 | BL83: 13.28666667 | BM83: 12.59333333 | BN83: 10.69333333 | BO83: 9.646666667 | BP83: 0 | BT83: 2016-03-14 | BU83: 25.2 | BV83: 0 | BW83: 4.8
A84: 2015-06-14 | B84: 20.1 | C84: 20.1 | D84: 20.1 | E84: 20.1 | F84: 18.3 | G84: 6.712 | H84: 6.712 | I84: 6.712 | J84: 6.712 | K84: -2.38 | L84: -2.38 | M84: -2.38 | N84: -2.38 | O84: -0.3545887962 | P84: -0.3545887962 | Q84: -0.3545887962 | R84: -0.3545887962 | S84: 0 | T84: 0 | U84: 0 | V84: 0 | W84: 0.3545887962 | X84: 0.3545887962 | Y84: 0.3545887962 | Z84: 0.3545887962 | AA84: 0 | AB84: 0.3545887962 | AC84: 616.0656731 | AD84: 715.0732856 | AE84: 105.9970875 | AF84: 105.9970875 | AK84: 0 | AL84: 0 | AM84: 0 | AN84: -0.1181962654 | AO84: -0.1181962654 | AP84: -0.1181962654 | AQ84: -0.1181962654 | AR84: -0.06567715739 | AS84: -0.06567715739 | AT84: -0.09922003161 | AW84: 0 | AX84: 0 | AY84: 0 | AZ84: 0 | BB84: 20.1 | BD84: 21.6 | BE84: 21.1 | BF84: 20 | BG84: 18.3 | BJ84: =SUM(BB74:BB93)/30 -> 10.93666667 | BK84: 0 | BL84: 12.99333333 | BM84: 12.29 | BN84: 10.37 | BO84: 9.326666667 | BP84: 0 | BT84: 2016-03-15 | BU84: 28 | BV84: 0 | BW84: 2
A85: 2015-06-15 | B85: 16.9 | C85: 16.9 | D85: 16.9 | E85: 16.9 | F85: 19.36666667 | G85: 6.328 | H85: 6.328 | I85: 6.328 | J85: 6.328 | K85: -0.8866666667 | L85: -0.8866666667 | M85: -0.8866666667 | N85: -0.8866666667 | O85: -0.1401179941 | P85: -0.1401179941 | Q85: -0.1401179941 | R85: -0.1401179941 | S85: 0 | T85: 0 | U85: 0 | V85: 0 | W85: 0.1401179941 | X85: 0.1401179941 | Y85: 0.1401179941 | Z85: 0.1401179941 | AA85: 0 | AB85: 0.1401179941 | AC85: 616.0656731 | AD85: 715.0732856 | AE85: 109.3599194 | AF85: 109.3599194 | AK85: 0 | AL85: 0 | AM85: 0 | AN85: -0.04670599803 | AO85: -0.04670599803 | AP85: -0.04670599803 | AQ85: -0.04670599803 | AR85: -0.05633718229 | AS85: -0.05633718229 | AT85: -0.0506750493 | AW85: 0 | AX85: 0 | AY85: 0 | AZ85: 0 | BB85: 16.9 | BD85: 19.1 | BE85: 17.6 | BF85: 15.8 | BG85: 13.6 | BJ85: =SUM(BB75:BB94)/30 -> 10.77333333 | BK85: 0 | BL85: 12.76 | BM85: 12.06666667 | BN85: 10.22666667 | BO85: 9.173333333 | BP85: 0 | BT85: 2016-03-16 | BU85: 25.1 | BV85: 0 | BW85: 4.9
A86: 2015-06-16 | B86: 14.5 | C86: 14.5 | D86: 14.5 | E86: 14.5 | F86: 20.16666667 | G86: 6.04 | H86: 6.04 | I86: 6.04 | J86: 6.04 | K86: 0.2333333333 | L86: 0.2333333333 | M86: 0.2333333333 | N86: 0.2333333333 | O86: 0.03863134658 | P86: 0.03863134658 | Q86: 0.03863134658 | R86: 0.03863134658 | S86: 0.03863134658 | T86: 0.03863134658 | U86: 0.03863134658 | V86: 0.03863134658 | W86: 0 | X86: 0 | Y86: 0 | Z86: 0 | AA86: 0.03863134658 | AB86: 0 | AC86: 616.9928254 | AD86: 716.0004379 | AE86: 109.3599194 | AF86: 109.3599194 | AK86: 0 | AL86: 0 | AM86: 0 | AN86: 0.01287711553 | AO86: 0.01287711553 | AP86: 0.01287711553 | AQ86: 0.01287711553 | AR86: -0.02979864779 | AS86: -0.02979864779 | AT86: -0.0008293126006 | AW86: 0.2333333333 | AX86: 0.2333333333 | AY86: 0.2333333333 | AZ86: 0.2333333333 | BB86: 14.5 | BD86: 18.2 | BE86: 16.7 | BF86: 13.4 | BG86: 11.1 | BJ86: =SUM(BB76:BB95)/30 -> 10.65 | BK86: 0 | BL86: 12.67666667 | BM86: 11.95666667 | BN86: 10.09 | BO86: 9.006666667 | BP86: 0 | BT86: 2016-03-17 | BU86: 24.9 | BV86: 0 | BW86: 5.1
A87: 2015-06-17 | B87: 13.8 | C87: 13.8 | D87: 13.8 | E87: 13.8 | F87: 20.4 | G87: 5.956 | H87: 5.956 | I87: 5.956 | J87: 5.956 | K87: 0.56 | L87: 0.56 | M87: 0.56 | N87: 0.56 | O87: 0.09402283412 | P87: 0.09402283412 | Q87: 0.09402283412 | R87: 0.09402283412 | S87: 0.09402283412 | T87: 0.09402283412 | U87: 0.09402283412 | V87: 0.09402283412 | W87: 0 | X87: 0 | Y87: 0 | Z87: 0 | AA87: 0.09402283412 | AB87: 0 | AC87: 619.2493735 | AD87: 718.2569859 | AE87: 109.3599194 | AF87: 109.3599194 | AK87: 0 | AL87: 0 | AM87: 0 | AN87: 0.03134094471 | AO87: 0.03134094471 | AP87: 0.03134094471 | AQ87: 0.03134094471 | AR87: -0.0004454316687 | AS87: -0.0004454316687 | AT87: 0.01473935341 | AW87: 0.56 | AX87: 0.56 | AY87: 0.56 | AZ87: 0.56 | BB87: 13.8 | BD87: 15.4 | BE87: 14.7 | BF87: 12.6 | BG87: 11.6 | BJ87: =SUM(BB77:BB96)/30 -> 10.49666667 | BK87: 0 | BL87: 12.62 | BM87: 11.88 | BN87: 9.903333333 | BO87: 8.793333333 | BP87: 0 | BT87: 2016-03-18 | BU87: 23.7 | BV87: 0 | BW87: 6.3
A88: 2015-06-18 | B88: 15 | C88: 15 | D88: 15 | E88: 15 | F88: 20 | G88: 6.1 | H88: 6.1 | I88: 6.1 | J88: 6.1 | K88: 0 | L88: 0 | M88: 0 | N88: 0 | O88: 0 | P88: 0 | Q88: 0 | R88: 0 | S88: 0 | T88: 0 | U88: 0 | V88: 0 | W88: 0 | X88: 0 | Y88: 0 | Z88: 0 | AA88: 0 | AB88: 0 | AC88: 619.2493735 | AD88: 718.2569859 | AE88: 109.3599194 | AF88: 109.3599194 | AK88: 0 | AL88: 0 | AM88: 1 | AN88: 0 | AO88: 0 | AP88: 0 | AQ88: 0 | AR88: 0.02129992556 | AS88: 0.02129992556 | AT88: 0.02539748159 | AW88: 0 | AX88: 0 | AY88: 0 | AZ88: 0 | BB88: 15 | BD88: 17.5 | BE88: 14.9 | BF88: 14 | BG88: 12 | BJ88: =SUM(BB78:BB97)/30 -> 10.45666667 | BK88: 0 | BL88: 12.52333333 | BM88: 11.77333333 | BN88: 9.856666667 | BO88: 8.686666667 | BP88: 0 | BT88: 2016-03-19 | BU88: 26.9 | BV88: 0 | BW88: 3.1
A89: 2015-06-19 | B89: 13.3 | C89: 13.3 | D89: 13.3 | E89: 13.3 | F89: 20.56666667 | G89: 5.896 | H89: 5.896 | I89: 5.896 | J89: 5.896 | K89: 0.7933333333 | L89: 0.7933333333 | M89: 0.7933333333 | N89: 0.7933333333 | O89: 0.1345545002 | P89: 0.1345545002 | Q89: 0.1345545002 | R89: 0.1345545002 | S89: 0.1345545002 | T89: 0.1345545002 | U89: 0.1345545002 | V89: 0.1345545002 | W89: 0 | X89: 0 | Y89: 0 | Z89: 0 | AA89: 0.1345545002 | AB89: 0 | AC89: 622.4786815 | AD89: 721.4862939 | AE89: 109.3599194 | AF89: 109.3599194 | AK89: 0 | AL89: 0 | AM89: 1 | AN89: 0.04485150008 | AO89: 0.04485150008 | AP89: 0.04485150008 | AQ89: 0.04485150008 | AR89: 0.02944096329 | AS89: 0.02944096329 | AT89: 0.03918872717 | AW89: 0.7933333333 | AX89: 0.7933333333 | AY89: 0.7933333333 | AZ89: 0.7933333333 | BB89: 13.3 | BD89: 16.9 | BE89: 15.7 | BF89: 12.3 | BG89: 10 | BJ89: =SUM(BB79:BB98)/30 -> 10.54333333 | BK89: 0 | BL89: 12.4 | BM89: 11.74333333 | BN89: 9.96 | BO89: 8.776666667 | BP89: 0 | BT89: 2016-03-20 | BU89: 26.7 | BV89: 0 | BW89: 3.3
A90: 2015-06-20 | B90: 12.3 | C90: 12.3 | D90: 12.3 | E90: 12.3 | F90: 20.9 | G90: 5.776 | H90: 5.776 | I90: 5.776 | J90: 5.776 | K90: 1.26 | L90: 1.26 | M90: 1.26 | N90: 1.26 | O90: 0.2181440443 | P90: 0.2181440443 | Q90: 0.2181440443 | R90: 0.2181440443 | S90: 0.2181440443 | T90: 0.2181440443 | U90: 0.2181440443 | V90: 0.2181440443 | W90: 0 | X90: 0 | Y90: 0 | Z90: 0 | AA90: 0.2181440443 | AB90: 0 | AC90: 627.7141385 | AD90: 726.721751 | AE90: 109.3599194 | AF90: 109.3599194 | AK90: 0 | AL90: 0 | AM90: 1 | AN90: 0.07271468144 | AO90: 0.07271468144 | AP90: 0.07271468144 | AQ90: 0.07271468144 | AR90: 0.03558131152 | AS90: 0.03558131152 | AT90: 0.05052913892 | AW90: 1.26 | AX90: 1.26 | AY90: 1.26 | AZ90: 1.26 | BB90: 12.3 | BD90: 14.4 | BE90: 13.6 | BF90: 11.5 | BG90: 9.7 | BJ90: =SUM(BB80:BB99)/30 -> 10.76 | BK90: 0 | BL90: 12.34666667 | BM90: 11.70666667 | BN90: 10.18666667 | BO90: 9.006666667 | BP90: 0 | BT90: 2016-03-21 | BU90: 24.7 | BV90: 0 | BW90: 5.3
A91: 2015-06-21 | B91: 13.7 | C91: 13.7 | D91: 13.7 | E91: 13.7 | F91: 20.43333333 | G91: 5.944 | H91: 5.944 | I91: 5.944 | J91: 5.944 | K91: 0.6066666667 | L91: 0.6066666667 | M91: 0.6066666667 | N91: 0.6066666667 | O91: 0.1020637057 | P91: 0.1020637057 | Q91: 0.1020637057 | R91: 0.1020637057 | S91: 0.1020637057 | T91: 0.1020637057 | U91: 0.1020637057 | V91: 0.1020637057 | W91: 0 | X91: 0 | Y91: 0 | Z91: 0 | AA91: 0.1020637057 | AB91: 0 | AC91: 630.1636675 | AD91: 729.1712799 | AE91: 109.3599194 | AF91: 109.3599194 | AK91: 14.97142857 | AL91: 1 | AM91: 1 | AN91: 0.03402123523 | AO91: 0.03402123523 | AP91: 0.03402123523 | AQ91: 0.03402123523 | AR91: 0.03868840989 | AS91: 0.03868840989 | AT91: 0.03900572758 | AW91: 0.6066666667 | AX91: 0.6066666667 | AY91: 0.6066666667 | AZ91: 0.6066666667 | BB91: 13.7 | BD91: 15 | BE91: 14.4 | BF91: 12.4 | BG91: 10.3 | BJ91: =SUM(BB81:BB100)/30 -> 10.94 | BK91: 0 | BL91: 12.41666667 | BM91: 11.75666667 | BN91: 10.38666667 | BO91: 9.193333333 | BP91: 0 | BT91: 2016-03-22 | BU91: 24.2 | BV91: 0 | BW91: 5.8
A92: 2015-06-22 | B92: 14.6 | C92: 14.6 | D92: 14.6 | E92: 14.6 | F92: 20.13333333 | G92: 6.052 | H92: 6.052 | I92: 6.052 | J92: 6.052 | K92: 0.1866666667 | L92: 0.1866666667 | M92: 0.1866666667 | N92: 0.1866666667 | O92: 0.03084379819 | P92: 0.03084379819 | Q92: 0.03084379819 | R92: 0.03084379819 | S92: 0.03084379819 | T92: 0.03084379819 | U92: 0.03084379819 | V92: 0.03084379819 | W92: 0 | X92: 0 | Y92: 0 | Z92: 0 | AA92: 0.03084379819 | AB92: 0 | AC92: 630.9039186 | AD92: 729.9115311 | AE92: 109.3599194 | AF92: 109.3599194 | AK92: 0 | AL92: 0 | AM92: 1 | AN92: 0.01028126606 | AO92: 0.01028126606 | AP92: 0.01028126606 | AQ92: 0.01028126606 | AR92: 0.03652811609 | AS92: 0.03652811609 | AT92: 0.03338735147 | AW92: 0.1866666667 | AX92: 0.1866666667 | AY92: 0.1866666667 | AZ92: 0.1866666667 | BB92: 14.6 | BD92: 17.6 | BE92: 14.8 | BF92: 13.9 | BG92: 11.4 | BJ92: =SUM(BB82:BB101)/30 -> 11.07333333 | BK92: 0 | BL92: 12.47666667 | BM92: 11.81 | BN92: 10.51666667 | BO92: 9.343333333 | BP92: 0 | BT92: 2016-03-23 | BU92: 24.6 | BV92: 0 | BW92: 5.4
A93: 2015-06-23 | B93: 12.9 | C93: 12.9 | D93: 12.9 | E93: 12.9 | F93: 20.7 | G93: 5.848 | H93: 5.848 | I93: 5.848 | J93: 5.848 | K93: 0.98 | L93: 0.98 | M93: 0.98 | N93: 0.98 | O93: 0.1675786594 | P93: 0.1675786594 | Q93: 0.1675786594 | R93: 0.1675786594 | S93: 0.1675786594 | T93: 0.1675786594 | U93: 0.1675786594 | V93: 0.1675786594 | W93: 0 | X93: 0 | Y93: 0 | Z93: 0 | AA93: 0.1675786594 | AB93: 0 | AC93: 634.9258064 | AD93: 733.9334189 | AE93: 109.3599194 | AF93: 109.3599194 | AK93: 0 | AL93: 0 | AM93: 1 | AN93: 0.05585955312 | AO93: 0.05585955312 | AP93: 0.05585955312 | AQ93: 0.05585955312 | AR93: 0.0198008415 | AS93: 0.0198008415 | AT93: 0.03974381749 | AW93: 0.98 | AX93: 0.98 | AY93: 0.98 | AZ93: 0.98 | BB93: 12.9 | BD93: 14.8 | BE93: 14.6 | BF93: 11.7 | BG93: 9.4 | BJ93: =SUM(BB83:BB102)/30 -> 11.12666667 | BK93: 0 | BL93: 12.45 | BM93: 11.77666667 | BN93: 10.58 | BO93: 9.4 | BP93: 0 | BT93: 2016-03-24 | BU93: 26.5 | BV93: 0 | BW93: 3.5
A94: 2015-06-24 | B94: 13 | C94: 13 | D94: 13 | E94: 13 | F94: 20.66666667 | G94: 5.86 | H94: 5.86 | I94: 5.86 | J94: 5.86 | K94: 0.9333333333 | L94: 0.9333333333 | M94: 0.9333333333 | N94: 0.9333333333 | O94: 0.1592718999 | P94: 0.1592718999 | Q94: 0.1592718999 | R94: 0.1592718999 | S94: 0.1592718999 | T94: 0.1592718999 | U94: 0.1592718999 | V94: 0.1592718999 | W94: 0 | X94: 0 | Y94: 0 | Z94: 0 | AA94: 0.1592718999 | AB94: 0 | AC94: 638.748332 | AD94: 737.7559445 | AE94: 109.3599194 | AF94: 109.3599194 | AK94: 0 | AL94: 0 | AM94: 0 | AN94: 0.0530906333 | AO94: 0.0530906333 | AP94: 0.0530906333 | AQ94: 0.0530906333 | AR94: -0.001554137182 | AS94: -0.001554137182 | AT94: 0.03127604327 | AW94: 0.9333333333 | AX94: 0.9333333333 | AY94: 0.9333333333 | AZ94: 0.9333333333 | BB94: 13 | BD94: 15.9 | BE94: 14.7 | BF94: 12.5 | BG94: 10.8 | BJ94: =SUM(BB84:BB103)/30 -> 11.23333333 | BK94: 0 | BL94: 12.48333333 | BM94: 11.76 | BN94: 10.71666667 | BO94: 9.536666667 | BP94: 0 | BT94: 2016-03-25 | BU94: 25.7 | BV94: 0 | BW94: 4.3
A95: 2015-06-25 | B95: 15.6 | C95: 15.6 | D95: 15.6 | E95: 15.6 | F95: 19.8 | G95: 6.172 | H95: 6.172 | I95: 6.172 | J95: 6.172 | K95: -0.28 | L95: -0.28 | M95: -0.28 | N95: -0.28 | O95: -0.0453661698 | P95: -0.0453661698 | Q95: -0.0453661698 | R95: -0.0453661698 | S95: 0 | T95: 0 | U95: 0 | V95: 0 | W95: 0.0453661698 | X95: 0.0453661698 | Y95: 0.0453661698 | Z95: 0.0453661698 | AA95: 0 | AB95: 0.0453661698 | AC95: 638.748332 | AD95: 737.7559445 | AE95: 110.4487075 | AF95: 110.4487075 | AK95: 0 | AL95: 0 | AM95: 0 | AN95: -0.0151220566 | AO95: -0.0151220566 | AP95: -0.0151220566 | AQ95: -0.0151220566 | AR95: -0.01608215426 | AS95: -0.01608215426 | AT95: -0.01142361513 | AW95: 0 | AX95: 0 | AY95: 0 | AZ95: 0 | BB95: 15.6 | BD95: 17.1 | BE95: 16 | BF95: 14.9 | BG95: 12.9 | BJ95: =SUM(BB85:BB104)/30 -> 11.41666667 | BK95: 0 | BL95: 12.61 | BM95: 11.89333333 | BN95: 10.90666667 | BO95: 9.75 | BP95: 0 | BT95: 2016-03-26 | BU95: 24.6 | BV95: 0 | BW95: 5.4
A96: 2015-06-26 | B96: 18 | C96: 18 | D96: 18 | E96: 18 | F96: 19 | G96: 6.46 | H96: 6.46 | I96: 6.46 | J96: 6.46 | K96: -1.4 | L96: -1.4 | M96: -1.4 | N96: -1.4 | O96: -0.2167182663 | P96: -0.2167182663 | Q96: -0.2167182663 | R96: -0.2167182663 | S96: 0 | T96: 0 | U96: 0 | V96: 0 | W96: 0.2167182663 | X96: 0.2167182663 | Y96: 0.2167182663 | Z96: 0.2167182663 | AA96: 0 | AB96: 0.2167182663 | AC96: 638.748332 | AD96: 737.7559445 | AE96: 115.6499458 | AF96: 115.6499458 | AK96: 0 | AL96: 0 | AM96: 0 | AN96: -0.07223942208 | AO96: -0.07223942208 | AP96: -0.07223942208 | AQ96: -0.07223942208 | AR96: -0.0285180736 | AS96: -0.0285180736 | AT96: -0.05471054933 | AW96: 0 | AX96: 0 | AY96: 0 | AZ96: 0 | BB96: 18 | BD96: 20.4 | BE96: 19.4 | BF96: 17 | BG96: 15.4 | BJ96: =SUM(BB86:BB105)/30 -> 11.72666667 | BK96: 0 | BL96: 12.80333333 | BM96: 12.15333333 | BN96: 11.23333333 | BO96: 10.08666667 | BP96: 0 | BT96: 2016-03-27 | BU96: 22 | BV96: 0 | BW96: 8
A97: 2015-06-27 | B97: 18.2 | C97: 18.2 | D97: 18.2 | E97: 18.2 | F97: 18.93333333 | G97: 6.484 | H97: 6.484 | I97: 6.484 | J97: 6.484 | K97: -1.493333333 | L97: -1.493333333 | M97: -1.493333333 | N97: -1.493333333 | O97: -0.2303105079 | P97: -0.2303105079 | Q97: -0.2303105079 | R97: -0.2303105079 | S97: 0 | T97: 0 | U97: 0 | V97: 0 | W97: 0.2303105079 | X97: 0.2303105079 | Y97: 0.2303105079 | Z97: 0.2303105079 | AA97: 0 | AB97: 0.2303105079 | AC97: 638.748332 | AD97: 737.7559445 | AE97: 121.177398 | AF97: 121.177398 | AK97: 0 | AL97: 0 | AM97: 0 | AN97: -0.07677016931 | AO97: -0.07677016931 | AP97: -0.07677016931 | AQ97: -0.07677016931 | AR97: -0.05487433056 | AS97: -0.05487433056 | AT97: -0.07222815857 | AW97: 0 | AX97: 0 | AY97: 0 | AZ97: 0 | BB97: 18.2 | BD97: 20.6 | BE97: 20 | BF97: 17 | BG97: 15.5 | BJ97: =SUM(BB87:BB106)/30 -> 12.04333333 | BK97: 0 | BL97: 13.07666667 | BM97: 12.47 | BN97: 11.55333333 | BO97: 10.40333333 | BP97: 0 | BT97: 2016-03-28 | BU97: 23.9 | BV97: 0 | BW97: 6.1
A98: 2015-06-28 | B98: 17.8 | C98: 17.8 | D98: 17.8 | E98: 17.8 | F98: 19.06666667 | G98: 6.436 | H98: 6.436 | I98: 6.436 | J98: 6.436 | K98: -1.306666667 | L98: -1.306666667 | M98: -1.306666667 | N98: -1.306666667 | O98: -0.203024653 | P98: -0.203024653 | Q98: -0.203024653 | R98: -0.203024653 | S98: 0 | T98: 0 | U98: 0 | V98: 0 | W98: 0.203024653 | X98: 0.203024653 | Y98: 0.203024653 | Z98: 0.203024653 | AA98: 0 | AB98: 0.203024653 | AC98: 638.748332 | AD98: 737.7559445 | AE98: 126.0499897 | AF98: 126.0499897 | AK98: 0 | AL98: 0 | AM98: 0 | AN98: -0.06767488433 | AO98: -0.06767488433 | AP98: -0.06767488433 | AQ98: -0.06767488433 | AR98: -0.08402430479 | AS98: -0.08402430479 | AT98: -0.07373840765 | AW98: 0 | AX98: 0 | AY98: 0 | AZ98: 0 | BB98: 17.8 | BD98: 19.7 | BE98: 19.2 | BF98: 17 | BG98: 15.3 | BJ98: =SUM(BB88:BB107)/30 -> 12.39666667 | BK98: 0 | BL98: 13.45 | BM98: 12.85333333 | BN98: 11.93666667 | BO98: 10.75666667 | BP98: 0 | BT98: 2016-03-29 | BU98: 22 | BV98: 0 | BW98: 8
A99: 2015-06-29 | B99: 18.2 | C99: 18.2 | D99: 18.2 | E99: 18.2 | F99: 18.93333333 | G99: 6.484 | H99: 6.484 | I99: 6.484 | J99: 6.484 | K99: -1.493333333 | L99: -1.493333333 | M99: -1.493333333 | N99: -1.493333333 | O99: -0.2303105079 | P99: -0.2303105079 | Q99: -0.2303105079 | R99: -0.2303105079 | S99: 0 | T99: 0 | U99: 0 | V99: 0 | W99: 0.2303105079 | X99: 0.2303105079 | Y99: 0.2303105079 | Z99: 0.2303105079 | AA99: 0 | AB99: 0.2303105079 | AC99: 638.748332 | AD99: 737.7559445 | AE99: 131.5774419 | AF99: 131.5774419 | AK99: 0 | AL99: 0 | AM99: 0 | AN99: -0.07677016931 | AO99: -0.07677016931 | AP99: -0.07677016931 | AQ99: -0.07677016931 | AR99: -0.1064992204 | AS99: -0.1064992204 | AT99: -0.09102643307 | AW99: 0 | AX99: 0 | AY99: 0 | AZ99: 0 | BB99: 18.2 | BD99: 18.5 | BE99: 17.5 | BF99: 17.7 | BG99: 16.5 | BJ99: =SUM(BB89:BB108)/30 -> 12.60333333 | BK99: 0 | BL99: 13.68666667 | BM99: 13.1 | BN99: 12.13666667 | BO99: 10.92 | BP99: 0 | BT99: 2016-03-30 | BU99: 20.5 | BV99: 0 | BW99: 9.5
A100: 2015-06-30 | B100: 20.6 | C100: 20.6 | D100: 20.6 | E100: 20.6 | F100: 18.13333333 | G100: 6.772 | H100: 6.772 | I100: 6.772 | J100: 6.772 | K100: -2.613333333 | L100: -2.613333333 | M100: -2.613333333 | N100: -2.613333333 | O100: -0.3859027368 | P100: -0.3859027368 | Q100: -0.3859027368 | R100: -0.3859027368 | S100: 0 | T100: 0 | U100: 0 | V100: 0 | W100: 0.3859027368 | X100: 0.3859027368 | Y100: 0.3859027368 | Z100: 0.3859027368 | AA100: 0 | AB100: 0.3859027368 | AC100: 638.748332 | AD100: 737.7559445 | AE100: 140.8391076 | AF100: 140.8391076 | AK100: 0 | AL100: 0 | AM100: 0 | AN100: -0.1286342456 | AO100: -0.1286342456 | AP100: -0.1286342456 | AQ100: -0.1286342456 | AR100: -0.1240344561 | AS100: -0.1240344561 | AT100: -0.1187878671 | AW100: 0 | AX100: 0 | AY100: 0 | AZ100: 0 | BB100: 20.6 | BD100: 20.8 | BE100: 19.3 | BF100: 20 | BG100: 18.4 | BJ100: =SUM(BB90:BB109)/30 -> 12.72666667 | BK100: 0 | BL100: 13.77 | BM100: 13.14666667 | BN100: 12.24666667 | BO100: 11.03666667 | BP100: =SUM(BH90:BH109)/30 -> 0 | BT100: 2016-03-31 | BU100: 16.7 | BV100: 0 | BW100: 13.3
A101: 2015-07-01 | B101: 21.7 | C101: 21.7 | D101: 21.7 | E101: 21.7 | F101: 17.76666667 | G101: 6.904 | H101: 6.904 | I101: 6.904 | J101: 6.904 | K101: -3.126666667 | L101: -3.126666667 | M101: -3.126666667 | N101: -3.126666667 | O101: -0.4528775589 | P101: -0.4528775589 | Q101: -0.4528775589 | R101: -0.4528775589 | S101: 0 | T101: 0 | U101: 0 | V101: 0 | W101: 0.4528775589 | X101: 0.4528775589 | Y101: 0.4528775589 | Z101: 0.4528775589 | AA101: 0 | AB101: 0.4528775589 | AC101: 638.748332 | AD101: 737.7559445 | AE101: 151.708169 | AF101: 151.708169 | AK101: 0 | AL101: 0 | AM101: 0 | AN101: -0.1509591863 | AO101: -0.1509591863 | AP101: -0.1509591863 | AQ101: -0.1509591863 | AR101: -0.1450200232 | AS101: -0.1450200232 | AT101: -0.1506799659 | AW101: 0 | AX101: 0 | AY101: 0 | AZ101: 0 | BB101: 21.7 | BD101: 22.6 | BE101: 21.9 | BF101: 21.1 | BG101: 19.3 | BJ101: =SUM(BB91:BB110)/30 -> 12.81 | BK101: 0 | BL101: 13.90666667 | BM101: 13.23333333 | BN101: 12.31666667 | BO101: 11.12666667 | BP101: 0 | BT101: 2016-04-01 | BU101: 20.4 | BV101: 0 | BW101: 9.6
A102: 2015-07-02 | B102: 22.8 | C102: 22.8 | D102: 22.8 | E102: 22.8 | F102: 17.4 | G102: 7.036 | H102: 7.036 | I102: 7.036 | J102: 7.036 | K102: -3.64 | L102: -3.64 | M102: -3.64 | N102: -3.64 | O102: -0.5173393974 | P102: -0.5173393974 | Q102: -0.5173393974 | R102: -0.5173393974 | S102: 0 | T102: 0 | U102: 0 | V102: 0 | W102: 0.5173393974 | X102: 0.5173393974 | Y102: 0.5173393974 | Z102: 0.5173393974 | AA102: 0 | AB102: 0.5173393974 | AC102: 638.748332 | AD102: 737.7559445 | AE102: 164.1243145 | AF102: 164.1243145 | AK102: 0 | AL102: 0 | AM102: 0 | AN102: -0.1724464658 | AO102: -0.1724464658 | AP102: -0.1724464658 | AQ102: -0.1724464658 | AR102: -0.1687870145 | AS102: -0.1687870145 | AT102: -0.1727972415 | AW102: 0 | AX102: 0 | AY102: 0 | AZ102: 0 | BB102: 22.8 | BD102: 23.9 | BE102: 22.8 | BF102: 22.6 | BG102: 21.4 | BJ102: =SUM(BB92:BB111)/30 -> 12.93666667 | BK102: 0 | BL102: 14.04 | BM102: 13.34333333 | BN102: 12.46666667 | BO102: 11.30333333 | BP102: 0 | BT102: 2016-04-02 | BU102: 22.8 | BV102: 0 | BW102: 7.2
A103: 2015-07-03 | B103: 24 | C103: 24 | D103: 24 | E103: 24 | F103: 17 | G103: 7.18 | H103: 7.18 | I103: 7.18 | J103: 7.18 | K103: -4.2 | L103: -4.2 | M103: -4.2 | N103: -4.2 | O103: -0.5849582173 | P103: -0.5849582173 | Q103: -0.5849582173 | R103: -0.5849582173 | S103: 0 | T103: 0 | U103: 0 | V103: 0 | W103: 0.5849582173 | X103: 0.5849582173 | Y103: 0.5849582173 | Z103: 0.5849582173 | AA103: 0 | AB103: 0.5849582173 | AC103: 638.748332 | AD103: 737.7559445 | AE103: 178.1633117 | AF103: 178.1633117 | AK103: 0 | AL103: 0 | AM103: 0 | AN103: -0.1949860724 | AO103: -0.1949860724 | AP103: -0.1949860724 | AQ103: -0.1949860724 | AR103: -0.1856750006 | AS103: -0.1856750006 | AT103: -0.1970338922 | AW103: 0 | AX103: 0 | AY103: 0 | AZ103: 0 | BB103: 24 | BD103: 24.5 | BE103: 23.9 | BF103: 24.1 | BG103: 23.2 | BJ103: =SUM(BB93:BB112)/30 -> 13.15666667 | BK103: 0 | BL103: 14.24 | BM103: 13.59 | BN103: 12.68 | BO103: 11.52 | BP103: 0 | BT103: 2016-04-03 | BU103: 20.7 | BV103: 0 | BW103: 9.3
A104: 2015-07-04 | B104: 25.6 | C104: 25.6 | D104: 25.6 | E104: 25.6 | F104: 16.46666667 | G104: 7.372 | H104: 7.372 | I104: 7.372 | J104: 7.372 | K104: -4.946666667 | L104: -4.946666667 | M104: -4.946666667 | N104: -4.946666667 | O104: -0.6710074154 | P104: -0.6710074154 | Q104: -0.6710074154 | R104: -0.6710074154 | S104: 0 | T104: 0 | U104: 0 | V104: 0 | W104: 0.6710074154 | X104: 0.6710074154 | Y104: 0.6710074154 | Z104: 0.6710074154 | AA104: 0 | AB104: 0.6710074154 | AC104: 638.748332 | AD104: 737.7559445 | AE104: 194.2674897 | AF104: 194.2674897 | AK104: 0 | AL104: 0 | AM104: 0 | AN104: -0.2236691385 | AO104: -0.2236691385 | AP104: -0.2236691385 | AQ104: -0.2236691385 | AR104: -0.1961986368 | AS104: -0.1961986368 | AT104: -0.2175663448 | AW104: 0 | AX104: 0 | AY104: 0 | AZ104: 0 | BB104: 25.6 | BD104: 25.4 | BE104: 25.1 | BF104: 25.7 | BG104: 24.7 | BJ104: =SUM(BB94:BB113)/30 -> 13.33 | BK104: 0 | BL104: 14.46666667 | BM104: 13.76 | BN104: 12.86 | BO104: 11.69666667 | BP104: 0 | BT104: 2016-04-04 | BU104: 16.7 | BV104: 0 | BW104: 13.3
A105: 2015-07-05 | B105: 26.2 | C105: 26.2 | D105: 26.2 | E105: 26.2 | F105: 16.26666667 | G105: 7.444 | H105: 7.444 | I105: 7.444 | J105: 7.444 | K105: -5.226666667 | L105: -5.226666667 | M105: -5.226666667 | N105: -5.226666667 | O105: -0.7021314705 | P105: -0.7021314705 | Q105: -0.7021314705 | R105: -0.7021314705 | S105: 0 | T105: 0 | U105: 0 | V105: 0 | W105: 0.7021314705 | X105: 0.7021314705 | Y105: 0.7021314705 | Z105: 0.7021314705 | AA105: 0 | AB105: 0.7021314705 | AC105: 638.748332 | AD105: 737.7559445 | AE105: 211.118645 | AF105: 211.118645 | AK105: 0 | AL105: 0 | AM105: 0 | AN105: -0.2340438235 | AO105: -0.2340438235 | AP105: -0.2340438235 | AQ105: -0.2340438235 | AR105: -0.1947642161 | AS105: -0.1947642161 | AT105: -0.2175663448 | AW105: 0 | AX105: 0 | AY105: 0 | AZ105: 0 | BB105: 26.2 | BD105: 24.9 | BE105: 25.4 | BF105: 25.6 | BG105: 23.7 | BJ105: =SUM(BB95:BB114)/30 -> 13.52333333 | BK105: 0 | BL105: 14.64 | BM105: 13.94333333 | BN105: 13.04666667 | BO105: 11.88333333 | BP105: 0 | BT105: 2016-04-05 | BU105: 14.2 | BV105: 0 | BW105: 15.8
A106: 2015-07-06 | B106: 24 | C106: 24 | D106: 24 | E106: 24 | F106: 17 | G106: 7.18 | H106: 7.18 | I106: 7.18 | J106: 7.18 | K106: -4.2 | L106: -4.2 | M106: -4.2 | N106: -4.2 | O106: -0.5849582173 | P106: -0.5849582173 | Q106: -0.5849582173 | R106: -0.5849582173 | S106: 0 | T106: 0 | U106: 0 | V106: 0 | W106: 0.5849582173 | X106: 0.5849582173 | Y106: 0.5849582173 | Z106: 0.5849582173 | AA106: 0 | AB106: 0.5849582173 | AC106: 638.748332 | AD106: 737.7559445 | AE106: 225.1576422 | AF106: 225.1576422 | AK106: 0 | AL106: 0 | AM106: 0 | AN106: -0.1949860724 | AO106: -0.1949860724 | AP106: -0.1949860724 | AQ106: -0.1949860724 | AR106: -0.1771391715 | AS106: -0.1771391715 | AT106: -0.2104431982 | AW106: 0 | AX106: 0 | AY106: 0 | AZ106: 0 | BB106: 24 | BD106: 26.4 | BE106: 26.2 | BF106: 23 | BG106: 20.6 | BJ106: =SUM(BB96:BB115)/30 -> 13.67333333 | BK106: 0 | BL106: 14.87 | BM106: 14.14333333 | BN106: 13.18666667 | BO106: 12.03666667 | BP106: 0 | BT106: 2016-04-06 | BU106: 13.2 | BV106: 0 | BW106: 16.8
A107: 2015-07-07 | B107: =BB107+A$7 -> 24.4 | C107: 24.4 | D107: 24.4 | E107: 24.4 | F107: =F$8+(H$7-F$8)*(M$6-B107)/30 -> 16.86666667 | G107: =IF((B107+35-$F107)*$H$5+$H$6>1,(B107+35-$F107)*$H$5+$H$6,1) -> 7.228 | H107: =IF((C107+35-$F107)*$H$5+$H$6>1,(C107+35-$F107)*$H$5+$H$6,1) -> 7.228 | I107: =IF((D107+35-$F107)*$H$5+$H$6>1,(D107+35-$F107)*$H$5+$H$6,1) -> 7.228 | J107: =IF((E107+35-$F107)*$H$5+$H$6>1,(E107+35-$F107)*$H$5+$H$6,1) -> 7.228 | K107: =$M$5*($M$6-B107)/30-$O$5 -> -4.386666667 | L107: =$M$5*($M$6-C107)/30-$O$5 -> -4.386666667 | M107: =$M$5*($M$6-D107)/30-$O$5 -> -4.386666667 | N107: =$M$5*($M$6-E107)/30-$O$5 -> -4.386666667 | O107: =IF(K107/G107>$M$7,$M$7+K107-$M$7*G107,K107/G107) -> -0.6068990961 | P107: =IF(L107/H107>$M$7,$M$7+L107-$M$7*H107,L107/H107) -> -0.6068990961 | Q107: =IF(M107/I107>$M$7,$M$7+M107-$M$7*I107,M107/I107) -> -0.6068990961 | R107: =IF(N107/J107>$M$7,$M$7+N107-$M$7*J107,N107/J107) -> -0.6068990961 | S107: =IF(O107>0,O107,) -> 0 | T107: =IF(P107>0,P107,) -> 0 | U107: =IF(Q107>0,Q107,) -> 0 | V107: =IF(R107>0,R107,) -> 0 | W107: =IF(O107<0,-O107,0) -> 0.6068990961 | X107: =IF(P107<0,-P107,0) -> 0.6068990961 | Y107: =IF(Q107<0,-Q107,0) -> 0.6068990961 | Z107: =IF(R107<0,-R107,0) -> 0.6068990961 | AA107: =IF(SUM(O107:R107)/4>0,SUM(O107:R107)/4,) -> 0 | AB107: =IF(SUM(O107:R107)/4<0,-SUM(O107:R107)/4,) -> 0.6068990961 | AC107: =6*SUM(S107:V107)+AC106 -> 638.748332 | AD107: =AD106+AA107*24 -> 737.7559445 | AE107: =6*SUM(W107:Z107)+AE106 -> 239.7232205 | AF107: =AF106+AB107*24 -> 239.7232205 | AK107: =IF(SUM(B101:B114)/14<$C$7,SUM(B101:B114)/14,0) -> 0 | AL107: =IF(SUM(B101:B114)/14<$C$7,1,0) -> 0 | AM107: =IF(SUM(AN104:AQ110)>0,1,0) -> 0 | AN107: =K107/G107/$M$7 -> -0.2022996987 | AO107: =L107/H107/$M$7 -> -0.2022996987 | AP107: =M107/I107/$M$7 -> -0.2022996987 | AQ107: =N107/J107/$M$7 -> -0.2022996987 | AR107: =SUM(AO104:AO110)/7 -> -0.1485525429 | AS107: =SUM(AQ104:AQ110)/7 -> -0.1485525429 | AT107: =SUM(AN106:AQ108)/12 -> -0.1794013375 | AW107: =IF(K107>0,K107,0) -> 0 | AX107: =IF(L107>0,L107,0) -> 0 | AY107: =IF(M107>0,M107,0) -> 0 | AZ107: =IF(N107>0,N107,0) -> 0 | BB107: 24.4 | BD107: 26.6 | BE107: 26.2 | BF107: 24.1 | BG107: 22.2 | BJ107: =SUM(BB97:BB116)/30 -> 13.79666667 | BK107: 0 | BL107: 15.00333333 | BM107: 14.28333333 | BN107: 13.34 | BO107: 12.21 | BP107: 0 | BT107: 2016-04-07 | BU107: 14.1 | BV107: 0 | BW107: 15.9
A108: 2015-07-08 | B108: 21.2 | C108: 21.2 | D108: 21.2 | E108: 21.2 | F108: 17.93333333 | G108: 6.844 | H108: 6.844 | I108: 6.844 | J108: 6.844 | K108: -2.893333333 | L108: -2.893333333 | M108: -2.893333333 | N108: -2.893333333 | O108: -0.4227547243 | P108: -0.4227547243 | Q108: -0.4227547243 | R108: -0.4227547243 | S108: 0 | T108: 0 | U108: 0 | V108: 0 | W108: 0.4227547243 | X108: 0.4227547243 | Y108: 0.4227547243 | Z108: 0.4227547243 | AA108: 0 | AB108: 0.4227547243 | AC108: 638.748332 | AD108: 737.7559445 | AE108: 249.8693339 | AF108: 249.8693339 | AK108: 0 | AL108: 0 | AM108: 0 | AN108: -0.1409182414 | AO108: -0.1409182414 | AP108: -0.1409182414 | AQ108: -0.1409182414 | AR108: -0.1252803643 | AS108: -0.1252803643 | AT108: -0.1307630311 | AW108: 0 | AX108: 0 | AY108: 0 | AZ108: 0 | BB108: 21.2 | BD108: 24.6 | BE108: 22.3 | BF108: 20 | BG108: 16.9 | BJ108: =SUM(BB98:BB117)/30 -> 14.00333333 | BK108: 0 | BL108: 15.18666667 | BM108: 14.43666667 | BN108: 13.55666667 | BO108: 12.47666667 | BP108: 0 | BT108: 2016-04-08 | BU108: 14.9 | BV108: 0 | BW108: 15.1
A109: 2015-07-09 | B109: 17 | C109: 17 | D109: 17 | E109: 17 | F109: 19.33333333 | G109: 6.34 | H109: 6.34 | I109: 6.34 | J109: 6.34 | K109: -0.9333333333 | L109: -0.9333333333 | M109: -0.9333333333 | N109: -0.9333333333 | O109: -0.1472134595 | P109: -0.1472134595 | Q109: -0.1472134595 | R109: -0.1472134595 | S109: 0 | T109: 0 | U109: 0 | V109: 0 | W109: 0.1472134595 | X109: 0.1472134595 | Y109: 0.1472134595 | Z109: 0.1472134595 | AA109: 0 | AB109: 0.1472134595 | AC109: 638.748332 | AD109: 737.7559445 | AE109: 253.4024569 | AF109: 253.4024569 | AK109: 0 | AL109: 0 | AM109: 0 | AN109: -0.04907115317 | AO109: -0.04907115317 | AP109: -0.04907115317 | AQ109: -0.04907115317 | AR109: -0.1119767098 | AS109: -0.1119767098 | AT109: -0.06162302231 | AW109: 0 | AX109: 0 | AY109: 0 | AZ109: 0 | BB109: 17 | BD109: 19.4 | BE109: 17.1 | BF109: 15.6 | BG109: 13.5 | BJ109: =SUM(BB99:BB118)/30 -> 14.29333333 | BK109: 0 | BL109: 15.41666667 | BM109: 14.60666667 | BN109: 13.85666667 | BO109: 12.71333333 | BP109: 0 | BT109: 2016-04-09 | BU109: 16 | BV109: 0 | BW109: 14
A110: 2015-07-10 | B110: 14.8 | C110: 14.8 | D110: 14.8 | E110: 14.8 | F110: 20.06666667 | G110: 6.076 | H110: 6.076 | I110: 6.076 | J110: 6.076 | K110: 0.09333333333 | L110: 0.09333333333 | M110: 0.09333333333 | N110: 0.09333333333 | O110: 0.0153609831 | P110: 0.0153609831 | Q110: 0.0153609831 | R110: 0.0153609831 | S110: 0.0153609831 | T110: 0.0153609831 | U110: 0.0153609831 | V110: 0.0153609831 | W110: 0 | X110: 0 | Y110: 0 | Z110: 0 | AA110: 0.0153609831 | AB110: 0 | AC110: 639.1169956 | AD110: 738.1246081 | AE110: 253.4024569 | AF110: 253.4024569 | AK110: 0 | AL110: 0 | AM110: 0 | AN110: 0.005120327701 | AO110: 0.005120327701 | AP110: 0.005120327701 | AQ110: 0.005120327701 | AR110: -0.09476569885 | AS110: -0.09476569885 | AT110: -0.03490490479 | AW110: 0.09333333333 | AX110: 0.09333333333 | AY110: 0.09333333333 | AZ110: 0.09333333333 | BB110: 14.8 | BD110: 18.5 | BE110: 16.2 | BF110: 13.6 | BG110: 12.4 | BJ110: =SUM(BB100:BB119)/30 -> 14.54 | BK110: 0 | BL110: 15.69666667 | BM110: 14.87333333 | BN110: 14.07333333 | BO110: 12.86 | BP110: 0 | BT110: 2016-04-10 | BU110: 18.6 | BV110: 0 | BW110: 11.4
A111: 2015-07-11 | B111: 17.5 | C111: 17.5 | D111: 17.5 | E111: 17.5 | F111: 19.16666667 | G111: 6.4 | H111: 6.4 | I111: 6.4 | J111: 6.4 | K111: -1.166666667 | L111: -1.166666667 | M111: -1.166666667 | N111: -1.166666667 | O111: -0.1822916667 | P111: -0.1822916667 | Q111: -0.1822916667 | R111: -0.1822916667 | S111: 0 | T111: 0 | U111: 0 | V111: 0 | W111: 0.1822916667 | X111: 0.1822916667 | Y111: 0.1822916667 | Z111: 0.1822916667 | AA111: 0 | AB111: 0.1822916667 | AC111: 639.1169956 | AD111: 738.1246081 | AE111: 257.7774569 | AF111: 257.7774569 | AK111: 0 | AL111: 0 | AM111: 0 | AN111: -0.06076388889 | AO111: -0.06076388889 | AP111: -0.06076388889 | AQ111: -0.06076388889 | AR111: -0.07874622457 | AS111: -0.07874622457 | AT111: -0.06552060088 | AW111: 0 | AX111: 0 | AY111: 0 | AZ111: 0 | BB111: 17.5 | BD111: 19 | BE111: 17.7 | BF111: 16.9 | BG111: 15.6 | BJ111: =SUM(BB101:BB120)/30 -> 14.6 | BK111: 0 | BL111: 15.86333333 | BM111: 15.08333333 | BN111: 14.12666667 | BO111: 12.85 | BP111: 0 | BT111: 2016-04-11 | BU111: 17.7 | BV111: 0 | BW111: 12.3
A112: 2015-07-12 | B112: 21.2 | C112: 21.2 | D112: 21.2 | E112: 21.2 | F112: 17.93333333 | G112: 6.844 | H112: 6.844 | I112: 6.844 | J112: 6.844 | K112: -2.893333333 | L112: -2.893333333 | M112: -2.893333333 | N112: -2.893333333 | O112: -0.4227547243 | P112: -0.4227547243 | Q112: -0.4227547243 | R112: -0.4227547243 | S112: 0 | T112: 0 | U112: 0 | V112: 0 | W112: 0.4227547243 | X112: 0.4227547243 | Y112: 0.4227547243 | Z112: 0.4227547243 | AA112: 0 | AB112: 0.4227547243 | AC112: 639.1169956 | AD112: 738.1246081 | AE112: 267.9235703 | AF112: 267.9235703 | AK112: 0 | AL112: 0 | AM112: 0 | AN112: -0.1409182414 | AO112: -0.1409182414 | AP112: -0.1409182414 | AQ112: -0.1409182414 | AR112: -0.075500228 | AS112: -0.075500228 | AT112: -0.09206370878 | AW112: 0 | AX112: 0 | AY112: 0 | AZ112: 0 | BB112: 21.2 | BD112: 23.6 | BE112: 22.2 | BF112: 20.3 | BG112: 17.9 | BJ112: =SUM(BB102:BB121)/30 -> 14.73 | BK112: 0 | BL112: 15.98333333 | BM112: 15.21333333 | BN112: 14.26 | BO112: 12.94666667 | BP112: 0 | BT112: 2016-04-12 | BU112: 16.9 | BV112: 0 | BW112: 13.1
A113: 2015-07-13 | B113: 18.1 | C113: 18.1 | D113: 18.1 | E113: 18.1 | F113: 18.96666667 | G113: 6.472 | H113: 6.472 | I113: 6.472 | J113: 6.472 | K113: -1.446666667 | L113: -1.446666667 | M113: -1.446666667 | N113: -1.446666667 | O113: -0.2235269881 | P113: -0.2235269881 | Q113: -0.2235269881 | R113: -0.2235269881 | S113: 0 | T113: 0 | U113: 0 | V113: 0 | W113: 0.2235269881 | X113: 0.2235269881 | Y113: 0.2235269881 | Z113: 0.2235269881 | AA113: 0 | AB113: 0.2235269881 | AC113: 639.1169956 | AD113: 738.1246081 | AE113: 273.288218 | AF113: 273.288218 | AK113: 0 | AL113: 0 | AM113: 0 | AN113: -0.07450899602 | AO113: -0.07450899602 | AP113: -0.07450899602 | AQ113: -0.07450899602 | AR113: -0.0900556613 | AS113: -0.0900556613 | AT113: -0.1018635387 | AW113: 0 | AX113: 0 | AY113: 0 | AZ113: 0 | BB113: 18.1 | BD113: 21.6 | BE113: 19.7 | BF113: 17.1 | BG113: 14.7 | BJ113: =SUM(BB103:BB122)/30 -> 14.85333333 | BK113: 0 | BL113: 16.08666667 | BM113: 15.36 | BN113: 14.37333333 | BO113: 13.01 | BP113: 0 | BT113: 2016-04-13 | BU113: 17.3 | BV113: 0 | BW113: 12.7
A114: 2015-07-14 | B114: 18.8 | C114: 18.8 | D114: 18.8 | E114: 18.8 | F114: 18.73333333 | G114: 6.556 | H114: 6.556 | I114: 6.556 | J114: 6.556 | K114: -1.773333333 | L114: -1.773333333 | M114: -1.773333333 | N114: -1.773333333 | O114: -0.2704901363 | P114: -0.2704901363 | Q114: -0.2704901363 | R114: -0.2704901363 | S114: 0 | T114: 0 | U114: 0 | V114: 0 | W114: 0.2704901363 | X114: 0.2704901363 | Y114: 0.2704901363 | Z114: 0.2704901363 | AA114: 0 | AB114: 0.2704901363 | AC114: 639.1169956 | AD114: 738.1246081 | AE114: 279.7799813 | AF114: 279.7799813 | AK114: 0 | AL114: 0 | AM114: 0 | AN114: -0.09016337875 | AO114: -0.09016337875 | AP114: -0.09016337875 | AQ114: -0.09016337875 | AR114: -0.1196870936 | AS114: -0.1196870936 | AT114: -0.09428954672 | AW114: 0 | AX114: 0 | AY114: 0 | AZ114: 0 | BB114: 18.8 | BD114: 21.1 | BE114: 20.2 | BF114: 18.1 | BG114: 16.4 | BJ114: =SUM(BB104:BB123)/30 -> 14.78666667 | BK114: 0 | BL114: 16.18666667 | BM114: 15.42333333 | BN114: 14.27 | BO114: 12.88 | BP114: 0 | BT114: 2016-04-14 | BU114: 17.4 | BV114: 0 | BW114: 12.6
A115: 2015-07-15 | B115: 20.1 | C115: =$B115+C$9 -> 20.1 | D115: 20.1 | E115: 20.1 | F115: 18.3 | G115: 6.712 | H115: 6.712 | I115: 6.712 | J115: 6.712 | K115: -2.38 | L115: -2.38 | M115: -2.38 | N115: -2.38 | O115: -0.3545887962 | P115: -0.3545887962 | Q115: -0.3545887962 | R115: -0.3545887962 | S115: 0 | T115: 0 | U115: 0 | V115: 0 | W115: 0.3545887962 | X115: 0.3545887962 | Y115: 0.3545887962 | Z115: 0.3545887962 | AA115: 0 | AB115: 0.3545887962 | AC115: 639.1169956 | AD115: 738.1246081 | AE115: 288.2901124 | AF115: 288.2901124 | AK115: 0 | AL115: 0 | AM115: 0 | AN115: -0.1181962654 | AO115: -0.1181962654 | AP115: -0.1181962654 | AQ115: -0.1181962654 | AR115: -0.1451717193 | AS115: -0.1451717193 | AT115: -0.1197729435 | AW115: 0 | AX115: 0 | AY115: 0 | AZ115: 0 | BB115: 20.1 | BD115: 24 | BE115: 22 | BF115: 19.1 | BG115: 17.5 | BJ115: =SUM(BB105:BB124)/30 -> 14.70666667 | BK115: 0 | BL115: 16.20333333 | BM115: 15.43333333 | BN115: 14.16666667 | BO115: 12.70333333 | BP115: 0 | BT115: 2016-04-15 | BU115: 17.1 | BV115: 0 | BW115: 12.9
A116: 2015-07-16 | B116: 21.7 | C116: 21.7 | D116: 21.7 | E116: 21.7 | F116: 17.76666667 | G116: 6.904 | H116: 6.904 | I116: 6.904 | J116: 6.904 | K116: -3.126666667 | L116: -3.126666667 | M116: -3.126666667 | N116: -3.126666667 | O116: -0.4528775589 | P116: -0.4528775589 | Q116: -0.4528775589 | R116: -0.4528775589 | S116: 0 | T116: 0 | U116: 0 | V116: 0 | W116: 0.4528775589 | X116: 0.4528775589 | Y116: 0.4528775589 | Z116: 0.4528775589 | AA116: 0 | AB116: 0.4528775589 | AC116: 639.1169956 | AD116: 738.1246081 | AE116: 299.1591738 | AF116: 299.1591738 | AK116: 0 | AL116: 0 | AM116: 0 | AN116: -0.1509591863 | AO116: -0.1509591863 | AP116: -0.1509591863 | AQ116: -0.1509591863 | AR116: -0.156993276 | AS116: -0.156993276 | AT116: -0.1571517168 | AW116: 0 | AX116: 0 | AY116: 0 | AZ116: 0 | BB116: 21.7 | BD116: 24.4 | BE116: 23.6 | BF116: 21.6 | BG116: 20.6 | BJ116: =SUM(BB106:BB125)/30 -> 14.57333333 | BK116: 0 | BL116: 16.22666667 | BM116: 15.41 | BN116: 14.00666667 | BO116: 12.54 | BP116: 0 | BT116: 2016-04-16 | BU116: 15.8 | BV116: 0 | BW116: 14.2
A117: 2015-07-17 | B117: 24.4 | C117: 24.4 | D117: 24.4 | E117: 24.4 | F117: 16.86666667 | G117: 7.228 | H117: 7.228 | I117: 7.228 | J117: 7.228 | K117: -4.386666667 | L117: -4.386666667 | M117: -4.386666667 | N117: -4.386666667 | O117: -0.6068990961 | P117: -0.6068990961 | Q117: -0.6068990961 | R117: -0.6068990961 | S117: 0 | T117: 0 | U117: 0 | V117: 0 | W117: 0.6068990961 | X117: 0.6068990961 | Y117: 0.6068990961 | Z117: 0.6068990961 | AA117: 0 | AB117: 0.6068990961 | AC117: 639.1169956 | AD117: 738.1246081 | AE117: 313.7247521 | AF117: 313.7247521 | AK117: 0 | AL117: 0 | AM117: 0 | AN117: -0.2022996987 | AO117: -0.2022996987 | AP117: -0.2022996987 | AQ117: -0.2022996987 | AR117: -0.1698815385 | AS117: -0.1698815385 | AT117: -0.1974717179 | AW117: 0 | AX117: 0 | AY117: 0 | AZ117: 0 | BB117: 24.4 | BD117: 26.1 | BE117: 24.6 | BF117: 23.5 | BG117: 23.5 | BJ117: =SUM(BB107:BB126)/30 -> 14.36666667 | BK117: 0 | BL117: 16.01333333 | BM117: 15.18666667 | BN117: 13.80333333 | BO117: 12.32 | BP117: 0 | BT117: 2016-04-17 | BU117: 14.4 | BV117: 0 | BW117: 15.6
A118: 2015-07-18 | B118: 26.5 | C118: 26.5 | D118: 26.5 | E118: 26.5 | F118: 16.16666667 | G118: 7.48 | H118: 7.48 | I118: 7.48 | J118: 7.48 | K118: -5.366666667 | L118: -5.366666667 | M118: -5.366666667 | N118: -5.366666667 | O118: -0.7174688057 | P118: -0.7174688057 | Q118: -0.7174688057 | R118: -0.7174688057 | S118: 0 | T118: 0 | U118: 0 | V118: 0 | W118: 0.7174688057 | X118: 0.7174688057 | Y118: 0.7174688057 | Z118: 0.7174688057 | AA118: 0 | AB118: 0.7174688057 | AC118: 639.1169956 | AD118: 738.1246081 | AE118: 330.9440035 | AF118: 330.9440035 | AK118: 0 | AL118: 0 | AM118: 0 | AN118: -0.2391562686 | AO118: -0.2391562686 | AP118: -0.2391562686 | AQ118: -0.2391562686 | AR118: -0.1889537899 | AS118: -0.1889537899 | AT118: -0.2217083686 | AW118: 0 | AX118: 0 | AY118: 0 | AZ118: 0 | BB118: 26.5 | BD118: 26.6 | BE118: 24.3 | BF118: 26 | BG118: 22.4 | BJ118: =SUM(BB108:BB127)/30 -> 14.14666667 | BK118: 0 | BL118: 15.74333333 | BM118: 14.87 | BN118: 13.55666667 | BO118: 12.06666667 | BP118: 0 | BT118: 2016-04-18 | BU118: 18.2 | BV118: 0 | BW118: 11.8
A119: 2015-07-19 | B119: 25.6 | C119: 25.6 | D119: 25.6 | E119: 25.6 | F119: 16.46666667 | G119: 7.372 | H119: 7.372 | I119: 7.372 | J119: 7.372 | K119: -4.946666667 | L119: -4.946666667 | M119: -4.946666667 | N119: -4.946666667 | O119: -0.6710074154 | P119: -0.6710074154 | Q119: -0.6710074154 | R119: -0.6710074154 | S119: 0 | T119: 0 | U119: 0 | V119: 0 | W119: 0.6710074154 | X119: 0.6710074154 | Y119: 0.6710074154 | Z119: 0.6710074154 | AA119: 0 | AB119: 0.6710074154 | AC119: 639.1169956 | AD119: 738.1246081 | AE119: 347.0481814 | AF119: 347.0481814 | AK119: 0 | AL119: 0 | AM119: 0 | AN119: -0.2236691385 | AO119: -0.2236691385 | AP119: -0.2236691385 | AQ119: -0.2236691385 | AR119: -0.2062337903 | AS119: -0.2062337903 | AT119: -0.2091840801 | AW119: 0 | AX119: 0 | AY119: 0 | AZ119: 0 | BB119: 25.6 | BD119: 26.9 | BE119: 25.5 | BF119: 24.2 | BG119: 20.9 | BJ119: =SUM(BB109:BB128)/30 -> 14.09 | BK119: 0 | BL119: 15.58333333 | BM119: 14.76666667 | BN119: 13.48333333 | BO119: 12.02 | BP119: 0 | BT119: 2016-04-19 | BU119: 18.8 | BV119: 0 | BW119: 11.2
A120: 2015-07-20 | B120: 22.4 | C120: 22.4 | D120: 22.4 | E120: 22.4 | F120: 17.53333333 | G120: 6.988 | H120: 6.988 | I120: 6.988 | J120: 6.988 | K120: -3.453333333 | L120: -3.453333333 | M120: -3.453333333 | N120: -3.453333333 | O120: -0.4941804999 | P120: -0.4941804999 | Q120: -0.4941804999 | R120: -0.4941804999 | S120: 0 | T120: 0 | U120: 0 | V120: 0 | W120: 0.4941804999 | X120: 0.4941804999 | Y120: 0.4941804999 | Z120: 0.4941804999 | AA120: 0 | AB120: 0.4941804999 | AC120: 639.1169956 | AD120: 738.1246081 | AE120: 358.9085134 | AF120: 358.9085134 | AK120: 0 | AL120: 0 | AM120: 0 | AN120: -0.1647268333 | AO120: -0.1647268333 | AP120: -0.1647268333 | AQ120: -0.1647268333 | AR120: -0.2070825375 | AS120: -0.2070825375 | AT120: -0.2040217034 | AW120: 0 | AX120: 0 | AY120: 0 | AZ120: 0 | BB120: 22.4 | BD120: 25.8 | BE120: 25.6 | BF120: 21.6 | BG120: 18.1 | BJ120: =SUM(BB110:BB129)/30 -> 14.08 | BK120: 0 | BL120: 15.51666667 | BM120: 14.81 | BN120: 13.47666667 | BO120: 12 | BP120: 0 | BT120: 2016-04-20 | BU120: 19.9 | BV120: 0 | BW120: 10.1
A121: 2015-07-21 | B121: 25.6 | C121: 25.6 | D121: 25.6 | E121: 25.6 | F121: 16.46666667 | G121: 7.372 | H121: 7.372 | I121: 7.372 | J121: 7.372 | K121: -4.946666667 | L121: -4.946666667 | M121: -4.946666667 | N121: -4.946666667 | O121: -0.6710074154 | P121: -0.6710074154 | Q121: -0.6710074154 | R121: -0.6710074154 | S121: 0 | T121: 0 | U121: 0 | V121: 0 | W121: 0.6710074154 | X121: 0.6710074154 | Y121: 0.6710074154 | Z121: 0.6710074154 | AA121: 0 | AB121: 0.6710074154 | AC121: 639.1169956 | AD121: 738.1246081 | AE121: 375.0126914 | AF121: 375.0126914 | AK121: 0 | AL121: 0 | AM121: 0 | AN121: -0.2236691385 | AO121: -0.2236691385 | AP121: -0.2236691385 | AQ121: -0.2236691385 | AR121: -0.2039056497 | AS121: -0.2039056497 | AT121: -0.2091840801 | AW121: 0 | AX121: 0 | AY121: 0 | AZ121: 0 | BB121: 25.6 | BD121: 26.2 | BE121: 25.8 | BF121: 25.1 | BG121: 22.2 | BJ121: =SUM(BB111:BB130)/30 -> 14.12666667 | BK121: 0 | BL121: 15.54 | BM121: 14.88666667 | BN121: 13.53 | BO121: 12.03333333 | BP121: 0 | BT121: 2016-04-21 | BU121: 20.6 | BV121: 0 | BW121: 9.4
A122: 2015-07-22 | B122: 26.5 | C122: 26.5 | D122: 26.5 | E122: 26.5 | F122: 16.16666667 | G122: 7.48 | H122: 7.48 | I122: 7.48 | J122: 7.48 | K122: -5.366666667 | L122: -5.366666667 | M122: -5.366666667 | N122: -5.366666667 | O122: -0.7174688057 | P122: -0.7174688057 | Q122: -0.7174688057 | R122: -0.7174688057 | S122: 0 | T122: 0 | U122: 0 | V122: 0 | W122: 0.7174688057 | X122: 0.7174688057 | Y122: 0.7174688057 | Z122: 0.7174688057 | AA122: 0 | AB122: 0.7174688057 | AC122: 639.1169956 | AD122: 738.1246081 | AE122: 392.2319428 | AF122: 392.2319428 | AK122: 0 | AL122: 0 | AM122: 0 | AN122: -0.2391562686 | AO122: -0.2391562686 | AP122: -0.2391562686 | AQ122: -0.2391562686 | AR122: -0.1927157701 | AS122: -0.1927157701 | AT122: -0.2065752744 | AW122: 0 | AX122: 0 | AY122: 0 | AZ122: 0 | BB122: 26.5 | BD122: 27 | BE122: 27.2 | BF122: 26 | BG122: 23.3 | BJ122: =SUM(BB112:BB131)/30 -> 14.1 | BK122: 0 | BL122: 15.59666667 | BM122: 14.92 | BN122: 13.48 | BO122: 11.94333333 | BP122: 0 | BT122: 2016-04-22 | BU122: 17.7 | BV122: 0 | BW122: 12.3
A123: 2015-07-23 | B123: 22 | C123: 22 | D123: 22 | E123: 22 | F123: 17.66666667 | G123: 6.94 | H123: 6.94 | I123: 6.94 | J123: 6.94 | K123: -3.266666667 | L123: -3.266666667 | M123: -3.266666667 | N123: -3.266666667 | O123: -0.4707012488 | P123: -0.4707012488 | Q123: -0.4707012488 | R123: -0.4707012488 | S123: 0 | T123: 0 | U123: 0 | V123: 0 | W123: 0.4707012488 | X123: 0.4707012488 | Y123: 0.4707012488 | Z123: 0.4707012488 | AA123: 0 | AB123: 0.4707012488 | AC123: 639.1169956 | AD123: 738.1246081 | AE123: 403.5287727 | AF123: 403.5287727 | AK123: 0 | AL123: 0 | AM123: 0 | AN123: -0.1569004163 | AO123: -0.1569004163 | AP123: -0.1569004163 | AQ123: -0.1569004163 | AR123: -0.1704308766 | AS123: -0.1704308766 | AT123: -0.1920393897 | AW123: 0 | AX123: 0 | AY123: 0 | AZ123: 0 | BB123: 22 | BD123: 27.5 | BE123: 25.8 | BF123: 21 | BG123: 19.3 | BJ123: =SUM(BB113:BB132)/30 -> 14.04333333 | BK123: 0 | BL123: 15.49666667 | BM123: 14.88 | BN123: 13.43333333 | BO123: 11.87666667 | BP123: 0 | BT123: 2016-04-23 | BU123: 18.1 | BV123: 0 | BW123: 11.9
A124: 2015-07-24 | B124: 23.2 | C124: 23.2 | D124: 23.2 | E124: 23.2 | F124: 17.26666667 | G124: 7.084 | H124: 7.084 | I124: 7.084 | J124: 7.084 | K124: -3.826666667 | L124: -3.826666667 | M124: -3.826666667 | N124: -3.826666667 | O124: -0.5401844532 | P124: -0.5401844532 | Q124: -0.5401844532 | R124: -0.5401844532 | S124: 0 | T124: 0 | U124: 0 | V124: 0 | W124: 0.5401844532 | X124: 0.5401844532 | Y124: 0.5401844532 | Z124: 0.5401844532 | AA124: 0 | AB124: 0.5401844532 | AC124: 639.1169956 | AD124: 738.1246081 | AE124: 416.4931996 | AF124: 416.4931996 | AK124: 0 | AL124: 0 | AM124: 0 | AN124: -0.1800614844 | AO124: -0.1800614844 | AP124: -0.1800614844 | AQ124: -0.1800614844 | AR124: -0.1565663125 | AS124: -0.1565663125 | AT124: -0.1659296705 | AW124: 0 | AX124: 0 | AY124: 0 | AZ124: 0 | BB124: 23.2 | BD124: 25.9 | BE124: 25.4 | BF124: 22.6 | BG124: 19.4 | BJ124: =SUM(BB114:BB133)/30 -> 14.14333333 | BK124: 0 | BL124: 15.44 | BM124: 14.90666667 | BN124: 13.56 | BO124: 12.01666667 | BP124: 0 | BT124: 2016-04-24 | BU124: 22.9 | BV124: 0 | BW124: 7.1
A125: 2015-07-25 | B125: 22.2 | C125: 22.2 | D125: 22.2 | E125: 22.2 | F125: 17.6 | G125: 6.964 | H125: 6.964 | I125: 6.964 | J125: 6.964 | K125: -3.36 | L125: -3.36 | M125: -3.36 | N125: -3.36 | O125: -0.4824813326 | P125: -0.4824813326 | Q125: -0.4824813326 | R125: -0.4824813326 | S125: 0 | T125: 0 | U125: 0 | V125: 0 | W125: 0.4824813326 | X125: 0.4824813326 | Y125: 0.4824813326 | Z125: 0.4824813326 | AA125: 0 | AB125: 0.4824813326 | AC125: 639.1169956 | AD125: 738.1246081 | AE125: 428.0727516 | AF125: 428.0727516 | AK125: 0 | AL125: 0 | AM125: 0 | AN125: -0.1608271109 | AO125: -0.1608271109 | AP125: -0.1608271109 | AQ125: -0.1608271109 | AR125: -0.1396738194 | AS125: -0.1396738194 | AT125: -0.1361878265 | AW125: 0 | AX125: 0 | AY125: 0 | AZ125: 0 | BB125: 22.2 | BD125: 25.6 | BE125: 24.7 | BF125: 20.8 | BG125: 18.8 | BJ125: =SUM(BB115:BB134)/30 -> 14.27666667 | BK125: 0 | BL125: 15.46666667 | BM125: 15.01333333 | BN125: 13.7 | BO125: 12.12 | BP125: 0 | BT125: 2016-04-25 | BU125: 24.9 | BV125: 0 | BW125: 5.1
A126: 2015-07-26 | B126: 17.8 | C126: 17.8 | D126: 17.8 | E126: 17.8 | F126: 19.06666667 | G126: 6.436 | H126: 6.436 | I126: 6.436 | J126: 6.436 | K126: -1.306666667 | L126: -1.306666667 | M126: -1.306666667 | N126: -1.306666667 | O126: -0.203024653 | P126: -0.203024653 | Q126: -0.203024653 | R126: -0.203024653 | S126: 0 | T126: 0 | U126: 0 | V126: 0 | W126: 0.203024653 | X126: 0.203024653 | Y126: 0.203024653 | Z126: 0.203024653 | AA126: 0 | AB126: 0.203024653 | AC126: 639.1169956 | AD126: 738.1246081 | AE126: 432.9453433 | AF126: 432.9453433 | AK126: 0 | AL126: 0 | AM126: 0 | AN126: -0.06767488433 | AO126: -0.06767488433 | AP126: -0.06767488433 | AQ126: -0.06767488433 | AR126: -0.1115013059 | AS126: -0.1115013059 | AT126: -0.09872562651 | AW126: 0 | AX126: 0 | AY126: 0 | AZ126: 0 | BB126: 17.8 | BD126: 20 | BE126: 19.5 | BF126: 16.9 | BG126: 14 | BJ126: =SUM(BB116:BB135)/30 -> 14.46666667 | BK126: 0 | BL126: 15.49333333 | BM126: 15.11666667 | BN126: 13.91333333 | BO126: 12.29333333 | BP126: 0 | BT126: 2016-04-26 | BU126: 22.8 | BV126: 0 | BW126: 7.2
A127: 2015-07-27 | B127: 17.8 | C127: 17.8 | D127: 17.8 | E127: 17.8 | F127: 19.06666667 | G127: 6.436 | H127: 6.436 | I127: 6.436 | J127: 6.436 | K127: -1.306666667 | L127: -1.306666667 | M127: -1.306666667 | N127: -1.306666667 | O127: -0.203024653 | P127: -0.203024653 | Q127: -0.203024653 | R127: -0.203024653 | S127: 0 | T127: 0 | U127: 0 | V127: 0 | W127: 0.203024653 | X127: 0.203024653 | Y127: 0.203024653 | Z127: 0.203024653 | AA127: 0 | AB127: 0.203024653 | AC127: 639.1169956 | AD127: 738.1246081 | AE127: 437.8179349 | AF127: 437.8179349 | AK127: 0 | AL127: 0 | AM127: 0 | AN127: -0.06767488433 | AO127: -0.06767488433 | AP127: -0.06767488433 | AQ127: -0.06767488433 | AR127: -0.09335772735 | AS127: -0.09335772735 | AT127: -0.0802571518 | AW127: 0 | AX127: 0 | AY127: 0 | AZ127: 0 | BB127: 17.8 | BD127: 18.5 | BE127: 16.7 | BF127: 16.7 | BG127: 14.6 | BJ127: =SUM(BB117:BB136)/30 -> 14.55666667 | BK127: 0 | BL127: 15.56 | BM127: 15.2 | BN127: 13.97333333 | BO127: 12.31 | BP127: 0 | BT127: 2016-04-27 | BU127: 22.5 | BV127: 0 | BW127: 7.5
A128: 2015-07-28 | B128: 19.5 | C128: 19.5 | D128: 19.5 | E128: 19.5 | F128: 18.5 | G128: 6.64 | H128: 6.64 | I128: 6.64 | J128: 6.64 | K128: -2.1 | L128: -2.1 | M128: -2.1 | N128: -2.1 | O128: -0.3162650602 | P128: -0.3162650602 | Q128: -0.3162650602 | R128: -0.3162650602 | S128: 0 | T128: 0 | U128: 0 | V128: 0 | W128: 0.3162650602 | X128: 0.3162650602 | Y128: 0.3162650602 | Z128: 0.3162650602 | AA128: 0 | AB128: 0.3162650602 | AC128: 639.1169956 | AD128: 738.1246081 | AE128: 445.4082964 | AF128: 445.4082964 | AK128: 0 | AL128: 0 | AM128: 0 | AN128: -0.1054216867 | AO128: -0.1054216867 | AP128: -0.1054216867 | AQ128: -0.1054216867 | AR128: -0.07362732594 | AS128: -0.07362732594 | AT128: -0.07168174855 | AW128: 0 | AX128: 0 | AY128: 0 | AZ128: 0 | BB128: 19.5 | BD128: 19.8 | BE128: 19.2 | BF128: 17.8 | BG128: 15.5 | BJ128: =SUM(BB118:BB137)/30 -> 14.60333333 | BK128: 0 | BL128: 15.55666667 | BM128: 15.27 | BN128: 14.03333333 | BO128: 12.3 | BP128: 0 | BT128: 2016-04-28 | BU128: 21.4 | BV128: 0 | BW128: 8.6
A129: 2015-07-29 | B129: 16.7 | C129: 16.7 | D129: 16.7 | E129: 16.7 | F129: 19.43333333 | G129: 6.304 | H129: 6.304 | I129: 6.304 | J129: 6.304 | K129: -0.7933333333 | L129: -0.7933333333 | M129: -0.7933333333 | N129: -0.7933333333 | O129: -0.1258460237 | P129: -0.1258460237 | Q129: -0.1258460237 | R129: -0.1258460237 | S129: 0 | T129: 0 | U129: 0 | V129: 0 | W129: 0.1258460237 | X129: 0.1258460237 | Y129: 0.1258460237 | Z129: 0.1258460237 | AA129: 0 | AB129: 0.1258460237 | AC129: 639.1169956 | AD129: 738.1246081 | AE129: 448.4286009 | AF129: 448.4286009 | AK129: 0 | AL129: 0 | AM129: 0 | AN129: -0.04194867456 | AO129: -0.04194867456 | AP129: -0.04194867456 | AQ129: -0.04194867456 | AR129: -0.06571226536 | AS129: -0.06571226536 | AT129: -0.05908857584 | AW129: 0 | AX129: 0 | AY129: 0 | AZ129: 0 | BB129: 16.7 | BD129: 17.4 | BE129: 18.4 | BF129: 15.4 | BG129: 12.9 | BJ129: =SUM(BB119:BB138)/30 -> 14.61666667 | BK129: 0 | BL129: 15.56 | BM129: 15.36666667 | BN129: 14.05666667 | BO129: 12.39666667 | BP129: 0 | BT129: 2016-04-29 | BU129: 21.1 | BV129: 0 | BW129: 8.9
A130: 2015-07-30 | B130: 16.2 | C130: 16.2 | D130: 16.2 | E130: 16.2 | F130: 19.6 | G130: 6.244 | H130: 6.244 | I130: 6.244 | J130: 6.244 | K130: -0.56 | L130: -0.56 | M130: -0.56 | N130: -0.56 | O130: -0.08968609865 | P130: -0.08968609865 | Q130: -0.08968609865 | R130: -0.08968609865 | S130: 0 | T130: 0 | U130: 0 | V130: 0 | W130: 0.08968609865 | X130: 0.08968609865 | Y130: 0.08968609865 | Z130: 0.08968609865 | AA130: 0 | AB130: 0.08968609865 | AC130: 639.1169956 | AD130: 738.1246081 | AE130: 450.5810673 | AF130: 450.5810673 | AK130: 0 | AL130: 0 | AM130: 0 | AN130: -0.02989536622 | AO130: -0.02989536622 | AP130: -0.02989536622 | AQ130: -0.02989536622 | AR130: -0.07588569458 | AS130: -0.07588569458 | AT130: -0.03793090511 | AW130: 0 | AX130: 0 | AY130: 0 | AZ130: 0 | BB130: 16.2 | BD130: 19.2 | BE130: 18.5 | BF130: 15.2 | BG130: 13.4 | BJ130: =SUM(BB120:BB139)/30 -> 14.67666667 | BK130: 0 | BL130: 15.57333333 | BM130: 15.45333333 | BN130: 14.15333333 | BO130: 12.51666667 | BP130: 0 | BT130: 2016-04-30 | BU130: 17.9 | BV130: 0 | BW130: 12.1
A131: 2015-07-31 | B131: 16.7 | C131: 16.7 | D131: 16.7 | E131: 16.7 | F131: 19.43333333 | G131: 6.304 | H131: 6.304 | I131: 6.304 | J131: 6.304 | K131: -0.7933333333 | L131: -0.7933333333 | M131: -0.7933333333 | N131: -0.7933333333 | O131: -0.1258460237 | P131: -0.1258460237 | Q131: -0.1258460237 | R131: -0.1258460237 | S131: 0 | T131: 0 | U131: 0 | V131: 0 | W131: 0.1258460237 | X131: 0.1258460237 | Y131: 0.1258460237 | Z131: 0.1258460237 | AA131: 0 | AB131: 0.1258460237 | AC131: 639.1169956 | AD131: 738.1246081 | AE131: 453.6013719 | AF131: 453.6013719 | AK131: 0 | AL131: 0 | AM131: 0 | AN131: -0.04194867456 | AO131: -0.04194867456 | AP131: -0.04194867456 | AQ131: -0.04194867456 | AR131: -0.09085306336 | AS131: -0.09085306336 | AT131: -0.05908857584 | AW131: 0 | AX131: 0 | AY131: 0 | AZ131: 0 | BB131: 16.7 | BD131: 20.7 | BE131: 18.7 | BF131: 15.4 | BG131: 12.9 | BJ131: =SUM(BB121:BB140)/30 -> 14.77 | BK131: 0 | BL131: 15.59 | BM131: 15.51666667 | BN131: 14.25 | BO131: 12.67666667 | BP131: 0 | BT131: 2016-05-01 | BU131: 15.9 | BV131: 0 | BW131: 14.1
A132: 2015-08-01 | B132: 19.5 | C132: 19.5 | D132: 19.5 | E132: 19.5 | F132: 18.5 | G132: 6.64 | H132: 6.64 | I132: 6.64 | J132: 6.64 | K132: -2.1 | L132: -2.1 | M132: -2.1 | N132: -2.1 | O132: -0.3162650602 | P132: -0.3162650602 | Q132: -0.3162650602 | R132: -0.3162650602 | S132: 0 | T132: 0 | U132: 0 | V132: 0 | W132: 0.3162650602 | X132: 0.3162650602 | Y132: 0.3162650602 | Z132: 0.3162650602 | AA132: 0 | AB132: 0.3162650602 | AC132: 639.1169956 | AD132: 738.1246081 | AE132: 461.1917333 | AF132: 461.1917333 | AK132: 0 | AL132: 0 | AM132: 0 | AN132: -0.1054216867 | AO132: -0.1054216867 | AP132: -0.1054216867 | AQ132: -0.1054216867 | AR132: -0.1082427954 | AS132: -0.1082427954 | AT132: -0.09541975007 | AW132: 0 | AX132: 0 | AY132: 0 | AZ132: 0 | BB132: 19.5 | BD132: 20.6 | BE132: 21 | BF132: 18.9 | BG132: 15.9 | BJ132: =SUM(BB122:BB141)/30 -> 14.79666667 | BK132: 0 | BL132: 15.59 | BM132: 15.55333333 | BN132: 14.26333333 | BO132: 12.75 | BP132: 0 | BT132: 2016-05-02 | BU132: 14.3 | BV132: 0 | BW132: 15.7
A133: 2015-08-02 | B133: 21.1 | C133: 21.1 | D133: 21.1 | E133: 21.1 | F133: 17.96666667 | G133: 6.832 | H133: 6.832 | I133: 6.832 | J133: 6.832 | K133: -2.846666667 | L133: -2.846666667 | M133: -2.846666667 | N133: -2.846666667 | O133: -0.4166666667 | P133: -0.4166666667 | Q133: -0.4166666667 | R133: -0.4166666667 | S133: 0 | T133: 0 | U133: 0 | V133: 0 | W133: 0.4166666667 | X133: 0.4166666667 | Y133: 0.4166666667 | Z133: 0.4166666667 | AA133: 0 | AB133: 0.4166666667 | AC133: 639.1169956 | AD133: 738.1246081 | AE133: 471.1917333 | AF133: 471.1917333 | AK133: 0 | AL133: 0 | AM133: 0 | AN133: -0.1388888889 | AO133: -0.1388888889 | AP133: -0.1388888889 | AQ133: -0.1388888889 | AR133: -0.1311500845 | AS133: -0.1311500845 | AT133: -0.1389190138 | AW133: 0 | AX133: 0 | AY133: 0 | AZ133: 0 | BB133: 21.1 | BD133: 19.9 | BE133: 20.5 | BF133: 20.9 | BG133: 18.9 | BJ133: =SUM(BB123:BB142)/30 -> 14.79333333 | BK133: 0 | BL133: 15.56 | BM133: 15.54 | BN133: 14.27 | BO133: 12.79333333 | BP133: 0 | BT133: 2016-05-03 | BU133: 14.8 | BV133: 0 | BW133: 15.2
A134: 2015-08-03 | B134: 22.8 | C134: 22.8 | D134: 22.8 | E134: 22.8 | F134: 17.4 | G134: 7.036 | H134: 7.036 | I134: 7.036 | J134: 7.036 | K134: -3.64 | L134: -3.64 | M134: -3.64 | N134: -3.64 | O134: -0.5173393974 | P134: -0.5173393974 | Q134: -0.5173393974 | R134: -0.5173393974 | S134: 0 | T134: 0 | U134: 0 | V134: 0 | W134: 0.5173393974 | X134: 0.5173393974 | Y134: 0.5173393974 | Z134: 0.5173393974 | AA134: 0 | AB134: 0.5173393974 | AC134: 639.1169956 | AD134: 738.1246081 | AE134: 483.6078789 | AF134: 483.6078789 | AK134: 0 | AL134: 0 | AM134: 0 | AN134: -0.1724464658 | AO134: -0.1724464658 | AP134: -0.1724464658 | AQ134: -0.1724464658 | AR134: -0.1593292909 | AS134: -0.1593292909 | AT134: -0.1794950551 | AW134: 0 | AX134: 0 | AY134: 0 | AZ134: 0 | BB134: 22.8 | BD134: 21.9 | BE134: 23.4 | BF134: 22.3 | BG134: 19.5 | BJ134: =SUM(BB124:BB143)/30 -> 14.94666667 | BK134: 0 | BL134: 15.51 | BM134: 15.58333333 | BN134: 14.43 | BO134: 12.92666667 | BP134: 0 | BT134: 2016-05-04 | BU134: 14.4 | BV134: 0 | BW134: 15.6
A135: 2015-08-04 | B135: 25.8 | C135: 25.8 | D135: 25.8 | E135: 25.8 | F135: 16.4 | G135: 7.396 | H135: 7.396 | I135: 7.396 | J135: 7.396 | K135: -5.04 | L135: -5.04 | M135: -5.04 | N135: -5.04 | O135: -0.6814494321 | P135: -0.6814494321 | Q135: -0.6814494321 | R135: -0.6814494321 | S135: 0 | T135: 0 | U135: 0 | V135: 0 | W135: 0.6814494321 | X135: 0.6814494321 | Y135: 0.6814494321 | Z135: 0.6814494321 | AA135: 0 | AB135: 0.6814494321 | AC135: 639.1169956 | AD135: 738.1246081 | AE135: 499.9626652 | AF135: 499.9626652 | AK135: 0 | AL135: 0 | AM135: 0 | AN135: -0.2271498107 | AO135: -0.2271498107 | AP135: -0.2271498107 | AQ135: -0.2271498107 | AR135: -0.1884647374 | AS135: -0.1884647374 | AT135: -0.2006319917 | AW135: 0 | AX135: 0 | AY135: 0 | AZ135: 0 | BB135: 25.8 | BD135: 24.8 | BE135: 25.1 | BF135: 25.5 | BG135: 22.7 | BJ135: =SUM(BB125:BB144)/30 -> 15.04333333 | BK135: 0 | BL135: 15.54333333 | BM135: 15.63 | BN135: 14.53333333 | BO135: 13.08666667 | BP135: 0 | BT135: 2016-05-05 | BU135: 14.7 | BV135: 0 | BW135: 15.3
A136: 2015-08-05 | B136: 24.4 | C136: 24.4 | D136: 24.4 | E136: 24.4 | F136: 16.86666667 | G136: 7.228 | H136: 7.228 | I136: 7.228 | J136: 7.228 | K136: -4.386666667 | L136: -4.386666667 | M136: -4.386666667 | N136: -4.386666667 | O136: -0.6068990961 | P136: -0.6068990961 | Q136: -0.6068990961 | R136: -0.6068990961 | S136: 0 | T136: 0 | U136: 0 | V136: 0 | W136: 0.6068990961 | X136: 0.6068990961 | Y136: 0.6068990961 | Z136: 0.6068990961 | AA136: 0 | AB136: 0.6068990961 | AC136: 639.1169956 | AD136: 738.1246081 | AE136: 514.5282435 | AF136: 514.5282435 | AK136: 0 | AL136: 0 | AM136: 0 | AN136: -0.2022996987 | AO136: -0.2022996987 | AP136: -0.2022996987 | AQ136: -0.2022996987 | AR136: -0.2097191453 | AS136: -0.2097191453 | AT136: -0.21886644 | AW136: 0 | AX136: 0 | AY136: 0 | AZ136: 0 | BB136: 24.4 | BD136: 26.4 | BE136: 26.1 | BF136: 23.4 | BG136: 21.1 | BJ136: =SUM(BB126:BB145)/30 -> 15.18 | BK136: 0 | BL136: 15.6 | BM136: 15.71333333 | BN136: 14.71 | BO136: 13.27 | BP136: 0 | BT136: 2016-05-06 | BU136: 14.4 | BV136: 0 | BW136: 15.6
A137: 2015-08-06 | B137: 25.8 | C137: 25.8 | D137: 25.8 | E137: 25.8 | F137: 16.4 | G137: 7.396 | H137: 7.396 | I137: 7.396 | J137: 7.396 | K137: -5.04 | L137: -5.04 | M137: -5.04 | N137: -5.04 | O137: -0.6814494321 | P137: -0.6814494321 | Q137: -0.6814494321 | R137: -0.6814494321 | S137: 0 | T137: 0 | U137: 0 | V137: 0 | W137: 0.6814494321 | X137: 0.6814494321 | Y137: 0.6814494321 | Z137: 0.6814494321 | AA137: 0 | AB137: 0.6814494321 | AC137: 639.1169956 | AD137: 738.1246081 | AE137: 530.8830299 | AF137: 530.8830299 | AK137: 0 | AL137: 0 | AM137: 0 | AN137: -0.2271498107 | AO137: -0.2271498107 | AP137: -0.2271498107 | AQ137: -0.2271498107 | AR137: -0.2208263553 | AS137: -0.2208263553 | AT137: -0.2251154365 | AW137: 0 | AX137: 0 | AY137: 0 | AZ137: 0 | BB137: 25.8 | BD137: 26 | BE137: 26.7 | BF137: 25.3 | BG137: 23.2 | BJ137: =SUM(BB127:BB146)/30 -> 15.41666667 | BK137: 0 | BL137: 15.82666667 | BM137: 15.97666667 | BN137: 14.93333333 | BO137: 13.45666667 | BP137: 0 | BT137: 2016-05-07 | BU137: 15.9 | BV137: 0 | BW137: 14.1
A138: 2015-08-07 | B138: 26.9 | C138: 26.9 | D138: 26.9 | E138: 26.9 | F138: 16.03333333 | G138: 7.528 | H138: 7.528 | I138: 7.528 | J138: 7.528 | K138: -5.553333333 | L138: -5.553333333 | M138: -5.553333333 | N138: -5.553333333 | O138: -0.7376904003 | P138: -0.7376904003 | Q138: -0.7376904003 | R138: -0.7376904003 | S138: 0 | T138: 0 | U138: 0 | V138: 0 | W138: 0.7376904003 | X138: 0.7376904003 | Y138: 0.7376904003 | Z138: 0.7376904003 | AA138: 0 | AB138: 0.7376904003 | AC138: 639.1169956 | AD138: 738.1246081 | AE138: 548.5875995 | AF138: 548.5875995 | AK138: 0 | AL138: 0 | AM138: 0 | AN138: -0.2458968001 | AO138: -0.2458968001 | AP138: -0.2458968001 | AQ138: -0.2458968001 | AR138: -0.2301136598 | AS138: -0.2301136598 | AT138: -0.2424163843 | AW138: 0 | AX138: 0 | AY138: 0 | AZ138: 0 | BB138: 26.9 | BD138: 26.7 | BE138: 27.2 | BF138: 26.7 | BG138: 25.3 | BJ138: =SUM(BB128:BB147)/30 -> 15.52666667 | BK138: 0 | BL138: 16 | BM138: 16.22 | BN138: 15.04666667 | BO138: 13.55 | BP138: 0 | BT138: 2016-05-08 | BU138: 16.8 | BV138: 0 | BW138: 13.2
A139: 2015-08-08 | B139: 27.4 | C139: 27.4 | D139: 27.4 | E139: 27.4 | F139: 15.86666667 | G139: 7.588 | H139: 7.588 | I139: 7.588 | J139: 7.588 | K139: -5.786666667 | L139: -5.786666667 | M139: -5.786666667 | N139: -5.786666667 | O139: -0.7626076261 | P139: -0.7626076261 | Q139: -0.7626076261 | R139: -0.7626076261 | S139: 0 | T139: 0 | U139: 0 | V139: 0 | W139: 0.7626076261 | X139: 0.7626076261 | Y139: 0.7626076261 | Z139: 0.7626076261 | AA139: 0 | AB139: 0.7626076261 | AC139: 639.1169956 | AD139: 738.1246081 | AE139: 566.8901825 | AF139: 566.8901825 | AK139: 0 | AL139: 0 | AM139: 0 | AN139: -0.254202542 | AO139: -0.254202542 | AP139: -0.254202542 | AQ139: -0.254202542 | AR139: -0.2315862006 | AS139: -0.2315862006 | AT139: -0.2389129004 | AW139: 0 | AX139: 0 | AY139: 0 | AZ139: 0 | BB139: 27.4 | BD139: 27.3 | BE139: 28.1 | BF139: 27.1 | BG139: 24.5 | BJ139: =SUM(BB129:BB148)/30 -> 15.47 | BK139: 0 | BL139: 15.97666667 | BM139: 16.26333333 | BN139: 15.01666667 | BO139: 13.52333333 | BP139: 0 | BT139: 2016-05-09 | BU139: 16.5 | BV139: 0 | BW139: =30-BU139 -> 13.5
A140: 2015-08-09 | B140: 25.2 | C140: 25.2 | D140: 25.2 | E140: 25.2 | F140: 16.6 | G140: 7.324 | H140: 7.324 | I140: 7.324 | J140: 7.324 | K140: -4.76 | L140: -4.76 | M140: -4.76 | N140: -4.76 | O140: -0.6499180776 | P140: -0.6499180776 | Q140: -0.6499180776 | R140: -0.6499180776 | S140: 0 | T140: 0 | U140: 0 | V140: 0 | W140: 0.6499180776 | X140: 0.6499180776 | Y140: 0.6499180776 | Z140: 0.6499180776 | AA140: 0 | AB140: 0.6499180776 | AC140: 639.1169956 | AD140: 738.1246081 | AE140: 582.4882164 | AF140: 582.4882164 | AK140: 0 | AL140: 0 | AM140: 0 | AN140: -0.2166393592 | AO140: -0.2166393592 | AP140: -0.2166393592 | AQ140: -0.2166393592 | AR140: -0.2370933149 | AS140: -0.2370933149 | AT140: -0.2360998327 | AW140: 0 | AX140: 0 | AY140: 0 | AZ140: 0 | BB140: 25.2 | BD140: 26.3 | BE140: 27.5 | BF140: 24.5 | BG140: 22.9 | BJ140: =SUM(BB130:BB149)/30 -> 15.41666667 | BK140: 0 | BL140: 15.97666667 | BM140: 16.18333333 | BN140: 14.99333333 | BO140: 13.52666667 | BP140: 0 | BT140: 2016-05-10 | BU140: 15.6 | BV140: 0 | BW140: 14.4
A141: 2015-08-10 | B141: 26.4 | C141: 26.4 | D141: 26.4 | E141: 26.4 | F141: 16.2 | G141: 7.468 | H141: 7.468 | I141: 7.468 | J141: 7.468 | K141: -5.32 | L141: -5.32 | M141: -5.32 | N141: -5.32 | O141: -0.7123727906 | P141: -0.7123727906 | Q141: -0.7123727906 | R141: -0.7123727906 | S141: 0 | T141: 0 | U141: 0 | V141: 0 | W141: 0.7123727906 | X141: 0.7123727906 | Y141: 0.7123727906 | Z141: 0.7123727906 | AA141: 0 | AB141: 0.7123727906 | AC141: 639.1169956 | AD141: 738.1246081 | AE141: 599.5851634 | AF141: 599.5851634 | AK141: 0 | AL141: 0 | AM141: 0 | AN141: -0.2374575969 | AO141: -0.2374575969 | AP141: -0.2374575969 | AQ141: -0.2374575969 | AR141: -0.2378331518 | AS141: -0.2378331518 | AT141: -0.2305181843 | AW141: 0 | AX141: 0 | AY141: 0 | AZ141: 0 | BB141: 26.4 | BD141: 26.2 | BE141: 26.9 | BF141: 25.5 | BG141: 24.4 | BJ141: =SUM(BB131:BB150)/30 -> 15.4 | BK141: 0 | BL141: 15.89666667 | BM141: 16.11 | BN141: 14.99 | BO141: 13.52666667 | BP141: 0 | BT141: 2016-05-11 | BU141: 14.7 | BV141: 0 | BW141: 15.3
A142: 2015-08-11 | B142: 26.4 | C142: 26.4 | D142: 26.4 | E142: 26.4 | F142: 16.2 | G142: 7.468 | H142: 7.468 | I142: 7.468 | J142: 7.468 | K142: -5.32 | L142: -5.32 | M142: -5.32 | N142: -5.32 | O142: -0.7123727906 | P142: -0.7123727906 | Q142: -0.7123727906 | R142: -0.7123727906 | S142: 0 | T142: 0 | U142: 0 | V142: 0 | W142: 0.7123727906 | X142: 0.7123727906 | Y142: 0.7123727906 | Z142: 0.7123727906 | AA142: 0 | AB142: 0.7123727906 | AC142: 639.1169956 | AD142: 738.1246081 | AE142: 616.6821103 | AF142: 616.6821103 | AK142: 0 | AL142: 0 | AM142: 0 | AN142: -0.2374575969 | AO142: -0.2374575969 | AP142: -0.2374575969 | AQ142: -0.2374575969 | AR142: -0.2363841028 | AS142: -0.2363841028 | AT142: -0.2385882308 | AW142: 0 | AX142: 0 | AY142: 0 | AZ142: 0 | BB142: 26.4 | BD142: 26.1 | BE142: 26.8 | BF142: 26.2 | BG142: 24.6 | BJ142: =SUM(BB132:BB151)/30 -> 15.42666667 | BK142: 0 | BL142: 15.76333333 | BM142: 16.09 | BN142: 15.02333333 | BO142: 13.58 | BP142: 0 | BT142: 2016-05-12 | BU142: 13.9 | BV142: 0 | BW142: 16.1
A143: 2015-08-12 | B143: 26.6 | C143: 26.6 | D143: 26.6 | E143: 26.6 | F143: 16.13333333 | G143: 7.492 | H143: 7.492 | I143: 7.492 | J143: 7.492 | K143: -5.413333333 | L143: -5.413333333 | M143: -5.413333333 | N143: -5.413333333 | O143: -0.7225484962 | P143: -0.7225484962 | Q143: -0.7225484962 | R143: -0.7225484962 | S143: 0 | T143: 0 | U143: 0 | V143: 0 | W143: 0.7225484962 | X143: 0.7225484962 | Y143: 0.7225484962 | Z143: 0.7225484962 | AA143: 0 | AB143: 0.7225484962 | AC143: 639.1169956 | AD143: 738.1246081 | AE143: 634.0232743 | AF143: 634.0232743 | AK143: 0 | AL143: 0 | AM143: 0 | AN143: -0.2408494987 | AO143: -0.2408494987 | AP143: -0.2408494987 | AQ143: -0.2408494987 | AR143: -0.2302560621 | AS143: -0.2302560621 | AT143: -0.2368785881 | AW143: 0 | AX143: 0 | AY143: 0 | AZ143: 0 | BB143: 26.6 | BD143: 26 | BE143: 27.1 | BF143: 25.8 | BG143: 23.3 | BJ143: =SUM(BB133:BB152)/30 -> 15.40666667 | BK143: 0 | BL143: 15.69666667 | BM143: 16.01666667 | BN143: 15 | BO143: 13.57333333 | BP143: 0 | BT143: 2016-05-13 | BU143: 15 | BV143: 0 | BW143: 15
A144: 2015-08-13 | B144: 26.1 | C144: 26.1 | D144: 26.1 | E144: 26.1 | F144: 16.3 | G144: 7.432 | H144: 7.432 | I144: 7.432 | J144: 7.432 | K144: -5.18 | L144: -5.18 | M144: -5.18 | N144: -5.18 | O144: -0.6969860065 | P144: -0.6969860065 | Q144: -0.6969860065 | R144: -0.6969860065 | S144: 0 | T144: 0 | U144: 0 | V144: 0 | W144: 0.6969860065 | X144: 0.6969860065 | Y144: 0.6969860065 | Z144: 0.6969860065 | AA144: 0 | AB144: 0.6969860065 | AC144: 639.1169956 | AD144: 738.1246081 | AE144: 650.7509384 | AF144: 650.7509384 | AK144: 0 | AL144: 0 | AM144: 0 | AN144: -0.2323286688 | AO144: -0.2323286688 | AP144: -0.2323286688 | AQ144: -0.2323286688 | AR144: -0.219148852 | AS144: -0.219148852 | AT144: -0.2363105416 | AW144: 0 | AX144: 0 | AY144: 0 | AZ144: 0 | BB144: 26.1 | BD144: 26.9 | BE144: 26.8 | BF144: 25.7 | BG144: 24.2 | BJ144: =SUM(BB134:BB153)/30 -> 15.29666667 | BK144: 0 | BL144: 15.64333333 | BM144: 15.95333333 | BN144: 14.87 | BO144: 13.44333333 | BP144: 0 | BT144: 2016-05-14 | BU144: 16.9 | BV144: 0 | BW144: 13.1
A145: 2015-08-14 | B145: 26.3 | C145: 26.3 | D145: 26.3 | E145: 26.3 | F145: 16.23333333 | G145: 7.456 | H145: 7.456 | I145: 7.456 | J145: 7.456 | K145: -5.273333333 | L145: -5.273333333 | M145: -5.273333333 | N145: -5.273333333 | O145: -0.707260372 | P145: -0.707260372 | Q145: -0.707260372 | R145: -0.707260372 | S145: 0 | T145: 0 | U145: 0 | V145: 0 | W145: 0.707260372 | X145: 0.707260372 | Y145: 0.707260372 | Z145: 0.707260372 | AA145: 0 | AB145: 0.707260372 | AC145: 639.1169956 | AD145: 738.1246081 | AE145: 667.7251873 | AF145: 667.7251873 | AK145: 0 | AL145: 0 | AM145: 0 | AN145: -0.2357534573 | AO145: -0.2357534573 | AP145: -0.2357534573 | AQ145: -0.2357534573 | AR145: -0.1948941788 | AS145: -0.1948941788 | AT145: -0.2264627943 | AW145: 0 | AX145: 0 | AY145: 0 | AZ145: 0 | BB145: 26.3 | BD145: 27.3 | BE145: 27.2 | BF145: 26.1 | BG145: 24.3 | BJ145: =SUM(BB135:BB154)/30 -> 15.13 | BK145: 0 | BL145: 15.53 | BM145: 15.78 | BN145: 14.7 | BO145: 13.32333333 | BP145: 0 | BT145: 2016-05-15 | BU145: 18.5 | BV145: 0 | BW145: 11.5
A146: 2015-08-15 | B146: 24.9 | C146: 24.9 | D146: 24.9 | E146: 24.9 | F146: 16.7 | G146: 7.288 | H146: 7.288 | I146: 7.288 | J146: 7.288 | K146: -4.62 | L146: -4.62 | M146: -4.62 | N146: -4.62 | O146: -0.6339187706 | P146: -0.6339187706 | Q146: -0.6339187706 | R146: -0.6339187706 | S146: 0 | T146: 0 | U146: 0 | V146: 0 | W146: 0.6339187706 | X146: 0.6339187706 | Y146: 0.6339187706 | Z146: 0.6339187706 | AA146: 0 | AB146: 0.6339187706 | AC146: 639.1169956 | AD146: 738.1246081 | AE146: 682.9392378 | AF146: 682.9392378 | AK146: 0 | AL146: 0 | AM146: 0 | AN146: -0.2113062569 | AO146: -0.2113062569 | AP146: -0.2113062569 | AQ146: -0.2113062569 | AR146: -0.1613352485 | AS146: -0.1613352485 | AT146: -0.195316201 | AW146: 0 | AX146: 0 | AY146: 0 | AZ146: 0 | BB146: 24.9 | BD146: 26.8 | BE146: 27.4 | BF146: 23.6 | BG146: 19.6 | BJ146: =SUM(BB136:BB155)/30 -> 14.96333333 | BK146: 0 | BL146: 15.42 | BM146: 15.65 | BN146: 14.51666667 | BO146: 13.17333333 | BP146: 0 | BT146: 2016-05-16 | BU146: 19.9 | BV146: 0 | BW146: 10.1
A147: 2015-08-16 | B147: 21.1 | C147: 21.1 | D147: 21.1 | E147: 21.1 | F147: 17.96666667 | G147: 6.832 | H147: 6.832 | I147: 6.832 | J147: 6.832 | K147: -2.846666667 | L147: -2.846666667 | M147: -2.846666667 | N147: -2.846666667 | O147: -0.4166666667 | P147: -0.4166666667 | Q147: -0.4166666667 | R147: -0.4166666667 | S147: 0 | T147: 0 | U147: 0 | V147: 0 | W147: 0.4166666667 | X147: 0.4166666667 | Y147: 0.4166666667 | Z147: 0.4166666667 | AA147: 0 | AB147: 0.4166666667 | AC147: 639.1169956 | AD147: 738.1246081 | AE147: 692.9392378 | AF147: 692.9392378 | AK147: 0 | AL147: 0 | AM147: 0 | AN147: -0.1388888889 | AO147: -0.1388888889 | AP147: -0.1388888889 | AQ147: -0.1388888889 | AR147: -0.1294436293 | AS147: -0.1294436293 | AT147: -0.13929001 | AW147: 0 | AX147: 0 | AY147: 0 | AZ147: 0 | BB147: 21.1 | BD147: 23.7 | BE147: 24 | BF147: 20.1 | BG147: 17.4 | BJ147: =SUM(BB137:BB156)/30 -> 14.75333333 | BK147: 0 | BL147: 15.18 | BM147: 15.40666667 | BN147: 14.31 | BO147: 12.92333333 | BP147: 0 | BT147: 2016-05-17 | BU147: 21.8 | BV147: 0 | BW147: 8.2
A148: 2015-08-17 | B148: 17.8 | C148: 17.8 | D148: 17.8 | E148: 17.8 | F148: 19.06666667 | G148: 6.436 | H148: 6.436 | I148: 6.436 | J148: 6.436 | K148: -1.306666667 | L148: -1.306666667 | M148: -1.306666667 | N148: -1.306666667 | O148: -0.203024653 | P148: -0.203024653 | Q148: -0.203024653 | R148: -0.203024653 | S148: 0 | T148: 0 | U148: 0 | V148: 0 | W148: 0.203024653 | X148: 0.203024653 | Y148: 0.203024653 | Z148: 0.203024653 | AA148: 0 | AB148: 0.203024653 | AC148: 639.1169956 | AD148: 738.1246081 | AE148: 697.8118295 | AF148: 697.8118295 | AK148: 0 | AL148: 0 | AM148: 0 | AN148: -0.06767488433 | AO148: -0.06767488433 | AP148: -0.06767488433 | AQ148: -0.06767488433 | AR148: -0.104934375 | AS148: -0.104934375 | AT148: -0.06970295252 | AW148: 0 | AX148: 0 | AY148: 0 | AZ148: 0 | BB148: 17.8 | BD148: 19.1 | BE148: 20.5 | BF148: 16.9 | BG148: 14.7 | BJ148: =SUM(BB138:BB157)/30 -> 14.51333333 | BK148: 0 | BL148: 14.92 | BM148: 15.12 | BN148: 14.08 | BO148: 12.66333333 | BP148: 0 | BT148: 2016-05-18 | BU148: 21.1 | BV148: 0 | BW148: 8.9
A149: 2015-08-18 | B149: 15.1 | C149: 15.1 | D149: 15.1 | E149: 15.1 | F149: 19.96666667 | G149: 6.112 | H149: 6.112 | I149: 6.112 | J149: 6.112 | K149: -0.04666666667 | L149: -0.04666666667 | M149: -0.04666666667 | N149: -0.04666666667 | O149: -0.007635253054 | P149: -0.007635253054 | Q149: -0.007635253054 | R149: -0.007635253054 | S149: 0 | T149: 0 | U149: 0 | V149: 0 | W149: 0.007635253054 | X149: 0.007635253054 | Y149: 0.007635253054 | Z149: 0.007635253054 | AA149: 0 | AB149: 0.007635253054 | AC149: 639.1169956 | AD149: 738.1246081 | AE149: 697.9950756 | AF149: 697.9950756 | AK149: 0 | AL149: 0 | AM149: 0 | AN149: -0.002545084351 | AO149: -0.002545084351 | AP149: -0.002545084351 | AQ149: -0.002545084351 | AR149: -0.08445059998 | AS149: -0.08445059998 | AT149: -0.02927604437 | AW149: 0 | AX149: 0 | AY149: 0 | AZ149: 0 | BB149: 15.1 | BD149: 17.4 | BE149: 16 | BF149: 14.7 | BG149: 13 | BJ149: =SUM(BB139:BB158)/30 -> 14.32666667 | BK149: 0 | BL149: 14.76 | BM149: 14.90333333 | BN149: 13.89666667 | BO149: 12.47 | BP149: 0 | BT149: 2016-05-19 | BU149: 18.1 | BV149: 0 | BW149: 11.9
A150: 2015-08-19 | B150: 15.7 | C150: 15.7 | D150: 15.7 | E150: 15.7 | F150: 19.76666667 | G150: 6.184 | H150: 6.184 | I150: 6.184 | J150: 6.184 | K150: -0.3266666667 | L150: -0.3266666667 | M150: -0.3266666667 | N150: -0.3266666667 | O150: -0.05282449332 | P150: -0.05282449332 | Q150: -0.05282449332 | R150: -0.05282449332 | S150: 0 | T150: 0 | U150: 0 | V150: 0 | W150: 0.05282449332 | X150: 0.05282449332 | Y150: 0.05282449332 | Z150: 0.05282449332 | AA150: 0 | AB150: 0.05282449332 | AC150: 639.1169956 | AD150: 738.1246081 | AE150: 699.2628634 | AF150: 699.2628634 | AK150: 0 | AL150: 0 | AM150: 0 | AN150: -0.01760816444 | AO150: -0.01760816444 | AP150: -0.01760816444 | AQ150: -0.01760816444 | AR150: -0.06393183247 | AS150: -0.06393183247 | AT150: -0.02697237923 | AW150: 0 | AX150: 0 | AY150: 0 | AZ150: 0 | BB150: 15.7 | BD150: 16.8 | BE150: 16.3 | BF150: 15.1 | BG150: 13.4 | BJ150: =SUM(BB140:BB159)/30 -> 14.17333333 | BK150: 0 | BL150: 14.61 | BM150: 14.73666667 | BN150: 13.74666667 | BO150: 12.31666667 | BP150: 0 | BT150: 2016-05-20 | BU150: 16.1 | BV150: 0 | BW150: 13.9
A151: 2015-08-20 | B151: 17.5 | C151: 17.5 | D151: 17.5 | E151: 17.5 | F151: 19.16666667 | G151: 6.4 | H151: 6.4 | I151: 6.4 | J151: 6.4 | K151: -1.166666667 | L151: -1.166666667 | M151: -1.166666667 | N151: -1.166666667 | O151: -0.1822916667 | P151: -0.1822916667 | Q151: -0.1822916667 | R151: -0.1822916667 | S151: 0 | T151: 0 | U151: 0 | V151: 0 | W151: 0.1822916667 | X151: 0.1822916667 | Y151: 0.1822916667 | Z151: 0.1822916667 | AA151: 0 | AB151: 0.1822916667 | AC151: 639.1169956 | AD151: 738.1246081 | AE151: 703.6378634 | AF151: 703.6378634 | AK151: 0 | AL151: 0 | AM151: 0 | AN151: -0.06076388889 | AO151: -0.06076388889 | AP151: -0.06076388889 | AQ151: -0.06076388889 | AR151: -0.05375840325 | AS151: -0.05375840325 | AT151: -0.05691302847 | AW151: 0 | AX151: 0 | AY151: 0 | AZ151: 0 | BB151: 17.5 | BD151: 16.7 | BE151: 18.1 | BF151: 16.4 | BG151: 14.5 | BJ151: =SUM(BB141:BB160)/30 -> 14.07333333 | BK151: 0 | BL151: 14.55666667 | BM151: 14.65333333 | BN151: 13.66333333 | BO151: 12.24666667 | BP151: 0 | BT151: 2016-05-21 | BU151: 14 | BV151: 0 | BW151: 16
A152: 2015-08-21 | B152: 18.9 | C152: 18.9 | D152: 18.9 | E152: 18.9 | F152: 18.7 | G152: 6.568 | H152: 6.568 | I152: 6.568 | J152: 6.568 | K152: -1.82 | L152: -1.82 | M152: -1.82 | N152: -1.82 | O152: -0.2771010962 | P152: -0.2771010962 | Q152: -0.2771010962 | R152: -0.2771010962 | S152: 0 | T152: 0 | U152: 0 | V152: 0 | W152: 0.2771010962 | X152: 0.2771010962 | Y152: 0.2771010962 | Z152: 0.2771010962 | AA152: 0 | AB152: 0.2771010962 | AC152: 639.1169956 | AD152: 738.1246081 | AE152: 710.2882897 | AF152: 710.2882897 | AK152: 0 | AL152: 0 | AM152: 0 | AN152: -0.09236703207 | AO152: -0.09236703207 | AP152: -0.09236703207 | AQ152: -0.09236703207 | AR152: -0.06305596712 | AS152: -0.06305596712 | AT152: -0.0736019351 | AW152: 0 | AX152: 0 | AY152: 0 | AZ152: 0 | BB152: 18.9 | BD152: 18.6 | BE152: 18.8 | BF152: 18.2 | BG152: 15.7 | BJ152: =SUM(BB142:BB161)/30 -> 14.01333333 | BK152: 0 | BL152: 14.54666667 | BM152: 14.61 | BN152: 13.61 | BO152: 12.17666667 | BP152: 0 | BT152: 2016-05-22 | BU152: 11.6 | BV152: 0 | BW152: 18.4
A153: 2015-08-22 | B153: 17.8 | C153: 17.8 | D153: 17.8 | E153: 17.8 | F153: 19.06666667 | G153: 6.436 | H153: 6.436 | I153: 6.436 | J153: 6.436 | K153: -1.306666667 | L153: -1.306666667 | M153: -1.306666667 | N153: -1.306666667 | O153: -0.203024653 | P153: -0.203024653 | Q153: -0.203024653 | R153: -0.203024653 | S153: 0 | T153: 0 | U153: 0 | V153: 0 | W153: 0.203024653 | X153: 0.203024653 | Y153: 0.203024653 | Z153: 0.203024653 | AA153: 0 | AB153: 0.203024653 | AC153: 639.1169956 | AD153: 738.1246081 | AE153: 715.1608814 | AF153: 715.1608814 | AK153: 0 | AL153: 0 | AM153: 0 | AN153: -0.06767488433 | AO153: -0.06767488433 | AP153: -0.06767488433 | AQ153: -0.06767488433 | AR153: -0.07333652593 | AS153: -0.07333652593 | AT153: -0.07590560025 | AW153: 0 | AX153: 0 | AY153: 0 | AZ153: 0 | BB153: 17.8 | BD153: 18.3 | BE153: 18.6 | BF153: 17 | BG153: 15 | BJ153: =SUM(BB143:BB162)/30 -> 13.97666667 | BK153: 0 | BL153: 14.51666667 | BM153: 14.56666667 | BN153: 13.58 | BO153: 12.14666667 | BP153: 0 | BT153: 2016-05-23 | BU153: 11.1 | BV153: 0 | BW153: 18.9
A154: 2015-08-23 | B154: 17.8 | C154: 17.8 | D154: 17.8 | E154: 17.8 | F154: 19.06666667 | G154: 6.436 | H154: 6.436 | I154: 6.436 | J154: 6.436 | K154: -1.306666667 | L154: -1.306666667 | M154: -1.306666667 | N154: -1.306666667 | O154: -0.203024653 | P154: -0.203024653 | Q154: -0.203024653 | R154: -0.203024653 | S154: 0 | T154: 0 | U154: 0 | V154: 0 | W154: 0.203024653 | X154: 0.203024653 | Y154: 0.203024653 | Z154: 0.203024653 | AA154: 0 | AB154: 0.203024653 | AC154: 639.1169956 | AD154: 738.1246081 | AE154: 720.0334731 | AF154: 720.0334731 | AK154: 0 | AL154: 0 | AM154: 0 | AN154: -0.06767488433 | AO154: -0.06767488433 | AP154: -0.06767488433 | AQ154: -0.06767488433 | AR154: -0.08306847129 | AS154: -0.08306847129 | AT154: -0.08936920002 | AW154: 0 | AX154: 0 | AY154: 0 | AZ154: 0 | BB154: 17.8 | BD154: 18.5 | BE154: 18.2 | BF154: 17.2 | BG154: 15.9 | BJ154: =SUM(BB144:BB163)/30 -> 13.93666667 | BK154: 0 | BL154: 14.46 | BM154: 14.49666667 | BN154: 13.55666667 | BO154: 12.04 | BP154: 0 | BT154: 2016-05-24 | BU154: 12.3 | BV154: 0 | BW154: 17.7
A155: 2015-08-24 | B155: 20.8 | C155: 20.8 | D155: 20.8 | E155: 20.8 | F155: 18.06666667 | G155: 6.796 | H155: 6.796 | I155: 6.796 | J155: 6.796 | K155: -2.706666667 | L155: -2.706666667 | M155: -2.706666667 | N155: -2.706666667 | O155: -0.3982734942 | P155: -0.3982734942 | Q155: -0.3982734942 | R155: -0.3982734942 | S155: 0 | T155: 0 | U155: 0 | V155: 0 | W155: 0.3982734942 | X155: 0.3982734942 | Y155: 0.3982734942 | Z155: 0.3982734942 | AA155: 0 | AB155: 0.3982734942 | AC155: 639.1169956 | AD155: 738.1246081 | AE155: 729.5920369 | AF155: 729.5920369 | AK155: 0 | AL155: 0 | AM155: 0 | AN155: -0.1327578314 | AO155: -0.1327578314 | AP155: -0.1327578314 | AQ155: -0.1327578314 | AR155: -0.09480798575 | AS155: -0.09480798575 | AT155: -0.09164723725 | AW155: 0 | AX155: 0 | AY155: 0 | AZ155: 0 | BB155: 20.8 | BD155: 21.5 | BE155: 21.2 | BF155: 20 | BG155: 18.2 | BJ155: =SUM(BB145:BB164)/30 -> 13.62 | BK155: 0 | BL155: 14.25 | BM155: 14.25333333 | BN155: 13.24 | BO155: 11.68666667 | BP155: 0 | BT155: 2016-05-25 | BU155: 12 | BV155: 0 | BW155: 18
A156: 2015-08-25 | B156: 18.1 | C156: 18.1 | D156: 18.1 | E156: 18.1 | F156: 18.96666667 | G156: 6.472 | H156: 6.472 | I156: 6.472 | J156: 6.472 | K156: -1.446666667 | L156: -1.446666667 | M156: -1.446666667 | N156: -1.446666667 | O156: -0.2235269881 | P156: -0.2235269881 | Q156: -0.2235269881 | R156: -0.2235269881 | S156: 0 | T156: 0 | U156: 0 | V156: 0 | W156: 0.2235269881 | X156: 0.2235269881 | Y156: 0.2235269881 | Z156: 0.2235269881 | AA156: 0 | AB156: 0.2235269881 | AC156: 639.1169956 | AD156: 738.1246081 | AE156: 734.9566846 | AF156: 734.9566846 | AK156: 0 | AL156: 0 | AM156: 0 | AN156: -0.07450899602 | AO156: -0.07450899602 | AP156: -0.07450899602 | AQ156: -0.07450899602 | AR156: -0.1062479049 | AS156: -0.1062479049 | AT156: -0.09766620314 | AW156: 0 | AX156: 0 | AY156: 0 | AZ156: 0 | BB156: 18.1 | BD156: 19.2 | BE156: 18.8 | BF156: 17.2 | BG156: 13.6 | BJ156: =SUM(BB146:BB165)/30 -> 13.30333333 | BK156: 0 | BL156: 13.93333333 | BM156: 13.94 | BN156: 12.91 | BO156: 11.30666667 | BP156: 0 | BT156: 2016-05-26 | BU156: 11.8 | BV156: 0 | BW156: 18.2
A157: 2015-08-26 | B157: 18.6 | C157: 18.6 | D157: 18.6 | E157: 18.6 | F157: 18.8 | G157: 6.532 | H157: 6.532 | I157: 6.532 | J157: 6.532 | K157: -1.68 | L157: -1.68 | M157: -1.68 | N157: -1.68 | O157: -0.257195346 | P157: -0.257195346 | Q157: -0.257195346 | R157: -0.257195346 | S157: 0 | T157: 0 | U157: 0 | V157: 0 | W157: 0.257195346 | X157: 0.257195346 | Y157: 0.257195346 | Z157: 0.257195346 | AA157: 0 | AB157: 0.257195346 | AC157: 639.1169956 | AD157: 738.1246081 | AE157: 741.1293729 | AF157: 741.1293729 | AK157: 0 | AL157: 0 | AM157: 0 | AN157: -0.085731782 | AO157: -0.085731782 | AP157: -0.085731782 | AQ157: -0.085731782 | AR157: -0.1195553658 | AS157: -0.1195553658 | AT157: -0.1010604227 | AW157: 0 | AX157: 0 | AY157: 0 | AZ157: 0 | BB157: 18.6 | BD157: 18.2 | BE157: 18.1 | BF157: 18.4 | BG157: 15.4 | BJ157: =SUM(BB147:BB166)/30 -> 13.03333333 | BK157: 0 | BL157: 13.66666667 | BM157: 13.61666667 | BN157: 12.63666667 | BO157: 11.06333333 | BP157: 0 | BT157: 2016-05-27 | BU157: 11.1 | BV157: 0 | BW157: 18.9
A158: 2015-08-27 | B158: 21.3 | C158: 21.3 | D158: 21.3 | E158: 21.3 | F158: 17.9 | G158: 6.856 | H158: 6.856 | I158: 6.856 | J158: 6.856 | K158: -2.94 | L158: -2.94 | M158: -2.94 | N158: -2.94 | O158: -0.4288214702 | P158: -0.4288214702 | Q158: -0.4288214702 | R158: -0.4288214702 | S158: 0 | T158: 0 | U158: 0 | V158: 0 | W158: 0.4288214702 | X158: 0.4288214702 | Y158: 0.4288214702 | Z158: 0.4288214702 | AA158: 0 | AB158: 0.4288214702 | AC158: 639.1169956 | AD158: 738.1246081 | AE158: 751.4210882 | AF158: 751.4210882 | AK158: 0 | AL158: 0 | AM158: 0 | AN158: -0.1429404901 | AO158: -0.1429404901 | AP158: -0.1429404901 | AQ158: -0.1429404901 | AR158: -0.1393046974 | AS158: -0.1393046974 | AT158: -0.133706246 | AW158: 0 | AX158: 0 | AY158: 0 | AZ158: 0 | BB158: 21.3 | BD158: 21.9 | BE158: 20.7 | BF158: 21.2 | BG158: 19.5 | BJ158: =SUM(BB148:BB167)/30 -> 12.82333333 | BK158: 0 | BL158: 13.40666667 | BM158: 13.36 | BN158: 12.42 | BO158: 10.8 | BP158: 0 | BT158: 2016-05-28 | BU158: 9.6 | BV158: 0 | BW158: 20.4
A159: 2015-08-28 | B159: 22.8 | C159: 22.8 | D159: 22.8 | E159: 22.8 | F159: 17.4 | G159: 7.036 | H159: 7.036 | I159: 7.036 | J159: 7.036 | K159: -3.64 | L159: -3.64 | M159: -3.64 | N159: -3.64 | O159: -0.5173393974 | P159: -0.5173393974 | Q159: -0.5173393974 | R159: -0.5173393974 | S159: 0 | T159: 0 | U159: 0 | V159: 0 | W159: 0.5173393974 | X159: 0.5173393974 | Y159: 0.5173393974 | Z159: 0.5173393974 | AA159: 0 | AB159: 0.5173393974 | AC159: 639.1169956 | AD159: 738.1246081 | AE159: 763.8372338 | AF159: 763.8372338 | AK159: 0 | AL159: 0 | AM159: 0 | AN159: -0.1724464658 | AO159: -0.1724464658 | AP159: -0.1724464658 | AQ159: -0.1724464658 | AR159: -0.1515400684 | AS159: -0.1515400684 | AT159: -0.1587380222 | AW159: 0 | AX159: 0 | AY159: 0 | AZ159: 0 | BB159: 22.8 | BD159: 22.8 | BE159: 23.1 | BF159: 22.6 | BG159: 19.9 | BJ159: =SUM(BB149:BB168)/30 -> 12.64 | BK159: 0 | BL159: 13.28333333 | BM159: 13.13666667 | BN159: 12.24 | BO159: 10.59 | BP159: 0 | BT159: 2016-05-29 | BU159: 8.4 | BV159: 0 | BW159: 21.6
A160: 2015-08-29 | B160: 22.2 | C160: 22.2 | D160: 22.2 | E160: 22.2 | F160: 17.6 | G160: 6.964 | H160: 6.964 | I160: 6.964 | J160: 6.964 | K160: -3.36 | L160: -3.36 | M160: -3.36 | N160: -3.36 | O160: -0.4824813326 | P160: -0.4824813326 | Q160: -0.4824813326 | R160: -0.4824813326 | S160: 0 | T160: 0 | U160: 0 | V160: 0 | W160: 0.4824813326 | X160: 0.4824813326 | Y160: 0.4824813326 | Z160: 0.4824813326 | AA160: 0 | AB160: 0.4824813326 | AC160: 639.1169956 | AD160: 738.1246081 | AE160: 775.4167858 | AF160: 775.4167858 | AK160: 0 | AL160: 0 | AM160: 0 | AN160: -0.1608271109 | AO160: -0.1608271109 | AP160: -0.1608271109 | AQ160: -0.1608271109 | AR160: -0.1723481732 | AS160: -0.1723481732 | AT160: -0.1797312609 | AW160: 0 | AX160: 0 | AY160: 0 | AZ160: 0 | BB160: 22.2 | BD160: 24.7 | BE160: 25 | BF160: 22 | BG160: 20.8 | BJ160: =SUM(BB150:BB169)/30 -> 12.54333333 | BK160: 0 | BL160: 13.18333333 | BM160: 13.02333333 | BN160: 12.12666667 | BO160: 10.46333333 | BP160: 0 | BT160: 2016-05-30 | BU160: 9.7 | BV160: 0 | BW160: 20.3
A161: 2015-08-30 | B161: 24.6 | C161: 24.6 | D161: 24.6 | E161: 24.6 | F161: 16.8 | G161: 7.252 | H161: 7.252 | I161: 7.252 | J161: 7.252 | K161: -4.48 | L161: -4.48 | M161: -4.48 | N161: -4.48 | O161: -0.6177606178 | P161: -0.6177606178 | Q161: -0.6177606178 | R161: -0.6177606178 | S161: 0 | T161: 0 | U161: 0 | V161: 0 | W161: 0.6177606178 | X161: 0.6177606178 | Y161: 0.6177606178 | Z161: 0.6177606178 | AA161: 0 | AB161: 0.6177606178 | AC161: 639.1169956 | AD161: 738.1246081 | AE161: 790.2430406 | AF161: 790.2430406 | AK161: 0 | AL161: 0 | AM161: 0 | AN161: -0.2059202059 | AO161: -0.2059202059 | AP161: -0.2059202059 | AQ161: -0.2059202059 | AR161: -0.1657516905 | AS161: -0.1657516905 | AT161: -0.195050915 | AW161: 0 | AX161: 0 | AY161: 0 | AZ161: 0 | BB161: 24.6 | BD161: 25.9 | BE161: 25.6 | BF161: 23.9 | BG161: 22.3 | BJ161: =SUM(BB151:BB170)/30 -> 12.45666667 | BK161: 0 | BL161: 13.10333333 | BM161: 12.91333333 | BN161: 12.02333333 | BO161: 10.29 | BP161: 0 | BT161: 2016-05-31 | BU161: 10 | BV161: 0 | BW161: 20
A162: 2015-08-31 | B162: 25.3 | C162: 25.3 | D162: 25.3 | E162: 25.3 | F162: 16.56666667 | G162: 7.336 | H162: 7.336 | I162: 7.336 | J162: 7.336 | K162: -4.806666667 | L162: -4.806666667 | M162: -4.806666667 | N162: -4.806666667 | O162: -0.655216285 | P162: -0.655216285 | Q162: -0.655216285 | R162: -0.655216285 | S162: 0 | T162: 0 | U162: 0 | V162: 0 | W162: 0.655216285 | X162: 0.655216285 | Y162: 0.655216285 | Z162: 0.655216285 | AA162: 0 | AB162: 0.655216285 | AC162: 639.1169956 | AD162: 738.1246081 | AE162: 805.9682314 | AF162: 805.9682314 | AK162: 0 | AL162: 0 | AM162: 0 | AN162: -0.2184054283 | AO162: -0.2184054283 | AP162: -0.2184054283 | AQ162: -0.2184054283 | AR162: -0.1516647427 | AS162: -0.1516647427 | AT162: -0.2148304545 | AW162: 0 | AX162: 0 | AY162: 0 | AZ162: 0 | BB162: 25.3 | BD162: 25.2 | BE162: 25.5 | BF162: 25.3 | BG162: 23.7 | BJ162: =SUM(BB152:BB171)/30 -> 12.29666667 | BK162: 0 | BL162: 12.95333333 | BM162: 12.74 | BN162: 11.89 | BO162: 10.16333333 | BP162: 0 | BT162: 2016-06-01 | BU162: 12.1 | BV162: 0 | BW162: 17.9
A163: 2015-09-01 | B163: 25.4 | C163: 25.4 | D163: 25.4 | E163: 25.4 | F163: 16.53333333 | G163: 7.348 | H163: 7.348 | I163: 7.348 | J163: 7.348 | K163: -4.853333333 | L163: -4.853333333 | M163: -4.853333333 | N163: -4.853333333 | O163: -0.6604971874 | P163: -0.6604971874 | Q163: -0.6604971874 | R163: -0.6604971874 | S163: 0 | T163: 0 | U163: 0 | V163: 0 | W163: 0.6604971874 | X163: 0.6604971874 | Y163: 0.6604971874 | Z163: 0.6604971874 | AA163: 0 | AB163: 0.6604971874 | AC163: 639.1169956 | AD163: 738.1246081 | AE163: 821.8201639 | AF163: 821.8201639 | AK163: 0 | AL163: 0 | AM163: 0 | AN163: -0.2201657291 | AO163: -0.2201657291 | AP163: -0.2201657291 | AQ163: -0.2201657291 | AR163: -0.1333626555 | AS163: -0.1333626555 | AT163: -0.1593758536 | AW163: 0 | AX163: 0 | AY163: 0 | AZ163: 0 | BB163: 25.4 | BD163: 24.3 | BE163: 25 | BF163: 25.1 | BG163: 20.1 | BJ163: =SUM(BB153:BB172)/30 -> 12.05 | BK163: 0 | BL163: 12.82333333 | BM163: 12.61333333 | BN163: 11.64 | BO163: 9.96 | BP163: 0 | BT163: 2016-06-02 | BU163: 15 | BV163: 0 | BW163: 15
A164: 2015-09-02 | B164: 16.6 | C164: 16.6 | D164: 16.6 | E164: 16.6 | F164: 19.46666667 | G164: 6.292 | H164: 6.292 | I164: 6.292 | J164: 6.292 | K164: -0.7466666667 | L164: -0.7466666667 | M164: -0.7466666667 | N164: -0.7466666667 | O164: -0.1186692096 | P164: -0.1186692096 | Q164: -0.1186692096 | R164: -0.1186692096 | S164: 0 | T164: 0 | U164: 0 | V164: 0 | W164: 0.1186692096 | X164: 0.1186692096 | Y164: 0.1186692096 | Z164: 0.1186692096 | AA164: 0 | AB164: 0.1186692096 | AC164: 639.1169956 | AD164: 738.1246081 | AE164: 824.6682249 | AF164: 824.6682249 | AK164: 0 | AL164: 0 | AM164: 0 | AN164: -0.03955640319 | AO164: -0.03955640319 | AP164: -0.03955640319 | AQ164: -0.03955640319 | AR164: -0.1096558786 | AS164: -0.1096558786 | AT164: -0.1013513293 | AW164: 0 | AX164: 0 | AY164: 0 | AZ164: 0 | BB164: 16.6 | BD164: 20.6 | BE164: 19.5 | BF164: 16.2 | BG164: 13.6 | BJ164: =SUM(BB154:BB173)/30 -> 11.9 | BK164: 0 | BL164: 12.71333333 | BM164: 12.47333333 | BN164: 11.48 | BO164: 9.773333333 | BP164: 0 | BT164: 2016-06-03 | BU164: 12.2 | BV164: 0 | BW164: 17.8
A165: 2015-09-03 | B165: 16.8 | C165: 16.8 | D165: 16.8 | E165: 16.8 | F165: 19.4 | G165: 6.316 | H165: 6.316 | I165: 6.316 | J165: 6.316 | K165: -0.84 | L165: -0.84 | M165: -0.84 | N165: -0.84 | O165: -0.1329955668 | P165: -0.1329955668 | Q165: -0.1329955668 | R165: -0.1329955668 | S165: 0 | T165: 0 | U165: 0 | V165: 0 | W165: 0.1329955668 | X165: 0.1329955668 | Y165: 0.1329955668 | Z165: 0.1329955668 | AA165: 0 | AB165: 0.1329955668 | AC165: 639.1169956 | AD165: 738.1246081 | AE165: 827.8601186 | AF165: 827.8601186 | AK165: 0 | AL165: 0 | AM165: 0 | AN165: -0.0443318556 | AO165: -0.0443318556 | AP165: -0.0443318556 | AQ165: -0.0443318556 | AR165: -0.06985089468 | AS165: -0.06985089468 | AT165: -0.04274003813 | AW165: 0 | AX165: 0 | AY165: 0 | AZ165: 0 | BB165: 16.8 | BD165: 17.8 | BE165: 17.8 | BF165: 16.2 | BG165: 12.9 | BJ165: =SUM(BB155:BB174)/30 -> 11.80666667 | BK165: 0 | BL165: 12.66333333 | BM165: 12.40666667 | BN165: 11.38333333 | BO165: 9.683333333 | BP165: 0 | BT165: 2016-06-04 | BU165: 10.5 | BV165: 0 | BW165: 19.5
A166: 2015-09-04 | B166: 16.8 | C166: 16.8 | D166: 16.8 | E166: 16.8 | F166: 19.4 | G166: 6.316 | H166: 6.316 | I166: 6.316 | J166: 6.316 | K166: -0.84 | L166: -0.84 | M166: -0.84 | N166: -0.84 | O166: -0.1329955668 | P166: -0.1329955668 | Q166: -0.1329955668 | R166: -0.1329955668 | S166: 0 | T166: 0 | U166: 0 | V166: 0 | W166: 0.1329955668 | X166: 0.1329955668 | Y166: 0.1329955668 | Z166: 0.1329955668 | AA166: 0 | AB166: 0.1329955668 | AC166: 639.1169956 | AD166: 738.1246081 | AE166: 831.0520122 | AF166: 831.0520122 | AK166: 0 | AL166: 0 | AM166: 0 | AN166: -0.0443318556 | AO166: -0.0443318556 | AP166: -0.0443318556 | AQ166: -0.0443318556 | AR166: -0.02785514657 | AS166: -0.02785514657 | AT166: -0.0278477945 | AW166: 0 | AX166: 0 | AY166: 0 | AZ166: 0 | BB166: 16.8 | BD166: 18.8 | BE166: 17.7 | BF166: 15.4 | BG166: 12.3 | BJ166: =SUM(BB156:BB175)/30 -> 11.70333333 | BK166: 0 | BL166: 12.57666667 | BM166: 12.31333333 | BN166: 11.28 | BO166: 9.583333333 | BP166: 0 | BT166: 2016-06-05 | BU166: 10.5 | BV166: 0 | BW166: 19.5
A167: 2015-09-05 | B167: 14.8 | C167: 14.8 | D167: 14.8 | E167: 14.8 | F167: 20.06666667 | G167: 6.076 | H167: 6.076 | I167: 6.076 | J167: 6.076 | K167: 0.09333333333 | L167: 0.09333333333 | M167: 0.09333333333 | N167: 0.09333333333 | O167: 0.0153609831 | P167: 0.0153609831 | Q167: 0.0153609831 | R167: 0.0153609831 | S167: 0.0153609831 | T167: 0.0153609831 | U167: 0.0153609831 | V167: 0.0153609831 | W167: 0 | X167: 0 | Y167: 0 | Z167: 0 | AA167: 0.0153609831 | AB167: 0 | AC167: 639.4856592 | AD167: 738.4932717 | AE167: 831.0520122 | AF167: 831.0520122 | AK167: 0 | AL167: 0 | AM167: 1 | AN167: 0.005120327701 | AO167: 0.005120327701 | AP167: 0.005120327701 | AQ167: 0.005120327701 | AR167: 0.01078753339 | AS167: 0.01078753339 | AT167: 0.01116771785 | AW167: 0.09333333333 | AX167: 0.09333333333 | AY167: 0.09333333333 | AZ167: 0.09333333333 | BB167: 14.8 | BD167: 15.9 | BE167: 16.3 | BF167: 13.6 | BG167: 9.5 | BJ167: =SUM(BB157:BB176)/30 -> 11.62666667 | BK167: 0 | BL167: 12.57 | BM167: 12.33 | BN167: 11.21 | BO167: 9.57 | BP167: 0 | BT167: 2016-06-06 | BU167: 12.7 | BV167: 0 | BW167: 17.3
A168: 2015-09-06 | B168: 12.3 | C168: 12.3 | D168: 12.3 | E168: 12.3 | F168: 20.9 | G168: 5.776 | H168: 5.776 | I168: 5.776 | J168: 5.776 | K168: 1.26 | L168: 1.26 | M168: 1.26 | N168: 1.26 | O168: 0.2181440443 | P168: 0.2181440443 | Q168: 0.2181440443 | R168: 0.2181440443 | S168: 0.2181440443 | T168: 0.2181440443 | U168: 0.2181440443 | V168: 0.2181440443 | W168: 0 | X168: 0 | Y168: 0 | Z168: 0 | AA168: 0.2181440443 | AB168: 0 | AC168: 644.7211163 | AD168: 743.7287287 | AE168: 831.0520122 | AF168: 831.0520122 | AK168: 0 | AL168: 0 | AM168: 1 | AN168: 0.07271468144 | AO168: 0.07271468144 | AP168: 0.07271468144 | AQ168: 0.07271468144 | AR168: 0.0252143944 | AS168: 0.0252143944 | AT168: 0.05113327251 | AW168: 1.26 | AX168: 1.26 | AY168: 1.26 | AZ168: 1.26 | BB168: 12.3 | BD168: 15.4 | BE168: 13.8 | BF168: 11.5 | BG168: 8.4 | BJ168: =SUM(BB158:BB177)/30 -> 11.54666667 | BK168: 0 | BL168: 12.53333333 | BM168: 12.27333333 | BN168: 11.11666667 | BO168: 9.476666667 | BP168: 0 | BT168: 2016-06-07 | BU168: 14.5 | BV168: 0 | BW168: 15.5
A169: 2015-09-07 | B169: 12.2 | C169: 12.2 | D169: 12.2 | E169: 12.2 | F169: 20.93333333 | G169: 5.764 | H169: 5.764 | I169: 5.764 | J169: 5.764 | K169: 1.306666667 | L169: 1.306666667 | M169: 1.306666667 | N169: 1.306666667 | O169: 0.2266944252 | P169: 0.2266944252 | Q169: 0.2266944252 | R169: 0.2266944252 | S169: 0.2266944252 | T169: 0.2266944252 | U169: 0.2266944252 | V169: 0.2266944252 | W169: 0 | X169: 0 | Y169: 0 | Z169: 0 | AA169: 0.2266944252 | AB169: 0 | AC169: 650.1617825 | AD169: 749.169395 | AE169: 831.0520122 | AF169: 831.0520122 | AK169: 0 | AL169: 0 | AM169: 1 | AN169: 0.07556480839 | AO169: 0.07556480839 | AP169: 0.07556480839 | AQ169: 0.07556480839 | AR169: 0.04524078737 | AS169: 0.04524078737 | AT169: 0.06620417347 | AW169: 1.306666667 | AX169: 1.306666667 | AY169: 1.306666667 | AZ169: 1.306666667 | BB169: 12.2 | BD169: 14.4 | BE169: 12.6 | BF169: 11.3 | BG169: 9.2 | BJ169: =SUM(BB159:BB178)/30 -> 11.45666667 | BK169: 0 | BL169: 12.50666667 | BM169: 12.24666667 | BN169: 11.02666667 | BO169: 9.343333333 | BP169: 0 | BT169: 2016-06-08 | BU169: 13.4 | BV169: 0 | BW169: 16.6
A170: 2015-09-08 | B170: 13.1 | C170: 13.1 | D170: 13.1 | E170: 13.1 | F170: 20.63333333 | G170: 5.872 | H170: 5.872 | I170: 5.872 | J170: 5.872 | K170: 0.8866666667 | L170: 0.8866666667 | M170: 0.8866666667 | N170: 0.8866666667 | O170: 0.1509990917 | P170: 0.1509990917 | Q170: 0.1509990917 | R170: 0.1509990917 | S170: 0.1509990917 | T170: 0.1509990917 | U170: 0.1509990917 | V170: 0.1509990917 | W170: 0 | X170: 0 | Y170: 0 | Z170: 0 | AA170: 0.1509990917 | AB170: 0 | AC170: 653.7857607 | AD170: 752.7933732 | AE170: 831.0520122 | AF170: 831.0520122 | AK170: 14.62857143 | AL170: 1 | AM170: 1 | AN170: 0.05033303058 | AO170: 0.05033303058 | AP170: 0.05033303058 | AQ170: 0.05033303058 | AR170: 0.05798126675 | AS170: 0.05798126675 | AT170: 0.0624431543 | AW170: 0.8866666667 | AX170: 0.8866666667 | AY170: 0.8866666667 | AZ170: 0.8866666667 | BB170: 13.1 | BD170: 14.4 | BE170: 13 | BF170: 12 | BG170: 8.2 | BJ170: =SUM(BB160:BB179)/30 -> 11.38666667 | BK170: 0 | BL170: 12.54 | BM170: 12.25666667 | BN170: 10.95666667 | BO170: 9.24 | BP170: 0 | BT170: 2016-06-09 | BU170: 13 | BV170: 0 | BW170: 17
A171: 2015-09-09 | B171: =BB171+A$7 -> 12.7 | C171: 12.7 | D171: 12.7 | E171: 12.7 | F171: =F$8+(H$7-F$8)*(M$6-B171)/30 -> 20.76666667 | G171: =IF((B171+35-$F171)*$H$5+$H$6>1,(B171+35-$F171)*$H$5+$H$6,1) -> 5.824 | H171: =IF((C171+35-$F171)*$H$5+$H$6>1,(C171+35-$F171)*$H$5+$H$6,1) -> 5.824 | I171: =IF((D171+35-$F171)*$H$5+$H$6>1,(D171+35-$F171)*$H$5+$H$6,1) -> 5.824 | J171: =IF((E171+35-$F171)*$H$5+$H$6>1,(E171+35-$F171)*$H$5+$H$6,1) -> 5.824 | K171: =$M$5*($M$6-B171)/30-$O$5 -> 1.073333333 | L171: =$M$5*($M$6-C171)/30-$O$5 -> 1.073333333 | M171: =$M$5*($M$6-D171)/30-$O$5 -> 1.073333333 | N171: =$M$5*($M$6-E171)/30-$O$5 -> 1.073333333 | O171: =IF(K171/G171>$M$7,$M$7+K171-$M$7*G171,K171/G171) -> 0.1842948718 | P171: =IF(L171/H171>$M$7,$M$7+L171-$M$7*H171,L171/H171) -> 0.1842948718 | Q171: =IF(M171/I171>$M$7,$M$7+M171-$M$7*I171,M171/I171) -> 0.1842948718 | R171: =IF(N171/J171>$M$7,$M$7+N171-$M$7*J171,N171/J171) -> 0.1842948718 | S171: =IF(O171>0,O171,) -> 0.1842948718 | T171: =IF(P171>0,P171,) -> 0.1842948718 | U171: =IF(Q171>0,Q171,) -> 0.1842948718 | V171: =IF(R171>0,R171,) -> 0.1842948718 | W171: =IF(O171<0,-O171,0) -> 0 | X171: =IF(P171<0,-P171,0) -> 0 | Y171: =IF(Q171<0,-Q171,0) -> 0 | Z171: =IF(R171<0,-R171,0) -> 0 | AA171: =IF(SUM(O171:R171)/4>0,SUM(O171:R171)/4,) -> 0.1842948718 | AB171: =IF(SUM(O171:R171)/4<0,-SUM(O171:R171)/4,) -> 0 | AC171: =6*SUM(S171:V171)+AC170 -> 658.2088376 | AD171: =AD170+AA171*24 -> 757.2164501 | AE171: =6*SUM(W171:Z171)+AE170 -> 831.0520122 | AF171: =AF170+AB171*24 -> 831.0520122 | AK171: =IF(SUM(B165:B178)/14<$C$7,SUM(B165:B178)/14,0) -> 14.77142857 | AL171: =IF(SUM(B165:B178)/14<$C$7,1,0) -> 1 | AM171: =IF(SUM(AN168:AQ174)>0,1,0) -> 1 | AN171: =K171/G171/$M$7 -> 0.06143162393 | AO171: =L171/H171/$M$7 -> 0.06143162393 | AP171: =M171/I171/$M$7 -> 0.06143162393 | AQ171: =N171/J171/$M$7 -> 0.06143162393 | AR171: =SUM(AO168:AO174)/7 -> 0.05724979137 | AS171: =SUM(AQ168:AQ174)/7 -> 0.05724979137 | AT171: =SUM(AN170:AQ172)/12 -> 0.06920584989 | AW171: =IF(K171>0,K171,0) -> 1.073333333 | AX171: =IF(L171>0,L171,0) -> 1.073333333 | AY171: =IF(M171>0,M171,0) -> 1.073333333 | AZ171: =IF(N171>0,N171,0) -> 1.073333333 | BB171: 12.7 | BD171: 12.2 | BE171: 12.9 | BF171: 12.4 | BG171: 10.7 | BJ171: =SUM(BB161:BB180)/30 -> 11.17333333 | BK171: 0 | BL171: 12.35 | BM171: 11.99333333 | BN171: 10.72666667 | BO171: 8.953333333 | BP171: 0 | BT171: 2016-06-10 | BU171: 12.9 | BV171: 0 | BW171: 17.1
A172: 2015-09-10 | B172: 11.5 | C172: 11.5 | D172: 11.5 | E172: 11.5 | F172: 21.16666667 | G172: 5.68 | H172: 5.68 | I172: 5.68 | J172: 5.68 | K172: 1.633333333 | L172: 1.633333333 | M172: 1.633333333 | N172: 1.633333333 | O172: 0.2875586854 | P172: 0.2875586854 | Q172: 0.2875586854 | R172: 0.2875586854 | S172: 0.2875586854 | T172: 0.2875586854 | U172: 0.2875586854 | V172: 0.2875586854 | W172: 0 | X172: 0 | Y172: 0 | Z172: 0 | AA172: 0.2875586854 | AB172: 0 | AC172: 665.1102461 | AD172: 764.1178585 | AE172: 831.0520122 | AF172: 831.0520122 | AK172: 0 | AL172: 0 | AM172: 1 | AN172: 0.09585289515 | AO172: 0.09585289515 | AP172: 0.09585289515 | AQ172: 0.09585289515 | AR172: 0.03752200464 | AS172: 0.03752200464 | AT172: 0.06737867305 | AW172: 1.633333333 | AX172: 1.633333333 | AY172: 1.633333333 | AZ172: 1.633333333 | BB172: 11.5 | BD172: 14.7 | BE172: 15 | BF172: 10.7 | BG172: 9.6 | BJ172: =SUM(BB162:BB181)/30 -> 10.87666667 | BK172: 0 | BL172: 12.09666667 | BM172: 11.70666667 | BN172: 10.43666667 | BO172: 8.603333333 | BP172: 0 | BT172: 2016-06-11 | BU172: 13.5 | BV172: 0 | BW172: 16.5
A173: 2015-09-11 | B173: 13.3 | C173: 13.3 | D173: 13.3 | E173: 13.3 | F173: 20.56666667 | G173: 5.896 | H173: 5.896 | I173: 5.896 | J173: 5.896 | K173: 0.7933333333 | L173: 0.7933333333 | M173: 0.7933333333 | N173: 0.7933333333 | O173: 0.1345545002 | P173: 0.1345545002 | Q173: 0.1345545002 | R173: 0.1345545002 | S173: 0.1345545002 | T173: 0.1345545002 | U173: 0.1345545002 | V173: 0.1345545002 | W173: 0 | X173: 0 | Y173: 0 | Z173: 0 | AA173: 0.1345545002 | AB173: 0 | AC173: 668.3395541 | AD173: 767.3471665 | AE173: 831.0520122 | AF173: 831.0520122 | AK173: 14.97857143 | AL173: 1 | AM173: 1 | AN173: 0.04485150008 | AO173: 0.04485150008 | AP173: 0.04485150008 | AQ173: 0.04485150008 | AR173: 0.02385779738 | AS173: 0.02385779738 | AT173: 0.04690146507 | AW173: 0.7933333333 | AX173: 0.7933333333 | AY173: 0.7933333333 | AZ173: 0.7933333333 | BB173: 13.3 | BD173: 15 | BE173: 14.4 | BF173: 12.2 | BG173: 9.4 | BJ173: =SUM(BB163:BB182)/30 -> 10.47666667 | BK173: 0 | BL173: 11.81666667 | BM173: 11.37666667 | BN173: 9.99 | BO173: 8.146666667 | BP173: 0 | BT173: 2016-06-12 | BU173: 11.9 | BV173: 0 | BW173: 18.1
A174: 2015-09-12 | B174: 15 | C174: 15 | D174: 15 | E174: 15 | F174: 20 | G174: 6.1 | H174: 6.1 | I174: 6.1 | J174: 6.1 | K174: 0 | L174: 0 | M174: 0 | N174: 0 | O174: 0 | P174: 0 | Q174: 0 | R174: 0 | S174: 0 | T174: 0 | U174: 0 | V174: 0 | W174: 0 | X174: 0 | Y174: 0 | Z174: 0 | AA174: 0 | AB174: 0 | AC174: 668.3395541 | AD174: 767.3471665 | AE174: 831.0520122 | AF174: 831.0520122 | AK174: 0 | AL174: 0 | AM174: 1 | AN174: 0 | AO174: 0 | AP174: 0 | AQ174: 0 | AR174: 0.01239659784 | AS174: 0.01239659784 | AT174: -0.006842775193 | AW174: 0 | AX174: 0 | AY174: 0 | AZ174: 0 | BB174: 15 | BD174: 17 | BE174: 16.2 | BF174: 14.3 | BG174: 13.2 | BJ174: =SUM(BB164:BB183)/30 -> 10.06333333 | BK174: 0 | BL174: 11.47 | BM174: 10.94 | BN174: 9.566666667 | BO174: 7.82 | BP174: 0 | BT174: 2016-06-13 | BU174: 10.8 | BV174: 0 | BW174: 19.2
A175: 2015-09-13 | B175: 17.7 | C175: 17.7 | D175: 17.7 | E175: 17.7 | F175: 19.1 | G175: 6.424 | H175: 6.424 | I175: 6.424 | J175: 6.424 | K175: -1.26 | L175: -1.26 | M175: -1.26 | N175: -1.26 | O175: -0.196139477 | P175: -0.196139477 | Q175: -0.196139477 | R175: -0.196139477 | S175: 0 | T175: 0 | U175: 0 | V175: 0 | W175: 0.196139477 | X175: 0.196139477 | Y175: 0.196139477 | Z175: 0.196139477 | AA175: 0 | AB175: 0.196139477 | AC175: 668.3395541 | AD175: 767.3471665 | AE175: 835.7593596 | AF175: 835.7593596 | AK175: 0 | AL175: 0 | AM175: 0 | AN175: -0.06537982565 | AO175: -0.06537982565 | AP175: -0.06537982565 | AQ175: -0.06537982565 | AR175: -0.008626745867 | AS175: -0.008626745867 | AT175: -0.02848815603 | AW175: 0 | AX175: 0 | AY175: 0 | AZ175: 0 | BB175: 17.7 | BD175: 18.9 | BE175: 18.4 | BF175: 16.9 | BG175: 15.2 | BJ175: =SUM(BB165:BB184)/30 -> 9.973333333 | BK175: 0 | BL175: 11.27333333 | BM175: 10.74333333 | BN175: 9.476666667 | BO175: 7.73 | BP175: 0 | BT175: 2016-06-14 | BU175: 11.9 | BV175: 0 | BW175: 18.1
A176: 2015-09-14 | B176: 15.8 | C176: 15.8 | D176: 15.8 | E176: 15.8 | F176: 19.73333333 | G176: 6.196 | H176: 6.196 | I176: 6.196 | J176: 6.196 | K176: -0.3733333333 | L176: -0.3733333333 | M176: -0.3733333333 | N176: -0.3733333333 | O176: -0.06025392726 | P176: -0.06025392726 | Q176: -0.06025392726 | R176: -0.06025392726 | S176: 0 | T176: 0 | U176: 0 | V176: 0 | W176: 0.06025392726 | X176: 0.06025392726 | Y176: 0.06025392726 | Z176: 0.06025392726 | AA176: 0 | AB176: 0.06025392726 | AC176: 668.3395541 | AD176: 767.3471665 | AE176: 837.2054539 | AF176: 837.2054539 | AK176: 0 | AL176: 0 | AM176: 0 | AN176: -0.02008464242 | AO176: -0.02008464242 | AP176: -0.02008464242 | AQ176: -0.02008464242 | AR176: -0.04099140025 | AS176: -0.04099140025 | AT176: -0.0384532781 | AW176: 0 | AX176: 0 | AY176: 0 | AZ176: 0 | BB176: 15.8 | BD176: 19 | BE176: 19.3 | BF176: 15.1 | BG176: 13.2 | BJ176: =SUM(BB166:BB185)/30 -> 9.85 | BK176: 0 | BL176: 11.15 | BM176: 10.66666667 | BN176: 9.353333333 | BO176: 7.633333333 | BP176: 0 | BT176: 2016-06-15 | BU176: 12.9 | BV176: 0 | BW176: 17.1
A177: 2015-09-15 | B177: 16.2 | C177: 16.2 | D177: 16.2 | E177: 16.2 | F177: 19.6 | G177: 6.244 | H177: 6.244 | I177: 6.244 | J177: 6.244 | K177: -0.56 | L177: -0.56 | M177: -0.56 | N177: -0.56 | O177: -0.08968609865 | P177: -0.08968609865 | Q177: -0.08968609865 | R177: -0.08968609865 | S177: 0 | T177: 0 | U177: 0 | V177: 0 | W177: 0.08968609865 | X177: 0.08968609865 | Y177: 0.08968609865 | Z177: 0.08968609865 | AA177: 0 | AB177: 0.08968609865 | AC177: 668.3395541 | AD177: 767.3471665 | AE177: 839.3579202 | AF177: 839.3579202 | AK177: 0 | AL177: 0 | AM177: 0 | AN177: -0.02989536622 | AO177: -0.02989536622 | AP177: -0.02989536622 | AQ177: -0.02989536622 | AR177: -0.05026799204 | AS177: -0.05026799204 | AT177: -0.04523726355 | AW177: 0 | AX177: 0 | AY177: 0 | AZ177: 0 | BB177: 16.2 | BD177: 17.1 | BE177: 16.4 | BF177: 15.6 | BG177: 12.6 | BJ177: =SUM(BB167:BB186)/30 -> 9.706666667 | BK177: 0 | BL177: 10.98333333 | BM177: 10.60666667 | BN177: 9.233333333 | BO177: 7.516666667 | BP177: 0 | BT177: 2016-06-16 | BU177: 10.5 | BV177: 0 | BW177: 19.5
A178: 2015-09-16 | B178: 18.6 | C178: 18.6 | D178: 18.6 | E178: 18.6 | F178: 18.8 | G178: 6.532 | H178: 6.532 | I178: 6.532 | J178: 6.532 | K178: -1.68 | L178: -1.68 | M178: -1.68 | N178: -1.68 | O178: -0.257195346 | P178: -0.257195346 | Q178: -0.257195346 | R178: -0.257195346 | S178: 0 | T178: 0 | U178: 0 | V178: 0 | W178: 0.257195346 | X178: 0.257195346 | Y178: 0.257195346 | Z178: 0.257195346 | AA178: 0 | AB178: 0.257195346 | AC178: 668.3395541 | AD178: 767.3471665 | AE178: 845.5306085 | AF178: 845.5306085 | AK178: 0 | AL178: 0 | AM178: 0 | AN178: -0.085731782 | AO178: -0.085731782 | AP178: -0.085731782 | AQ178: -0.085731782 | AR178: -0.0527834441 | AS178: -0.0527834441 | AT178: -0.08210894458 | AW178: 0 | AX178: 0 | AY178: 0 | AZ178: 0 | BB178: 18.6 | BD178: 21.1 | BE178: 19.9 | BF178: 18.5 | BG178: 15.5 | BJ178: =SUM(BB168:BB187)/30 -> 9.666666667 | BK178: 0 | BL178: 10.92 | BM178: 10.57666667 | BN178: 9.213333333 | BO178: 7.53 | BP178: 0 | BT178: 2016-06-17 | BU178: 6.5 | BV178: 0 | BW178: 23.5
A179: 2015-09-17 | B179: 20.7 | C179: =$B179+C$9 -> 20.7 | D179: 20.7 | E179: 20.7 | F179: 18.1 | G179: 6.784 | H179: 6.784 | I179: 6.784 | J179: 6.784 | K179: -2.66 | L179: -2.66 | M179: -2.66 | N179: -2.66 | O179: -0.3920990566 | P179: -0.3920990566 | Q179: -0.3920990566 | R179: -0.3920990566 | S179: 0 | T179: 0 | U179: 0 | V179: 0 | W179: 0.3920990566 | X179: 0.3920990566 | Y179: 0.3920990566 | Z179: 0.3920990566 | AA179: 0 | AB179: 0.3920990566 | AC179: 668.3395541 | AD179: 767.3471665 | AE179: 854.9409859 | AF179: 854.9409859 | AK179: 0 | AL179: 0 | AM179: 0 | AN179: -0.1306996855 | AO179: -0.1306996855 | AP179: -0.1306996855 | AQ179: -0.1306996855 | AR179: -0.03703611185 | AS179: -0.03703611185 | AT179: -0.07883870332 | AW179: 0 | AX179: 0 | AY179: 0 | AZ179: 0 | BB179: 20.7 | BD179: 23.8 | BE179: 23.4 | BF179: 20.5 | BG179: 16.8 | BJ179: =SUM(BB169:BB188)/30 -> 9.723333333 | BK179: 0 | BL179: 10.87 | BM179: 10.6 | BN179: 9.266666667 | BO179: 7.603333333 | BP179: 0 | BT179: 2016-06-18 | BU179: 8.8 | BV179: 0 | BW179: 21.2
A180: 2015-09-18 | B180: 15.8 | C180: 15.8 | D180: 15.8 | E180: 15.8 | F180: 19.73333333 | G180: 6.196 | H180: 6.196 | I180: 6.196 | J180: 6.196 | K180: -0.3733333333 | L180: -0.3733333333 | M180: -0.3733333333 | N180: -0.3733333333 | O180: -0.06025392726 | P180: -0.06025392726 | Q180: -0.06025392726 | R180: -0.06025392726 | S180: 0 | T180: 0 | U180: 0 | V180: 0 | W180: 0.06025392726 | X180: 0.06025392726 | Y180: 0.06025392726 | Z180: 0.06025392726 | AA180: 0 | AB180: 0.06025392726 | AC180: 668.3395541 | AD180: 767.3471665 | AE180: 856.3870801 | AF180: 856.3870801 | AK180: 0 | AL180: 0 | AM180: 0 | AN180: -0.02008464242 | AO180: -0.02008464242 | AP180: -0.02008464242 | AQ180: -0.02008464242 | AR180: -0.02658250103 | AS180: -0.02658250103 | AT180: -0.0561308308 | AW180: 0 | AX180: 0 | AY180: 0 | AZ180: 0 | BB180: 15.8 | BD180: 19 | BE180: 17.1 | BF180: 15.1 | BG180: 12.2 | BJ180: =SUM(BB170:BB189)/30 -> 9.716666667 | BK180: 0 | BL180: 10.84 | BM180: 10.62666667 | BN180: 9.27 | BO180: 7.606666667 | BP180: 0 | BT180: 2016-06-19 | BU180: 7.3 | BV180: 0 | BW180: 22.7
A181: 2015-09-19 | B181: 15.7 | C181: 15.7 | D181: 15.7 | E181: 15.7 | F181: 19.76666667 | G181: 6.184 | H181: 6.184 | I181: 6.184 | J181: 6.184 | K181: -0.3266666667 | L181: -0.3266666667 | M181: -0.3266666667 | N181: -0.3266666667 | O181: -0.05282449332 | P181: -0.05282449332 | Q181: -0.05282449332 | R181: -0.05282449332 | S181: 0 | T181: 0 | U181: 0 | V181: 0 | W181: 0.05282449332 | X181: 0.05282449332 | Y181: 0.05282449332 | Z181: 0.05282449332 | AA181: 0 | AB181: 0.05282449332 | AC181: 668.3395541 | AD181: 767.3471665 | AE181: 857.654868 | AF181: 857.654868 | AK181: 0 | AL181: 0 | AM181: 0 | AN181: -0.01760816444 | AO181: -0.01760816444 | AP181: -0.01760816444 | AQ181: -0.01760816444 | AR181: -0.01821581546 | AS181: -0.01821581546 | AT181: 0.002386231072 | AW181: 0 | AX181: 0 | AY181: 0 | AZ181: 0 | BB181: 15.7 | BD181: 18.3 | BE181: 17 | BF181: 15.2 | BG181: 11.8 | BJ181: =SUM(BB171:BB190)/30 -> 9.683333333 | BK181: 0 | BL181: 10.78333333 | BM181: 10.62333333 | BN181: 9.253333333 | BO181: 7.653333333 | BP181: 0 | BT181: 2016-06-20 | BU181: 8.2 | BV181: 0 | BW181: 21.8
A182: 2015-09-20 | B182: 13.3 | C182: 13.3 | D182: 13.3 | E182: 13.3 | F182: 20.56666667 | G182: 5.896 | H182: 5.896 | I182: 5.896 | J182: 5.896 | K182: 0.7933333333 | L182: 0.7933333333 | M182: 0.7933333333 | N182: 0.7933333333 | O182: 0.1345545002 | P182: 0.1345545002 | Q182: 0.1345545002 | R182: 0.1345545002 | S182: 0.1345545002 | T182: 0.1345545002 | U182: 0.1345545002 | V182: 0.1345545002 | W182: 0 | X182: 0 | Y182: 0 | Z182: 0 | AA182: 0.1345545002 | AB182: 0 | AC182: 671.5688621 | AD182: 770.5764745 | AE182: 857.654868 | AF182: 857.654868 | AK182: 14.87142857 | AL182: 1 | AM182: 1 | AN182: 0.04485150008 | AO182: 0.04485150008 | AP182: 0.04485150008 | AQ182: 0.04485150008 | AR182: 0.001222014912 | AS182: 0.001222014912 | AT182: 0.02677798964 | AW182: 0.7933333333 | AX182: 0.7933333333 | AY182: 0.7933333333 | AZ182: 0.7933333333 | BB182: 13.3 | BD182: 16.8 | BE182: 15.6 | BF182: 11.9 | BG182: 10 | BJ182: =SUM(BB172:BB191)/30 -> 9.636666667 | BK182: 0 | BL182: 10.75666667 | BM182: 10.6 | BN182: 9.193333333 | BO182: 7.606666667 | BP182: 0 | BT182: 2016-06-21 | BU182: 7.1 | BV182: 0 | BW182: 22.9
A183: 2015-09-21 | B183: 13 | C183: 13 | D183: 13 | E183: 13 | F183: 20.66666667 | G183: 5.86 | H183: 5.86 | I183: 5.86 | J183: 5.86 | K183: 0.9333333333 | L183: 0.9333333333 | M183: 0.9333333333 | N183: 0.9333333333 | O183: 0.1592718999 | P183: 0.1592718999 | Q183: 0.1592718999 | R183: 0.1592718999 | S183: 0.1592718999 | T183: 0.1592718999 | U183: 0.1592718999 | V183: 0.1592718999 | W183: 0 | X183: 0 | Y183: 0 | Z183: 0 | AA183: 0.1592718999 | AB183: 0 | AC183: 675.3913877 | AD183: 774.3990001 | AE183: 857.654868 | AF183: 857.654868 | AK183: 14.60714286 | AL183: 1 | AM183: 1 | AN183: 0.0530906333 | AO183: 0.0530906333 | AP183: 0.0530906333 | AQ183: 0.0530906333 | AR183: 0.02947194262 | AS183: 0.02947194262 | AT183: 0.04220452207 | AW183: 0.9333333333 | AX183: 0.9333333333 | AY183: 0.9333333333 | AZ183: 0.9333333333 | BB183: 13 | BD183: 13.9 | BE183: 11.9 | BF183: 12.4 | BG183: 10.3 | BJ183: =SUM(BB173:BB192)/30 -> 9.58 | BK183: 0 | BL183: 10.60333333 | BM183: 10.45666667 | BN183: 9.14 | BO183: 7.55 | BP183: 0 | BT183: 2016-06-22 | BU183: 4.6 | BV183: 0 | BW183: 25.4
A184: 2015-09-22 | B184: 13.9 | C184: 13.9 | D184: 13.9 | E184: 13.9 | F184: 20.36666667 | G184: 5.968 | H184: 5.968 | I184: 5.968 | J184: 5.968 | K184: 0.5133333333 | L184: 0.5133333333 | M184: 0.5133333333 | N184: 0.5133333333 | O184: 0.08601429848 | P184: 0.08601429848 | Q184: 0.08601429848 | R184: 0.08601429848 | S184: 0.08601429848 | T184: 0.08601429848 | U184: 0.08601429848 | V184: 0.08601429848 | W184: 0 | X184: 0 | Y184: 0 | Z184: 0 | AA184: 0.08601429848 | AB184: 0 | AC184: 677.4557308 | AD184: 776.4633433 | AE184: 857.654868 | AF184: 857.654868 | AK184: 14.25714286 | AL184: 1 | AM184: 1 | AN184: 0.02867143283 | AO184: 0.02867143283 | AP184: 0.02867143283 | AQ184: 0.02867143283 | AR184: 0.03758580151 | AS184: 0.03758580151 | AT184: 0.0440316989 | AW184: 0.5133333333 | AX184: 0.5133333333 | AY184: 0.5133333333 | AZ184: 0.5133333333 | BB184: 13.9 | BD184: 14.7 | BE184: 13.6 | BF184: 13.5 | BG184: 10.9 | BJ184: =SUM(BB174:BB193)/30 -> 9.413333333 | BK184: 0 | BL184: 10.46333333 | BM184: 10.30333333 | BN184: 9.003333333 | BO184: 7.456666667 | BP184: 0 | BT184: 2016-06-23 | BU184: 4.5 | BV184: 0 | BW184: 25.5
A185: 2015-09-23 | B185: 13.1 | C185: 13.1 | D185: 13.1 | E185: 13.1 | F185: 20.63333333 | G185: 5.872 | H185: 5.872 | I185: 5.872 | J185: 5.872 | K185: 0.8866666667 | L185: 0.8866666667 | M185: 0.8866666667 | N185: 0.8866666667 | O185: 0.1509990917 | P185: 0.1509990917 | Q185: 0.1509990917 | R185: 0.1509990917 | S185: 0.1509990917 | T185: 0.1509990917 | U185: 0.1509990917 | V185: 0.1509990917 | W185: 0 | X185: 0 | Y185: 0 | Z185: 0 | AA185: 0.1509990917 | AB185: 0 | AC185: 681.079709 | AD185: 780.0873215 | AE185: 857.654868 | AF185: 857.654868 | AK185: 13.62857143 | AL185: 1 | AM185: 1 | AN185: 0.05033303058 | AO185: 0.05033303058 | AP185: 0.05033303058 | AQ185: 0.05033303058 | AR185: 0.04381734425 | AS185: 0.04381734425 | AT185: 0.04868475728 | AW185: 0.8866666667 | AX185: 0.8866666667 | AY185: 0.8866666667 | AZ185: 0.8866666667 | BB185: 13.1 | BD185: 14.1 | BE185: 15.5 | BF185: 12.5 | BG185: 10 | BJ185: =SUM(BB175:BB194)/30 -> 9.273333333 | BK185: 0 | BL185: 10.31666667 | BM185: 10.11 | BN185: 8.85 | BO185: 7.323333333 | BP185: 0 | BT185: 2016-06-24 | BU185: 3.7 | BV185: 0 | BW185: 26.3
A186: 2015-09-24 | B186: 12.5 | C186: 12.5 | D186: 12.5 | E186: 12.5 | F186: 20.83333333 | G186: 5.8 | H186: 5.8 | I186: 5.8 | J186: 5.8 | K186: 1.166666667 | L186: 1.166666667 | M186: 1.166666667 | N186: 1.166666667 | O186: 0.2011494253 | P186: 0.2011494253 | Q186: 0.2011494253 | R186: 0.2011494253 | S186: 0.2011494253 | T186: 0.2011494253 | U186: 0.2011494253 | V186: 0.2011494253 | W186: 0 | X186: 0 | Y186: 0 | Z186: 0 | AA186: 0.2011494253 | AB186: 0 | AC186: 685.9072953 | AD186: 784.9149077 | AE186: 857.654868 | AF186: 857.654868 | AK186: 12.74285714 | AL186: 1 | AM186: 1 | AN186: 0.06704980843 | AO186: 0.06704980843 | AP186: 0.06704980843 | AQ186: 0.06704980843 | AR186: 0.04902438895 | AS186: 0.04902438895 | AT186: 0.05136506961 | AW186: 1.166666667 | AX186: 1.166666667 | AY186: 1.166666667 | AZ186: 1.166666667 | BB186: 12.5 | BD186: 13.8 | BE186: 15.9 | BF186: 11.8 | BG186: 8.8 | BJ186: =SUM(BB176:BB195)/30 -> 9.116666667 | BK186: 0 | BL186: 10.19666667 | BM186: 9.97 | BN186: 8.69 | BO186: 7.176666667 | BP186: 0 | BT186: 2016-06-25 | BU186: 3.4 | BV186: 0 | BW186: 26.6
A187: 2015-09-25 | B187: 13.6 | C187: 13.6 | D187: 13.6 | E187: 13.6 | F187: 20.46666667 | G187: 5.932 | H187: 5.932 | I187: 5.932 | J187: 5.932 | K187: 0.6533333333 | L187: 0.6533333333 | M187: 0.6533333333 | N187: 0.6533333333 | O187: 0.1101371095 | P187: 0.1101371095 | Q187: 0.1101371095 | R187: 0.1101371095 | S187: 0.1101371095 | T187: 0.1101371095 | U187: 0.1101371095 | V187: 0.1101371095 | W187: 0 | X187: 0 | Y187: 0 | Z187: 0 | AA187: 0.1101371095 | AB187: 0 | AC187: 688.5505859 | AD187: 787.5581983 | AE187: 857.654868 | AF187: 857.654868 | AK187: 12.38571429 | AL187: 1 | AM187: 1 | AN187: 0.03671236982 | AO187: 0.03671236982 | AP187: 0.03671236982 | AQ187: 0.03671236982 | AR187: 0.05264384525 | AS187: 0.05264384525 | AT187: 0.04325827099 | AW187: 0.6533333333 | AX187: 0.6533333333 | AY187: 0.6533333333 | AZ187: 0.6533333333 | BB187: 13.6 | BD187: 14 | BE187: 15.4 | BF187: 13 | BG187: 9.9 | BJ187: =SUM(BB177:BB196)/30 -> 9.033333333 | BK187: 0 | BL187: 10.03 | BM187: 9.796666667 | BN187: 8.616666667 | BO187: 7.07 | BP187: 0 | BT187: 2016-06-26 | BU187: 4.4 | BV187: 0 | BW187: 25.6
A188: 2015-09-26 | B188: 14 | C188: 14 | D188: 14 | E188: 14 | F188: 20.33333333 | G188: 5.98 | H188: 5.98 | I188: 5.98 | J188: 5.98 | K188: 0.4666666667 | L188: 0.4666666667 | M188: 0.4666666667 | N188: 0.4666666667 | O188: 0.07803790412 | P188: 0.07803790412 | Q188: 0.07803790412 | R188: 0.07803790412 | S188: 0.07803790412 | T188: 0.07803790412 | U188: 0.07803790412 | V188: 0.07803790412 | W188: 0 | X188: 0 | Y188: 0 | Z188: 0 | AA188: 0.07803790412 | AB188: 0 | AC188: 690.4234956 | AD188: 789.431108 | AE188: 857.654868 | AF188: 857.654868 | AK188: 12.19285714 | AL188: 1 | AM188: 1 | AN188: 0.02601263471 | AO188: 0.02601263471 | AP188: 0.02601263471 | AQ188: 0.02601263471 | AR188: 0.06308509428 | AS188: 0.06308509428 | AT188: 0.04800860585 | AW188: 0.4666666667 | AX188: 0.4666666667 | AY188: 0.4666666667 | AZ188: 0.4666666667 | BB188: 14 | BD188: 13.9 | BE188: 14.5 | BF188: 13.1 | BG188: 10.6 | BJ188: =SUM(BB178:BB197)/30 -> 8.96 | BK188: 0 | BL188: 9.97 | BM188: 9.763333333 | BN188: 8.55 | BO188: 7.01 | BP188: 0 | BT188: 2016-06-27 | BU188: 9.6 | BV188: 0 | BW188: 20.4
A189: 2015-09-27 | B189: 12 | C189: 12 | D189: 12 | E189: 12 | F189: 21 | G189: 5.74 | H189: 5.74 | I189: 5.74 | J189: 5.74 | K189: 1.4 | L189: 1.4 | M189: 1.4 | N189: 1.4 | O189: 0.243902439 | P189: 0.243902439 | Q189: 0.243902439 | R189: 0.243902439 | S189: 0.243902439 | T189: 0.243902439 | U189: 0.243902439 | V189: 0.243902439 | W189: 0 | X189: 0 | Y189: 0 | Z189: 0 | AA189: 0.243902439 | AB189: 0 | AC189: 696.2771541 | AD189: 795.2847666 | AE189: 857.654868 | AF189: 857.654868 | AK189: 12.19285714 | AL189: 1 | AM189: 1 | AN189: 0.08130081301 | AO189: 0.08130081301 | AP189: 0.08130081301 | AQ189: 0.08130081301 | AR189: 0.0769968446 | AS189: 0.0769968446 | AT189: 0.06191342503 | AW189: 1.4 | AX189: 1.4 | AY189: 1.4 | AZ189: 1.4 | BB189: 12 | BD189: 13.5 | BE189: 13.4 | BF189: 11.4 | BG189: 9.3 | BJ189: =SUM(BB179:BB198)/30 -> 8.786666667 | BK189: 0 | BL189: 9.74 | BM189: 9.553333333 | BN189: 8.366666667 | BO189: 6.863333333 | BP189: 0 | BT189: 2016-06-28 | BU189: 10 | BV189: 0 | BW189: 20
A190: 2015-09-28 | B190: 12.1 | C190: 12.1 | D190: 12.1 | E190: 12.1 | F190: 20.96666667 | G190: 5.752 | H190: 5.752 | I190: 5.752 | J190: 5.752 | K190: 1.353333333 | L190: 1.353333333 | M190: 1.353333333 | N190: 1.353333333 | O190: 0.2352804822 | P190: 0.2352804822 | Q190: 0.2352804822 | R190: 0.2352804822 | S190: 0.2352804822 | T190: 0.2352804822 | U190: 0.2352804822 | V190: 0.2352804822 | W190: 0 | X190: 0 | Y190: 0 | Z190: 0 | AA190: 0.2352804822 | AB190: 0 | AC190: 701.9238857 | AD190: 800.9314981 | AE190: 857.654868 | AF190: 857.654868 | AK190: 12.26428571 | AL190: 1 | AM190: 1 | AN190: 0.07842682738 | AO190: 0.07842682738 | AP190: 0.07842682738 | AQ190: 0.07842682738 | AR190: 0.09553176143 | AS190: 0.09553176143 | AT190: 0.08716260547 | AW190: 1.353333333 | AX190: 1.353333333 | AY190: 1.353333333 | AZ190: 1.353333333 | BB190: 12.1 | BD190: 12.7 | BE190: 12.9 | BF190: 11.5 | BG190: 9.6 | BJ190: =SUM(BB180:BB199)/30 -> 8.57 | BK190: 0 | BL190: 9.423333333 | BM190: 9.296666667 | BN190: 8.14 | BO190: 6.723333333 | BP190: 0 | BT190: 2016-06-29 | BU190: 8.6 | BV190: 0 | BW190: 21.4
A191: 2015-09-29 | B191: 11.3 | C191: 11.3 | D191: 11.3 | E191: 11.3 | F191: 21.23333333 | G191: 5.656 | H191: 5.656 | I191: 5.656 | J191: 5.656 | K191: 1.726666667 | L191: 1.726666667 | M191: 1.726666667 | N191: 1.726666667 | O191: 0.3052805281 | P191: 0.3052805281 | Q191: 0.3052805281 | R191: 0.3052805281 | S191: 0.3052805281 | T191: 0.3052805281 | U191: 0.3052805281 | V191: 0.3052805281 | W191: 0 | X191: 0 | Y191: 0 | Z191: 0 | AA191: 0.3052805281 | AB191: 0 | AC191: 709.2506184 | AD191: 808.2582308 | AE191: 857.654868 | AF191: 857.654868 | AK191: 12.22857143 | AL191: 1 | AM191: 1 | AN191: 0.101760176 | AO191: 0.101760176 | AP191: 0.101760176 | AQ191: 0.101760176 | AR191: 0.1069657171 | AS191: 0.1069657171 | AT191: 0.1093007621 | AW191: 1.726666667 | AX191: 1.726666667 | AY191: 1.726666667 | AZ191: 1.726666667 | BB191: 11.3 | BD191: 11.4 | BE191: 12.2 | BF191: 10.6 | BG191: 9.3 | BJ191: =SUM(BB181:BB200)/30 -> 8.476666667 | BK191: 0 | BL191: 9.246666667 | BM191: 9.136666667 | BN191: 8.076666667 | BO191: 6.696666667 | BP191: 0 | BT191: 2016-06-30 | BU191: 6.3 | BV191: 0 | BW191: 23.7
A192: 2015-09-30 | B192: 9.8 | C192: 9.8 | D192: 9.8 | E192: 9.8 | F192: 21.73333333 | G192: 5.476 | H192: 5.476 | I192: 5.476 | J192: 5.476 | K192: 2.426666667 | L192: 2.426666667 | M192: 2.426666667 | N192: 2.426666667 | O192: 0.4431458486 | P192: 0.4431458486 | Q192: 0.4431458486 | R192: 0.4431458486 | S192: 0.4431458486 | T192: 0.4431458486 | U192: 0.4431458486 | V192: 0.4431458486 | W192: 0 | X192: 0 | Y192: 0 | Z192: 0 | AA192: 0.4431458486 | AB192: 0 | AC192: 719.8861187 | AD192: 818.8937312 | AE192: 857.654868 | AF192: 857.654868 | AK192: 12.30714286 | AL192: 1 | AM192: 1 | AN192: 0.1477152829 | AO192: 0.1477152829 | AP192: 0.1477152829 | AQ192: 0.1477152829 | AR192: 0.1108340026 | AS192: 0.1108340026 | AT192: 0.1487565617 | AW192: 2.426666667 | AX192: 2.426666667 | AY192: 2.426666667 | AZ192: 2.426666667 | BB192: 9.8 | BD192: 10.1 | BE192: 10.7 | BF192: 9.1 | BG192: 7.9 | BJ192: =SUM(BB182:BB201)/30 -> 8.31 | BK192: 0 | BL192: 9.063333333 | BM192: 8.943333333 | BN192: 7.926666667 | BO192: 6.66 | BP192: 0 | BT192: 2016-07-01 | BU192: 6.3 | BV192: 0 | BW192: 23.7
A193: 2015-10-01 | B193: 8.3 | C193: 8.3 | D193: 8.3 | E193: 8.3 | F193: 22.23333333 | G193: 5.296 | H193: 5.296 | I193: 5.296 | J193: 5.296 | K193: 3.126666667 | L193: 3.126666667 | M193: 3.126666667 | N193: 3.126666667 | O193: 0.5903826788 | P193: 0.5903826788 | Q193: 0.5903826788 | R193: 0.5903826788 | S193: 0.5903826788 | T193: 0.5903826788 | U193: 0.5903826788 | V193: 0.5903826788 | W193: 0 | X193: 0 | Y193: 0 | Z193: 0 | AA193: 0.5903826788 | AB193: 0 | AC193: 734.055303 | AD193: 833.0629155 | AE193: 857.654868 | AF193: 857.654868 | AK193: 12.34285714 | AL193: 1 | AM193: 1 | AN193: 0.1967942263 | AO193: 0.1967942263 | AP193: 0.1967942263 | AQ193: 0.1967942263 | AR193: 0.1056269579 | AS193: 0.1056269579 | AT193: 0.1537531896 | AW193: 3.126666667 | AX193: 3.126666667 | AY193: 3.126666667 | AZ193: 3.126666667 | BB193: 8.3 | BD193: 10.8 | BE193: 9.8 | BF193: 8.1 | BG193: 6.6 | BJ193: =SUM(BB183:BB202)/30 -> 8.146666667 | BK193: 0 | BL193: 8.783333333 | BM193: 8.676666667 | BN193: 7.796666667 | BO193: 6.55 | BP193: 0 | BT193: 2016-07-02 | BU193: 5.6 | BV193: 0 | BW193: 24.4
A194: 2015-10-02 | B194: 10.8 | C194: 10.8 | D194: 10.8 | E194: 10.8 | F194: 21.4 | G194: 5.596 | H194: 5.596 | I194: 5.596 | J194: 5.596 | K194: 1.96 | L194: 1.96 | M194: 1.96 | N194: 1.96 | O194: 0.3502501787 | P194: 0.3502501787 | Q194: 0.3502501787 | R194: 0.3502501787 | S194: 0.3502501787 | T194: 0.3502501787 | U194: 0.3502501787 | V194: 0.3502501787 | W194: 0 | X194: 0 | Y194: 0 | Z194: 0 | AA194: 0.3502501787 | AB194: 0 | AC194: 742.4613073 | AD194: 841.4689198 | AE194: 857.654868 | AF194: 857.654868 | AK194: 12.13571429 | AL194: 1 | AM194: 1 | AN194: 0.1167500596 | AO194: 0.1167500596 | AP194: 0.1167500596 | AQ194: 0.1167500596 | AR194: 0.09813921611 | AS194: 0.09813921611 | AT194: 0.1222116397 | AW194: 1.96 | AX194: 1.96 | AY194: 1.96 | AZ194: 1.96 | BB194: 10.8 | BD194: 12.6 | BE194: 10.4 | BF194: 9.7 | BG194: 9.2 | BJ194: =SUM(BB184:BB203)/30 -> 7.896666667 | BK194: 0 | BL194: 8.536666667 | BM194: 8.516666667 | BN194: 7.563333333 | BO194: 6.343333333 | BP194: 0 | BT194: 2016-07-03 | BU194: 10.6 | BV194: 0 | BW194: 19.4
A195: 2015-10-03 | B195: 13 | C195: 13 | D195: 13 | E195: 13 | F195: 20.66666667 | G195: 5.86 | H195: 5.86 | I195: 5.86 | J195: 5.86 | K195: 0.9333333333 | L195: 0.9333333333 | M195: 0.9333333333 | N195: 0.9333333333 | O195: 0.1592718999 | P195: 0.1592718999 | Q195: 0.1592718999 | R195: 0.1592718999 | S195: 0.1592718999 | T195: 0.1592718999 | U195: 0.1592718999 | V195: 0.1592718999 | W195: 0 | X195: 0 | Y195: 0 | Z195: 0 | AA195: 0.1592718999 | AB195: 0 | AC195: 746.2838329 | AD195: 845.2914454 | AE195: 857.654868 | AF195: 857.654868 | AK195: 11.73571429 | AL195: 1 | AM195: 1 | AN195: 0.0530906333 | AO195: 0.0530906333 | AP195: 0.0530906333 | AQ195: 0.0530906333 | AR195: 0.08962025318 | AS195: 0.08962025318 | AT195: 0.07156406431 | AW195: 0.9333333333 | AX195: 0.9333333333 | AY195: 0.9333333333 | AZ195: 0.9333333333 | BB195: 13 | BD195: 15.3 | BE195: 14.2 | BF195: 12.1 | BG195: 10.8 | BJ195: =SUM(BB185:BB204)/30 -> 7.533333333 | BK195: 0 | BL195: 8.18 | BM195: 8.186666667 | BN195: 7.206666667 | BO195: 6.043333333 | BP195: 0 | BT195: 2016-07-04 | BU195: 10.2 | BV195: 0 | BW195: 19.8
A196: 2015-10-04 | B196: 13.3 | C196: 13.3 | D196: 13.3 | E196: 13.3 | F196: 20.56666667 | G196: 5.896 | H196: 5.896 | I196: 5.896 | J196: 5.896 | K196: 0.7933333333 | L196: 0.7933333333 | M196: 0.7933333333 | N196: 0.7933333333 | O196: 0.1345545002 | P196: 0.1345545002 | Q196: 0.1345545002 | R196: 0.1345545002 | S196: 0.1345545002 | T196: 0.1345545002 | U196: 0.1345545002 | V196: 0.1345545002 | W196: 0 | X196: 0 | Y196: 0 | Z196: 0 | AA196: 0.1345545002 | AB196: 0 | AC196: 749.5131409 | AD196: 848.5207534 | AE196: 857.654868 | AF196: 857.654868 | AK196: 11.27142857 | AL196: 1 | AM196: 1 | AN196: 0.04485150008 | AO196: 0.04485150008 | AP196: 0.04485150008 | AQ196: 0.04485150008 | AR196: 0.07147905888 | AS196: 0.07147905888 | AT196: 0.04131825603 | AW196: 0.7933333333 | AX196: 0.7933333333 | AY196: 0.7933333333 | AZ196: 0.7933333333 | BB196: 13.3 | BD196: 14 | BE196: 14.1 | BF196: 12.9 | BG196: 10 | BJ196: =SUM(BB186:BB205)/30 -> 7.166666667 | BK196: 0 | BL196: 7.853333333 | BM196: 7.763333333 | BN196: 6.833333333 | BO196: 5.71 | BP196: 0 | BT196: 2016-07-05 | BU196: 9 | BV196: 0 | BW196: 21
A197: 2015-10-05 | B197: 14 | C197: 14 | D197: 14 | E197: 14 | F197: 20.33333333 | G197: 5.98 | H197: 5.98 | I197: 5.98 | J197: 5.98 | K197: 0.4666666667 | L197: 0.4666666667 | M197: 0.4666666667 | N197: 0.4666666667 | O197: 0.07803790412 | P197: 0.07803790412 | Q197: 0.07803790412 | R197: 0.07803790412 | S197: 0.07803790412 | T197: 0.07803790412 | U197: 0.07803790412 | V197: 0.07803790412 | W197: 0 | X197: 0 | Y197: 0 | Z197: 0 | AA197: 0.07803790412 | AB197: 0 | AC197: 751.3860506 | AD197: 850.3936631 | AE197: 857.654868 | AF197: 857.654868 | AK197: 10.62142857 | AL197: 1 | AM197: 1 | AN197: 0.02601263471 | AO197: 0.02601263471 | AP197: 0.02601263471 | AQ197: 0.02601263471 | AR197: 0.05094997418 | AS197: 0.05094997418 | AT197: 0.03766385676 | AW197: 0.4666666667 | AX197: 0.4666666667 | AY197: 0.4666666667 | AZ197: 0.4666666667 | BB197: 14 | BD197: 15.3 | BE197: 15.4 | BF197: 13.6 | BG197: 10.8 | BJ197: =SUM(BB187:BB206)/30 -> 6.906666667 | BK197: 0 | BL197: 7.663333333 | BM197: 7.493333333 | BN197: 6.576666667 | BO197: 5.47 | BP197: 0 | BT197: 2016-07-06 | BU197: 8.9 | BV197: 0 | BW197: 21.1
A198: 2015-10-06 | B198: 13.4 | C198: 13.4 | D198: 13.4 | E198: 13.4 | F198: 20.53333333 | G198: 5.908 | H198: 5.908 | I198: 5.908 | J198: 5.908 | K198: 0.7466666667 | L198: 0.7466666667 | M198: 0.7466666667 | N198: 0.7466666667 | O198: 0.1263823065 | P198: 0.1263823065 | Q198: 0.1263823065 | R198: 0.1263823065 | S198: 0.1263823065 | T198: 0.1263823065 | U198: 0.1263823065 | V198: 0.1263823065 | W198: 0 | X198: 0 | Y198: 0 | Z198: 0 | AA198: 0.1263823065 | AB198: 0 | AC198: 754.419226 | AD198: 853.4268384 | AE198: 857.654868 | AF198: 857.654868 | AK198: 9.964285714 | AL198: 1 | AM198: 1 | AN198: 0.04212743549 | AO198: 0.04212743549 | AP198: 0.04212743549 | AQ198: 0.04212743549 | AR198: 0.05138377883 | AS198: 0.05138377883 | AT198: 0.029622331 | AW198: 0.7466666667 | AX198: 0.7466666667 | AY198: 0.7466666667 | AZ198: 0.7466666667 | BB198: 13.4 | BD198: 14.2 | BE198: 13.6 | BF198: 13 | BG198: 11.1 | BJ198: =SUM(BB188:BB207)/30 -> 6.733333333 | BK198: 0 | BL198: 7.566666667 | BM198: 7.296666667 | BN198: 6.41 | BO198: 5.316666667 | BP198: 0 | BT198: 2016-07-07 | BU198: 12.2 | BV198: 0 | BW198: 17.8
A199: 2015-10-07 | B199: 14.2 | C199: 14.2 | D199: 14.2 | E199: 14.2 | F199: 20.26666667 | G199: 6.004 | H199: 6.004 | I199: 6.004 | J199: 6.004 | K199: 0.3733333333 | L199: 0.3733333333 | M199: 0.3733333333 | N199: 0.3733333333 | O199: 0.06218076838 | P199: 0.06218076838 | Q199: 0.06218076838 | R199: 0.06218076838 | S199: 0.06218076838 | T199: 0.06218076838 | U199: 0.06218076838 | V199: 0.06218076838 | W199: 0 | X199: 0 | Y199: 0 | Z199: 0 | AA199: 0.06218076838 | AB199: 0 | AC199: 755.9115644 | AD199: 854.9191769 | AE199: 857.654868 | AF199: 857.654868 | AK199: 9.6 | AL199: 1 | AM199: 1 | AN199: 0.02072692279 | AO199: 0.02072692279 | AP199: 0.02072692279 | AQ199: 0.02072692279 | AR199: 0.07143065107 | AS199: 0.07143065107 | AT199: 0.03864833053 | AW199: 0.3733333333 | AX199: 0.3733333333 | AY199: 0.3733333333 | AZ199: 0.3733333333 | BB199: 14.2 | BD199: 14.3 | BE199: 15.7 | BF199: 13.7 | BG199: 12.6 | BJ199: =SUM(BB189:BB208)/30 -> 6.55 | BK199: 0 | BL199: 7.406666667 | BM199: 7.17 | BN199: 6.22 | BO199: 5.106666667 | BP199: 0 | BT199: 2016-07-08 | BU199: 10.6 | BV199: 0 | BW199: 19.4
A200: 2015-10-08 | B200: 13 | C200: 13 | D200: 13 | E200: 13 | F200: 20.66666667 | G200: 5.86 | H200: 5.86 | I200: 5.86 | J200: 5.86 | K200: 0.9333333333 | L200: 0.9333333333 | M200: 0.9333333333 | N200: 0.9333333333 | O200: 0.1592718999 | P200: 0.1592718999 | Q200: 0.1592718999 | R200: 0.1592718999 | S200: 0.1592718999 | T200: 0.1592718999 | U200: 0.1592718999 | V200: 0.1592718999 | W200: 0 | X200: 0 | Y200: 0 | Z200: 0 | AA200: 0.1592718999 | AB200: 0 | AC200: 759.73409 | AD200: 858.7417025 | AE200: 857.654868 | AF200: 857.654868 | AK200: 9.607142857 | AL200: 1 | AM200: 1 | AN200: 0.0530906333 | AO200: 0.0530906333 | AP200: 0.0530906333 | AQ200: 0.0530906333 | AR200: 0.1075860179 | AS200: 0.1075860179 | AT200: 0.06453474941 | AW200: 0.9333333333 | AX200: 0.9333333333 | AY200: 0.9333333333 | AZ200: 0.9333333333 | BB200: 13 | BD200: 13.7 | BE200: 12.3 | BF200: 13.2 | BG200: 11.4 | BJ200: =SUM(BB190:BB209)/30 -> 6.37 | BK200: 0 | BL200: 7.24 | BM200: 7.003333333 | BN200: 6.05 | BO200: 4.936666667 | BP200: 0 | BT200: 2016-07-09 | BU200: 10.4 | BV200: 0 | BW200: 19.6
... 925 more rows

Sheet návod
A1: V listu SCOP-norma je výpočetní vztah z počasí daný normou. Střední pásmo přibližně odpovídá zimě 2020/21 v ČR 280 m.n.m.
A2: na listu data Kbely používám archiv teplot za uplynulých cca 6 let. Lze korigovat zadáním nadmořské výšky (A6)
A3: Meteorologická data jsou porovnávána z míst Karlovy Vary, Praha Brno, Vídeň a pro ČR byla ověřena velmi přesná souvislost mezi teplotami a nadmořskou výškou. Vídeň už je asi o 0,5K teplejší,
A4: patrně vliv nižší rovnoběžky. | E4: v listu data-Kbely zadávejte žlutá pole.
I5: O5 | J5: možnost konstantní výroby tepla, např, TUV | P5: Příklad TZ 3 kW , TČ 4,1 kW/1kW kompresor.
A6: A6 | B6: nadmořská výška | I6: M5 | J6: TZ domu pro dT 30 K, tedy 30 U | P6: topná voda | Q6: SCOP | R6: náklady | S6: zhoršení proti PT
A7: H5 | B7: strmost křivky COP. 0,1 znamená nárůst o 1 na 10 stupňů. | I7: M6 | J7: pata ekvitermu - viz list SCOP-norma | P7: 20 | Q7: 5.078220051 | R7: =10/Q7 -> 1.96919391
A8: H6 | B8: COP pro A0/W35 | I8: M7 | J8: dosažitelný příkon kompresoru (kW). | P8: 30 | Q8: 4.523262709 | R8: =10/Q8 -> 2.210793545 | S8: =R8/T8 -> 1 | T8: 2.210793545
A9: F8 | B9: požadovaná teplota vytápění (typicky 20°C) | P9: 40 | Q9: 3.855985966 | R9: 2.593370434 | S9: =R9/T9 -> 1.173049578 | T9: 2.210793545
A10: H7 | B10: nutná teplota topné vody pro venkovní dT 30K | P10: 50 | Q10: 3.146631637 | R10: 3.17800148 | S10: 1.437493558 | T10: 2.210793545
P11: 60 | Q11: 2.569723084 | R11: 3.891469887 | S11: 1.760214062 | T11: 2.210793545
P12: 70 | Q12: 2.141650949 | R12: 4.669294968 | S12: 2.112044781 | T12: 2.210793545
A13: Počasí za posledních 7 let je dáno nasbíranými daty z letště Kbely korigované Vaší nadmořskou výškou (A6) | P13: 80 | Q13: 1.813183234 | R13: 5.515162401 | S13: 2.494652842 | T13: 2.210793545
A14: Je možné vytápět konstantním výkonem a nebo v poli C9 zadat amplitudu denního kolísání - typicky C9 = 3 | P14: 90 | Q14: 1.597378444 | R14: 6.260257261 | S14: 2.831678822 | T14: 2.210793545
A15: Sloupce B-C-D-E jsou šestihodinové bloky venkovní teploty. G-H-I-J jsou dosažitelné COPy O-P-Q-R jsou pak příkony včetně dotopu.
A16: Výsledky pro jednotlivé topné sezóny nacházíme v poli U1 až AA8. X je roční potřeba tepla, Z je spotřeba EE
A17: Y je pak dosažený SCOP za uplynulou sezonu. V je počet DS 15(15) pokud je v poli M6 hodnota 15 Odpovídá výpočtu SCOP dle normy.
A19: Kontrolně porovnáváme počet maximálních topných dnů v polích K1 K2 a K3. Bývají kolem 75 Tedy roční náklady = TZ * 24 * 75.
A20: L6 je příkon motoru. Představuje topný výkon v okamžiku, kdy COP klesne na 1. Veškerý další potřebný výkon je doplňován elektrokotlem.
A21: Na kolik % pracuje kompresor vidíte v grafu vytížení kompresoru.
A22: Kontrolně pak vidíte COP při A7/W35 v poli M8
A25: náklady 7 kW 280 m.n.m. 7 kW TZ 15°C pata | F25: http://kondenzace.kvalitne.cz/kks/optimalizace-tc.xlsm
A26: Pokud instalujeme radiátory, vyplatí se 3 až 5 násobek TZ.
A27: topná voda při TZ | B27: 75°C | C27: =20+55/2 -> 47.5 | D27: =20+55/3 -> 38.33333333 | E27: =20+55/4 -> 33.75 | F27: =20+55/5 -> 31 | G27: =20+55/10 -> 25.5
B28: 10899.166 | C28: 6322.167246 | D28: 5301.616433 | E28: 4884.976039 | F28: 4663.988672 | G28: 4267.485543
B29: 13616.40627 | C29: 8535.411145 | D29: 6693.70425 | E29: 5957.198949 | F29: 5575.743138 | G29: 4932.132649
B30: 12269.02035 | C30: 7025.388834 | D30: 5700.031658 | E30: 5200.915471 | F30: 4929.706337 | G30: 4471.137245
B31: 10890.07736 | C31: 6119.400894 | D31: 4983.013369 | E31: 4577.152338 | F31: 4378.69815 | G31: 4056.260176
A32: kWh prumer | B32: =SUM(B28:B31)/4 -> 11918.6675 | C32: =SUM(C28:C31)/4 -> 7000.59203 | D32: 5669.591428 | E32: 5155.060699 | F32: 4887.034074 | G32: 4431.753903
A33: Kč/kWh | B33: 5 | C33: =B33 -> 5 | D33: =C33 -> 5 | E33: 5 | F33: 5 | G33: 5
A34: Kč ee | B34: =B32*B33 -> 59593.33748 | C34: =C32*C33 -> 35002.96015 | D34: 28347.95714 | E34: 25775.3035 | F34: 24435.17037 | G34: 22158.76952
A35: 7 kW radiátorů | B35: =7/2*2800 -> 9800 | C35: =2*B35 -> 19600 | D35: =3*B35 -> 29400 | E35: =4*B35 -> 39200 | F35: =5*B35 -> 49000 | G35: =10*B35 -> 98000
A36: 20 let amort | B36: =B35/20 -> 490 | C36: =C35/20 -> 980 | D36: 1470 | E36: 1960 | F36: 2450 | G36: 4900
A37: násobek | B37: 1 | C37: 2 | D37: 3 | E37: 4 | F37: 5 | G37: 10
A38: roční náklady | B38: =B36+B34 -> 60083.33748 | C38: 35982.96015 | D38: 29817.95714 | E38: 27735.3035 | F38: 26885.17037 | G38: 27058.76952
B39: =B34 -> 59593.33748 | C39: =C34 -> 35002.96015 | D39: 28347.95714 | E39: 25775.3035 | F39: 24435.17037 | G39: 22158.76952
B40: =B36 -> 490 | C40: =C36 -> 980 | D40: 1470 | E40: 1960 | F40: 2450 | G40: 4900
A42: Energie při vychlazování 100% vlhkého vzduchu | F42: suchý | G42: asi chyba v ledu - doložit
B43: g/kg | C43: kJ/kg 100% | D43: kJ/kg zamrz | E43: suchý kJ/kg | F43: led kJ/kg | G43: kJ/K 100% | H43: kJ/kg zam | I43: kJ/kg suchý
A44: 15 | B44: 10.92 | C44: 42.75 | D44: =C44 -> 42.75 | E44: 15.15
A45: 10 | B45: 7.82 | C45: 29.8 | D45: =C45 -> 29.8 | E45: 10.1 | G45: =(C44-C45) -> 12.95 | H45: =(D44-D45) -> 12.95 | I45: =(E44-E45) -> 5.05 | J45: =H45-G45 -> 0
A46: 5 | B46: 5.53 | C46: 18.94 | D46: =C46 -> 18.94 | E46: 5.05 | G46: =(C45-C46) -> 10.86 | H46: 10.86 | I46: 5.05 | J46: =H46-G46 -> 0
A47: 0 | B47: 3.865 | C47: 9.66 | D47: =C47-334*B47/1000 -> 8.36909 | E47: 0 | F47: =334*B47/1000 -> 1.29091 | G47: 9.28 | H47: 10.57091 | I47: 5.05 | J47: 1.29091
A48: -5 | B48: 2.535 | C48: 1.26 | D48: =C48-334*B48/1000 -> 0.41331 | E48: -5.05 | F48: =334*B48/1000 -> 0.84669 | G48: 8.4 | H48: 7.95578 | I48: 5.05 | J48: -0.44422
A49: -10 | B49: 1.64 | C49: -6.04 | D49: -6.58776 | E49: -10.1 | F49: =334*B49/1000 -> 0.54776 | G49: 7.3 | H49: 7.00107 | I49: 5.05 | J49: -0.29893
A50: -15 | B50: 1.04 | C50: -12.58 | D50: -12.92736 | E50: -15.15 | F50: =334*B50/1000 -> 0.34736 | G50: 6.54 | H50: 6.3396 | I50: 5.05 | J50: -0.2004

Sheet výsl. křivka
F1: Data převzatá z listu data Kbely - nevyplňovat!!!
K2: dní TZ: | N2: https://kondenzace.kvalitne.cz/kks/optimalizace-tc.xlsm | AV2: https://www.pocasicz.cz/aktuality-o-pocasi/aktuality-471/zmena-teploty-s-vyskou-1455
D3: =24*6.3 -> 151.2 | H3: 7 | I3: =IF(H3*H$5+H$6>1,H3*H$5+H$6,1) -> 4.03 | J3: COP při A7/W35
H4: -7 | I4: =IF(H4*H$5+H$6>1,H4*H$5+H$6,1) -> 2.77 | J4: COP při A-7/W45 | AV4: www.degreedays.net (using temperature data from www.wunderground.com)
H5: ='data Kbely'!H5 -> 0.09 | I5: křivka TČ sklon. Většinou bývá 0,1 a znamená, že COP klesá o 1 při změně venkovní tepoty o 10K. Maximum pro SCOP je 0,13 | M5: ='data Kbely'!M5 -> 14 | N5: kW pro dT 30K. Tedy topení 20°C, venku -10°C. | O5: ='data Kbely'!O5 -> 0 | P5: kW topení ostatních zdrojů | AK5: =SUM(B10:B23)/14 -> 13.5
H6: ='data Kbely'!H6 -> 3.4 | I6: křivka TČ konst znamená COP při 0°C. Od Stiebel 3,8 pres LG 3,4 až po NIBE 2,7 | M6: ='data Kbely'!M6 -> 15 | N6: °C je topná teplota | AP6: =SUM(AN10:AQ16) -> -1.323823022
H7: ='data Kbely'!H7 -> 30 | I7: °C Teplota topné vody při výpočtových ztrátách dT 30K | M7: ='data Kbely'!M7 -> 3 | N7: kW je výkon TČ při COP =1 (příkon motoru) | AK7: průměrná teplota za topné období | AL7: počet topných dnů | AM7: počet DNŮ topení TČ
A8: Průměr °C | B8: =SUM(#REF!)/1096 ->  | C8: odpoledne | D8: průměr | E8: v noci | F8: ='data Kbely'!F8 -> 20 | G8: °C bez výkonu | M8: =M7*I3 -> 12.09 | N8: kW je výkon čerpadla při A7/W35 | AK8: =AK9/AL9 ->  | AL8: =AL9/3 ->  | AM8: =AM9/3 -> 
A9: °C venk | B9: Kbely 2015-18 (°C) | C9: 0 | D9: 0 | E9: =-C9 -> 0 | F9: topná teplota | G9: dosažený COP | K9: Potřebný topný výkon (kW) | O9: Příkon(kW) | S9: topení (kW) | W9: chlaz (kW) | AA9: kW topení | AB9: kW chlazení | AC9: kWh celkem po šesti hodinách | AD9: kWh celkem z průměrů za týden | AE9: kWh chlazení po šesti hodinách | AF9: kWh chlazení jako týdenní průměry | AK9: =SUM(#REF!) ->  | AL9: =SUM(#REF!) ->  | AM9: =SUM(#REF!) ->  | AN9: procent výkonu kompresoru | AR9: min | AS9: max | AT9: vytížení kompresoru | AW9: Potřebný topný výkon (kW) jen kladný
A10: 20 | B10: =A10 -> 20 | C10: =$B10+C$9 -> 20 | D10: 20 | E10: 20 | F10: =F$8+(H$7-F$8)*(M$6-B10)/30 -> 18.33333333 | G10: =IF((B10+35-$F10)*$H$5+$H$6>1,(B10+35-$F10)*$H$5+$H$6,1) -> 6.7 | H10: =IF((C10+35-$F10)*$H$5+$H$6>1,(C10+35-$F10)*$H$5+$H$6,1) -> 6.7 | I10: =IF((D10+35-$F10)*$H$5+$H$6>1,(D10+35-$F10)*$H$5+$H$6,1) -> 6.7 | J10: =IF((E10+35-$F10)*$H$5+$H$6>1,(E10+35-$F10)*$H$5+$H$6,1) -> 6.7 | K10: =$M$5*($M$6-B10)/30-$O$5 -> -2.333333333 | L10: =$M$5*($M$6-C10)/30-$O$5 -> -2.333333333 | M10: =$M$5*($M$6-D10)/30-$O$5 -> -2.333333333 | N10: =$M$5*($M$6-E10)/30-$O$5 -> -2.333333333 | O10: =IF(K10/G10>$M$7,$M$7+K10-$M$7*G10,K10/G10) -> -0.3482587065 | P10: =IF(L10/H10>$M$7,$M$7+L10-$M$7*H10,L10/H10) -> -0.3482587065 | Q10: =IF(M10/I10>$M$7,$M$7+M10-$M$7*I10,M10/I10) -> -0.3482587065 | R10: =IF(N10/J10>$M$7,$M$7+N10-$M$7*J10,N10/J10) -> -0.3482587065 | S10: =IF(O10>0,O10,0) -> 0 | T10: =IF(P10>0,P10,) -> 0 | U10: =IF(Q10>0,Q10,) -> 0 | V10: =IF(R10>0,R10,) -> 0 | W10: =IF(O10<0,-O10,0) -> 0.3482587065 | X10: =IF(P10<0,-P10,0) -> 0.3482587065 | Y10: =IF(Q10<0,-Q10,0) -> 0.3482587065 | Z10: =IF(R10<0,-R10,0) -> 0.3482587065 | AC10: =6*SUM(S10:V10) -> 0 | AE10: =6*SUM(W10:Z10) -> 8.358208955 | AL10: =IF(B10<$C$7,1,0) -> 0 | AN10: =K10/G10/$M$7 -> -0.1160862355 | AO10: =L10/H10/$M$7 -> -0.1160862355 | AP10: =M10/I10/$M$7 -> -0.1160862355 | AQ10: =N10/J10/$M$7 -> -0.1160862355 | AW10: =IF(K10>0,K10,0) -> 0 | AX10: =IF(L10>0,L10,0) -> 0 | AY10: =IF(M10>0,M10,0) -> 0 | AZ10: =IF(N10>0,N10,0) -> 0
A11: 19 | B11: 19 | C11: 19 | D11: 19 | E11: 19 | F11: 18.66666667 | G11: 6.58 | H11: 6.58 | I11: 6.58 | J11: 6.58 | K11: -1.866666667 | L11: -1.866666667 | M11: -1.866666667 | N11: -1.866666667 | O11: -0.2836879433 | P11: -0.2836879433 | Q11: -0.2836879433 | R11: -0.2836879433 | S11: =IF(O11>0,O11,) -> 0 | T11: 0 | U11: 0 | V11: 0 | W11: 0.2836879433 | X11: 0.2836879433 | Y11: 0.2836879433 | Z11: 0.2836879433 | AC11: =6*SUM(S11:V11)+AC10 -> 0 | AD11: =AD10+AA11*24 -> 0 | AE11: =6*SUM(W11:Z11)+AE10 -> 15.16671959 | AF11: =AF10+AB11*24 -> 0 | AL11: 0 | AN11: -0.09456264775 | AO11: -0.09456264775 | AP11: -0.09456264775 | AQ11: -0.09456264775 | AT11: =SUM(AN10:AQ12)/12 -> -0.09429610178 | AW11: 0 | AX11: 0 | AY11: 0 | AZ11: 0
A12: 18 | B12: 18 | C12: 18 | D12: 18 | E12: 18 | F12: 19 | G12: 6.46 | H12: 6.46 | I12: 6.46 | J12: 6.46 | K12: -1.4 | L12: -1.4 | M12: -1.4 | N12: -1.4 | O12: -0.2167182663 | P12: -0.2167182663 | Q12: -0.2167182663 | R12: -0.2167182663 | S12: 0 | T12: 0 | U12: 0 | V12: 0 | W12: 0.2167182663 | X12: 0.2167182663 | Y12: 0.2167182663 | Z12: 0.2167182663 | AC12: 0 | AD12: =AC12 -> 0 | AE12: 20.36795798 | AF12: 0 | AL12: 0 | AN12: -0.07223942208 | AO12: -0.07223942208 | AP12: -0.07223942208 | AQ12: -0.07223942208 | AT12: -0.071957741 | AW12: 0 | AX12: 0 | AY12: 0 | AZ12: 0
A13: 17 | B13: 17 | C13: 17 | D13: 17 | E13: 17 | F13: 19.33333333 | G13: 6.34 | H13: 6.34 | I13: 6.34 | J13: 6.34 | K13: -0.9333333333 | L13: -0.9333333333 | M13: -0.9333333333 | N13: -0.9333333333 | O13: -0.1472134595 | P13: -0.1472134595 | Q13: -0.1472134595 | R13: -0.1472134595 | S13: 0 | T13: 0 | U13: 0 | V13: 0 | W13: 0.1472134595 | X13: 0.1472134595 | Y13: 0.1472134595 | Z13: 0.1472134595 | AA13: =IF(SUM(O10:R16)/28>0,SUM(O10:R16)/28,) -> 0 | AB13: =IF(SUM(O10:R16)/28<0,-SUM(O10:R16)/28,) -> 0.141838181 | AC13: 0 | AD13: =AD12+AA13*24 -> 0 | AE13: 23.90108101 | AF13: 3.404116343 | AL13: 0 | AM13: =IF(SUM(AN10:AQ16)>0,1,0) -> 0 | AN13: -0.04907115317 | AO13: -0.04907115317 | AP13: -0.04907115317 | AQ13: -0.04907115317 | AR13: =SUM(AO10:AO16)/7 -> -0.04727939365 | AS13: =SUM(AQ10:AQ16)/7 -> -0.04727939365 | AT13: -0.04877316901 | AW13: 0 | AX13: 0 | AY13: 0 | AZ13: 0
A14: 16 | B14: 16 | C14: 16 | D14: 16 | E14: 16 | F14: 19.66666667 | G14: 6.22 | H14: 6.22 | I14: 6.22 | J14: 6.22 | K14: -0.4666666667 | L14: -0.4666666667 | M14: -0.4666666667 | N14: -0.4666666667 | O14: -0.07502679528 | P14: -0.07502679528 | Q14: -0.07502679528 | R14: -0.07502679528 | S14: 0 | T14: 0 | U14: 0 | V14: 0 | W14: 0.07502679528 | X14: 0.07502679528 | Y14: 0.07502679528 | Z14: 0.07502679528 | AA14: 0 | AB14: 0.06933380862 | AC14: 0 | AD14: 0 | AE14: 25.7017241 | AF14: 5.06812775 | AL14: 0 | AM14: 0 | AN14: -0.02500893176 | AO14: -0.02500893176 | AP14: -0.02500893176 | AQ14: -0.02500893176 | AR14: -0.02311126954 | AS14: -0.02311126954 | AT14: -0.02469336164 | AW14: 0 | AX14: 0 | AY14: 0 | AZ14: 0
A15: 15 | B15: 15 | C15: 15 | D15: 15 | E15: 15 | F15: 20 | G15: 6.1 | H15: 6.1 | I15: 6.1 | J15: 6.1 | K15: 0 | L15: 0 | M15: 0 | N15: 0 | O15: 0 | P15: 0 | Q15: 0 | R15: 0 | S15: 0 | T15: 0 | U15: 0 | V15: 0 | W15: 0 | X15: 0 | Y15: 0 | Z15: 0 | AA15: 0.006036245997 | AB15: 0 | AC15: 0 | AD15: 0.1448699039 | AE15: 25.7017241 | AF15: 5.06812775 | AL15: 0 | AM15: 1 | AN15: 0 | AO15: 0 | AP15: 0 | AQ15: 0 | AR15: 0.002012081999 | AS15: 0.002012081999 | AT15: 0.000334567649 | AW15: 0 | AX15: 0 | AY15: 0 | AZ15: 0
A16: 14 | B16: 14 | C16: 14 | D16: 14 | E16: 14 | F16: 20.33333333 | G16: 5.98 | H16: 5.98 | I16: 5.98 | J16: 5.98 | K16: 0.4666666667 | L16: 0.4666666667 | M16: 0.4666666667 | N16: 0.4666666667 | O16: 0.07803790412 | P16: 0.07803790412 | Q16: 0.07803790412 | R16: 0.07803790412 | S16: 0.07803790412 | T16: 0.07803790412 | U16: 0.07803790412 | V16: 0.07803790412 | W16: 0 | X16: 0 | Y16: 0 | Z16: 0 | AA16: 0.08444558314 | AB16: 0 | AC16: 1.872909699 | AD16: 2.171563899 | AE16: 25.7017241 | AF16: 5.06812775 | AK16: =IF(SUM(B10:B23)/14<$C$7,SUM(B10:B23)/14,0) -> 0 | AL16: =IF(SUM(B10:B23)/14<$C$7,1,0) -> 0 | AM16: 1 | AN16: 0.02601263471 | AO16: 0.02601263471 | AP16: 0.02601263471 | AQ16: 0.02601263471 | AR16: 0.02814852771 | AS16: 0.02814852771 | AT16: 0.026367756 | AW16: 0.4666666667 | AX16: 0.4666666667 | AY16: 0.4666666667 | AZ16: 0.4666666667
A17: 13 | B17: 13 | C17: 13 | D17: 13 | E17: 13 | F17: 20.66666667 | G17: 5.86 | H17: 5.86 | I17: 5.86 | J17: 5.86 | K17: 0.9333333333 | L17: 0.9333333333 | M17: 0.9333333333 | N17: 0.9333333333 | O17: 0.1592718999 | P17: 0.1592718999 | Q17: 0.1592718999 | R17: 0.1592718999 | S17: 0.1592718999 | T17: 0.1592718999 | U17: 0.1592718999 | V17: 0.1592718999 | W17: 0 | X17: 0 | Y17: 0 | Z17: 0 | AA17: 0.166082138 | AB17: 0 | AC17: 5.695435296 | AD17: 6.15753521 | AE17: 25.7017241 | AF17: 5.06812775 | AK17: 0 | AL17: 0 | AM17: 1 | AN17: 0.0530906333 | AO17: 0.0530906333 | AP17: 0.0530906333 | AQ17: 0.0530906333 | AR17: 0.05536071265 | AS17: 0.05536071265 | AT17: 0.053468027 | AW17: 0.9333333333 | AX17: 0.9333333333 | AY17: 0.9333333333 | AZ17: 0.9333333333
A18: 12 | B18: 12 | C18: 12 | D18: 12 | E18: 12 | F18: 21 | G18: 5.74 | H18: 5.74 | I18: 5.74 | J18: 5.74 | K18: 1.4 | L18: 1.4 | M18: 1.4 | N18: 1.4 | O18: 0.243902439 | P18: 0.243902439 | Q18: 0.243902439 | R18: 0.243902439 | S18: 0.243902439 | T18: 0.243902439 | U18: 0.243902439 | V18: 0.243902439 | W18: 0 | X18: 0 | Y18: 0 | Z18: 0 | AA18: 0.2511496939 | AB18: 0 | AC18: 11.54909383 | AD18: 12.18512786 | AE18: 25.7017241 | AF18: 5.06812775 | AK18: 0 | AL18: 0 | AM18: 1 | AN18: 0.08130081301 | AO18: 0.08130081301 | AP18: 0.08130081301 | AQ18: 0.08130081301 | AR18: 0.08371656465 | AS18: 0.08371656465 | AT18: 0.0817023814 | AW18: 1.4 | AX18: 1.4 | AY18: 1.4 | AZ18: 1.4
A19: 11 | B19: 11 | C19: 11 | D19: 11 | E19: 11 | F19: 21.33333333 | G19: 5.62 | H19: 5.62 | I19: 5.62 | J19: 5.62 | K19: 1.866666667 | L19: 1.866666667 | M19: 1.866666667 | N19: 1.866666667 | O19: 0.3321470937 | P19: 0.3321470937 | Q19: 0.3321470937 | R19: 0.3321470937 | S19: 0.3321470937 | T19: 0.3321470937 | U19: 0.3321470937 | V19: 0.3321470937 | W19: 0 | X19: 0 | Y19: 0 | Z19: 0 | AA19: 0.3398695926 | AB19: 0 | AC19: 19.52062408 | AD19: 20.34199809 | AE19: 25.7017241 | AF19: 5.06812775 | AK19: 0 | AL19: 0 | AM19: 1 | AN19: 0.1107156979 | AO19: 0.1107156979 | AP19: 0.1107156979 | AQ19: 0.1107156979 | AR19: 0.1132898642 | AS19: 0.1132898642 | AT19: 0.1111435508 | AW19: 1.866666667 | AX19: 1.866666667 | AY19: 1.866666667 | AZ19: 1.866666667
A20: 10 | B20: 10 | C20: 10 | D20: 10 | E20: 10 | F20: 21.66666667 | G20: 5.5 | H20: 5.5 | I20: 5.5 | J20: 5.5 | K20: 2.333333333 | L20: 2.333333333 | M20: 2.333333333 | N20: 2.333333333 | O20: 0.4242424242 | P20: 0.4242424242 | Q20: 0.4242424242 | R20: 0.4242424242 | S20: 0.4242424242 | T20: 0.4242424242 | U20: 0.4242424242 | V20: 0.4242424242 | W20: 0 | X20: 0 | Y20: 0 | Z20: 0 | AA20: 0.4324826694 | AB20: 0 | AC20: 29.70244226 | AD20: 30.72158215 | AE20: 25.7017241 | AF20: 5.06812775 | AK20: 0 | AL20: 0 | AM20: 1 | AN20: 0.1414141414 | AO20: 0.1414141414 | AP20: 0.1414141414 | AQ20: 0.1414141414 | AR20: 0.1441608898 | AS20: 0.1441608898 | AT20: 0.1418706238 | AW20: 2.333333333 | AX20: 2.333333333 | AY20: 2.333333333 | AZ20: 2.333333333
A21: 9 | B21: 9 | C21: 9 | D21: 9 | E21: 9 | F21: 22 | G21: 5.38 | H21: 5.38 | I21: 5.38 | J21: 5.38 | K21: 2.8 | L21: 2.8 | M21: 2.8 | N21: 2.8 | O21: 0.5204460967 | P21: 0.5204460967 | Q21: 0.5204460967 | R21: 0.5204460967 | S21: 0.5204460967 | T21: 0.5204460967 | U21: 0.5204460967 | V21: 0.5204460967 | W21: 0 | X21: 0 | Y21: 0 | Z21: 0 | AA21: 0.5292514532 | AB21: 0 | AC21: 42.19314858 | AD21: 43.42361703 | AE21: 25.7017241 | AF21: 5.06812775 | AK21: 0 | AL21: 0 | AM21: 1 | AN21: 0.1734820322 | AO21: 0.1734820322 | AP21: 0.1734820322 | AQ21: 0.1734820322 | AR21: 0.1764171511 | AS21: 0.1764171511 | AT21: 0.1739697568 | AW21: 2.8 | AX21: 2.8 | AY21: 2.8 | AZ21: 2.8
A22: 8 | B22: 8 | C22: 8 | D22: 8 | E22: 8 | F22: 22.33333333 | G22: 5.26 | H22: 5.26 | I22: 5.26 | J22: 5.26 | K22: 3.266666667 | L22: 3.266666667 | M22: 3.266666667 | N22: 3.266666667 | O22: 0.6210392902 | P22: 0.6210392902 | Q22: 0.6210392902 | R22: 0.6210392902 | S22: 0.6210392902 | T22: 0.6210392902 | U22: 0.6210392902 | V22: 0.6210392902 | W22: 0 | X22: 0 | Y22: 0 | Z22: 0 | AA22: 0.6304626694 | AB22: 0 | AC22: 57.09809155 | AD22: 58.5547211 | AE22: 25.7017241 | AF22: 5.06812775 | AK22: 0 | AL22: 0 | AM22: 1 | AN22: 0.2070130967 | AO22: 0.2070130967 | AP22: 0.2070130967 | AQ22: 0.2070130967 | AR22: 0.2101542231 | AS22: 0.2101542231 | AT22: 0.207534981 | AW22: 3.266666667 | AX22: 3.266666667 | AY22: 3.266666667 | AZ22: 3.266666667
A23: 7 | B23: 7 | C23: 7 | D23: 7 | E23: 7 | F23: 22.66666667 | G23: 5.14 | H23: 5.14 | I23: 5.14 | J23: 5.14 | K23: 3.733333333 | L23: 3.733333333 | M23: 3.733333333 | N23: 3.733333333 | O23: 0.7263294423 | P23: 0.7263294423 | Q23: 0.7263294423 | R23: 0.7263294423 | S23: 0.7263294423 | T23: 0.7263294423 | U23: 0.7263294423 | V23: 0.7263294423 | W23: 0 | X23: 0 | Y23: 0 | Z23: 0 | AA23: 0.7364300999 | AB23: 0 | AC23: 74.52999816 | AD23: 76.2290435 | AE23: 25.7017241 | AF23: 5.06812775 | AK23: 0 | AL23: 0 | AM23: 1 | AN23: 0.2421098141 | AO23: 0.2421098141 | AP23: 0.2421098141 | AQ23: 0.2421098141 | AR23: 0.2454767 | AS23: 0.2454767 | AT23: 0.2426691243 | AW23: 3.733333333 | AX23: 3.733333333 | AY23: 3.733333333 | AZ23: 3.733333333
A24: 6 | B24: 6 | C24: 6 | D24: 6 | E24: 6 | F24: 23 | G24: 5.02 | H24: 5.02 | I24: 5.02 | J24: 5.02 | K24: 4.2 | L24: 4.2 | M24: 4.2 | N24: 4.2 | O24: 0.8366533865 | P24: 0.8366533865 | Q24: 0.8366533865 | R24: 0.8366533865 | S24: 0.8366533865 | T24: 0.8366533865 | U24: 0.8366533865 | V24: 0.8366533865 | W24: 0 | X24: 0 | Y24: 0 | Z24: 0 | AA24: 0.8474978591 | AB24: 0 | AC24: 94.60967944 | AD24: 96.56899211 | AE24: 25.7017241 | AF24: 5.06812775 | AK24: 0 | AL24: 0 | AM24: 1 | AN24: 0.2788844622 | AO24: 0.2788844622 | AP24: 0.2788844622 | AQ24: 0.2788844622 | AR24: 0.2824992864 | AS24: 0.2824992864 | AT24: 0.2794848646 | AW24: 4.2 | AX24: 4.2 | AY24: 4.2 | AZ24: 4.2
A25: 5 | B25: 5 | C25: 5 | D25: 5 | E25: 5 | F25: 23.33333333 | G25: 4.9 | H25: 4.9 | I25: 4.9 | J25: 4.9 | K25: 4.666666667 | L25: 4.666666667 | M25: 4.666666667 | N25: 4.666666667 | O25: 0.9523809524 | P25: 0.9523809524 | Q25: 0.9523809524 | R25: 0.9523809524 | S25: 0.9523809524 | T25: 0.9523809524 | U25: 0.9523809524 | V25: 0.9523809524 | W25: 0 | X25: 0 | Y25: 0 | Z25: 0 | AA25: 0.9640441583 | AB25: 0 | AC25: 117.4668223 | AD25: 119.7060519 | AE25: 25.7017241 | AF25: 5.06812775 | AK25: 0 | AL25: 0 | AM25: 1 | AN25: 0.3174603175 | AO25: 0.3174603175 | AP25: 0.3174603175 | AQ25: 0.3174603175 | AR25: 0.3213480528 | AS25: 0.3213480528 | AT25: 0.3181059385 | AW25: 4.666666667 | AX25: 4.666666667 | AY25: 4.666666667 | AZ25: 4.666666667
A26: 4 | B26: 4 | C26: 4 | D26: 4 | E26: 4 | F26: 23.66666667 | G26: 4.78 | H26: 4.78 | I26: 4.78 | J26: 4.78 | K26: 5.133333333 | L26: 5.133333333 | M26: 5.133333333 | N26: 5.133333333 | O26: 1.073919107 | P26: 1.073919107 | Q26: 1.073919107 | R26: 1.073919107 | S26: 1.073919107 | T26: 1.073919107 | U26: 1.073919107 | V26: 1.073919107 | W26: 0 | X26: 0 | Y26: 0 | Z26: 0 | AA26: 1.086485647 | AB26: 0 | AC26: 143.2408809 | AD26: 145.7817074 | AE26: 25.7017241 | AF26: 5.06812775 | AK26: 0 | AL26: 0 | AM26: 1 | AN26: 0.3579730358 | AO26: 0.3579730358 | AP26: 0.3579730358 | AQ26: 0.3579730358 | AR26: 0.3621618824 | AS26: 0.3621618824 | AT26: 0.3586685331 | AW26: 5.133333333 | AX26: 5.133333333 | AY26: 5.133333333 | AZ26: 5.133333333
A27: 3 | B27: 3 | C27: 3 | D27: 3 | E27: 3 | F27: 24 | G27: 4.66 | H27: 4.66 | I27: 4.66 | J27: 4.66 | K27: 5.6 | L27: 5.6 | M27: 5.6 | N27: 5.6 | O27: 1.201716738 | P27: 1.201716738 | Q27: 1.201716738 | R27: 1.201716738 | S27: 1.201716738 | T27: 1.201716738 | U27: 1.201716738 | V27: 1.201716738 | W27: 0 | X27: 0 | Y27: 0 | Z27: 0 | AA27: 1.215282438 | AB27: 0 | AC27: 172.0820826 | AD27: 174.948486 | AE27: 25.7017241 | AF27: 5.06812775 | AK27: 0 | AL27: 0 | AM27: 1 | AN27: 0.4005722461 | AO27: 0.4005722461 | AP27: 0.4005722461 | AQ27: 0.4005722461 | AR27: 0.405094146 | AS27: 0.405094146 | AT27: 0.4013228929 | AW27: 5.6 | AX27: 5.6 | AY27: 5.6 | AZ27: 5.6
A28: 2 | B28: 2 | C28: 2 | D28: 2 | E28: 2 | F28: 24.33333333 | G28: 4.54 | H28: 4.54 | I28: 4.54 | J28: 4.54 | K28: 6.066666667 | L28: 6.066666667 | M28: 6.066666667 | N28: 6.066666667 | O28: 1.336270191 | P28: 1.336270191 | Q28: 1.336270191 | R28: 1.336270191 | S28: 1.336270191 | T28: 1.336270191 | U28: 1.336270191 | V28: 1.336270191 | W28: 0 | X28: 0 | Y28: 0 | Z28: 0 | AA28: 1.350943939 | AB28: 0 | AC28: 204.1525672 | AD28: 207.3711405 | AE28: 25.7017241 | AF28: 5.06812775 | AK28: 0 | AL28: 0 | AM28: 1 | AN28: 0.445423397 | AO28: 0.445423397 | AP28: 0.445423397 | AQ28: 0.445423397 | AR28: 0.4503146462 | AS28: 0.4503146462 | AT28: 0.4462351825 | AW28: 6.066666667 | AX28: 6.066666667 | AY28: 6.066666667 | AZ28: 6.066666667
A29: 1 | B29: 1 | C29: 1 | D29: 1 | E29: 1 | F29: 24.66666667 | G29: 4.42 | H29: 4.42 | I29: 4.42 | J29: 4.42 | K29: 6.533333333 | L29: 6.533333333 | M29: 6.533333333 | N29: 6.533333333 | O29: 1.478129713 | P29: 1.478129713 | Q29: 1.478129713 | R29: 1.478129713 | S29: 1.478129713 | T29: 1.478129713 | U29: 1.478129713 | V29: 1.478129713 | W29: 0 | X29: 0 | Y29: 0 | Z29: 0 | AA29: 1.494035658 | AB29: 0 | AC29: 239.6276803 | AD29: 243.2279963 | AE29: 25.7017241 | AF29: 5.06812775 | AK29: 0 | AL29: 0 | AM29: 1 | AN29: 0.4927099045 | AO29: 0.4927099045 | AP29: 0.4927099045 | AQ29: 0.4927099045 | AR29: 0.498011886 | AS29: 0.498011886 | AT29: 0.4935896535 | AW29: 6.533333333 | AX29: 6.533333333 | AY29: 6.533333333 | AZ29: 6.533333333
A30: 0 | B30: 0 | C30: =$B30+C$9 -> 0 | D30: 0 | E30: 0 | F30: 25 | G30: 4.3 | H30: 4.3 | I30: 4.3 | J30: 4.3 | K30: 7 | L30: 7 | M30: 7 | N30: 7 | O30: 1.627906977 | P30: 1.627906977 | Q30: 1.627906977 | R30: 1.627906977 | S30: 1.627906977 | T30: 1.627906977 | U30: 1.627906977 | V30: 1.627906977 | W30: 0 | X30: 0 | Y30: 0 | Z30: 0 | AA30: 1.645187171 | AB30: 0 | AC30: 278.6974477 | AD30: 282.7124884 | AE30: 25.7017241 | AF30: 5.06812775 | AK30: -0.5 | AL30: 1 | AM30: 1 | AN30: 0.5426356589 | AO30: 0.5426356589 | AP30: 0.5426356589 | AQ30: 0.5426356589 | AR30: 0.5483957236 | AS30: 0.5483957236 | AT30: 0.5435911757 | AW30: 7 | AX30: 7 | AY30: 7 | AZ30: 7
A31: -1 | B31: -1 | C31: -1 | D31: -1 | E31: -1 | F31: 25.33333333 | G31: 4.18 | H31: 4.18 | I31: 4.18 | J31: 4.18 | K31: 7.466666667 | L31: 7.466666667 | M31: 7.466666667 | N31: 7.466666667 | O31: 1.786283892 | P31: 1.786283892 | Q31: 1.786283892 | R31: 1.786283892 | S31: 1.786283892 | T31: 1.786283892 | U31: 1.786283892 | V31: 1.786283892 | W31: 0 | X31: 0 | Y31: 0 | Z31: 0 | AA31: 1.805101484 | AB31: 0 | AC31: 321.5682611 | AD31: 326.034924 | AE31: 25.7017241 | AF31: 5.06812775 | AK31: -1.5 | AL31: 1 | AM31: 1 | AN31: 0.5954279638 | AO31: 0.5954279638 | AP31: 0.5954279638 | AQ31: 0.5954279638 | AR31: 0.6017004945 | AS31: 0.6017004945 | AT31: 0.5964682063 | AW31: 7.466666667 | AX31: 7.466666667 | AY31: 7.466666667 | AZ31: 7.466666667
A32: -2 | B32: -2 | C32: -2 | D32: -2 | E32: -2 | F32: 25.66666667 | G32: 4.06 | H32: 4.06 | I32: 4.06 | J32: 4.06 | K32: 7.933333333 | L32: 7.933333333 | M32: 7.933333333 | N32: 7.933333333 | O32: 1.954022989 | P32: 1.954022989 | Q32: 1.954022989 | R32: 1.954022989 | S32: 1.954022989 | T32: 1.954022989 | U32: 1.954022989 | V32: 1.954022989 | W32: 0 | X32: 0 | Y32: 0 | Z32: 0 | AA32: 1.974566102 | AB32: 0 | AC32: 368.4648129 | AD32: 373.4245104 | AE32: 25.7017241 | AF32: 5.06812775 | AK32: -2.5 | AL32: 1 | AM32: 1 | AN32: 0.6513409962 | AO32: 0.6513409962 | AP32: 0.6513409962 | AQ32: 0.6513409962 | AR32: 0.6581887008 | AS32: 0.6581887008 | AT32: 0.6524762862 | AW32: 7.933333333 | AX32: 7.933333333 | AY32: 7.933333333 | AZ32: 7.933333333
A33: -3 | B33: -3 | C33: -3 | D33: -3 | E33: -3 | F33: 26 | G33: 3.94 | H33: 3.94 | I33: 3.94 | J33: 3.94 | K33: 8.4 | L33: 8.4 | M33: 8.4 | N33: 8.4 | O33: 2.131979695 | P33: 2.131979695 | Q33: 2.131979695 | R33: 2.131979695 | S33: 2.131979695 | T33: 2.131979695 | U33: 2.131979695 | V33: 2.131979695 | W33: 0 | X33: 0 | Y33: 0 | Z33: 0 | AA33: 2.154466167 | AB33: 0 | AC33: 419.6323255 | AD33: 425.1316985 | AE33: 25.7017241 | AF33: 5.06812775 | AK33: -3.5 | AL33: 1 | AM33: 1 | AN33: 0.7106598985 | AO33: 0.7106598985 | AP33: 0.7106598985 | AQ33: 0.7106598985 | AR33: 0.7181553891 | AS33: 0.7181553891 | AT33: 0.7119021792 | AW33: 8.4 | AX33: 8.4 | AY33: 8.4 | AZ33: 8.4
A34: -4 | B34: -4 | C34: -4 | D34: -4 | E34: -4 | F34: 26.33333333 | G34: 3.82 | H34: 3.82 | I34: 3.82 | J34: 3.82 | K34: 8.866666667 | L34: 8.866666667 | M34: 8.866666667 | N34: 8.866666667 | O34: 2.321116928 | P34: 2.321116928 | Q34: 2.321116928 | R34: 2.321116928 | S34: 2.321116928 | T34: 2.321116928 | U34: 2.321116928 | V34: 2.321116928 | W34: 0 | X34: 0 | Y34: 0 | Z34: 0 | AA34: 2.345800128 | AB34: 0 | AC34: 475.3391318 | AD34: 481.4309015 | AE34: 25.7017241 | AF34: 5.06812775 | AK34: -4.5 | AL34: 1 | AM34: 1 | AN34: 0.7737056428 | AO34: 0.7737056428 | AP34: 0.7737056428 | AQ34: 0.7737056428 | AR34: 0.781933376 | AS34: 0.781933376 | AT34: 0.775068794 | AW34: 8.866666667 | AX34: 8.866666667 | AY34: 8.866666667 | AZ34: 8.866666667
A35: -5 | B35: -5 | C35: -5 | D35: -5 | E35: -5 | F35: 26.66666667 | G35: 3.7 | H35: 3.7 | I35: 3.7 | J35: 3.7 | K35: 9.333333333 | L35: 9.333333333 | M35: 9.333333333 | N35: 9.333333333 | O35: 2.522522523 | P35: 2.522522523 | Q35: 2.522522523 | R35: 2.522522523 | S35: 2.522522523 | T35: 2.522522523 | U35: 2.522522523 | V35: 2.522522523 | W35: 0 | X35: 0 | Y35: 0 | Z35: 0 | AA35: 2.621092905 | AB35: 0 | AC35: 535.8796724 | AD35: 544.3371312 | AE35: 25.7017241 | AF35: 5.06812775 | AK35: -5.5 | AL35: 1 | AM35: 1 | AN35: 0.8408408408 | AO35: 0.8408408408 | AP35: 0.8408408408 | AQ35: 0.8408408408 | AR35: 0.8498995171 | AS35: 0.8498995171 | AT35: 0.8423410687 | AW35: 9.333333333 | AX35: 9.333333333 | AY35: 9.333333333 | AZ35: 9.333333333
A36: -6 | B36: -6 | C36: -6 | D36: -6 | E36: -6 | F36: 27 | G36: 3.58 | H36: 3.58 | I36: 3.58 | J36: 3.58 | K36: 9.8 | L36: 9.8 | M36: 9.8 | N36: 9.8 | O36: 2.737430168 | P36: 2.737430168 | Q36: 2.737430168 | R36: 2.737430168 | S36: 2.737430168 | T36: 2.737430168 | U36: 2.737430168 | V36: 2.737430168 | W36: 0 | X36: 0 | Y36: 0 | Z36: 0 | AA36: 2.990518193 | AB36: 0 | AC36: 601.5779964 | AD36: 616.1095679 | AE36: 25.7017241 | AF36: 5.06812775 | AK36: -6.5 | AL36: 1 | AM36: 1 | AN36: 0.9124767225 | AO36: 0.9124767225 | AP36: 0.9124767225 | AQ36: 0.9124767225 | AR36: 0.9224822733 | AS36: 0.9224822733 | AT36: 0.9141330435 | AW36: 9.8 | AX36: 9.8 | AY36: 9.8 | AZ36: 9.8
A37: -7 | B37: -7 | C37: -7 | D37: -7 | E37: -7 | F37: 27.33333333 | G37: 3.46 | H37: 3.46 | I37: 3.46 | J37: 3.46 | K37: 10.26666667 | L37: 10.26666667 | M37: 10.26666667 | N37: 10.26666667 | O37: 2.967244701 | P37: 2.967244701 | Q37: 2.967244701 | R37: 2.967244701 | S37: 2.967244701 | T37: 2.967244701 | U37: 2.967244701 | V37: 2.967244701 | W37: 0 | X37: 0 | Y37: 0 | Z37: 0 | AA37: 3.452616331 | AB37: 0 | AC37: 672.7918692 | AD37: 698.9723598 | AE37: 25.7017241 | AF37: 5.06812775 | AK37: -7.5 | AL37: 1 | AM37: 1 | AN37: 0.9890815671 | AO37: 0.9890815671 | AP37: 0.9890815671 | AQ37: 0.9890815671 | AR37: 1.0001709 | AS37: 1.0001709 | AT37: 0.9909164137 | AW37: 10.26666667 | AX37: 10.26666667 | AY37: 10.26666667 | AZ37: 10.26666667
A38: -8 | B38: -8 | C38: -8 | D38: -8 | E38: -8 | F38: 27.66666667 | G38: 3.34 | H38: 3.34 | I38: 3.34 | J38: 3.34 | K38: 10.73333333 | L38: 10.73333333 | M38: 10.73333333 | N38: 10.73333333 | O38: 3.713333333 | P38: 3.713333333 | Q38: 3.713333333 | R38: 3.713333333 | S38: 3.713333333 | T38: 3.713333333 | U38: 3.713333333 | V38: 3.713333333 | W38: 0 | X38: 0 | Y38: 0 | Z38: 0 | AA38: 4.005790104 | AB38: 0 | AC38: 761.9118692 | AD38: 795.1113223 | AE38: 25.7017241 | AF38: 5.06812775 | AK38: -8.5 | AL38: 1 | AM38: 1 | AN38: 1.071190951 | AO38: 1.071190951 | AP38: 1.071190951 | AQ38: 1.071190951 | AR38: 1.083526683 | AS38: 1.083526683 | AT38: 1.073230936 | AW38: 10.73333333 | AX38: 10.73333333 | AY38: 10.73333333 | AZ38: 10.73333333
A39: -9 | B39: -9 | C39: -9 | D39: -9 | E39: -9 | F39: 28 | G39: 3.22 | H39: 3.22 | I39: 3.22 | J39: 3.22 | K39: 11.2 | L39: 11.2 | M39: 11.2 | N39: 11.2 | O39: 4.54 | P39: 4.54 | Q39: 4.54 | R39: 4.54 | S39: 4.54 | T39: 4.54 | U39: 4.54 | V39: 4.54 | W39: 0 | X39: 0 | Y39: 0 | Z39: 0 | AA39: 4.648286886 | AB39: 0 | AC39: 870.8718692 | AD39: 906.6702076 | AE39: 25.7017241 | AF39: 5.06812775 | AK39: -9.5 | AL39: 1 | AM39: 1 | AN39: 1.15942029 | AO39: 1.15942029 | AP39: 1.15942029 | AQ39: 1.15942029 | AR39: 1.173196773 | AS39: 1.173196773 | AT39: 1.161697176 | AW39: 11.2 | AX39: 11.2 | AY39: 11.2 | AZ39: 11.2
A40: -10 | B40: -10 | C40: -10 | D40: -10 | E40: -10 | F40: 28.33333333 | G40: 3.1 | H40: 3.1 | I40: 3.1 | J40: 3.1 | K40: 11.66666667 | L40: 11.66666667 | M40: 11.66666667 | N40: 11.66666667 | O40: 5.366666667 | P40: 5.366666667 | Q40: 5.366666667 | R40: 5.366666667 | S40: 5.366666667 | T40: 5.366666667 | U40: 5.366666667 | V40: 5.366666667 | W40: 0 | X40: 0 | Y40: 0 | Z40: 0 | AA40: 5.378177814 | AB40: 0 | AC40: 999.6718692 | AD40: 1035.746475 | AE40: 25.7017241 | AF40: 5.06812775 | AK40: -10.5 | AL40: 1 | AM40: 1 | AN40: 1.254480287 | AO40: 1.254480287 | AP40: 1.254480287 | AQ40: 1.254480287 | AR40: 1.269931357 | AS40: 1.269931357 | AT40: 1.257032233 | AW40: 11.66666667 | AX40: 11.66666667 | AY40: 11.66666667 | AZ40: 11.66666667
A41: -11 | B41: -11 | C41: -11 | D41: -11 | E41: -11 | F41: 28.66666667 | G41: 2.98 | H41: 2.98 | I41: 2.98 | J41: 2.98 | K41: 12.13333333 | L41: 12.13333333 | M41: 12.13333333 | N41: 12.13333333 | O41: 6.193333333 | P41: 6.193333333 | Q41: 6.193333333 | R41: 6.193333333 | S41: 6.193333333 | T41: 6.193333333 | U41: 6.193333333 | V41: 6.193333333 | W41: 0 | X41: 0 | Y41: 0 | Z41: 0 | AA41: 6.193333333 | AB41: 0 | AC41: 1148.311869 | AD41: 1184.386475 | AE41: 25.7017241 | AF41: 5.06812775 | AK41: -11.5 | AL41: 1 | AM41: 1 | AN41: 1.357196122 | AO41: 1.357196122 | AP41: 1.357196122 | AQ41: 1.357196122 | AR41: 1.374605153 | AS41: 1.374605153 | AT41: 1.360069293 | AW41: 12.13333333 | AX41: 12.13333333 | AY41: 12.13333333 | AZ41: 12.13333333
A42: -12 | B42: =A42 -> -12 | C42: -12 | D42: -12 | E42: -12 | F42: =F$8+(H$7-F$8)*(M$6-B42)/30 -> 29 | G42: =IF((B42+35-$F42)*$H$5+$H$6>1,(B42+35-$F42)*$H$5+$H$6,1) -> 2.86 | H42: =IF((C42+35-$F42)*$H$5+$H$6>1,(C42+35-$F42)*$H$5+$H$6,1) -> 2.86 | I42: =IF((D42+35-$F42)*$H$5+$H$6>1,(D42+35-$F42)*$H$5+$H$6,1) -> 2.86 | J42: =IF((E42+35-$F42)*$H$5+$H$6>1,(E42+35-$F42)*$H$5+$H$6,1) -> 2.86 | K42: =$M$5*($M$6-B42)/30-$O$5 -> 12.6 | L42: =$M$5*($M$6-C42)/30-$O$5 -> 12.6 | M42: =$M$5*($M$6-D42)/30-$O$5 -> 12.6 | N42: =$M$5*($M$6-E42)/30-$O$5 -> 12.6 | O42: =IF(K42/G42>$M$7,$M$7+K42-$M$7*G42,K42/G42) -> 7.02 | P42: =IF(L42/H42>$M$7,$M$7+L42-$M$7*H42,L42/H42) -> 7.02 | Q42: =IF(M42/I42>$M$7,$M$7+M42-$M$7*I42,M42/I42) -> 7.02 | R42: =IF(N42/J42>$M$7,$M$7+N42-$M$7*J42,N42/J42) -> 7.02 | S42: 7.02 | T42: =IF(P42>0,P42,) -> 7.02 | U42: =IF(Q42>0,Q42,) -> 7.02 | V42: =IF(R42>0,R42,) -> 7.02 | W42: =IF(O42<0,-O42,0) -> 0 | X42: =IF(P42<0,-P42,0) -> 0 | Y42: =IF(Q42<0,-Q42,0) -> 0 | Z42: =IF(R42<0,-R42,0) -> 0 | AA42: 7.02 | AB42: 0 | AC42: 1316.791869 | AD42: 1352.866475 | AE42: 25.7017241 | AF42: 5.06812775 | AK42: -12.5 | AL42: 1 | AM42: 1 | AN42: =K42/G42/$M$7 -> 1.468531469 | AO42: =L42/H42/$M$7 -> 1.468531469 | AP42: =M42/I42/$M$7 -> 1.468531469 | AQ42: =N42/J42/$M$7 -> 1.468531469 | AR42: 1.488244541 | AS42: 1.488244541 | AT42: 1.471782136 | AW42: =IF(K42>0,K42,0) -> 12.6 | AX42: =IF(L42>0,L42,0) -> 12.6 | AY42: =IF(M42>0,M42,0) -> 12.6 | AZ42: =IF(N42>0,N42,0) -> 12.6
A43: -13 | B43: -13 | C43: -13 | D43: -13 | E43: -13 | F43: 29.33333333 | G43: 2.74 | H43: 2.74 | I43: 2.74 | J43: 2.74 | K43: 13.06666667 | L43: 13.06666667 | M43: 13.06666667 | N43: 13.06666667 | O43: 7.846666667 | P43: 7.846666667 | Q43: 7.846666667 | R43: 7.846666667 | S43: =IF(O43>0,O43,) -> 7.846666667 | T43: 7.846666667 | U43: 7.846666667 | V43: 7.846666667 | W43: 0 | X43: 0 | Y43: 0 | Z43: 0 | AA43: 7.846666667 | AB43: 0 | AC43: =6*SUM(S43:V43)+AC42 -> 1505.111869 | AD43: 1541.186475 | AE43: =6*SUM(W43:Z43)+AE42 -> 25.7017241 | AF43: =AF42+AB43*24 -> 5.06812775 | AK43: -13.5 | AL43: 1 | AM43: 1 | AN43: 1.589618816 | AO43: 1.589618816 | AP43: 1.589618816 | AQ43: 1.589618816 | AR43: 1.612062184 | AS43: 1.612062184 | AT43: =SUM(AN42:AQ44)/12 -> 1.593316139 | AW43: 13.06666667 | AX43: 13.06666667 | AY43: 13.06666667 | AZ43: 13.06666667
A44: -14 | B44: -14 | C44: -14 | D44: -14 | E44: -14 | F44: 29.66666667 | G44: 2.62 | H44: 2.62 | I44: 2.62 | J44: 2.62 | K44: 13.53333333 | L44: 13.53333333 | M44: 13.53333333 | N44: 13.53333333 | O44: 8.673333333 | P44: 8.673333333 | Q44: 8.673333333 | R44: 8.673333333 | S44: 8.673333333 | T44: 8.673333333 | U44: 8.673333333 | V44: 8.673333333 | W44: 0 | X44: 0 | Y44: 0 | Z44: 0 | AA44: 8.673333333 | AB44: 0 | AC44: 1713.271869 | AD44: 1749.346475 | AE44: 25.7017241 | AF44: 5.06812775 | AK44: -14.5 | AL44: 1 | AM44: 1 | AN44: 1.721798134 | AO44: 1.721798134 | AP44: 1.721798134 | AQ44: 1.721798134 | AR44: 1.747501648 | AS44: 1.747501648 | AT44: 1.726027872 | AW44: 13.53333333 | AX44: 13.53333333 | AY44: 13.53333333 | AZ44: 13.53333333
A45: -15 | B45: -15 | C45: -15 | D45: -15 | E45: -15 | F45: 30 | G45: 2.5 | H45: 2.5 | I45: 2.5 | J45: 2.5 | K45: 14 | L45: 14 | M45: 14 | N45: 14 | O45: 9.5 | P45: 9.5 | Q45: 9.5 | R45: 9.5 | S45: 9.5 | T45: 9.5 | U45: 9.5 | V45: 9.5 | W45: 0 | X45: 0 | Y45: 0 | Z45: 0 | AA45: 9.5 | AB45: 0 | AC45: 1941.271869 | AD45: 1977.346475 | AE45: 25.7017241 | AF45: 5.06812775 | AK45: -15.5 | AL45: 1 | AM45: 1 | AN45: 1.866666667 | AO45: 1.866666667 | AP45: 1.866666667 | AQ45: 1.866666667 | AR45: 1.896295616 | AS45: 1.896295616 | AT45: 1.871536197 | AW45: 14 | AX45: 14 | AY45: 14 | AZ45: 14
A46: -16 | B46: -16 | C46: -16 | D46: -16 | E46: -16 | F46: 30.33333333 | G46: 2.38 | H46: 2.38 | I46: 2.38 | J46: 2.38 | K46: 14.46666667 | L46: 14.46666667 | M46: 14.46666667 | N46: 14.46666667 | O46: 10.32666667 | P46: 10.32666667 | Q46: 10.32666667 | R46: 10.32666667 | S46: 10.32666667 | T46: 10.32666667 | U46: 10.32666667 | V46: 10.32666667 | W46: 0 | X46: 0 | Y46: 0 | Z46: 0 | AA46: 10.32666667 | AB46: 0 | AC46: 2189.111869 | AD46: 2225.186475 | AE46: 25.7017241 | AF46: 5.06812775 | AK46: -16.5 | AL46: 1 | AM46: 1 | AN46: 2.026143791 | AO46: 2.026143791 | AP46: 2.026143791 | AQ46: 2.026143791 | AR46: 2.06054281 | AS46: 2.06054281 | AT46: 2.031788999 | AW46: 14.46666667 | AX46: 14.46666667 | AY46: 14.46666667 | AZ46: 14.46666667
A47: -17 | B47: -17 | C47: -17 | D47: -17 | E47: -17 | F47: 30.66666667 | G47: 2.26 | H47: 2.26 | I47: 2.26 | J47: 2.26 | K47: 14.93333333 | L47: 14.93333333 | M47: 14.93333333 | N47: 14.93333333 | O47: 11.15333333 | P47: 11.15333333 | Q47: 11.15333333 | R47: 11.15333333 | S47: 11.15333333 | T47: 11.15333333 | U47: 11.15333333 | V47: 11.15333333 | W47: 0 | X47: 0 | Y47: 0 | Z47: 0 | AA47: 11.15333333 | AB47: 0 | AC47: 2456.791869 | AD47: 2492.866475 | AE47: 25.7017241 | AF47: 5.06812775 | AK47: -17.5 | AL47: 1 | AM47: 1 | AN47: 2.202556539 | AO47: 2.202556539 | AP47: 2.202556539 | AQ47: 2.202556539 | AR47: 2.242811132 | AS47: 2.242811132 | AT47: 2.209151408 | AW47: 14.93333333 | AX47: 14.93333333 | AY47: 14.93333333 | AZ47: 14.93333333
A48: -18 | B48: -18 | C48: -18 | D48: -18 | E48: -18 | F48: 31 | G48: 2.14 | H48: 2.14 | I48: 2.14 | J48: 2.14 | K48: 15.4 | L48: 15.4 | M48: 15.4 | N48: 15.4 | O48: 11.98 | P48: 11.98 | Q48: 11.98 | R48: 11.98 | S48: 11.98 | T48: 11.98 | U48: 11.98 | V48: 11.98 | W48: 0 | X48: 0 | Y48: 0 | Z48: 0 | AA48: 11.98 | AB48: 0 | AC48: 2744.311869 | AD48: 2780.386475 | AE48: 25.7017241 | AF48: 5.06812775 | AK48: -18.5 | AL48: 1 | AM48: 1 | AN48: 2.398753894 | AO48: 2.398753894 | AP48: 2.398753894 | AQ48: 2.398753894 | AR48: 2.446278173 | AS48: 2.446278173 | AT48: 2.406524086 | AW48: 15.4 | AX48: 15.4 | AY48: 15.4 | AZ48: 15.4
A49: -19 | B49: -19 | C49: -19 | D49: -19 | E49: -19 | F49: 31.33333333 | G49: 2.02 | H49: 2.02 | I49: 2.02 | J49: 2.02 | K49: 15.86666667 | L49: 15.86666667 | M49: 15.86666667 | N49: 15.86666667 | O49: 12.80666667 | P49: 12.80666667 | Q49: 12.80666667 | R49: 12.80666667 | S49: 12.80666667 | T49: 12.80666667 | U49: 12.80666667 | V49: 12.80666667 | W49: 0 | X49: 0 | Y49: 0 | Z49: 0 | AA49: 12.80666667 | AB49: 0 | AC49: 3051.671869 | AD49: 3087.746475 | AE49: 25.7017241 | AF49: 5.06812775 | AK49: -19.5 | AL49: 1 | AM49: 1 | AN49: 2.618261826 | AO49: 2.618261826 | AP49: 2.618261826 | AQ49: 2.618261826 | AR49: 2.674926098 | AS49: 2.674926098 | AT49: 2.627504265 | AW49: 15.86666667 | AX49: 15.86666667 | AY49: 15.86666667 | AZ49: 15.86666667
A50: -20 | B50: -20 | C50: =$B50+C$9 -> -20 | D50: -20 | E50: -20 | F50: 31.66666667 | G50: 1.9 | H50: 1.9 | I50: 1.9 | J50: 1.9 | K50: 16.33333333 | L50: 16.33333333 | M50: 16.33333333 | N50: 16.33333333 | O50: 13.63333333 | P50: 13.63333333 | Q50: 13.63333333 | R50: 13.63333333 | S50: 13.63333333 | T50: 13.63333333 | U50: 13.63333333 | V50: 13.63333333 | W50: 0 | X50: 0 | Y50: 0 | Z50: 0 | AA50: 13.63333333 | AB50: 0 | AC50: 3378.871869 | AD50: 3414.946475 | AE50: 25.7017241 | AF50: 5.06812775 | AK50: -20.5 | AL50: 1 | AM50: 1 | AN50: 2.865497076 | AO50: 2.865497076 | AP50: 2.865497076 | AQ50: 2.865497076 | AR50: 2.933817533 | AS50: 2.933817533 | AT50: 2.876608773 | AW50: 16.33333333 | AX50: 16.33333333 | AY50: 16.33333333 | AZ50: 16.33333333
A51: -21 | B51: -21 | C51: -21 | D51: -21 | E51: -21 | F51: 32 | G51: 1.78 | H51: 1.78 | I51: 1.78 | J51: 1.78 | K51: 16.8 | L51: 16.8 | M51: 16.8 | N51: 16.8 | O51: 14.46 | P51: 14.46 | Q51: 14.46 | R51: 14.46 | S51: 14.46 | T51: 14.46 | U51: 14.46 | V51: 14.46 | W51: 0 | X51: 0 | Y51: 0 | Z51: 0 | AA51: 14.46 | AB51: 0 | AC51: 3725.911869 | AD51: 3761.986475 | AE51: 25.7017241 | AF51: 5.06812775 | AK51: -21.5 | AL51: 1 | AM51: 1 | AN51: 3.146067416 | AO51: 3.146067416 | AP51: 3.146067416 | AQ51: 3.146067416 | AR51: 3.229495237 | AS51: 3.229495237 | AT51: 3.159588878 | AW51: 16.8 | AX51: 16.8 | AY51: 16.8 | AZ51: 16.8
A52: -22 | B52: -22 | C52: -22 | D52: -22 | E52: -22 | F52: 32.33333333 | G52: 1.66 | H52: 1.66 | I52: 1.66 | J52: 1.66 | K52: 17.26666667 | L52: 17.26666667 | M52: 17.26666667 | N52: 17.26666667 | O52: 15.28666667 | P52: 15.28666667 | Q52: 15.28666667 | R52: 15.28666667 | S52: 15.28666667 | T52: 15.28666667 | U52: 15.28666667 | V52: 15.28666667 | W52: 0 | X52: 0 | Y52: 0 | Z52: 0 | AA52: 15.28666667 | AB52: 0 | AC52: 4092.791869 | AD52: 4128.866475 | AE52: 25.7017241 | AF52: 5.06812775 | AK52: -22.5 | AL52: 1 | AM52: 1 | AN52: 3.467202142 | AO52: 3.467202142 | AP52: 3.467202142 | AQ52: 3.467202142 | AR52: 3.570576793 | AS52: 3.570576793 | AT52: 3.483884465 | AW52: 17.26666667 | AX52: 17.26666667 | AY52: 17.26666667 | AZ52: 17.26666667
A53: -23 | B53: -23 | C53: -23 | D53: -23 | E53: -23 | F53: 32.66666667 | G53: 1.54 | H53: 1.54 | I53: 1.54 | J53: 1.54 | K53: 17.73333333 | L53: 17.73333333 | M53: 17.73333333 | N53: 17.73333333 | O53: 16.11333333 | P53: 16.11333333 | Q53: 16.11333333 | R53: 16.11333333 | S53: 16.11333333 | T53: 16.11333333 | U53: 16.11333333 | V53: 16.11333333 | W53: 0 | X53: 0 | Y53: 0 | Z53: 0 | AA53: 16.11333333 | AB53: 0 | AC53: 4479.511869 | AD53: 4515.586475 | AE53: 25.7017241 | AF53: 5.06812775 | AK53: -23.5 | AL53: 1 | AM53: 1 | AN53: 3.838383838 | AO53: 3.838383838 | AP53: 3.838383838 | AQ53: 3.838383838 | AR53: 3.96866745 | AS53: 3.96866745 | AT53: 3.859295483 | AW53: 17.73333333 | AX53: 17.73333333 | AY53: 17.73333333 | AZ53: 17.73333333
A54: -24 | B54: -24 | C54: -24 | D54: -24 | E54: -24 | F54: 33 | G54: 1.42 | H54: 1.42 | I54: 1.42 | J54: 1.42 | K54: 18.2 | L54: 18.2 | M54: 18.2 | N54: 18.2 | O54: 16.94 | P54: 16.94 | Q54: 16.94 | R54: 16.94 | S54: 16.94 | T54: 16.94 | U54: 16.94 | V54: 16.94 | W54: 0 | X54: 0 | Y54: 0 | Z54: 0 | AA54: 16.94 | AB54: 0 | AC54: 4886.071869 | AD54: 4922.146475 | AE54: 25.7017241 | AF54: 5.06812775 | AK54: =IF(SUM(B48:B60)/14<$C$7,SUM(B48:B60)/14,0) -> -22.28571429 | AL54: =IF(SUM(B48:B60)/14<$C$7,1,0) -> 1 | AM54: 1 | AN54: 4.272300469 | AO54: 4.272300469 | AP54: 4.272300469 | AQ54: 4.272300469 | AR54: 4.439813869 | AS54: 4.439813869 | AT54: 4.299003031 | AW54: 18.2 | AX54: 18.2 | AY54: 18.2 | AZ54: 18.2
A55: -25 | B55: -25 | C55: -25 | D55: -25 | E55: -25 | F55: 33.33333333 | G55: 1.3 | H55: 1.3 | I55: 1.3 | J55: 1.3 | K55: 18.66666667 | L55: 18.66666667 | M55: 18.66666667 | N55: 18.66666667 | O55: 17.76666667 | P55: 17.76666667 | Q55: 17.76666667 | R55: 17.76666667 | S55: 17.76666667 | T55: 17.76666667 | U55: 17.76666667 | V55: 17.76666667 | W55: 0 | X55: 0 | Y55: 0 | Z55: 0 | AA55: 17.74095238 | AB55: 0 | AC55: 5312.471869 | AD55: 5347.929332 | AE55: 25.7017241 | AF55: 5.06812775 | AK55: =IF(SUM(B49:B60)/14<$C$7,SUM(B49:B60)/14,0) -> -21 | AL55: =IF(SUM(B49:B60)/14<$C$7,1,0) -> 1 | AM55: 1 | AN55: 4.786324786 | AO55: 4.786324786 | AP55: 4.786324786 | AQ55: 4.786324786 | AR55: 4.945931223 | AS55: 4.945931223 | AT55: 4.821173893 | AW55: 18.66666667 | AX55: 18.66666667 | AY55: 18.66666667 | AZ55: 18.66666667
A56: -26 | B56: -26 | C56: -26 | D56: -26 | E56: -26 | F56: 33.66666667 | G56: 1.18 | H56: 1.18 | I56: 1.18 | J56: 1.18 | K56: 19.13333333 | L56: 19.13333333 | M56: 19.13333333 | N56: 19.13333333 | O56: 18.59333333 | P56: 18.59333333 | Q56: 18.59333333 | R56: 18.59333333 | S56: 18.59333333 | T56: 18.59333333 | U56: 18.59333333 | V56: 18.59333333 | W56: 0 | X56: 0 | Y56: 0 | Z56: 0 | AA56: 18.49047619 | AB56: 0 | AC56: 5758.711869 | AD56: 5791.700761 | AE56: 25.7017241 | AF56: 5.06812775 | AK56: =IF(SUM(B50:B60)/14<$C$7,SUM(B50:B60)/14,0) -> -19.64285714 | AL56: =IF(SUM(B50:B60)/14<$C$7,1,0) -> 1 | AM56: 1 | AN56: 5.404896422 | AO56: 5.404896422 | AP56: 5.404896422 | AQ56: 5.404896422 | AR56: 5.428394409 | AS56: 5.428394409 | AT56: 5.451581074 | AW56: 19.13333333 | AX56: 19.13333333 | AY56: 19.13333333 | AZ56: 19.13333333
A57: -27 | B57: -27 | C57: -27 | D57: -27 | E57: -27 | F57: 34 | G57: 1.06 | H57: 1.06 | I57: 1.06 | J57: 1.06 | K57: 19.6 | L57: 19.6 | M57: 19.6 | N57: 19.6 | O57: 19.42 | P57: 19.42 | Q57: 19.42 | R57: 19.42 | S57: 19.42 | T57: 19.42 | U57: 19.42 | V57: 19.42 | W57: 0 | X57: 0 | Y57: 0 | Z57: 0 | AA57: 19.18857143 | AB57: 0 | AC57: 6224.791869 | AD57: 6252.226475 | AE57: 25.7017241 | AF57: 5.06812775 | AK57: =IF(SUM(B51:B60)/14<$C$7,SUM(B51:B60)/14,0) -> -18.21428571 | AL57: =IF(SUM(B51:B60)/14<$C$7,1,0) -> 1 | AM57: 1 | AN57: 6.163522013 | AO57: 6.163522013 | AP57: 6.163522013 | AQ57: 6.163522013 | AR57: 5.880053861 | AS57: 5.880053861 | AT57: 6.085769108 | AW57: 19.6 | AX57: 19.6 | AY57: 19.6 | AZ57: 19.6
A58: -28 | B58: -28 | C58: -28 | D58: -28 | E58: -28 | F58: 34.33333333 | G58: 1 | H58: 1 | I58: 1 | J58: 1 | K58: 20.06666667 | L58: 20.06666667 | M58: 20.06666667 | N58: 20.06666667 | O58: 20.06666667 | P58: 20.06666667 | Q58: 20.06666667 | R58: 20.06666667 | S58: 20.06666667 | T58: 20.06666667 | U58: 20.06666667 | V58: 20.06666667 | W58: 0 | X58: 0 | Y58: 0 | Z58: 0 | AA58: =IF(SUM(O55:R60)/28>0,SUM(O55:R60)/28,) -> 16.76857143 | AB58: =IF(SUM(O55:R60)/28<0,-SUM(O55:R60)/28,) -> 0 | AC58: 6706.391869 | AD58: 6654.672189 | AE58: 25.7017241 | AF58: 5.06812775 | AK58: =IF(SUM(B52:B60)/14<$C$7,SUM(B52:B60)/14,0) -> -16.71428571 | AL58: =IF(SUM(B52:B60)/14<$C$7,1,0) -> 1 | AM58: =IF(SUM(AN55:AQ60)>0,1,0) -> 1 | AN58: 6.688888889 | AO58: 6.688888889 | AP58: 6.688888889 | AQ58: 6.688888889 | AR58: =SUM(AO55:AO60)/7 -> 5.269725222 | AS58: =SUM(AQ55:AQ60)/7 -> 5.269725222 | AT58: 6.565618449 | AW58: 20.06666667 | AX58: 20.06666667 | AY58: 20.06666667 | AZ58: 20.06666667
A59: -29 | B59: -29 | C59: -29 | D59: -29 | E59: -29 | F59: 34.66666667 | G59: 1 | H59: 1 | I59: 1 | J59: 1 | K59: 20.53333333 | L59: 20.53333333 | M59: 20.53333333 | N59: 20.53333333 | O59: 20.53333333 | P59: 20.53333333 | Q59: 20.53333333 | R59: 20.53333333 | S59: 20.53333333 | T59: 20.53333333 | U59: 20.53333333 | V59: 20.53333333 | W59: 0 | X59: 0 | Y59: 0 | Z59: 0 | AA59: =IF(SUM(O56:R60)/28>0,SUM(O56:R60)/28,) -> 14.23047619 | AB59: =IF(SUM(O56:R60)/28<0,-SUM(O56:R60)/28,) -> 0 | AC59: 7199.191869 | AD59: 6996.203618 | AE59: 25.7017241 | AF59: 5.06812775 | AK59: =IF(SUM(B53:B60)/14<$C$7,SUM(B53:B60)/14,0) -> -15.14285714 | AL59: =IF(SUM(B53:B60)/14<$C$7,1,0) -> 1 | AM59: =IF(SUM(AN56:AQ60)>0,1,0) -> 1 | AN59: 6.844444444 | AO59: 6.844444444 | AP59: 6.844444444 | AQ59: 6.844444444 | AR59: =SUM(AO56:AO60)/7 -> 4.585964538 | AS59: =SUM(AQ56:AQ60)/7 -> 4.585964538 | AT59: 6.844444444 | AW59: 20.53333333 | AX59: 20.53333333 | AY59: 20.53333333 | AZ59: 20.53333333
A60: -30 | B60: -30 | C60: -30 | D60: -30 | E60: -30 | F60: 35 | G60: 1 | H60: 1 | I60: 1 | J60: 1 | K60: 21 | L60: 21 | M60: 21 | N60: 21 | O60: 21 | P60: 21 | Q60: 21 | R60: 21 | S60: 21 | T60: 21 | U60: 21 | V60: 21 | W60: 0 | X60: 0 | Y60: 0 | Z60: 0 | AA60: =IF(SUM(O57:R60)/28>0,SUM(O57:R60)/28,) -> 11.57428571 | AB60: =IF(SUM(O57:R60)/28<0,-SUM(O57:R60)/28,) -> 0 | AC60: 7703.191869 | AD60: 7273.986475 | AE60: 25.7017241 | AF60: 5.06812775 | AK60: =IF(SUM(B54:B60)/14<$C$7,SUM(B54:B60)/14,0) -> -13.5 | AL60: =IF(SUM(B54:B60)/14<$C$7,1,0) -> 1 | AM60: =IF(SUM(AN57:AQ60)>0,1,0) -> 1 | AN60: 7 | AO60: 7 | AP60: 7 | AQ60: 7 | AR60: =SUM(AO57:AO60)/7 -> 3.813836478 | AS60: =SUM(AQ57:AQ60)/7 -> 3.813836478 | AT60: =SUM(AN59:AQ60)/12 -> 4.614814815 | AW60: 21 | AX60: 21 | AY60: 21 | AZ60: 21

Sheet křivky TC
A1: porovnávací měření Topin cca 3,8 a strmost | G1: =(5.8-3.8)/15 -> 0.1333333333
A2: https://www.topin.cz/clanky/vyznam-atestacnich-mereni-tepelnych-cerpadel-vzduch-voda-1-cast-detail-8961
A4: teoretická mez | F4: konstanty přepočtu COP:
A5: venk. tepl. | B5: topná voda: | D5: COP teorie | E5: COP vzorec | F5: a (G4) | G5: b (G5)
A6: 10 | B6: 35 | C6: =A6+35-B6 -> 10 | D6: =(A6+275)/(B6-A6)+1 -> 12.4 | E6: =A6*F6+G6 -> 11.5 | F6: 0.25 | G6: 9
A7: 7 | B7: =B6 -> 35 | C7: 7 | D7: 11.07142857 | E7: 10.75 | F7: =F6 -> 0.25 | G7: =G6 -> 9
A8: 2 | B8: =B7 -> 35 | C8: 2 | D8: 9.393939394 | E8: 9.5 | F8: =F7 -> 0.25 | G8: 9
A9: -2 | B9: 35 | C9: -2 | D9: 8.378378378 | E9: 8.5 | F9: 0.25 | G9: 9
A10: -7 | B10: 35 | C10: -7 | D10: 7.380952381 | E10: 7.25 | F10: 0.25 | G10: 9
A11: -11 | B11: 35 | C11: -11 | D11: 6.739130435 | E11: 6.25 | F11: 0.25 | G11: 9
A12: -20 | B12: 35 | C12: -20 | D12: 5.636363636
A13: -30 | B13: 35 | C13: -30 | D13: 4.769230769
F14: celkem stupňů ztrát
A15: 10 | B15: 35 | C15: =A15+35-B15 -> 10 | D15: =(A15+275+$I$15)/(B15-A15+$I$15)+1 -> 9.428571429 | E15: =A15*F15+G15 -> 8.9 | F15: 0.16 | G15: 7.3 | I15: 10
A16: 7 | B16: =B15 -> 35 | C16: 7 | D16: 8.684210526 | E16: 8.42 | F16: =F15 -> 0.16 | G16: =G15 -> 7.3
A17: 2 | B17: =B16 -> 35 | C17: 2 | D17: 7.674418605 | E17: 7.62 | F17: =F16 -> 0.16 | G17: 7.3
A18: -2 | B18: 35 | C18: -2 | D18: 7.021276596 | E18: 6.98 | F18: 0.16 | G18: 7.3
A19: -7 | B19: 35 | C19: -7 | D19: 6.346153846 | E19: 6.18 | F19: 0.16 | G19: 7.3
A20: -11 | B20: 35 | C20: -11 | D20: 5.892857143 | E20: 5.54 | F20: 0.16 | G20: 7.3
A21: -20 | B21: 35 | C21: -20 | D21: 5.076923077
A22: -30 | B22: 35 | C22: -30 | D22: 4.4
G23: max 4,6 min 3,0
A24: 10 | B24: 35 | C24: 10 | D24: =A24*F24+G24 -> 8.9 | F24: 0.16 | G24: 7.3 | I24: =8.9/0.25 -> 35.6
A25: -10 | B25: 35 | C25: -10 | D25: =A25*F25+G25 -> 5.7 | F25: =F24 -> 0.16 | G25: =G24 -> 7.3
A26: Loria2017 | E26: http://www.brilon.cz/download/katalog/2017/Loria2017CZ.pdf
A27: venk. tepl. | B27: topná voda: | D27: COP výrobce | E27: COP vzorec | F27: a (G4) | G27: b (G5)
A28: 10 | B28: 35 | C28: =A28+35-B28 -> 10 | E28: =A28*F28+G28 -> 5.1 | F28: 0.19 | G28: 3.2
A29: 7 | B29: 35 | C29: =A29+35-B29 -> 7 | D29: 4.8 | E29: 4.53 | F29: =F28 -> 0.19 | G29: =G28 -> 3.2
A30: 2 | B30: 35 | C30: 2 | D30: 3.51 | E30: 3.58 | F30: =F29 -> 0.19 | G30: 3.2
A31: 2 | B31: 35 | C31: 2 | D31: 3.51 | E31: 3.58 | F31: 0.19 | G31: 3.2
A32: -7 | B32: 45 | C32: -17 | D32: 1.9 | E32: 1.87 | F32: 0.19 | G32: 3.2
A33: -11 | B33: 45 | C33: -21 | E33: 1.11 | F33: 0.19 | G33: 3.2
A35: vst | B35: výst | D35: 11ASK
A36: 7 | B36: 35 | C36: =A36+35-B36 -> 7 | D36: 4.52 | K36: porovnání typů
A37: 2 | B37: 35 | C37: 2 | D37: 3.96 | M37: HOTJET | N37: IVT | O37: NIBE 2025-10 | P37: Stiebel Eltron | Q37: Mastertherm | R37: Dimplex | S37: Climatec
A38: -7 | B38: 35 | C38: -7 | D38: 3.15 | K38: vst | L38: výst | M38: 11ASK | N38: AIR 120 | O38: 2025-10 | P38: WPL013E | Q38: Boxair 26Z | R38: LA-11AS | S38: Acond TC 12 | T38: model | U38: a (G4) | V38: b (G5)
K39: 7 | L39: 35 | M39: 4.52 | N39: 3.8 | O39: 3.57 | P39: 4.35 | Q39: 4.2 | R39: 3.8 | T39: =K39*U39+V39 -> 4.2 | U39: 0.1 | V39: 3.5
A40: vst | B40: výst | D40: AIR 120 | K40: 2 | L40: 35 | M40: 3.96 | N40: 3.3 | O40: 3.38 | P40: 3.8 | Q40: 3.2 | R40: 3.2 | S40: 3.4 | T40: =K40*U40+V40 -> 3.7 | U40: =U39 -> 0.1 | V40: =V39 -> 3.5
A41: 7 | B41: 35 | C41: =A41+35-B41 -> 7 | D41: 3.8 | K41: -7 | L41: 35 | M41: 3.15 | N41: 2.5 | P41: 3.2 | R41: 2.9 | T41: 2.8 | U41: =U40 -> 0.1 | V41: 3.5
A42: 2 | B42: 35 | C42: 2 | D42: 3.3
A43: -7 | B43: 35 | C43: -7 | D43: 2.5
A46: https://www.lg.com/cz/lg-therma-v-vlastnosti
A48: http://www.clgservis.cz/product/therma-v-monoblok-tepelna-cerpadla/lg-therma-v-hm091m_u42/87
A49: LG Therma V HM091M.U43 monoblok je nejnovější 9 kW | J49: 107337 | K49: 2021-08-15
A50: LG Therma V | Y50: topení na 35
A51: vzd | B51: voda | D51: COP | E51: model | H51: kW příkon | I51: kW výkon | L51: výkon | M51: příkon | Y51: 0.1 | Z51: 3.4
A52: 7 | B52: 35 | C52: =A52+35-B52 -> 7 | D52: 4.09 | E52: =C52*F52+G52 -> 4.13 | F52: 0.09 | G52: 3.5 | J52: vzd | K52: voda | L52: kW | M52: kW | N52: COP | O52: model | P52: a (G4) | Q52: b (G5) | R52: kontrola | S52: dT | T52: COP | U52: model
A53: 2 | B53: 50 | C53: -13 | D53: 2.45 | E53: =C53*F53+G53 -> 2.33 | F53: =F52 -> 0.09 | G53: 3.5 | J53: 7 | K53: 35 | L53: 9 | M53: 2.2 | N53: 4.09 | O53: =J53*P53+Q53 -> 4.1 | P53: 0.1 | Q53: 3.4 | R53: =L53/M53/N53 -> 1.000222272 | S53: =J53-K53+35 -> 7 | T53: 4.09 | U53: =S53*V53+W53 -> 4.13 | V53: 0.09 | W53: 3.5 | Y53: topení na 50
A54: -2 | B54: 50 | C54: -17 | D54: 2.22 | E54: =C54*F54+G54 -> 1.97 | F54: =F53 -> 0.09 | G54: 3.5 | J54: 2 | K54: 50 | L54: 6.29 | M54: 2.57 | N54: 2.45 | O54: =J54*P54+Q54 -> 3.6 | P54: =P53 -> 0.1 | Q54: =Q53 -> 3.4 | R54: =L54/M54/N54 -> 0.9989676805 | S54: =J54-K54+35 -> -13 | T54: 2.45 | U54: =S54*V54+W54 -> 2.33 | V54: =V53 -> 0.09 | W54: 3.5 | Y54: 0.056 | Z54: 2.3
A55: -7 | B55: 35 | C55: -7 | D55: 2.7 | E55: 2.87 | F55: =F54 -> 0.09 | G55: 3.5 | J55: -2 | K55: 50 | L55: 5.88 | M55: 2.65 | N55: 2.22 | O55: 3.2 | P55: 0.1 | Q55: =Q54 -> 3.4 | R55: 0.9994900561 | S55: -17 | T55: 2.22 | U55: =S55*V55+W55 -> 1.97 | V55: =V54 -> 0.09 | W55: 3.5 | Z55: =Z54-Z51 -> -1.1 | AA55: korekce na 50
A56: http://www.clgservis.cz/product/tepelna-cerpadla-lg-monoblok-s-_2022_/lg-therma-v-hm163mr_u34/93 | J56: -7 | K56: 35 | L56: 8.61 | M56: 3.19 | N56: 2.7 | O56: 2.7 | P56: 0.1 | Q56: 3.4 | R56: 0.9996516893 | S56: -7 | T56: 2.7 | U56: 2.87 | V56: =V55 -> 0.09 | W56: 3.5
A57: -7 | B57: 35 | C57: -7 | D57: 2.8 | H57: =I57/D57 -> 5.714285714 | I57: 16 | P57: 0.1 | Q57: 3.4
J58: 35 | K58: 18 | L58: 9 | M58: 2.65 | N58: 3.4 | O58: 6.9 | P58: 0.1 | Q58: 3.4 | R58: 0.9988901221
A59: F2040-6
D60: COP | E60: model | K60: dT+35 | L60: COP | M60: model
A61: -20 | B61: 35 | C61: =A61+35-B61 -> -20 | D61: 1.5 | E61: =C61*F61+G61 -> 2 | F61: 0.04 | G61: 2.8 | H61: na 35 | I61: 2.7 | K61: =A61-B61+35 -> -20 | L61: 1.5 | M61: =K61*N61+O61 -> 2.02 | N61: 0.034 | O61: 2.7 | S61: ze zdroje | U61: https://forum.tzb-info.cz/150258-vyber-tc-pro-rd-stari-41-let-nezatepelny-tz-16-kw/vse#gallery-550251
A62: -15 | B62: 35 | C62: -15 | D62: 2.2 | E62: =C62*F62+G62 -> 2.2 | F62: =F61 -> 0.04 | G62: =G61 -> 2.8 | H62: na 45 | I62: 2.4 | K62: =A62-B62+35 -> -15 | L62: 2.2 | M62: =K62*N62+O62 -> 2.19 | N62: =N61 -> 0.034 | O62: 2.7 | V62: F2040-8 | Z62: F2040-12 | AD62: F2040-16 | AF62: https://www.nibe.cz/cenik
A63: -10 | B63: 35 | C63: -10 | D63: 2.45 | E63: 2.4 | F63: 0.04 | G63: 2.8 | H63: na 55 | I63: 2.2 | K63: -10 | L63: 2.45 | M63: =K63*N63+O63 -> 2.36 | N63: =N62 -> 0.034 | O63: 2.7 | S63: 2021-08-15 | V63: 121000Kč+DPH | Z63: 142500Kč+DPH | AD63: 175500Kč+DPH
A64: -5 | B64: 35 | C64: -5 | D64: 2.6 | E64: 2.6 | F64: 0.04 | G64: 2.8 | K64: -5 | L64: 2.6 | M64: 2.53 | N64: =N63 -> 0.034 | O64: 2.7 | U64: dT | V64: kW výk | W64: kW přík | X64: COP | Z64: kW výk | AA64: kW přík | AB64: COP | AD64: kW výk | AE64: kW přík | AF64: COP | AH64: model
A65: 0 | B65: 35 | C65: 0 | D65: 2.6 | E65: 2.8 | F65: 0.04 | G65: 2.8 | H65: 88500Kč+DPH | K65: 0 | L65: 2.6 | M65: 2.7 | N65: =N64 -> 0.034 | O65: 2.7 | S65: 7 | T65: 35 | U65: =S65-T65+35 -> 7 | V65: 3.86 | W65: 0.83 | X65: 4.65 | Y65: =V65/W65/X65 -> 1.00012955 | Z65: 5.21 | AA65: 1.09 | AB65: 4.78 | AC65: =Z65/AA65/AB65 -> 0.9999616138 | AD65: 7.03 | AE65: 1.45 | AF65: 4.85 | AG65: =AD65/AE65/AF65 -> 0.9996445076 | AH65: =U65*AI65+AJ65 -> 4.26 | AI65: 0.08 | AJ65: 3.7
A66: 5 | B66: 35 | C66: 5 | D66: 3.2 | E66: 3 | F66: 0.04 | G66: 2.8 | K66: 5 | L66: 3.2 | M66: 2.87 | N66: =N65 -> 0.034 | O66: 2.7 | S66: 2 | T66: 35 | U66: =S66-T66+35 -> 2 | V66: 5.11 | W66: 1.36 | X66: 3.76 | Y66: =V66/W66/X66 -> 0.999295995 | Z66: 6.91 | AA66: 1.79 | AB66: 3.86 | AC66: 1.000086838 | AD66: 9.33 | AE66: 2.38 | AF66: 3.92 | AG66: 1.000042874 | AH66: =U66*AI66+AJ66 -> 3.86 | AI66: =AI65 -> 0.08 | AJ66: =AJ65 -> 3.7
F67: 0.04 | G67: 2.8 | K67: 35 | N67: =N66 -> 0.034 | O67: 2.7 | S67: -7 | T67: 35 | U67: -7 | V67: 6.64 | W67: 2.48 | X67: 2.68 | Y67: 0.9990370727 | Z67: 8.98 | AA67: 3.26 | AB67: 2.75 | AC67: 1.001673173 | AD67: 12.12 | AE67: 4.33 | AF67: 2.8 | AG67: 0.9996700759 | AH67: 3.14 | AI67: =AI66 -> 0.08 | AJ67: 3.7
A68: -20 | B68: 45 | C68: -30 | D68: 1.6 | E68: 1.6 | F68: 0.04 | G68: 2.8 | K68: -30 | L68: 1.6 | M68: 1.68 | N68: =N67 -> 0.034 | O68: 2.7 | AI68: 0.08 | AJ68: 3.7
A69: -15 | B69: 45 | C69: -25 | D69: 1.8 | E69: 1.8 | F69: 0.04 | G69: 2.8 | K69: -25 | L69: 1.8 | M69: 1.85 | N69: =N68 -> 0.034 | O69: 2.7 | S69: 7 | T69: 55 | U69: -13 | V69: 3.5 | W69: 1.17 | X69: 2.99 | Y69: =V69/W69/X69 -> 1.00048595 | Z69: 4.73 | AA69: 1.54 | AB69: 3.07 | AC69: =Z69/AA69/AB69 -> 1.000465333 | AD69: 6.38 | AE69: 2.04 | AF69: 3.13 | AG69: =AD69/AE69/AF69 -> 0.9991856167 | AH69: 2.66 | AI69: 0.08 | AJ69: 3.7
A70: -10 | B70: 45 | C70: -20 | D70: 2 | E70: 2 | F70: 0.04 | G70: 2.8 | K70: -20 | L70: 2 | M70: 2.02 | N70: =N69 -> 0.034 | O70: 2.7 | S70: 2 | T70: 55 | U70: -18 | V70: 4.75 | W70: 2.07 | X70: 2.29 | Y70: =V70/W70/X70 -> 1.002046284 | Z70: 6.42 | AA70: 2.72 | AB70: 2.36 | AC70: =Z70/AA70/AB70 -> 1.000124626 | AD70: 8.67 | AE70: 3.62 | AF70: 2.4 | AG70: =AD70/AE70/AF70 -> 0.9979281768 | AH70: 2.26 | AI70: 0.08 | AJ70: 3.7
A71: -5 | B71: 45 | C71: -15 | D71: 2.2 | E71: 2.2 | F71: 0.04 | G71: 2.8 | K71: -15 | L71: 2.2 | M71: 2.19 | N71: =N70 -> 0.034 | O71: 2.7 | S71: -7 | T71: 55 | U71: -27 | V71: 5.29 | W71: 2.68 | X71: 1.97 | Y71: =V71/W71/X71 -> 1.001969846 | Z71: 7.15 | AA71: 3.53 | AB71: 2.03 | AC71: =Z71/AA71/AB71 -> 0.997781158 | AD71: 9.66 | AE71: 4.69 | AF71: 2.06 | AG71: =AD71/AE71/AF71 -> 0.9998550935 | AH71: 1.54 | AI71: 0.08 | AJ71: 3.7
A72: 0 | B72: 45 | C72: -10 | D72: 2.3 | E72: 2.4 | F72: 0.04 | G72: 2.8 | K72: -10 | L72: 2.3 | M72: 2.36 | N72: =N71 -> 0.034 | O72: 2.7 | AI72: 0.08 | AJ72: 3.7
A73: 5 | B73: 45 | C73: -5 | D73: 2.8 | E73: 2.6 | F73: 0.04 | G73: 2.8 | K73: -5 | L73: 2.8 | M73: 2.53 | N73: =N72 -> 0.034 | O73: 2.7 | S73: 7 | T73: 45 | U73: -3 | V73: 3.7 | W73: 1 | X73: 3.7 | Y73: =V73/W73/X73 -> 1 | Z73: 5 | AA73: 1.31 | AB73: 3.82 | AC73: =Z73/AA73/AB73 -> 0.999160705 | AD73: 6.75 | AE73: 1.74 | AF73: 3.88 | AG73: =AD73/AE73/AF73 -> 0.9998222538 | AH73: 3.46 | AI73: 0.08 | AJ73: 3.7
F74: 0.04 | G74: 2.8 | K74: 35 | N74: =N73 -> 0.034 | O74: 2.7 | S74: 2 | T74: 45 | U74: -8 | V74: 5.03 | W74: 1.7 | X74: 2.96 | Y74: =V74/W74/X74 -> 0.9996025437 | Z74: 6.8 | AA74: 2.24 | AB74: 3.04 | AC74: =Z74/AA74/AB74 -> 0.9985902256 | AD74: 9.18 | AE74: 2.98 | AF74: 3.08 | AG74: =AD74/AE74/AF74 -> 1.000174322 | AH74: 3.06 | AI74: 0.08 | AJ74: 3.7
A75: -20 | B75: 55 | C75: -40 | D75: 1.4 | E75: 1.2 | F75: 0.04 | G75: 2.8 | K75: -40 | L75: 1.4 | M75: 1.34 | N75: =N74 -> 0.034 | O75: 2.7 | S75: -7 | T75: 45 | U75: -17 | V75: 6.58 | W75: 3.06 | X75: 2.15 | Y75: =V75/W75/X75 -> 1.000151999 | Z75: 8.9 | AA75: 4.03 | AB75: 2.21 | AC75: =Z75/AA75/AB75 -> 0.9992926356 | AD75: 12.01 | AE75: 5.36 | AF75: 2.24 | AG75: =AD75/AE75/AF75 -> 1.00029984 | AH75: 2.34 | AI75: 0.08 | AJ75: 3.7
A76: -15 | B76: 55 | C76: -35 | D76: 1.6 | E76: 1.4 | F76: 0.04 | G76: 2.8 | K76: -35 | L76: 1.6 | M76: 1.51 | N76: =N75 -> 0.034 | O76: 2.7 | S76: -15 | T76: 45 | U76: -25 | V76: 5.13 | W76: 3.03 | X76: 1.69 | Y76: =V76/W76/X76 -> 1.001816158 | Z76: 6.94 | AA76: 3.99 | AB76: 1.74 | AC76: =Z76/AA76/AB76 -> 0.9996255005 | AD76: 9.36 | AE76: 5.31 | AF76: 1.76 | AG76: =AD76/AE76/AF76 -> 1.001540832 | AH76: 1.7 | AI76: 0.08 | AJ76: 3.7
A77: -10 | B77: 55 | C77: -30 | D77: 1.7 | E77: 1.6 | F77: 0.04 | G77: 2.8 | K77: -30 | L77: 1.7 | M77: 1.68 | N77: =N76 -> 0.034 | O77: 2.7
A78: -5 | B78: 55 | C78: -25 | D78: 1.9 | E78: 1.8 | F78: 0.04 | G78: 2.8 | K78: -25 | L78: 1.9 | M78: 1.85 | N78: =N77 -> 0.034 | O78: 2.7
A79: 0 | B79: 55 | C79: -20 | D79: 2.1 | E79: 2 | F79: 0.04 | G79: 2.8 | K79: -20 | L79: 2.1 | M79: 2.02 | N79: =N78 -> 0.034 | O79: 2.7
A80: 5 | B80: 55 | C80: -15 | D80: 2.5 | E80: 2.2 | F80: 0.04 | G80: 2.8 | K80: -15 | L80: 2.5 | M80: 2.19 | N80: =N79 -> 0.034 | O80: 2.7
A84: https://forum.tzb-info.cz/142277-jake-vytapeni-do-novostavby/vsechny-prispevky#text48
D87: COP | F87: a (G4) | G87: b (G5) | H87: SCOP
A88: -10 | B88: 35 | C88: =A88+35-B88 -> -10 | D88: 3 | E88: =C88*F88+G88 -> 2.9 | F88: 0.06 | G88: 3.5 | H88: 2.94
A89: 8 | B89: 35 | C89: 8 | D89: 4 | E89: =C89*F89+G89 -> 3.98 | F89: =F88 -> 0.06 | G89: =G88 -> 3.5
A90: 9 | B90: 35 | C90: 9 | D90: 5 | E90: 4.04 | F90: =F89 -> 0.06 | G90: 3.5
A91: 20 | B91: 35 | C91: 20 | D91: 6.4 | E91: 4.7 | F91: 0.06 | G91: 3.5
H92: SCOP
A93: -5 | B93: 50 | C93: -20 | D93: 2 | E93: 2.3 | F93: 0.06 | G93: 3.5 | H93: 1.81 | I93: 2.23
A94: 2 | B94: 50 | C94: -13 | D94: 2.2 | E94: 2.72 | F94: 0.06 | G94: 3.5
A95: 4 | B95: 50 | C95: -11 | D95: 2.8 | E95: 2.84 | F95: 0.06 | G95: 3.5
A96: 20 | B96: 50 | C96: 5 | D96: 3.6 | E96: 3.8 | F96: 0.06 | G96: 3.5
B100: ftp://194.209.16.218/05%20Luft-Wasser%20(F%202...)/01%20Technische%20Daten/Technische%20Daten%20(F2120-8).pdf
A101: F2120-8
D102: COP | F102: a (G4) | G102: b (G5) | H102: kW
A103: 7 | B103: 35 | C103: =A103+35-B103 -> 7 | D103: 4.8 | E103: =A103*F103+G103 -> 4.74 | F103: 0.12 | G103: 3.9 | H103: 5
A104: 2 | B104: 35 | C104: 2 | D104: 4.45 | E104: =A104*F104+G104 -> 4.14 | F104: =F103 -> 0.12 | G104: =G103 -> 3.9 | H104: 4.05
A105: -7 | B105: 35 | C105: -7 | D105: 3.1 | E105: 3.06 | F105: =F104 -> 0.12 | G105: 3.9 | H105: 3.25
A107: 2 | B107: 35 | C107: 2 | D107: 3.85 | E107: 4.14 | F107: =F105 -> 0.12 | G107: =G105 -> 3.9 | H107: 5.8
A108: -7 | B108: 35 | C108: -7 | D108: 3 | E108: 3.06 | F108: =F107 -> 0.12 | G108: 3.9 | H108: 5.2
A110: 2 | B110: 55 | C110: -18 | D110: 2.6 | E110: 2.58 | F110: 0.04 | G110: 2.5 | H110: 6
A111: -7 | B111: 55 | C111: -27 | D111: 2.2 | E111: =$A111*F111+G111 -> 2.22 | F111: 0.04 | G111: 2.5 | H111: 5.55
A119: https://www.nibe.cz/cs/ke-stazeni/category/166-nibe-f2120?download=1548:nibe-f2120-technicke-udaje
A120: https://www.nibe.cz/cs/tepelna-cerpadla-vzduch-voda/tepelne-cerpadlo-nibe-f2120#ke-stazeni
A122: F2120 8 a 12
D123: COP | I123: výkon | J123: příkon
A124: 7 | B124: 35 | C124: =A124+35-B124 -> 7 | D124: 4.57 | E124: =$A124*F124+G124 -> 4.58 | F124: 0.04 | G124: 4.3 | I124: 3.57 | J124: 0.78
A125: 2 | B125: 35 | C125: 2 | D125: 4.43 | E125: =$A125*F125+G125 -> 4.38 | F125: =F124 -> 0.04 | G125: =G124 -> 4.3 | I125: 4.03 | J125: 0.91
A127: 7 | B127: 45 | C127: -3 | D127: 3.74 | E127: =$A127*F127+G127 -> 3.68 | F127: 0.04 | G127: 3.4 | I127: 3.66 | J127: 0.98
A128: 2 | B128: 45 | C128: -8 | D128: 3.51 | E128: =$A128*F128+G128 -> 3.48 | F128: =F127 -> 0.04 | G128: 3.4 | I128: 4.07 | J128: 1.16
A130: 7 | B130: 35 | C130: 7 | D130: 5.12 | E130: =$A130*F130+G130 -> 5.09 | F130: 0.17 | G130: 3.9 | I130: 3.54 | J130: 0.69
A131: 2 | B131: 35 | C131: 2 | D131: 4.27 | E131: =$A131*F131+G131 -> 4.24 | F131: 0.17 | G131: 3.9 | I131: 5.21 | J131: 1.22
O132: COP | T132: výkon | U132: příkon
A133: 7 | B133: 45 | C133: -3 | D133: 4 | E133: =$A133*F133+G133 -> 4 | F133: 0.1 | G133: 3.3 | I133: 3.64 | J133: 0.91 | L133: 35 | M133: 18 | N133: =L133+35-M133 -> 52 | O133: 3.73 | P133: =$L133*Q133+R133 -> 0 | Q133: =F135 -> 0 | R133: =G135 -> 0 | T133: 5.1 | U133: 1.37
A134: 2 | B134: 45 | C134: -8 | D134: 3.54 | E134: =$A134*F134+G134 -> 3.5 | F134: 0.1 | G134: 3.3 | I134: 5.27 | J134: 1.49 | L134: 35 | M134: 18 | N134: =L134+35-M134 -> 52 | O134: 3.15 | P134: =$L134*Q134+R134 -> 0 | Q134: =Q133 -> 0 | R134: =R133 -> 0 | T134: 5.44 | U134: 1.73
A139: Scroll kompresor
A140: R410A
A142: https://www.tepelnacerpadla-nosreti.cz/o-parku/ | H142: WWBC 9,5 H-B/P 51 050 Kč 61 771 Kč ES2 25-60/180mm
D143: COP | E143: model | I143: příkon | J143: výkon
A144: 7 | B144: 35 | C144: =A144+35-B144 -> 7 | D144: 4.2 | E144: =C144*F144+G144 -> 4.03 | F144: 0.09 | G144: 3.4 | I144: 2.3 | J144: 9.6
A145: 2 | B145: 35 | C145: 2 | D145: 3.3 | E145: =C145*F145+G145 -> 3.58 | F145: =F144 -> 0.09 | G145: 3.4 | I145: 2.1 | J145: 7
A146: -2 | B146: 35 | C146: -2 | D146: 3.05 | E146: =C146*F146+G146 -> 3.22 | F146: =F145 -> 0.09 | G146: 3.4 | I146: 2.08 | J146: 6.34
A147: -7 | B147: 35 | C147: -7 | D147: 2.55 | E147: =C147*F147+G147 -> 2.77 | F147: =F146 -> 0.09 | G147: 3.4 | I147: 2.04 | J147: 5.2
F148: =F147 -> 0.09 | G148: 3.4
A149: 7 | B149: 45 | C149: -3 | D149: 3.2 | E149: =C149*F149+G149 -> 3.13 | F149: =F148 -> 0.09 | G149: 3.4 | I149: 2.7 | J149: 8.5
A150: 2 | B150: 45 | C150: -8 | D150: 2.9 | E150: =C150*F150+G150 -> 2.68 | F150: =F149 -> 0.09 | G150: 3.4 | I150: 2.4 | J150: 7
A151: -2 | B151: 45 | C151: -12 | D151: 2.45 | E151: =C151*F151+G151 -> 2.32 | F151: =F150 -> 0.09 | G151: 3.4 | I151: 2.36 | J151: 5.78
A152: -7 | B152: 45 | C152: -17 | D152: 1.85 | E152: =C152*F152+G152 -> 1.87 | F152: =F151 -> 0.09 | G152: 3.4 | I152: 2.31 | J152: 3.94
A154: https://forum.tzb-info.cz/106288-tepelne-cerpadlo-nordline
A156: AirMaster ON/OFF split 12 kW
D157: data | E157: model
A158: 7 | B158: 55 | C158: =A158+35-B158 -> -13 | D158: 3 | E158: =$C158*F158+G158 -> 2.87 | F158: 0.06 | G158: 3.65
A159: 0 | B159: 55 | C159: -20 | D159: 2.5 | E159: =$C159*F159+G159 -> 2.45 | F159: =F158 -> 0.06 | G159: 3.65
A160: -7 | B160: 55 | C160: -27 | D160: 2.2 | E160: =$C160*F160+G160 -> 2.03 | F160: 0.06 | G160: 3.65
F161: 0.06 | G161: 3.65
A163: https://www.dilynakotle.cz/data/files/Prospekt%20tepeln%C3%A1%20%C4%8Derpadla%20Mango%202018.pdf
A164: dilynakotle.cz
A165: Mango Energy | H165: s DPH | J165: Kč bez DPH | K165: kW | L165: Kč/kW | N165: mango 29.10.2019
E166: mgk-020ic | G166: 43200 | H166: =G166*1.21 -> 52272 | J166: 35375 | K166: 3.5 | L166: =J166/K166 -> 10107.14286
J167: 40500 | K167: 5.2 | L167: =J167/K167 -> 7788.461538 | N167: kW | O167: Kč s DPH | P167: Kč/kW
A168: A | B168: W | D168: data | E168: model | J168: 43200 | K168: 7 | L168: 6171.428571 | N168: 7 | O168: 54363 | P168: =O168/N168 -> 7766.142857
A169: 20 | B169: 35 | C169: =A169+35-B169 -> 20 | D169: 4.13 | E169: =$C169*F169+G169 -> 4.2 | F169: 0.06 | G169: 3 | J169: 57876 | K169: 9.5 | L169: 6092.210526 | N169: 9.5 | O169: 72831 | P169: =O169/N169 -> 7666.421053
A170: 12 | B170: 35 | C170: 12 | D170: 3.88 | E170: =$C170*F170+G170 -> 3.72 | F170: =F169 -> 0.06 | G170: 3 | J170: 65520 | K170: 13.5 | L170: 4853.333333 | N170: 13.5 | O170: 86591 | P170: 6414.148148
A171: 7 | B171: 35 | C171: 7 | D171: 3.44 | E171: =$C171*F171+G171 -> 3.42 | F171: =F170 -> 0.06 | G171: 3 | J171: 81900 | K171: 17.5 | L171: 4680 | N171: 18 | O171: 119077 | P171: 6615.388889
A172: -7 | B172: 35 | C172: -7 | D172: 2.53 | E172: =$C172*F172+G172 -> 2.58 | F172: =F171 -> 0.06 | G172: 3 | J172: 67275 | K172: 13.5 | L172: 4983.333333 | N172: 24 | O172: 130008 | P172: 5417
A173: -10 | B173: 35 | C173: -10 | D173: 2.32 | E173: =$C173*F173+G173 -> 2.4 | F173: =F172 -> 0.06 | G173: 3 | J173: 83655 | K173: 18.5 | L173: 4521.891892
J174: 89544 | K174: 24 | L174: 3731
A175: https://www.dilynakotle.cz/data/files/Technick%C3%BD%20list%20MANGO.pdf | J175: 101556 | K175: 27 | L175: 3761.333333
F176: 0.02285714286
F177: 3.96
A178: °C | D178: COP | E178: model
A179: 7 | B179: 35 | C179: =A179+35-B179 -> 7 | D179: 4.12 | E179: =C179*F$176+F$177 -> 4.12
A180: -7 | B180: 35 | C180: -7 | D180: 3.8 | E180: =C180*F$176+F$177 -> 3.8
A182: vyrobce Oschner u luftbojleru, ktery pracuje do -10 stupnu. | K182: https://forum.tzb-info.cz/145264-moznosti-vytapeni-novostavby-ned/vsechny-prispevky#text32
D183: COP | K183: kW W35 | L183: kW W60 | M183: spotř kW W35 | N183: spotř kW W60 | O183: COP W35 | P183: COP W60 | S183: a-b
A184: -5 | B184: 35 | C184: =A184+35-B184 -> -5 | D184: 2.3 | E184: =$C184*F184+G184 -> 2.7 | F184: 0.06 | G184: 3 | J184: -5 | K184: 1.1 | L184: 0.9 | M184: 0.48 | N184: 0.58 | O184: 2.3 | P184: 1.5 | Q184: =K184/M184 -> 2.291666667 | R184: =L184/N184 -> 1.551724138 | S184: =$J184*T184+U184 -> 1.525 | T184: 0.045 | U184: 1.75
A185: 0 | B185: 35 | C185: 0 | D185: 2.75 | E185: 3 | F185: =F184 -> 0.06 | G185: 3 | J185: 0 | K185: 1.3 | L185: 1.05 | M185: 0.49 | N185: 0.6 | O185: 2.75 | P185: 1.7 | Q185: =K185/M185 -> 2.653061224 | R185: 1.75 | S185: 1.75 | T185: =T184 -> 0.045 | U185: =U184 -> 1.75
A186: 5 | B186: 35 | C186: 5 | D186: 3.15 | E186: 3.3 | F186: =F185 -> 0.06 | G186: 3 | J186: 5 | K186: 1.55 | L186: 1.22 | M186: 0.495 | N186: 0.62 | O186: 3.15 | P186: 2 | Q186: 3.131313131 | R186: 1.967741935 | S186: 1.975 | T186: =T185 -> 0.045 | U186: 1.75
A187: 10 | B187: 35 | C187: 10 | D187: 3.5 | E187: 3.6 | F187: =F186 -> 0.06 | G187: 3 | J187: 10 | K187: 1.75 | L187: 1.35 | M187: 0.5 | N187: 0.64 | O187: 3.5 | P187: 2.3 | Q187: 3.5 | R187: 2.109375 | S187: 2.2 | T187: 0.045 | U187: 1.75
A188: 15 | B188: 35 | C188: 15 | D188: 4 | E188: 3.9 | F188: =F187 -> 0.06 | G188: 3 | J188: 15 | K188: 1.95 | L188: 1.6 | M188: 0.5 | N188: 0.66 | O188: 4 | P188: 2.4 | Q188: 3.9 | R188: 2.424242424 | S188: 2.425 | T188: 0.045 | U188: 1.75
A189: 20 | B189: 35 | C189: 20 | D189: 4.3 | E189: 4.2 | F189: =F188 -> 0.06 | G189: 3 | J189: 20 | K189: 2.2 | L189: 1.75 | M189: 0.5 | N189: 0.67 | O189: 4.3 | P189: 2.65 | Q189: 4.4 | R189: 2.611940299 | S189: 2.65 | T189: 0.045 | U189: 1.75
E190: 3 | F190: =F189 -> 0.06 | G190: 3
A191: -5 | B191: 60 | C191: -30 | D191: 1.5 | E191: 1.2 | F191: =F190 -> 0.06 | G191: 3 | P191: pro W35 je křivka 0,08 a 2,7
A192: 0 | B192: 60 | C192: -25 | D192: 1.7 | E192: 1.5 | F192: =F191 -> 0.06 | G192: 3 | P192: pro W60 je křivka 0,045 a 1,75
A193: 5 | B193: 60 | C193: -20 | D193: 2 | E193: 1.8 | F193: =F192 -> 0.06 | G193: 3
A194: 10 | B194: 60 | C194: -15 | D194: 2.3 | E194: 2.1 | F194: =F193 -> 0.06 | G194: 3
A195: 15 | B195: 60 | C195: -10 | D195: 2.4 | E195: 2.4 | F195: =F194 -> 0.06 | G195: 3
A196: 20 | B196: 60 | C196: -5 | D196: 2.65 | E196: 2.7 | F196: =F195 -> 0.06 | G196: 3
A197: https://eshop.biomacenergy.cz/sinclair-split-gsh-70erad-g4278.html
A198: https://www.sinclair-solutions.com/cs/produkty/tepelna-cerpadla/s-therm-3-venkovni-jednotky/5205-gsh-70erad-053121000001330.html
D199: COP | H199: GSH-70ERAD | K199: Napájení | L199: - | M199: 210 - 240 / 1 / 50 | N199: V / Ph / Hz | Q199: výkon kW | R199: příkon kW | S199: COP | T199: kontr | U199: krivka | V199: a | W199: b
A200: 7 | B200: 35 | C200: =A200+35-B200 -> 7 | D200: 4.15 | E200: =$C200*F200+G200 -> 4.04 | F200: 0.12 | G200: 3.2 | I200: 1 | J200: a | K200: A7 / W35 | L200: Topný výkon | M200: 6.65 | N200: kW | P200: 7 | Q200: 6.65 | R200: 1.6 | S200: 4.15 | T200: =Q200/R200 -> 4.15625 | U200: =P200*V200+W200 -> 4.04 | V200: 0.12 | W200: 3.2
A201: 2 | B201: 35 | C201: 2 | D201: 3.38 | E201: 3.44 | F201: =F200 -> 0.12 | G201: 3.2 | I201: 4 | J201: a | K201: A2 / W35 | L201: Topný výkon | M201: 4.92 | N201: kW | P201: 2 | Q201: 4.92 | R201: 1.46 | S201: 3.38 | T201: =Q201/R201 -> 3.369863014 | U201: =P201*V201+W201 -> 3.44 | V201: =V200 -> 0.12 | W201: =W200 -> 3.2
A202: -7 | B202: 35 | C202: -7 | D202: 2.3 | E202: 2.36 | F202: =F201 -> 0.12 | G202: 3.2 | I202: 7 | J202: a | K202: A-7 / W35 | L202: Topný výkon | M202: 3.9 | N202: kW | P202: -7 | Q202: 3.9 | R202: 1.7 | S202: 2.3 | T202: =Q202/R202 -> 2.294117647 | U202: =P202*V202+W202 -> 2.36 | V202: =V201 -> 0.12 | W202: =W201 -> 3.2
I203: 2 | J203: b | K203: A7 / W35 | L203: Příkon | M203: 1.6 | N203: kW
I204: 5 | J204: b | K204: A2 / W35 | L204: Příkon | M204: 1.46 | N204: kW
I205: 8 | J205: b | K205: A-7 / W35 | L205: Příkon | M205: 1.7 | N205: kW
I206: 3 | J206: c | K206: A7 / W35 | L206: COP | M206: 4.15 | N206: -
I207: 6 | J207: c | K207: A2 / W35 | L207: COP | M207: 3.38 | N207: -
I208: 9 | J208: c | K208: A-7 / W35 | L208: COP | M208: 2.3 | N208: -
B209: https://www.dedietrich-vytapeni.cz/tepelna-cerpadla/alezio-s-vzduch-voda-split-inverter/
B210: Alezio S 11
D211: COP | E211: model | I211: kW | K211: -22 | L211: °C pro COP | O211: 6000 | P211: m3/hod | R211: 0.8 | S211: m3/hod
A212: 7 | B212: 35 | C212: =A212+35-B212 -> 7 | D212: 4.65 | E212: =$A212*F212+G212 -> 4.625 | F212: 0.125 | G212: 3.75 | I212: 11.39 | K212: -31 | L212: °C pro výkon | O212: 7 | P212: st | R212: 12 | S212: st
A213: -7 | B213: 35 | C213: -7 | D213: 2.88 | E213: 2.875 | F213: =F212 -> 0.125 | G213: 3.75 | I213: 8.09 | O213: =O211*O212*1/3600 -> 11.66666667 | P213: kW | R213: =R211*R212*4200/3600 -> 11.2 | S213: kW
A214: -22 | B214: 35 | C214: -22 | D214: 1 | E214: 1 | F214: =F213 -> 0.125 | G214: 3.75 | I214: 2.45
A216: https://www.ivarcs.cz/clanky/atlas-nove-tepelne-cerpadlo-svetove-tridy-pokorilo-limit-snu-v-hodnote-scop-81/
J217: Ot/minTeplota nemrznoucí kapaliny-50+5WW +7,5* | U217: -5 | V217: 0 | W217: 5 | X217: 7.5
B218: st | D218: COP | E218: model | H218: kW | J218: 1200Topný výkon (kW) | K218: 2.3 | L218: 2.7 | M218: 3 | N218: 3 | O218: Příkon (kW) | P218: 0.7 | Q218: 0.7 | R218: 0.7 | S218: 0.7 | T218: COP | U218: 3.5 | V218: 4.1 | W218: 4.6 | X218: 4.6
A219: 5 | B219: 35 | C219: =A219+35-B219 -> 5 | D219: 5.2 | E219: =$A219*F219+G219 -> 5.2 | F219: 0.12 | G219: 4.6 | H219: 11.2 | J219: 2100Topný výkon (kW) | K219: 4 | L219: 4.6 | M219: 5.2 | N219: 5.2 | O219: Příkon (kW) | P219: 1 | Q219: 1 | R219: 1 | S219: 1 | T219: COP | U219: 4 | V219: 4.6 | W219: 5.3 | X219: 5.3
A220: 0 | B220: 35 | C220: 0 | D220: 4.6 | E220: =$A220*F220+G220 -> 4.6 | F220: =F219 -> 0.12 | G220: 4.6 | H220: 10 | J220: 3200Topný výkon (kW) | K220: 6.2 | L220: 7 | M220: 8 | N220: 8 | O220: Příkon (kW) | P220: 1.5 | Q220: 1.5 | R220: 1.5 | S220: 1.5 | T220: COP | U220: 4.1 | V220: 4.7 | W220: 5.3 | X220: 5.3
A221: -5 | B221: 35 | C221: -5 | D221: 4 | E221: =$A221*F221+G221 -> 4 | F221: =F220 -> 0.12 | G221: 4.6 | H221: 8.7 | J221: 4500Topný výkon (kW) | K221: 8.7 | L221: 10 | M221: 11.2 | N221: 11.2 | O221: Příkon (kW) | P221: 2.2 | Q221: 2.2 | R221: 2.2 | S221: 2.2 | T221: COP | U221: 4 | V221: 4.6 | W221: 5.2 | X221: 5.2
J222: 5300Topný výkon (kW) | K222: 10.2 | L222: 11.6 | M222: 12.1 | N222: 12.1 | O222: Příkon (kW) | P222: 2.6 | Q222: 2.7 | R222: 2.7 | S222: 2.7 | T222: COP | U222: 3.9 | V222: 4.4 | W222: 4.6 | X222: 4.6
U224: =K218/P218/U218 -> 0.9387755102 | V224: 0.9407665505 | W224: 0.9316770186 | X224: 0.9316770186
U225: 1 | V225: 1 | W225: 0.9811320755 | X225: 0.9811320755
U226: 1.008130081 | V226: 0.9929078014 | W226: 1.006289308 | X226: 1.006289308
U227: 0.9886363636 | V227: 0.9881422925 | W227: 0.979020979 | X227: 0.979020979
U228: 1.00591716 | V228: 0.9764309764 | W228: 0.9742351047 | X228: 0.9742351047
A235: https://vytapeni.tzb-info.cz/tepelna-cerpadla/16197-tepelna-cerpadla-od-firmy-viessmann-efektivni-vyuziti-obnovitelnych-zdroju-a-elektricke-energie
K237: kW | L237: COP | M237: model
I238: 2 | J238: 35 | K238: 11.39 | L238: 4 | M238: =$I238*N238+O238 -> 4 | N238: 0.22 | O238: 3.56
I239: 7 | J239: 35 | K239: 8.09 | L239: 5.1 | M239: =$I239*N239+O239 -> 5.1 | N239: =N238 -> 0.22 | O239: 3.56
I240: -22 | J240: 35 | K240: 2.45 | L240: 1 | M240: =$I240*N240+O240 -> -1.28 | N240: =N239 -> 0.22 | O240: 3.56
A245: https://tepelna-cerpadla-acond.cz/technicka-specifikace/
A246: PRO N | B246: 0.67
B247: 1,5 - 9 | D247: COP | E247: model
... 30 more rows

Sheet SCOP-norma
A1: https://vytapeni.tzb-info.cz/tepelna-cerpadla/13507-hodnoceni-scop-tepelnych-cerpadel-pro-vytapeni
A2: TZ12 kW/30K, pata 15°C a TČ 3,4/0,09 SCOP 3,2 Uvažováno konstantní topení 35°C kompresor 3 kW
A3: Tab. 2 – Určení SCOPon pro střední klimatické podmínky tepelného čerpadla vzduch-voda
A4: Venkovní teplota | B4: Počet hodin | C4: Tepelná ztráta | D4: Výkon tepelného čerpadla | E4: Elektrický dohřev | F4: CR | G4: COPDC | H4: COPpl | I4: Celková spotřeba el. en. za hodinu. | J4: Celková roční potřeba tepla | K4: Celková spotřeba el. en.
D5: [kW] | I5: [kWh/h] | J5: [kWh] | K5: [kWh]
A6: [˚C] | B6: [–] | C6: [kW] | E6: [kW] | O6: hodiny 2020/21 | P6: hodiny norma | Q6: součty hodin: | S6: s COP dc:
B7: hodin | F7: [–] | G7: [–] | H7: [–] | L7: odchylky: | Q7: 20/21 280 m.n.m. | R7: norma | U7: příkon kompresoru kW:
A8: -10 | B8: 1 | C8: 10 | D8: 7.48 | E8: 2.52 | F8: 1 | G8: 2.5 | H8: 2.5 | I8: 5.51 | J8: 10 | K8: 6 | L8: =D8/H8-I8+E8 -> 0.002 | M8: =C8-D8-E8 -> 0 | N8: =I8*B8-K8 -> -0.49 | O8: 24 | P8: 1 | Q8: 24 | R8: 1 | S8: =D8/G8+E8 -> 5.512 | T8: =T7+S8*B8 -> 5.512 | U8: =D8/G8 -> 2.992
A9: -9 | B9: 25 | C9: 9.62 | D9: 7.58 | E9: 2.03 | F9: 1 | G9: 2.59 | H9: 2.59 | I9: 4.96 | J9: 240 | K9: 124 | L9: -0.003359073359 | M9: 0.01 | N9: 0 | O9: 0 | P9: 25 | Q9: =Q8+O9 -> 24 | R9: =R8+P9 -> 26 | S9: 4.956640927 | T9: =T8+S9*B9 -> 129.4280232 | U9: =D9/G9 -> 2.926640927
A10: -8 | B10: 23 | C10: 9.23 | D10: 7.68 | E10: 1.55 | F10: 1 | G10: 2.68 | H10: 2.68 | I10: 4.42 | J10: 212 | K10: 102 | L10: -0.004328358209 | M10: 0 | N10: -0.34 | O10: 24 | P10: 23 | Q10: 48 | R10: 49 | S10: 4.415671642 | T10: 230.9884709 | U10: 2.865671642
A11: -7 | B11: 24 | C11: 8.85 | D11: 7.77 | E11: 1.07 | F11: 1 | G11: 2.76 | H11: 2.76 | I11: 3.88 | J11: 212 | K11: 93 | L11: 0.005217391304 | M11: 0.01 | N11: 0.12 | O11: 48 | P11: 24 | Q11: 96 | R11: 73 | S11: 3.885217391 | T11: 324.2336883 | U11: 2.815217391
A12: -6 | B12: 27 | C12: 8.46 | D12: 7.87 | E12: 0.59 | F12: 1 | G12: 2.85 | H12: 2.85 | I12: 3.35 | J12: 228 | K12: 90 | L12: 0.001403508772 | M12: 0 | N12: 0.45 | O12: 24 | P12: 27 | Q12: 120 | R12: 100 | S12: 3.351403509 | T12: 414.7215831 | U12: 2.761403509
A13: -5 | B13: 68 | C13: 8.08 | D13: 7.97 | E13: 0.11 | F13: 1 | G13: 2.94 | H13: 2.94 | I13: 2.82 | J13: 549 | K13: 192 | L13: 0.0008843537415 | M13: 3.191891196e-16 | N13: -0.24 | O13: 72 | P13: 68 | Q13: 192 | R13: 168 | S13: 2.820884354 | T13: 606.5417191 | U13: 2.710884354
A14: -4 | B14: 91 | C14: 7.69 | D14: 8.06 | E14: 0 | F14: 0.95 | G14: 3.03 | H14: 3.01 | I14: 2.55 | J14: 700 | K14: 232 | L14: =C14/H14-I14 -> 0.004817275748 | N14: 0.05 | O14: 0 | P14: 91 | Q14: 192 | R14: 259 | S14: =C14/G14 -> 2.537953795 | T14: 837.4955145 | U14: 2.660066007
A15: -3 | B15: 89 | C15: 7.31 | D15: 8.16 | E15: 0 | F15: 0.9 | G15: 3.12 | H15: 3.08 | I15: 2.37 | J15: 650 | K15: 211 | L15: 0.003376623377 | N15: -0.07 | O15: 48 | P15: 89 | Q15: 240 | R15: 348 | S15: 2.342948718 | T15: 1046.01795 | U15: 2.615384615
A16: -2 | B16: 165 | C16: 6.92 | D16: 8.26 | E16: 0 | F16: 0.84 | G16: 3.2 | H16: 3.14 | I16: 2.2 | J16: 1142 | K16: 363 | L16: 0.003821656051 | N16: 0 | O16: 48 | P16: 165 | Q16: 288 | R16: 513 | S16: 2.1625 | T16: 1402.83045 | U16: 2.58125
A17: -1 | B17: 173 | C17: 6.54 | D17: 8.35 | E17: 0 | F17: 0.78 | G17: 3.29 | H17: 3.2 | I17: 2.04 | J17: 1131 | K17: 353 | L17: 0.00375 | N17: -0.08 | O17: 72 | P17: 173 | Q17: 360 | R17: 686 | S17: 1.987841945 | T17: 1746.727107 | U17: 2.537993921
A18: 0 | B18: 240 | C18: 6.15 | D18: 8.45 | E18: 0 | F18: 0.73 | G18: 3.38 | H18: 3.26 | I18: 1.89 | J18: 1477 | K18: 453 | L18: -0.003496932515 | N18: 0.6 | O18: 120 | P18: 240 | Q18: 480 | R18: 926 | S18: 1.819526627 | T18: 2183.413497 | U18: 2.5
A19: 1 | B19: 280 | C19: 5.77 | D19: 8.55 | E19: 0 | F19: 0.67 | G19: 3.47 | H19: 3.31 | I19: 1.74 | J19: 1615 | K19: 488 | L19: 0.003202416918 | N19: -0.8 | O19: 216 | P19: 280 | Q19: 696 | R19: 1206 | S19: 1.662824207 | T19: 2649.004276 | U19: 2.463976945
A20: 2 | B20: 320 | C20: 5.38 | D20: 8.65 | E20: 0 | F20: 0.62 | G20: 3.56 | H20: 3.35 | I20: 1.61 | J20: 1723 | K20: 514 | L20: -0.004029850746 | N20: 1.2 | O20: 432 | P20: 320 | Q20: 1128 | R20: 1526 | S20: 1.511235955 | T20: 3132.599781 | U20: 2.429775281
A21: 3 | B21: 357 | C21: 5 | D21: 8.74 | E21: 0 | F21: 0.57 | G21: 3.64 | H21: 3.39 | I21: 1.47 | J21: 1785 | K21: 527 | L21: 0.004926253687 | N21: -2.21 | O21: 408 | P21: 357 | Q21: 1536 | R21: 1883 | S21: 1.373626374 | T21: 3622.984397 | U21: 2.401098901
A22: 4 | B22: 356 | C22: 4.62 | D22: 8.84 | E22: 0 | F22: 0.52 | G22: 3.73 | H22: 3.42 | I22: 1.35 | J22: 1643 | K22: 481 | L22: 0.0008771929825 | N22: -0.4 | O22: 504 | P22: 356 | Q22: 2040 | R22: 2239 | S22: 1.238605898 | T22: 4063.928096 | U22: 2.36997319
A23: 5 | B23: 303 | C23: 4.23 | D23: 8.94 | E23: 0 | F23: 0.47 | G23: 3.82 | H23: 3.44 | I23: 1.23 | J23: 1282 | K23: 373 | L23: -0.0003488372093 | N23: -0.31 | O23: 384 | P23: 303 | Q23: 2424 | R23: 2542 | S23: 1.107329843 | T23: 4399.449039 | U23: 2.340314136
A24: 6 | B24: 330 | C24: 3.85 | D24: 9.03 | E24: 0 | F24: 0.43 | G24: 3.91 | H24: 3.44 | I24: 1.12 | J24: 1269 | K24: 369 | L24: -0.0008139534884 | N24: 0.6 | O24: 456 | P24: 330 | Q24: 2880 | R24: 2872 | S24: 0.9846547315 | T24: 4724.3851 | U24: 2.309462916
A25: 7 | B25: 326 | C25: 3.46 | D25: 9.13 | E25: 0 | F25: 0.38 | G25: 4 | H25: 3.43 | I25: 1.01 | J25: 1128 | K25: 329 | L25: -0.001253644315 | N25: 0.26 | O25: 360 | P25: 326 | Q25: 3240 | R25: 3198 | S25: 0.865 | T25: 5006.3751 | U25: 2.2825
A26: 8 | B26: 348 | C26: 3.08 | D26: 9.23 | E26: 0 | F26: 0.33 | G26: 4.08 | H26: 3.4 | I26: 0.9 | J26: 1071 | K26: 315 | L26: 0.005882352941 | N26: -1.8 | O26: 144 | P26: 348 | Q26: 3384 | R26: 3546 | S26: 0.7549019608 | T26: 5269.080982 | U26: 2.262254902
A27: 9 | B27: 335 | C27: 2.69 | D27: 9.32 | E27: 0 | F27: 0.29 | G27: 4.17 | H27: 3.35 | I27: 0.8 | J27: 902 | K27: 269 | L27: 0.002985074627 | N27: -1 | O27: 480 | P27: 335 | Q27: 3864 | R27: 3881 | S27: 0.6450839329 | T27: 5485.1841 | U27: 2.23501199
A28: 10 | B28: 315 | C28: 2.31 | D28: 9.42 | E28: 0 | F28: 0.24 | G28: 4.26 | H28: 3.26 | I28: 0.71 | J28: 727 | K28: 223 | L28: -0.001411042945 | N28: 0.65 | O28: 408 | P28: 315 | Q28: 4272 | R28: 4196 | S28: 0.5422535211 | T28: 5655.993959 | U28: 2.211267606
A29: 11 | B29: 215 | C29: 1.92 | D29: 9.52 | E29: 0 | F29: 0.2 | G29: 4.35 | H29: 3.12 | I29: 0.62 | J29: 413 | K29: 133 | L29: -0.004615384615 | N29: 0.3 | O29: 216 | P29: 215 | Q29: 4488 | R29: 4411 | S29: 0.4413793103 | T29: 5750.890511 | U29: 2.188505747
A30: 12 | B30: 169 | C30: 1.54 | D30: 9.61 | E30: 0 | F30: 0.16 | G30: 4.44 | H30: 2.91 | I30: 0.53 | J30: 260 | K30: 89 | L30: -0.0007903780069 | N30: 0.57 | O30: 288 | P30: 169 | Q30: 4776 | R30: 4580 | S30: 0.3468468468 | T30: 5809.507628 | U30: 2.164414414
A31: 13 | B31: 151 | C31: 1.15 | D31: 9.71 | E31: 0 | F31: 0.12 | G31: 4.52 | H31: 2.6 | I31: 0.44 | J31: 174 | K31: 67 | L31: 0.002307692308 | N31: -0.56 | O31: 288 | P31: 151 | Q31: 5064 | R31: 4731 | S31: 0.2544247788 | T31: 5847.92577 | U31: 2.148230088
A32: 14 | B32: 105 | C32: 0.77 | D32: 9.81 | E32: 0 | F32: 0.08 | G32: 4.61 | H32: 2.12 | I32: 0.36 | J32: 81 | K32: 38 | L32: 0.00320754717 | N32: -0.2 | O32: 360 | P32: 105 | Q32: 5424 | R32: 4836 | S32: 0.1670281996 | T32: 5865.46373 | U32: 2.127982646
A33: 15 | B33: 74 | C33: 0.38 | D33: 9.9 | E33: 0 | F33: 0.04 | G33: 4.7 | H33: 1.35 | I33: 0.28 | J33: 28 | K33: 21 | L33: 0.001481481481 | N33: -0.28 | O33: 360 | P33: 74 | Q33: 5784 | R33: 4910 | S33: 0.08085106383 | T33: 5871.446709 | U33: 2.106382979
J34: =SUM(J8:J33) -> 20652 | K34: =SUM(K8:K33) -> 6455 | O34: 144 | T34: 6455.40734
J35: 20656 | K35: 6454 | L35: =J35/K35 -> 3.200495817 | M35: Výsledný SCOP | O35: 240 | T35: =J34/T34 -> 3.199178443
A36: 10 | H36: =I36+A36*J36 -> 4.3 | I36: 3.4 | J36: 0.09 | T36: =J34/T33 -> 3.517361397 | U36: =T35/T36 -> 0.9095393056
A37: 0 | C37: stanovení směrnice COP: vychází 3,4 /0,09 | H37: =I37+A37*J37 -> 3.4 | I37: =I36 -> 3.4 | J37: =J36 -> 0.09 | O37: nízká účinnost cyklováním při malých průměrných výkonech
K38: =D33/G33 -> 2.106382979 | L38: kW kompresor při 15°C | O38: dle normy zhoršuje SCOP asi o 9%
K39: =D8/G8 -> 2.992 | L39: kW kompresor při -10°C
A40: datum | B40: venk tepl °C
A41: 2021-02-15 | B41: -11.5 | C41: =ROUND(B41,0) -> -12 | D41: =IF(C41=C40,D40+1,1) -> 1 | E41: -12 | F41: 1 | G41: =24*F41 -> 24
A42: 2021-02-10 | B42: -9.7 | C42: -10 | D42: 1 | E42: -11 | F42: 0 | G42: 0
A43: 2021-02-12 | B43: -9.1 | C43: -9 | D43: 1 | E43: -10 | F43: 1 | G43: 24
A44: 2021-02-14 | B44: -8.9 | C44: -9 | D44: 2 | E44: -9 | F44: 2 | G44: 48
A45: 2021-02-09 | B45: -8 | C45: -8 | D45: 1 | E45: -8 | F45: 1 | G45: 24
A46: 2021-02-11 | B46: -7.4 | C46: -7 | D46: 1 | E46: -7 | F46: 3 | G46: 72
A47: 2021-02-13 | B47: -7.3 | C47: -7 | D47: 2 | E47: -6 | F47: 0 | G47: 0
A48: 2021-02-08 | B48: -7 | C48: -7 | D48: 3 | E48: -5 | F48: 2 | G48: 48
A49: 2021-01-17 | B49: -4.5 | C49: -5 | D49: 1 | E49: -4 | F49: 2 | G49: 48
A50: 2021-02-07 | B50: -4.5 | C50: -5 | D50: 2 | E50: -3 | F50: 3 | G50: 72
A51: 2021-01-16 | B51: -4.4 | C51: -4 | D51: 1 | E51: -2 | F51: 5 | G51: 120
A52: 2021-01-31 | B52: -3.5 | C52: -4 | D52: 2 | E52: -1 | F52: 9 | G52: 216
A53: 2021-01-11 | B53: -2.9 | C53: -3 | D53: 1 | E53: 0 | F53: 18 | G53: 432
A54: 2021-02-01 | B54: -2.5 | C54: -3 | D54: 2 | E54: 1 | F54: 17 | G54: 408
A55: 2021-02-16 | B55: -2.5 | C55: -3 | D55: 3 | E55: 2 | F55: 21 | G55: 504
A56: 2021-03-20 | B56: -2.2 | C56: -2 | D56: 1 | E56: 3 | F56: 16 | G56: 384
A57: 2021-01-18 | B57: -2 | C57: -2 | D57: 2 | E57: 4 | F57: 19 | G57: 456
A58: 2020-12-02 | B58: -1.8 | C58: -2 | D58: 3 | E58: 5 | F58: 15 | G58: 360
A59: 2020-12-03 | B59: -1.8 | C59: -2 | D59: 4 | E59: 6 | F59: 6 | G59: 144
A60: 2021-01-02 | B60: -1.7 | C60: -2 | D60: 5 | E60: 7 | F60: 20 | G60: 480
A61: 2021-01-01 | B61: -1.4 | C61: -1 | D61: 1 | E61: 8 | F61: 17 | G61: 408
A62: 2020-12-01 | B62: -1.3 | C62: -1 | D62: 2 | E62: 9 | F62: 9 | G62: 216
A63: 2020-12-27 | B63: -1.2 | C63: -1 | D63: 3 | E63: 10 | F63: 12 | G63: 288
A64: 2021-01-15 | B64: -1.1 | C64: -1 | D64: 4 | E64: 11 | F64: 12 | G64: 288
A65: 2021-03-09 | B65: -1.1 | C65: -1 | D65: 5 | E65: 12 | F65: 15 | G65: 360
A66: 2021-01-26 | B66: -0.9 | C66: -1 | D66: 6 | E66: 13 | F66: 15 | G66: 360
A67: 2020-11-24 | B67: -0.7 | C67: -1 | D67: 7 | E67: 14 | F67: 6 | G67: 144
A68: 2021-01-10 | B68: -0.7 | C68: -1 | D68: 8 | E68: 15 | F68: 10 | G68: 240
A69: 2021-01-12 | B69: -0.6 | C69: -1 | D69: 9
A70: 2020-11-26 | B70: -0.4 | C70: 0 | D70: 1
A71: 2021-01-09 | B71: -0.4 | C71: 0 | D71: 2
A72: 2021-01-14 | B72: -0.4 | C72: 0 | D72: 3
A73: 2021-01-27 | B73: -0.3 | C73: 0 | D73: 4
A74: 2020-11-25 | B74: -0.1 | C74: 0 | D74: 5
A75: 2020-11-27 | B75: -0.1 | C75: 0 | D75: 6
A76: 2021-01-08 | B76: -0.1 | C76: 0 | D76: 7
A77: 2021-03-06 | B77: -0.1 | C77: 0 | D77: 8
A78: 2021-01-07 | B78: 0 | C78: 0 | D78: 9
A79: 2021-02-06 | B79: 0.1 | C79: 0 | D79: 10
A80: 2021-01-06 | B80: 0.2 | C80: 0 | D80: 11
A81: 2021-04-06 | B81: 0.2 | C81: 0 | D81: 12
A82: 2020-11-21 | B82: 0.4 | C82: 0 | D82: 13
A83: 2020-12-26 | B83: 0.4 | C83: 0 | D83: 14
A84: 2020-12-31 | B84: 0.4 | C84: 0 | D84: 15
A85: 2021-03-02 | B85: 0.4 | C85: 0 | D85: 16
A86: 2021-03-07 | B86: 0.4 | C86: 0 | D86: 17
A87: 2021-03-08 | B87: 0.4 | C87: 0 | D87: 18
A88: 2020-11-28 | B88: 0.5 | C88: 1 | D88: 1
A89: 2020-11-30 | B89: 0.5 | C89: 1 | D89: 2
A90: 2021-01-25 | B90: 0.6 | C90: 1 | D90: 3
A91: 2021-01-29 | B91: 0.6 | C91: 1 | D91: 4
A92: 2021-01-13 | B92: 0.7 | C92: 1 | D92: 5
A93: 2021-01-24 | B93: 0.7 | C93: 1 | D93: 6
A94: 2021-02-23 | B94: 0.8 | C94: 1 | D94: 7
A95: 2020-12-30 | B95: 0.9 | C95: 1 | D95: 8
A96: 2021-03-03 | B96: 0.9 | C96: 1 | D96: 9
A97: 2021-03-19 | B97: 0.9 | C97: 1 | D97: 10
A98: 2021-01-30 | B98: 1 | C98: 1 | D98: 11
A99: 2021-03-05 | B99: 1 | C99: 1 | D99: 12
A100: 2020-12-04 | B100: 1.1 | C100: 1 | D100: 13
A101: 2021-03-10 | B101: 1.1 | C101: 1 | D101: 14
A102: 2020-12-28 | B102: 1.2 | C102: 1 | D102: 15
A103: 2021-01-05 | B103: 1.2 | C103: 1 | D103: 16
A104: 2021-01-28 | B104: 1.2 | C104: 1 | D104: 17
A105: 2020-12-19 | B105: 1.5 | C105: =ROUND(B105,0) -> 2 | D105: =IF(C105=C104,D104+1,1) -> 1
A106: 2020-11-29 | B106: 1.6 | C106: 2 | D106: 2
A107: 2021-03-17 | B107: 1.6 | C107: 2 | D107: 3
A108: 2020-12-20 | B108: 1.7 | C108: 2 | D108: 4
A109: 2021-01-03 | B109: 1.7 | C109: 2 | D109: 5
A110: 2021-02-05 | B110: 1.8 | C110: 2 | D110: 6
A111: 2020-11-07 | B111: 1.9 | C111: 2 | D111: 7
A112: 2020-12-18 | B112: 1.9 | C112: 2 | D112: 8
A113: 2021-04-07 | B113: 1.9 | C113: 2 | D113: 9
A114: 2021-01-19 | B114: 2 | C114: 2 | D114: 10
A115: 2021-02-24 | B115: 2 | C115: 2 | D115: 11
A116: 2021-03-01 | B116: 2 | C116: 2 | D116: 12
A117: 2021-03-21 | B117: 2 | C117: 2 | D117: 13
A118: 2021-04-15 | B118: 2 | C118: 2 | D118: 14
A119: 2020-12-11 | B119: 2.1 | C119: 2 | D119: 15
A120: 2020-12-17 | B120: 2.1 | C120: 2 | D120: 16
A121: 2020-12-25 | B121: 2.1 | C121: 2 | D121: 17
A122: 2021-03-18 | B122: 2.1 | C122: 2 | D122: 18
A123: 2021-01-21 | B123: 2.2 | C123: 2 | D123: 19
A124: 2020-12-12 | B124: 2.3 | C124: 2 | D124: 20
A125: 2021-02-20 | B125: 2.4 | C125: 2 | D125: 21
A126: 2020-11-08 | B126: 2.5 | C126: 3 | D126: 1
A127: 2020-12-21 | B127: 2.5 | C127: 3 | D127: 2
A128: 2021-01-04 | B128: 2.5 | C128: 3 | D128: 3
A129: 2021-04-16 | B129: 2.5 | C129: 3 | D129: 4
A130: 2021-01-23 | B130: 2.6 | C130: 3 | D130: 5
A131: 2021-02-21 | B131: 2.7 | C131: 3 | D131: 6
A132: 2021-02-25 | B132: 2.8 | C132: 3 | D132: 7
A133: 2020-12-16 | B133: 2.9 | C133: 3 | D133: 8
A134: 2020-12-29 | B134: 2.9 | C134: 3 | D134: 9
A135: 2020-11-22 | B135: 3 | C135: 3 | D135: 10
A136: 2020-11-06 | B136: 3.1 | C136: 3 | D136: 11
A137: 2021-02-26 | B137: 3.1 | C137: 3 | D137: 12
A138: 2020-11-09 | B138: 3.2 | C138: 3 | D138: 13
A139: 2021-04-08 | B139: 3.2 | C139: 3 | D139: 14
A140: 2020-12-15 | B140: 3.3 | C140: 3 | D140: 15
A141: 2021-03-16 | B141: 3.4 | C141: 3 | D141: 16
A142: 2020-11-20 | B142: 3.5 | C142: 4 | D142: 1
A143: 2020-12-10 | B143: 3.5 | C143: 4 | D143: 2
A144: 2021-02-17 | B144: 3.5 | C144: 4 | D144: 3
A145: 2021-03-15 | B145: 3.5 | C145: 4 | D145: 4
A146: 2021-02-27 | B146: 3.6 | C146: 4 | D146: 5
A147: 2021-03-22 | B147: 3.6 | C147: 4 | D147: 6
A148: 2021-02-22 | B148: 3.7 | C148: 4 | D148: 7
A149: 2021-04-17 | B149: 3.7 | C149: 4 | D149: 8
A150: 2021-02-02 | B150: 3.8 | C150: 4 | D150: 9
A151: 2021-04-14 | B151: 3.8 | C151: 4 | D151: 10
A152: 2020-12-13 | B152: 3.9 | C152: 4 | D152: 11
A153: 2021-03-23 | B153: 3.9 | C153: 4 | D153: 12
A154: 2021-04-13 | B154: 4 | C154: 4 | D154: 13
A155: 2020-12-08 | B155: 4.1 | C155: 4 | D155: 14
A156: 2021-04-12 | B156: 4.3 | C156: 4 | D156: 15
A157: 2020-11-10 | B157: 4.4 | C157: 4 | D157: 16
A158: 2021-01-20 | B158: 4.4 | C158: 4 | D158: 17
A159: 2021-02-28 | B159: 4.4 | C159: 4 | D159: 18
A160: 2021-03-04 | B160: 4.4 | C160: 4 | D160: 19
A161: 2020-12-14 | B161: 4.5 | C161: 5 | D161: 1
A162: 2021-04-04 | B162: 4.5 | C162: 5 | D162: 2
A163: 2021-04-05 | B163: 4.6 | C163: 5 | D163: 3
A164: 2020-11-23 | B164: 4.8 | C164: 5 | D164: 4
A165: 2020-12-05 | B165: 4.8 | C165: 5 | D165: 5
A166: 2020-12-09 | B166: 4.8 | C166: 5 | D166: 6
A167: 2021-03-14 | B167: 4.8 | C167: 5 | D167: 7
A168: 2020-11-11 | B168: 4.9 | C168: 5 | D168: 8
A169: 2021-02-19 | B169: 4.9 | C169: =ROUND(B169,0) -> 5 | D169: =IF(C169=C168,D168+1,1) -> 9
A170: 2021-02-18 | B170: 5 | C170: 5 | D170: 10
A171: 2021-04-03 | B171: 5.1 | C171: 5 | D171: 11
A172: 2021-04-26 | B172: 5.2 | C172: 5 | D172: 12
A173: 2020-11-05 | B173: 5.4 | C173: 5 | D173: 13
A174: 2020-11-12 | B174: 5.4 | C174: 5 | D174: 14
A175: 2020-11-15 | B175: 5.4 | C175: 5 | D175: 15
A176: 2021-04-09 | B176: 5.6 | C176: 6 | D176: 1
A177: 2021-03-11 | B177: 5.7 | C177: 6 | D177: 2
A178: 2021-01-22 | B178: 6.1 | C178: 6 | D178: 3
A179: 2020-10-11 | B179: 6.2 | C179: 6 | D179: 4
A180: 2021-03-12 | B180: 6.4 | C180: 6 | D180: 5
A181: 2021-03-24 | B181: 6.4 | C181: 6 | D181: 6
A182: 2020-10-13 | B182: 6.5 | C182: 7 | D182: 1
A183: 2020-10-28 | B183: 6.8 | C183: 7 | D183: 2
A184: 2021-04-23 | B184: 6.8 | C184: 7 | D184: 3
A185: 2020-10-14 | B185: 6.9 | C185: 7 | D185: 4
A186: 2020-11-19 | B186: 6.9 | C186: 7 | D186: 5
A187: 2021-04-18 | B187: 6.9 | C187: 7 | D187: 6
A188: 2021-04-25 | B188: 6.9 | C188: 7 | D188: 7
A189: 2021-04-27 | B189: 6.9 | C189: 7 | D189: 8
A190: 2020-12-07 | B190: 7 | C190: 7 | D190: 9
A191: 2021-02-04 | B191: 7 | C191: 7 | D191: 10
A192: 2021-03-28 | B192: 7 | C192: 7 | D192: 11
A193: 2020-10-20 | B193: 7.1 | C193: 7 | D193: 12
A194: 2020-11-13 | B194: 7.1 | C194: 7 | D194: 13
A195: 2021-03-13 | B195: 7.1 | C195: 7 | D195: 14
A196: 2021-04-02 | B196: 7.2 | C196: 7 | D196: 15
A197: 2021-04-22 | B197: 7.2 | C197: 7 | D197: 16
A198: 2020-09-26 | B198: 7.3 | C198: 7 | D198: 17
A199: 2020-09-28 | B199: 7.3 | C199: 7 | D199: 18
A200: 2020-10-17 | B200: 7.3 | C200: 7 | D200: 19
... 205 more rows

Sheet test2
G4: 0.19 | H4: =G4 -> 0.19 | I4: =H4 -> 0.19 | J4: 0.19 | K4: TZ při -10°C: | L4: 10 | M4: kW pro dT 30K. Tedy topení 20°C, venku -10°C. | N4: 2 | O4: kW topení ostatních zdrojů
